{"text_format":"1","workbook":"xlsx","n_sheets":11,"sheets":["0_Einleitung","1_allg. Strukturdaten","1a_Langzeitpflege","1b_Kurzzeitpflege","2_Personal","4_Pflegepersonalbedarf 2025","4a_Darstellung_MPPB,AnteilDGKP","5_Betreuung und Pflege","6_Kennzahlen","7_Definitionen","Datenblatt"],"not_rendered":{"charts":2,"images":2,"macros":1,"external_links":0,"defined_names":15,"comments":8,"pivot_tables":0},"unopened":[],"bounds":{"document_bytes":16777216,"sheet_cells":100000,"rows_first":2000,"rows_last":500,"rows_between":2000,"halvings":0,"cell_chars":16384,"cell_head_chars":4096},"cells_cut":0,"cells_raw":0,"read":"whole","date_system":"1900"}

{"sheet":"0_Einleitung","index":0,"n_rows":53,"n_cols":16,"rows_kept":53,"cut":false,"hidden":false,"merged":[[8,0,8,11],[15,0,15,11],[1,6,1,7],[1,4,1,5],[6,0,6,11],[7,0,7,11],[5,0,5,11],[14,0,14,11],[10,0,10,11],[11,0,11,11],[56,0,56,11],[55,0,55,11],[37,0,37,11],[21,0,21,11],[48,0,48,11],[42,0,42,11],[47,0,47,11],[50,0,50,11],[31,0,31,11],[23,0,23,11],[29,0,29,11],[54,0,54,11],[41,0,41,11],[36,0,36,11],[49,0,49,11],[53,0,53,11],[64,0,64,11],[57,0,57,11],[58,0,58,11],[59,0,59,11],[60,0,60,11],[61,0,61,11],[62,0,62,11],[63,0,63,11],[51,0,51,11],[52,0,52,11],[39,0,39,11],[33,0,33,11],[16,0,16,11],[34,0,34,11],[28,0,28,11],[17,0,17,11],[18,0,18,11],[20,0,20,11],[30,0,30,11],[19,0,19,11]]}
["ERHEBUNG IN DEN OÖ. ALTEN- UND PFLEGEHEIMEN\n(Einleitung)",null,null,null,null,null,null,null,null,null,null,null,null,null,null,{"$f":"IF(M1=\"\",\"\",\"x\")","v":""}]
[null,null,null,null,"zum Stichtag",null,"2025-12-31",null,null,null,null,null,null,null,null,{"$f":"IF(M2=\"\",\"\",\"x\")","v":""}]
[{"$f":"IF(AND('1_allg. Strukturdaten'!A4=\"\",'1a_Langzeitpflege'!A4=\"\",'1b_Kurzzeitpflege'!A4=\"\",'2_Personal'!A4=\"\",'4a_Darstellung_MPPB,AnteilDGKP'!A4=\"\",'4_Pflegepersonalbedarf 2025'!A5=\"\",'5_Betreuung und Pflege'!A4=\"\")=FALSE,\"Tabellenblätter nicht vollständig oder korrekt ausgefüllt! Bitte Eingaben auf den einzelnen Tabellenblättern prüfen!\",\"\")","v":"Tabellenblätter nicht vollständig oder korrekt ausgefüllt! Bitte Eingaben auf den einzelnen Tabellenblättern prüfen!"},null,null,null,null,null,null,null,null,null,null,{"$f":"IF(A3=\"\",\"Sie haben die Tabellenblätter vollständig ausgefüllt - Vielen Dank!\",\"\")","v":""}]
["Sehr geehrte Damen und Herren!"]
[]
["Zur Erstellung der Grundlage für eine bedarfsorientierte Sozialplanung, zur Überprüfung der Erfüllung der Vorgaben der Oö. Alten- und Pflegeheimverordnung sowie zur Erfüllung der Berichtspflicht an den Bund ist umfangreiches aktuelles Datenmaterial über die Situation in den Oö. Alten- und Pflegeheimen erforderlich. Aus diesem Grund erfolgt jährlich eine Erhebung bestimmter Daten, die vor allem zur Beurteilung der Strukturqualität von Bedeutung sind. "]
["Die gesamte Erhebung (Excel-Files) steht auf der Homepage des Landes unter dem Link "]
["https://www.land-oberoesterreich.gv.at/196490.htm"]
["zum Download bereit, die Dokumente werden nicht per E-Mail versendet."]
["Neuerungen:"]
["       Blatt 1_: Die Definitionen der leer stehenden Plätze wurden adaptiert."]
["       Blatt 2_: Pflegelehre:\n                    Die Abfrage wurde geändert von Jahreswert auf Stichtagswert.\n                    Eine Frage zum Thema zugelassener Lehrbetrieb für Pflegelehre wurde ergänzt."]
[]
["Wichtige HINWEISE:"]
["       Eine gemischte Verwendung einer 2-Personen-Wohneinheit gleichzeitig für LZP und KZP ist untersagt.\n                                                                         "]
["       Es sind in Blatt 2_Personal auch jene Mitarbeiter:innen anzugeben, die sich zum Stichtag in Langzeitkrankenstand befunden haben (weil es hier um die beschäftigten Personen geht). In Blatt 4 hingegen sind zum jeweiligen Monatsletzten nur jene Mitarbeiter:innen anzugeben, die tatsächlich für die Berechnung des MPPB herangezogen werden dürfen, also keine MA in Langzeitkrankenstand, Altersteilzeit-Freizeitphase oder Sabbatical (weil es hier um die tatsächliche Verfügbarkeit des Pflegepersonals geht). Die Definition, ab wann Mitarbeiter herauszurechnen sind, finden Sie im Kommentar im Blatt 4_ Zelle L2."]
["       Im Bereich der Kurzzeitpflege wird nicht zwischen fixen und variablen Plätzen unterschieden. Maßgeblich ist die Anzahl jener Kurzzeitpflegeplätze, welche am Stichtag tatsächlich für die Kurzzeitpflege zur Verfügung stehen oder freigehalten werden. Wichtig dabei ist, dass zum Stichtag nicht mehr Kurzzeitpflegegäste im Haus sein können, als Kurzzeitpflegeplätze vorgehalten werden. In einem derartigen Fall muss die Anzahl der Plätze, die für Kurzzeitpflege verwendet oder freigehalten werden, entsprechend erhöht und gleichzeitig die Plätze der Langzeitpflege verringert werden. Um Daten über die Verteilung auf die einzelnen Monate zu erhalten, ist im Tabellenblatt 4_Pflegepersonalbedarf 2025 (Zeile 139 bzw. 285) anzugeben, wie viele KZP-Gäste zum jeweiligen Monatsletzten im Heim betreut wurden.\n"]
["Bitte unbedingt beachten:"]
["       In den Kommentarfeldern einzelner Zellen (gekennzeichnet durch rotes Dreieck am rechten oberen Rand) finden Sie hilfreiche Definitionen, Erklärungen und Ausfüllbeispiele! Bitte unbedingt vor dem Ausfüllen lesen!\n"]
["       Um diese wertvollen Informationen auch jenen Personen zur Verfügung stellen zu können, welche nicht direkt in den Excel-Datenblättern arbeiten, sondern Ausdrucke in Papierform verwenden, empfehlen wir folgende Vorgehensweise: Ein Klick auf den Reiter \"Überprüfen\" oben in der Befehlszeile, dann \"alle Kommentare anzeigen\" auswählen und Dokument ausdrucken. "]
["       Bitte achten Sie darauf, dass Sie in der Kosten-Leistungs-Rechnung (KLR) (IST 2025) dieselben Angaben verwenden, wie in der APH-Erhebung 2025. Dies betrifft überwiegend die Platzanzahl und die Bewohntage."]
["Hinweise zum Ausfüllen:"]
["1) Allgemeine Hinweise"]
["Die APH-Erhebung selbst ist aus Gründen der Übersichtlichkeit in mehrere Tabellenblätter gegliedert. Die Tabellenblätter \"1_...\" bis \"5_...\" (ausgenommen 4a_...) sind auszufüllen.\n\n"]
["Die meisten Angaben sind ",null,"zum Stichtag 31.12.2025",null,"(in der Überschrift hellblau gekennzeichnet) zu machen."]
["Jene Daten, die ","für das Jahr 2025 (zeitraumbezogen)",null,null,"anzugeben sind, sind grün gekennzeichnet."]
["Datenbereiche, die im Vergleich zum Vorjahr verändert bzw. neu eingeführt wurden, sind lila gekennzeichnet."]
[]
["Im Sinne der Benutzerfreundlichkeit wurden Vollständigkeits- und nach Möglichkeit Plausibilitätskontrollen eingebaut, die im oberen Bereich jedes Tabellenblattes aufscheinen. Das Tabellenblatt \"0_Einleitung\" enthält in Zeile 3 eine Vollständigkeitskontrolle hinsichtlich der gesamten Dateneingabe.\n\nUm den Aufwand des Ausfüllens so gering wie möglich zu halten, wurden die erforderlichen Rechenschritte bzw. die Vollständigkeits- bzw. Plausibilitätsprüfungen mit Formeln hinterlegt. Damit diese Formeln nicht irrtümlich gelöscht werden können, wurde das Arbeitsblatt mit einem Blattschutz versehen. Nur die zur Eingabe vorgesehenen Felder (Zellen) sind zur Dateneingabe freigeschaltet. Es handelt sich hierbei um jene Felder, die mit gelber Farbe hinterlegt sind. Diese können (neben dem Anklicken mit der Maus) auch mit der Tabulatortaste der Reihe nach annavigiert werden. "]
["Als zusätzliche Ausfüllhilfe wurden an den relevanten Textstellen Kommentarfelder (erkennbar an einem roten Dreieck am rechten oberen Rand der betreffenden Zelle) eingefügt. Stellt man den Cursor auf diese Zelle so erhält man nützliche Informationen bzw. Hilfestellungen. Bei Unklarheiten, die nicht durch entsprechende Kommentare abgeklärt sind, ersuchen wir um diesbezügliche Rückmeldung, um die APH-Erhebung weiter optimieren zu können.\n\nUm die einzelnen Tabellenblätter vollständig auszufüllen, ist es erforderlich, auch bei Nichtzutreffen der jeweiligen Fragestellungen die betreffende Zelle (mit \"Nein\" oder \"0\") auszufüllen."]
["2) Zeitpunkt bzw. Zeitdauer, auf die sich die Abfrage bezieht"]
["Die APH-Erhebung stellt grundsätzlich eine \"Zeitpunktabfrage\" dar, da ein Großteil der Abfragen auf den 31. Dezember 2025 abstellt. Bei der Beurteilung des Erfüllungsgrades des Mindestpflegepersonalbedarfs erfolgt jedoch eine Abfrage der Monatswerte zum jeweiligen Monatsletzten. Halbjahres- und Jahresdurchschnitt werden in weiterer Folge automatisch berechnet.\nWeitere Bereiche, bei denen das Kalenderjahr 2025 als Betrachtungszeitraum heranzuziehen ist, sind in den einzelnen Tabellenblättern grün gekennzeichnet."]
[]
["3) Tabellenblatt \"4_Pflegepersonalbedarf 2025\""]
["Mit der APH-Erhebung zum 31.12.2024 wurde zusätzlich die Tabelle \"Pflegepersonalbedarf_2025\" zum Download zur Verfügung gestellt, mit dem Auftrag, diese monatlich auszufüllen. Diese Aufzeichnungen können nun in das Tabellenblatt 4_Pflegepersonalbedarf 2025 kopiert werden. \nDazu steht in diesem Tabellenblatt 4_Pflegepersonalbedarf 2025 (Spalte R oben) ein Feld mit Makros zur Verfügung, welches automatisch alle Daten der ausgewählten Tabelle \"Pflegepersonalbedarf 2025\" in die APH-Erhebung kopiert - und das in weniger als einer Minute. Drücken Sie auf das Feld \"Kopieren aus Datei\", wählen dann die befüllte gespeicherte Datei aus, aus welcher kopiert werden soll und drücken auf \"Öffnen\". Nun sucht sich das Programm automatisch die notwendigen Daten und kopiert sie in die Erhebung. Dabei blitzen einzelne Felder nacheinander auf. Sollten im zu kopierenden Formular Zellen unausgefüllt sein, bitte die Daten in der APH-Erhebung ergänzen, sodass keine Fehlermeldung mehr auftritt. \nDie Makros lassen sich erst dann ausführen, wenn die APH-Erhebung vorher in einem Laufwerk auf Ihrem Rechner gespeichert wurde, bei speichern am Desktop funktioniert es nicht, auch nicht aus einem Mail-Anhang heraus.\nSollten die Makros trotz Ausführung nach Anleitung nicht funktionieren, so bitte die gelben Felder der gespeicherten Datei in Blatt 4 der APH-Erhebung kopieren.\n\nZusätzlich ist - wie bereits in Zeile 17 erwähnt - in den Zeilen 139 und 285 anzugeben, wie viele KZP-Gäste zum jeweiligen Monatsletzten im Heim betreut wurden, sofern dies noch nicht erfolgt ist. \nBitte achten Sie in den Zeilen 10 und 11 auf die korrekte Angabe der Wochenstunden!"]
[]
["4) Tabellenblatt \"6_Kennzahlen\""]
["In diesem Tabellenblatt sind keine Eingaben zu machen. Es dient zur Darstellung von Kennzahlen, die aus den Angaben in den Blättern \"1_...\" bis \"5_...\" errechnet werden und die bereits eine erste Auswertung für die Heime liefern sollen. \nUm einen Vergleich bzw. eine Entwicklung darstellen zu können, werden im jeweiligen Bereich die OÖ-Durchschnittswerte aus den Ergebnissen der APH-Erhebung von 31.12.2018 bis 31.12.2024 angegeben. Die Ergebnisse aus der APH-Erhebung per 31.12.2025 finden Sie im Rahmen der Erhebung per 31.12.2026 in einer neuen Spalte in Blatt 6_. "]
[]
["5) Tabellenblatt \"7_Definitionen\"\nDieses Tabellenblatt beinhaltet gesammelt wichtige Definitionen, Literatur- und Quellennachweise zum Tabellenblatt 5, welche auch in den jeweiligen Kommentaren zu finden sind. Die Themen, zu denen Definitionen zu finden sind, sind in den Tabellenblättern zusätzlich mit einem grünen Punkt     markiert."]
[]
["6) Frist für die Rücksendung"]
["Es wird ersucht, die vollständig ausgefüllte und plausibilisierte APH-Erhebung bis spätestens 15. Jänner 2026 gesammelt durch den regionalen Träger Sozialer Hilfe ausschließlich per E-Mail an die Abteilung Soziales beim Amt der Oö. Landesregierung zu retournieren. "]
[]
["An:",null,"so.post@ooe.gv.at"]
["Betreff:",null,"<Bezeichnung des Bezirkes> - APH-Erhebung per 31122025"]
["Bezeichnung der Beilagen:",null,"<Bezeichnung des Heimes> - APH-Erhebung per 31122025"]
[]
["Für Rückfragen wenden Sie sich bitte an:\nAnita Pröll, Tel. 0732 / 7720 - 14920 oder\nHeike Wiesinger, Tel. 0732 / 7720 - 15235"]
[]
["7) Pflegepersonalbedarfsberechnung 2026"]
["Für die im Jahr 2026 anfallende laufende Pflegepersonalbedarfsberechnung, die auch im Rahmen der APH-Erhebung per 31.12.2026 abgefragt werden wird, wird das zusätzliche Datenblatt Pflegepersonalbedarf_2026.xlsx auf der Homepage unter dem in Zeile 8 angeführten Link bereitgestellt. \nUm eine rückwirkende Erfassung zu vermeiden, sollte dieses Datenblatt laufend monatlich mit den Daten des jeweils Monatsletzten 2026 befüllt werden.\n\nAuf Wunsch der Sozialhilfeverbände können im Jahr 2026 das Verblistern von Medikamenten durch Externe sowie die ausbezahlten Mehr- bzw. Überstunden in Form von fiktiven PE bei der jeweiligen Berufsgruppe im Pflegepersonalbedarfsberechnungsblatt dargestellt und somit angerechnet werden. \n\nWährend die Mehr-/Überstunden in Form von fiktiven PE bei jeder Berufsgruppe individuell in den bestehenden Zellen ergänzt werden können, wurden für die Verblisterung je Halbjahr 2 Zeilen eingefügt – einerseits pauschal für die Berufsgruppen DGKP sowie PFA und andererseits pauschal für die Berufsgruppen FSB A, FSB BA, DSB A, DSB BA, DSB F sowie PA. \n\nDie Entscheidung über diese Vorgehensweise obliegt ausschließlich dem zuständigen Regionalen Träger Sozialer Hilfe. "]
["Ende Juni 2026 wird wieder eine Halbjahreserhebung zum Pflegepersonalbedarf in allen oö. Alten- und Pflegeheimen erfolgen. Dazu wird auch dieses Formular verwendet. "]

{"sheet":"1_allg. Strukturdaten","index":1,"n_rows":208,"n_cols":21,"rows_kept":208,"cut":false,"hidden":false,"merged":[[58,8,58,9],[16,3,16,5],[16,6,16,9],[2,3,2,4],[12,7,12,9],[15,6,15,9],[12,3,12,5],[13,3,13,5],[13,7,13,9],[6,3,6,5],[7,3,7,7],[8,3,8,4],[9,3,9,4],[8,6,8,9],[9,6,9,9],[30,12,33,12],[25,8,25,10],[50,3,50,5],[55,0,55,1],[28,0,28,1]]}
[]
["ERHEBUNG IN DEN OÖ. ALTEN- UND PFLEGEHEIMEN\n(Strukturdaten)"]
[null,null,null,{"$f":"'0_Einleitung'!$E$2","v":"zum Stichtag"},null,{"$f":"'0_Einleitung'!$G$2","v":"2025-12-31"}]
[{"$f":"IF(P63>0,\"Tabellenblatt nicht vollständig oder korrekt ausgefüllt! Bitte Eingaben prüfen!\",\"\")","v":"Tabellenblatt nicht vollständig oder korrekt ausgefüllt! Bitte Eingaben prüfen!"},null,null,null,null,null,null,null,null,null,null,{"$f":"IF(A4=\"\",\"Sie haben dieses Tabellenblatt vollständig ausgefüllt - Vielen Dank!\",\"\")","v":""}]
["Stammdaten",null,{"$f":"$D$3","v":"zum Stichtag"},{"$f":"$F$3","v":"2025-12-31"}]
[null,null,null,null,null,null,null,null,null,null,null,null,null,null,null,{"$f":"IF(M6=\"\",\"\",\"x\")","v":""}]
["Einrichtung (Bitte in Drop-Down-Liste auswählen)",null,null,"Bitte auswählen…",null,null,"sortiert nach Bezirk",null,null,null,null,null,{"$f":"IF(OR(D7=\"\",D7=\"Bitte auswählen…\")=FALSE,\"\",\"Eingabe unvollständig\")","v":"Eingabe unvollständig"},null,null,"x"]
["Adresse",null,null,{"$f":"VLOOKUP(Datenblatt!J6,'1_allg. Strukturdaten'!$B$74:$S$207,14,FALSE)","v":{"$error":"#N/A"}},null,null,null,null,null,null,null,null,{"$f":"IF(D8=\"\",\"Eingabe unvollständig\",\"\")","v":{"$error":"#N/A"}},null,null,{"$error":"#N/A"}]
["Telefonnummer",null,null,{"$f":"VLOOKUP(Datenblatt!J6,'1_allg. Strukturdaten'!$B$74:$S$207,15,FALSE)","v":{"$error":"#N/A"}},null,null,null,null,null,null,null,null,{"$f":"IF(D9=\"\",\"Eingabe unvollständig\",\"\")","v":{"$error":"#N/A"}},null,null,{"$error":"#N/A"}]
["E-Mail",null,null,{"$f":"VLOOKUP(Datenblatt!J6,'1_allg. Strukturdaten'!$B$74:$S$207,16,FALSE)","v":{"$error":"#N/A"}},null,"Homepage",{"$f":"VLOOKUP(Datenblatt!J6,'1_allg. Strukturdaten'!$B$74:$R$207,17,FALSE)","v":{"$error":"#N/A"}},null,null,null,null,null,{"$f":"IF(OR(D10=\"\",G10=\"\")=TRUE,\"Eingabe unvollständig\",\"\")","v":{"$error":"#N/A"}},null,null,{"$error":"#N/A"}]
[null,null,null,null,null,null,null,null,null,null,null,null,null,null,null,""]
["Ansprechperson für diesen Fragebogen",null,null,null,null,null,null,null,null,null,null,null,null,null,null,""]
["Name",null,null,null,null,null,null,null,null,null,null,null,{"$f":"IF(D13=\"\",\"Eingabe unvollständig\",\"\")","v":"Eingabe unvollständig"},null,null,"x"]
["Telefonnummer",null,null,null,null,null,"E-Mail",null,null,null,null,null,{"$f":"IF(OR(D14=\"\",H14=\"\")=TRUE,\"Eingabe unvollständig\",\"\")","v":"Eingabe unvollständig"},null,null,"x"]
[null,null,null,null,null,null,null,null,null,null,null,null,null,null,null,""]
["Leitung",null,null,null,"Heimleitung",null,"Leitung des Betreuungs- und Pflegedienstes",null,null,null,null,null,null,null,null,""]
["Name",null,null,null,null,null,null,null,null,null,null,null,{"$f":"IF(OR(D17=\"\",G17=\"\")=TRUE,\"Eingabe unvollständig\",\"\")","v":"Eingabe unvollständig"},null,null,"x"]
["Ausbildung nach Oö. HVO abgeschlossen",null,null,null,null,null,null,null,null,null,null,null,{"$f":"IF(OR(E18=\"\",H18=\"\")=TRUE,\"Eingabe unvollständig\",\"\")","v":"Eingabe unvollständig"},null,null,"x"]
["wenn nein, wann erfolgt voraussichtlich der Abschluss",null,null,null,null,null,null,null,null,null,null,null,{"$f":"IF(AND(E18=\"Nein\",E19=\"\"),\"Eingabe unvollständig\",IF(AND(H18=\"Nein\",H19=\"\"),\"Eingabe unvollständig\",\"\"))","v":""},null,null,""]
[null,null,null,null,null,null,null,null,null,null,null,null,null,null,null,""]
[null,null,null,null,null,null,null,null,null,null,null,null,null,null,null,""]
["Qualitätsmanagement",null,{"$f":"$D$3","v":"zum Stichtag"},{"$f":"$F$3","v":"2025-12-31"},null,null,null,null,null,null,{"$f":"IF(I22=\"\",\"\",\"x\")","v":""},null,null,null,null,""]
[null,null,null,null,null,null,null,null,null,null,{"$f":"IF(I23=\"\",\"\",\"x\")","v":""},null,null,null,null,""]
["Ist im Heim eines der folgenden Qualitätsmanagementsysteme im Einsatz bzw. in Planung?",null,null,null,null,"E-Qalin","QAP-C","EFQM","anderes QM-System",null,null,null,{"$f":"IF(AND(I25=\"im Einsatz\",I26=\"\"),\"Bitte System angeben!\",\"\")&IF(AND(I25=\"in Planung\",I26=\"\"),\"Bitte System angeben!\",\"\")","v":""},null,null,""]
[null,null,null,null,null,null,null,null,null,null,null,null,{"$f":"IF(AND(F25=\"im Einsatz\",OR(G25=\"im Einsatz\",H25=\"im Einsatz\",I25=\"im Einsatz\")),\"Eingabe nicht plausibel\",IF(OR(F25=\"\",G25=\"\",H25=\"\",I25=\"\"),\"Eingabe unvollständig\",\"\"))&IF(AND(F25=\"in Planung\",OR(G25=\"in Planung\",H25=\"in Planung\",I25=\"in Planung\")),\"Eingabe nicht plausibel\",\"\")","v":"Eingabe unvollständig"},null,null,"x"]
["Datum der letzten Selbstbewertung",null,null,null,null,null,null,"Welches andere QM-System?",null,null,null,null,{"$f":"IF(AND(OR(F25=\"im Einsatz\",G25=\"im Einsatz\",I25=\"im Einsatz\"),C26=\"\"),\"Bitte Datum angeben!\",\"\")","v":""},null,null,""]
[null,null,null,null,null,null,null,null,null,null,null,null,null,null,null,""]
[null,null,null,null,null,null,null,null,null,null,null,null,null,null,null,""]
["Wohnstruktur und Plätze",null,{"$f":"$D$3","v":"zum Stichtag"},{"$f":"$F$3","v":"2025-12-31"},null,null,null,null,null,null,null,null,null,null,null,""]
[null,null,null,null,null,null,null,null,null,null,null,null,null,null,null,""]
["Wieviele Plätze stehen im Heim maximal zur Verfügung?",null,null,null,{"$f":"VLOOKUP(Datenblatt!J6,'1_allg. Strukturdaten'!$B$74:$S$207,18,FALSE)","v":{"$error":"#N/A"}},null,null,null,null,null,null,null,{"$f":"IF(SUM(E32:E34)<>E31,\"Die Angaben zu den verfügbaren Plätzen in den Blättern 1a und 1b stimmen nicht mit den maximal verfügbaren Plätze überein!\",\"\")","v":{"$error":"#N/A"}},null,null,{"$error":"#N/A"}]
["davon maximale Plätze in 2-Personen-Wohneinheiten",null,null,null,{"$f":"'1a_Langzeitpflege'!H8+'1b_Kurzzeitpflege'!G9","v":0},"Plätze",null,null,null,null,null,null,null,null,null,""]
["Oase (Mehr-Personen-Wohneinheit mit speziellem Konzept)",null,null,null,{"$f":"'1a_Langzeitpflege'!H9","v":0},"Plätze",null,null,null,null,null,null,null,null,null,""]
["und in 1-Personen-Wohneinheiten",null,null,null,{"$f":"'1a_Langzeitpflege'!H7+'1b_Kurzzeitpflege'!G8","v":0},"Plätze",null,null,null,null,null,null,null,null,null,""]
[null,null,null,null,null,null,null,null,null,null,null,null,null,null,null,""]
["Wie viele Wohnbereiche gibt es im Heim?",null,null,null,null,"Gibt es geschoßübergreifende Wohnbereiche?",null,null,null,null,null,null,{"$f":"IF(OR(D36=\"\",I36=\"\"),\"Eingabe unvollständig\",\"\")","v":"Eingabe unvollständig"},null,null,{"$f":"IF(M36=\"\",\"\",\"x\")","v":"x"}]
[null,null,null,null,null,null,null,null,null,null,null,null,{"$f":"IF(D38<D36,\"Der Wert in D38 kann nicht kleiner sein als der Wert in D36!\",\"\")","v":""},null,null,""]
["Wie viele Wohngruppen gibt es im Heim?",null,null,null,null,null,null,null,null,null,null,null,{"$f":"IF(D38=\"\",\"Eingabe unvollständig\",\"\")","v":"Eingabe unvollständig"},null,null,"x"]
[null,null,null,null,null,null,null,null,null,null,null,null,null,null,null,""]
["Wie viele Wohngruppen davon sind ausschließlich für Menschen mit Demenz?",null,null,null,null,null,null,null,null,null,null,null,{"$f":"IF(E40=\"\",\"Eingabe unvollständig\",\"\")","v":"Eingabe unvollständig"},null,null,{"$f":"IF(M40=\"\",\"\",\"x\")","v":"x"}]
[null,null,null,null,null,null,null,null,null,null,null,null,null,null,null,{"$f":"IF(M41=\"\",\"\",\"x\")","v":""}]
[null,null,null,null,null,null,null,null,null,null,null,null,null,null,null,""]
["freie Plätze",null,{"$f":"'1_allg. Strukturdaten'!$D$3","v":"zum Stichtag"},{"$f":"'1_allg. Strukturdaten'!$F$3","v":"2025-12-31"},null,null,null,null,null,null,null,null,null,null,null,""]
[null,null,"Für die Prüfung ist eine Eingabe in 1a_ und 1b_ notwendig.",null,null,null,null,null,null,null,null,null,null,null,null,""]
["Am Stichtag wohnen",null,{"$f":"'1a_Langzeitpflege'!L24+'1b_Kurzzeitpflege'!L47","v":0},"Heimbewohner:innen im Heim (LZP und KZP)",null,null,null,null,null,null,null,null,{"$f":"IF(M47=\"Fehler! F47 kann nicht größer als C47 sein!\",\"Fehlermeldungen in Spalte M erlöschen nach Eingabe in 1a_ und 1b_\",\"\")","v":""}]
[null,null,null,null,null,null,null,null,null,null,null,null,null,null,null,""]
["Zum Stichtag stehen im Heim",null,{"$f":"E31-C45","v":{"$error":"#N/A"}},"Plätze leer, davon sind aber bereits ",null,null,"Plätze verplant.",null,null,null,null,null,{"$f":"IF(F47=\"\",\"Eingabe unvollständig\",IF(F47>C47,\"Fehler! F47 kann nicht größer als C47 sein!\",\"\"))","v":"Eingabe unvollständig"},null,null,"x"]
[null,null,null,null,null,null,null,null,null,null,null,null,null,null,null,""]
["Von den restlichen",null,{"$f":"C47-F47","v":{"$error":"#N/A"}},"leer stehenden Plätzen waren",null,null,"noch nie vergeben,",null,null,null,null,null,{"$f":"IF(AND(C47=F47,F49=\"\"),\"bitte 0 eintragen\",IF(F49=\"\",\"Eingabe unvollständig\",IF(F49>C49,\"F49 kann nicht größer sein als C49\",\"\")))","v":{"$error":"#N/A"}},null,null,{"$error":"#N/A"}]
[null,null,null,null,null,null,"Plätze wegen Pflegepersonalmangel nicht vergeben und",null,null,null,null,null,{"$f":"IF(AND(C47=F47,F50=\"\"),\"bitte 0 eintragen\",IF(F50=\"\",\"Eingabe unvollständig\",IF((F49+F50)>C49,\"Summe F49+F50 kann nicht größer sein als C49\",\"\")))","v":{"$error":"#N/A"}},null,null,{"$error":"#N/A"}]
[null,{"$f":"C49-F49-F50","v":{"$error":"#N/A"}},"Plätze wegen ",null,null,null,"nicht vergeben.",null,null,null,null,null,{"$f":"IF(AND(C47=F47,D51=\"\"),\"\",IF(AND(B51<>0,D51=\"\"),\"bitte Grund angeben\",IF((F49+F50+B51)>C49,\"Summe F49+F50+B51 kann nicht größer sein als C49\",\"\")))","v":{"$error":"#N/A"}},null,null,{"$error":"#N/A"}]
[null,null,null,null,null,null,null,null,null,null,null,null,null,null,null,""]
["Besteht am Stichtag ein heiminterner Aufnahmestopp?",null,null,null,null,null,null,null,null,null,null,null,{"$f":"IF(E53=\"\",\"Eingabe unvollständig\",\"\")","v":"Eingabe unvollständig"},null,null,"x"]
[null,null,null,null,null,null,null,null,null,null,null,null,null,null,null,""]
[null,null,null,null,null,null,null,null,null,null,null,null,null,null,null,""]
["Nachtdienst",null,null,null,null,null,null,null,null,null,{"$f":"IF(I56=\"\",\"\",\"x\")","v":""},null,null,null,null,""]
[null,null,null,null,null,null,null,null,null,null,{"$f":"IF(I57=\"\",\"\",\"x\")","v":""},null,null,null,null,""]
["Anzahl der zur gleichen Zeit für den wachenden Nachtdienst eingeteilten Personen ",null,null,null,null,null,null,null,null,null,null,null,{"$f":"IF(G58=\"\",\"Eingabe unvollständig\",\"\")","v":"Eingabe unvollständig"},null,null,"x"]
["Gab es für jene Nächte, in denen weder DGKP noch PFA im Nachtdienst eingeteilt waren, eine Rufbereitschaft mit DGKP oder PFA (im Bezirk)?",null,null,null,null,null,null,null,null,null,null,null,{"$f":"IF(I59=\"\",\"Eingabe unvollständig\",\"\")","v":"Eingabe unvollständig"},null,null,"x"]
["Gibt es im Heim einen Spätdienst (Tagdienst bis mind. 20 Uhr)?",null,null,null,null,null,null,null,null,null,null,null,{"$f":"IF(G60=\"\",\"Eingabe unvollständig\",\"\")","v":"Eingabe unvollständig"},null,null,"x"]
["Wenn ja: Bis wann (Uhrzeit) bzw. mit welcher Qualifikation?",null,null,null,null,"Uhrzeit",null,"Qualifikation",null,null,null,null,{"$f":"IF(G60=\"Ja\",IF(OR(G61=\"\",I61=\"\"),\"Eingabe unvollständig\",\"\"),\"\")","v":""},null,null,{"$f":"IF(M61=\"\",\"\",\"x\")","v":""}]
[null,null,null,null,null,null,null,null,null,null,null,null,null,null,null,""]
[null,null,null,null,null,null,null,null,null,null,{"$f":"IF(I63=\"\",\"\",\"x\")","v":""},null,null,null,null,{"$f":"COUNTIF(P7:P60,\"x\")","v":14}]
[]
[]
[]
[]
[null,"Auswahltabelle:"]
[null,null,"Code neu","Trägergruppe","Bezirk","Region","Planungsraum","Größengruppe","PDL-Statistik","Gemeinde\nKennzahl","Gemeinde","Kurzbezeichnung","Name des Heimes","HB LZP Vorjahr","Adresse","Telefon","E-Mail","Homepage","max. verfügbare Plätze"]
[]
["Spalte",1,2,3,4,5,6,7,8,9,10,11,12,13,14,15,16,17,18]
[null,null,null,null,null,null,null,null,null,"Standortgemeinde",null,"Kurzbezeichnung","Name des Heimes"]
[null,{"$f":"L73","v":"Bitte auswählen…"},null,null,null,null,null,null,null,null,null,"Bitte auswählen…",null,null,null,null,null,null,null,"Größengruppen"]
[1,{"$f":"L74","v":"SZ Spallerhof"},"010101",2,{"$f":"VALUE(MID(C74,1,2))","v":1},{"$f":"IF(OR(E74=6,E74=11,E74=13,E74=16),1,IF(OR(E74=4,E74=14,E74=8,E74=12),2,IF(OR(E74=1,E74=3,E74=18,E74=5,E74=10),3,IF(OR(E74=2,E74=15,E74=7,E74=17,E74=9),4))))","v":3},{"$f":"IF(OR(E74=1,E74=10),1,IF(OR(E74=5,E74=8,E74=3,E74=18),2,IF(OR(E74=2,E74=15,E74=9),3,IF(OR(E74=7,E74=17),4,IF(OR(E74=4,E74=14,E74=12),5,IF(OR(E74=6,E74=11),8,IF(E74=13,6,IF(E74=16,7,))))))))","v":1},{"$f":"IF($E$31<60,\"S\",IF($E$31<90,\"M\",IF($E$31<120,\"L\",\"XL\")))","v":{"$error":"#N/A"}},1,40101,"Linz","SZ Spallerhof","Seniorenzentrum Spallerhof",221,"4030 Linz, Glimpfingerstraße 10-12","0732/3400-0","szl.szs@szl.linz.at","www.seniorenzentren.linz.at",245,"S","bis 59 max. verfügbare Plätze"]
[2,"SZ Kleinmünchen","010102",2,1,3,1,{"$f":"IF($E$31<60,\"S\",IF($E$31<90,\"M\",IF($E$31<120,\"L\",\"XL\")))","v":{"$error":"#N/A"}},1,40101,"Linz","SZ Kleinmünchen","Seniorenzentrum Kleinmünchen",119,"4030 Linz, Dauphinestraße 94","0732/3408-30501","szl.szk@szl.linz.at","www.seniorenzentren.linz.at",128,"M","60-89"]
[3,"SZ Franz Hillinger","010103",2,1,3,1,{"$error":"#N/A"},1,40101,"Linz","SZ Franz Hillinger","Seniorenzentrum Franz Hillinger",127,"4040 Linz, Kaarstraße 15-17","0732/3408-20501","szl.szh@szl.linz.at","www.seniorenzentren.linz.at",130,"L","90-119"]
[4,"SZ Franckviertel","010104",2,1,3,1,{"$error":"#N/A"},1,40101,"Linz","SZ Franckviertel","Seniorenzentrum Franckviertel",116,"4020 Linz, Ing. Stern-Straße 15-17","0732/3408-40500","szl.szf@szl.linz.at","www.seniorenzentren.linz.at",120,"XL","120 und mehr"]
[5,"SZ Dornach/Auhof","010105",2,1,3,1,{"$error":"#N/A"},1,40101,"Linz","SZ Dornach/Auhof","Seniorenzentrum Dornach/Auhof",113,"4040 Linz, Sombartstraße 1-5","0732/3408-25500","szl.szd@szl.linz.at","www.seniorenzentren.linz.at",120]
[6,"SZ Neue Heimat","010106",2,1,3,1,{"$error":"#N/A"},1,40101,"Linz","SZ Neue Heimat","Seniorenzentrum Neue Heimat",110,"4030 Linz, Flötzerweg 95-97","0732/3408-60500","szl.szn@szl.linz.at","www.seniorenzentren.linz.at",126]
[7,"SZ Keferfeld/Oed","010107",2,1,3,1,{"$error":"#N/A"},1,40101,"Linz","SZ Keferfeld/Oed","Seniorenzentrum Keferfeld/Oed",85,"4020 Linz, Meggauerstraße 1-3","0732/3408","szl.szo@szl.linz.at","www.seniorenzentren.linz.at",87]
[8,"SZ Ebelsberg","010108",2,1,3,1,{"$error":"#N/A"},1,40101,"Linz","SZ Ebelsberg","Seniorenzentrum Ebelsberg",28,"4030 Linz, Sennweg 4","0732/3408","szl.szp@szl.linz.at","www.seniorenzentren.linz.at",28]
[9,"SZ Pichling","010109",2,1,3,1,{"$error":"#N/A"},1,40101,"Linz","SZ Pichling","Seniorenzentrum Pichling",63,"4030 Linz, Falterweg 25","0732/3408","szl.szp@szl.linz.at","www.seniorenzentren.linz.at",64]
[10,"SZ Liebigstraße","010110",2,1,3,1,{"$error":"#N/A"},1,40101,"Linz","SZ Liebigstraße","Seniorenzentrum Liebigstraße",109,"4020 Linz, Liebigstraße 26","0732/3408-50500","szl.szli@szl.linz.at","www.seniorenzentren.linz.at",120]
[11,"Rudigier Linz","014201",4,1,3,1,{"$error":"#N/A"},42,40101,"Linz","Rudigier Linz","Rudigier Wohnen mit Pflege Linz",99,"4020 Linz, Stockhofstraße 6","0732/664871-2261","rudigier@linz.kreuzschwestern.at","https://wohnen-mit-pflege.kreuzschwestern.at",100]
[12,"SH Franziskusschwestern, Linz","014601",4,1,3,1,{"$error":"#N/A"},46,40101,"Linz","SH Franziskusschwestern, Linz","Seniorenheim Franziskusschwestern",120,"4020 Linz, Losensteinerstraße 8","0732/6795","heim.franziskusschwestern@bblinz.at","www.seniorenheim-franziskusschwestern.at",124]
[13,"SWH Karl Borromäus, Linz","014701",4,1,3,1,{"$error":"#N/A"},47,40101,"Linz","SWH Karl Borromäus, Linz","Seniorenwohnhaus Karl Borromäus",103,"4020 Linz, Bethlehemstrasse 56-58","0732/7610-2511","skb@caritas-ooe.at","www.caritas-ooe.at",123]
[14,"SWH St. Anna, Froschberg","014702",4,1,3,1,{"$error":"#N/A"},47,40101,"Linz","SWH St. Anna, Froschberg","Seniorenwohnhaus St. Anna",86,"4020 Linz, Leondinger Str. 22","0732/77 22 23","st.anna@caritas-ooe.at","www.caritas-oee.at",86]
[15,"Haus für Senioren Linz","014901",4,1,3,1,{"$error":"#N/A"},49,40101,"Linz","Haus für Senioren Linz","Haus für Senioren Linz",47,"4020 Linz, Körnerstr. 34","0732774922-0","hfs.linz@diakoniewerk.at","www.diakoniewerk.at",49]
[16,"Sonnenhof Freinberg","015001",4,1,3,1,{"$error":"#N/A"},50,40101,"Linz","Sonnenhof Freinberg","Sonnenhof Freinberg",122,"4020 Linz Sonnenpromenade 50","0732/771341 0","sekretariat.freinberg@sonnenhof.org","www.sonnenhof.org",128]
[17,"Sonnenhof Lenaupark","015002",4,1,3,1,{"$error":"#N/A"},50,40101,"Linz","Sonnenhof Lenaupark","Sonnenhof Lenaupark",124,"4020 Linz, Raimundstraße 23","0732/69469","sekretariat.lenaupark@sonnenhof.org","www.sonnenhof.org",130]
[18,"APH Tabor, Steyr","020201",2,2,4,3,{"$error":"#N/A"},2,40201,"Steyr","APH Tabor, Steyr","Alten- und Pflegeheim Tabor",111,"4400 Steyr, G. Koller-Straße 2","07252/81777-0","apt.office@steyr.gv.at","www.steyr.gv.at",125]
[19,"APH Münichholz, Steyr","020202",2,2,4,3,{"$error":"#N/A"},2,40201,"Steyr","APH Münichholz, Steyr","Alten- und Pflegeheim Münichholz",111,"4400 Steyr, Leharstraße 24","07252/77333","apm.office@steyr.gv.at","www.steyr.gv.at",118]
[20,"APH Ennsleite, Steyr","020203",2,2,4,3,{"$error":"#N/A"},2,40201,"Steyr","APH Ennsleite, Steyr","Alten- und Pflegeheim Ennsleite",115,"4400 Steyr, Leopold Steinbrecherring 9a","07252/50 500 DW","ape.office@steyr.gv.at","www.steyr.gv.at",130]
[21,"Haus Leopold Spitzer","030301",2,3,3,2,{"$error":"#N/A"},3,40301,"Wels","Haus Leopold Spitzer","Haus Leopold Spitzer",62,"4600 Wels, Hans-Sachs-Straße 22","07242/417-7001","senbls@wels.gv.at","www.wels.gv.at",72]
[22,"Haus Neustadt","030302",2,3,3,2,{"$error":"#N/A"},3,40301,"Wels","Haus Neustadt","Haus Neustadt",96,"4600 Wels, Flurgasse 40","07242/417-4901","senbn@wels.gv.at","www.wels.gv.at",130]
[23,"Haus Vogelweide-Laahen","030303",2,3,3,2,{"$error":"#N/A"},3,40301,"Wels","Haus Vogelweide-Laahen","Haus Vogelweide-Laahen",80,"4600 Wels, Oberfeldstraße 52","07242/417-5000","senbv@ wels.gv.at","www.wels.gv.at",128]
[24,"Haus Noitzmühle","030304",2,3,3,2,{"$error":"#N/A"},3,40301,"Wels","Haus Noitzmühle","Haus Noitzmühle",63,"4600 Wels, Föhrenstraße 19","07242/417-6000","senbNO@wels.gv.at","www.wels.gv.at",72]
[25,"Bruderliebe Wels","034202",4,3,3,2,{"$error":"#N/A"},42,40301,"Wels","Bruderliebe Wels","Bruderliebe Wohnen mit Pflege Wels",84,"4600 Wels, Herrengasse 12","07242/46 254","bewohnerservice@bruderliebe.kreuzschwestern.at","www.wohnen-mit-pflege.kreuzschwestern.at",84]
[26,"Haus für Senioren Wels","034902",4,3,3,2,{"$error":"#N/A"},49,40301,"Wels","Haus für Senioren Wels","Haus für Senioren Wels",75,"4600 Wels, Dr. Schauer-Str. 5","07242/46163","seniorenarbeit.wels@diakoniewerk.at","www.diakoniewerk.at",76]
[27,"BSZ Altheim","040401",1,4,2,5,{"$error":"#N/A"},4,40401,"Altheim","BSZ Altheim","Bezirksseniorenzentrum Altheim",59,"4950 Altheim, Rosenweg 19","07723/42352-0","sh-altheim.post@shvbr.at","www.shvbr.at",66]
[28,"BSZ Mattighofen","040402",1,4,2,5,{"$error":"#N/A"},4,40421,"Mattighofen","BSZ Mattighofen","Bezirksseniorenzentrum Mattighofen",77,"5230, Mattighofen, Robert-Stolz-Straße 14","07742/5501","sh-mattighofen.post@shvbr.at","www.shvbr.at",102]
[29,"BSZ Ostermiething","040403",1,4,2,5,{"$error":"#N/A"},4,40428,"Ostermiething","BSZ Ostermiething","Bezirksseniorenzentrum Ostermiething",54,"5121 Ostermiething, Weilhartstr. 59","06278/ 6222","sh-ostermiething.post@shvbr.at","www.shvbr.at",99]
[30,"BSZ Braunau","040404",1,4,2,5,{"$error":"#N/A"},4,40404,"Braunau","BSZ Braunau","Bezirksseniorenzentrum Braunau",172,"5280 Braunau am Inn, Haselbacher Gehweg 9","07722/629 02","sh-braunau.post@shvbr.at","www.shvbr.at",190]
[31,"BSZ Eggelsberg","040405",1,4,2,5,{"$error":"#N/A"},4,40406,"Eggelsberg","BSZ Eggelsberg","Bezirksseniorenzentrum Eggelsberg",48,"5142 Eggelsberg, Weidenweg 1","07748/32-777","sh-eggelsberg.post@shvbr.at","www.shvbr.at",80]
[32,"FraDomo Maria Schmolln","044001",4,4,2,5,{"$error":"#N/A"},40,40420,"Maria Schmolln","FraDomo Maria Schmolln","FraDomo Maria Schmolln - Wohnen, Begleitung & Pflege",79,"5241 Maria Schmolln, 16","07743/2204","office.mariaschmolln@fradomo.at","www.mariarast.at",80]
[33,{"$f":"L106","v":"Haus für Senioren Mauerkirchen"},"044903",4,{"$f":"VALUE(MID(C106,1,2))","v":4},{"$f":"IF(OR(E106=6,E106=11,E106=13,E106=16),1,IF(OR(E106=4,E106=14,E106=8,E106=12),2,IF(OR(E106=1,E106=3,E106=18,E106=5,E106=10),3,IF(OR(E106=2,E106=15,E106=7,E106=17,E106=9),4))))","v":2},{"$f":"IF(OR(E106=1,E106=10),1,IF(OR(E106=5,E106=8,E106=3,E106=18),2,IF(OR(E106=2,E106=15,E106=9),3,IF(OR(E106=7,E106=17),4,IF(OR(E106=4,E106=14,E106=12),5,IF(OR(E106=6,E106=11),8,IF(E106=13,6,IF(E106=16,7,))))))))","v":5},{"$error":"#N/A"},49,40422,"Mauerkirchen","Haus für Senioren Mauerkirchen","Haus für Senioren Mauerkirchen",80,"5270 Mauerkirchen, Bahnhofstraße 49","07724/5048","seniorenarbeit.braunau@diakoniewerk.at","www.diakoniewerk.at",80]
[34,"BAPH Eferding","050501",1,5,3,2,{"$error":"#N/A"},5,40503,"Eferding","BAPH Eferding","Bezirksalten- und Pflegeheim Eferding",101,"4070 Eferding, Bräuhausstraße 7","07272/75982","baph-eferding.post@shvef.at","www.shv-gr-ef.at",122]
[35,"BAPH Hartkirchen","050502",1,5,3,2,{"$error":"#N/A"},5,40506,"Hartkirchen","BAPH Hartkirchen","Bezirksalten- und Pflegeheim Hartkirchen",48,"4081 Hartkirchen, Achleitnerstraße 1","07273/60024-300","baph-hartkirchen.post@shvef.at","www.shv-gr-ef.at",74]
[36,"BSH Freistadt","060601",1,6,1,8,{"$error":"#N/A"},6,40601,"Freistadt","BSH Freistadt","Bezirksseniorenheim Freistadt",99,"4240 Freistadt, Kaspar-Schwarz-Straße 22","07942/75711-3000","bsh-freistadt.post@shvfr.at","www.shvfr.at",120]
[37,"BSH Lasberg","060602",1,6,1,8,{"$error":"#N/A"},6,40609,"Lasberg","BSH Lasberg","Bezirksseniorenheim Lasberg",73,"4291 Lasberg, Oswalderstraße 19","07947/20680-0","bsh-lasberg.post@shvfr.at","www.shvfr.at",77]
[38,"BSH Pregarten","060603",1,6,1,8,{"$error":"#N/A"},6,40614,"Pregarten","BSH Pregarten","Bezirksseniorenheim Pregarten",71,"4230 Pregarten, Bindergasse 6","07236/6495","bsh-pregarten.post@shvfr.at","www.shvfr.at",78]
[39,"BSH Unterweißenbach","060604",1,6,1,8,{"$error":"#N/A"},6,40621,"Unterweißenbach","BSH Unterweißenbach","Bezirksseniorenheim Unterweißenbach",71,"4273 Unterweißenbach, Markt 3","07956/20545","bsh-unterweissenbach.post@shvfr.at","www.shvfr.at",75]
[40,"FraDomo Rainbach","064002",4,6,1,8,{"$error":"#N/A"},40,40615,"Rainbach","FraDomo Rainbach","FraDomo Rainbach - Wohnen, Begleitung & Pflege",74,"4261 Rainbach, Summerauerstraße 9","07949/6791","office.rainbach@fradomo.at","https://seniorenhaeuser.at/st-elisabeth",84]
[41,"Haus für Senioren Bad Zell","064904",4,6,1,8,{"$error":"#N/A"},49,40627,"Bad Zell","Haus für Senioren Bad Zell","Haus für Senioren Bad Zell",42,"4283 Bad Zell, Sonnenweg 1","07263/20062 61","seniorenarbeit.freistadt@diakoniewerk.at","www.diakoniewerk.at",50]
[42,"BSH Scharnstein","070701",1,7,4,4,{"$error":"#N/A"},7,40719,"Scharnstein","BSH Scharnstein","Bezirksseniorenheim Scharnstein",61,"4644 Scharnstein, Altenheimstraße 2","07615/7251","bsh-scharnstein.post@shvgm.at","www.shvgm.at/seniorenheime/scharnstein",78]
[43,"BSH Sarsteinerstiftung, Bad Ischl","070702",1,7,4,4,{"$error":"#N/A"},7,40703,"Bad Ischl","BSH Sarsteinerstiftung, Bad Ischl","Bezirksseniorenheim Sarsteinerstiftung, Bad Ischl",82,"4820 Bad Ischl, Maria Theresien-Weg 5","06132/23822","bsh-sarsteinerstiftung.post@shvgm.at","www.shvgm.at",100]
[44,"BSH Bad Ischl","070703",1,7,4,4,{"$error":"#N/A"},7,40703,"Bad Ischl ","BSH Bad Ischl","Bezirksseniorenheim Bad Ischl",78,"4820 Bad Ischl, Maxquellgasse 2e","06132/25402","bsh-badischl.post@shvgm.at","www.shvgm.at",122]
[45,"BSH Weinberghof, Gmunden","070704",1,7,4,4,{"$error":"#N/A"},7,40705,"Gmunden","BSH Weinberghof, Gmunden","Bezirksseniorenheim Weinberghof, Gmunden",108,"4810 Gmunden, Georgstraße 30","07612/769670","bsh-weinberghof.post@shvgm.at","www.shvgm.at",138]
[46,{"$f":"L119","v":"BSH Vorchdorf"},"070705",1,{"$f":"VALUE(MID(C119,1,2))","v":7},{"$f":"IF(OR(E119=6,E119=11,E119=13,E119=16),1,IF(OR(E119=4,E119=14,E119=8,E119=12),2,IF(OR(E119=1,E119=3,E119=18,E119=5,E119=10),3,IF(OR(E119=2,E119=15,E119=7,E119=17,E119=9),4))))","v":4},{"$f":"IF(OR(E119=1,E119=10),1,IF(OR(E119=5,E119=8,E119=3,E119=18),2,IF(OR(E119=2,E119=15,E119=9),3,IF(OR(E119=7,E119=17),4,IF(OR(E119=4,E119=14,E119=12),5,IF(OR(E119=6,E119=11),8,IF(E119=13,6,IF(E119=16,7,))))))))","v":4},{"$error":"#N/A"},7,40720,"Vorchdorf","BSH Vorchdorf","Bezirksseniorenheim Vorchdorf",54,"4655 Vorchdorf, Lambacher Straße 23","07614/8241","bsh-vorchdorf.post@shvgm.at","www.shvgm.at",84]
[47,"BSH Ebensee","070706",1,7,4,4,{"$error":"#N/A"},7,40704,"Ebensee","BSH Ebensee","Bezirksseniorenheim Ebensee",66,"4802 Ebensee, Alte Saline 3","06133/200 21 0","bsh-ebensee.post@shvgm.at","www.shvgm.at",93]
[48,{"$f":"L121","v":"BSH Laakirchen"},"070707",1,{"$f":"VALUE(MID(C121,1,2))","v":7},{"$f":"IF(OR(E121=6,E121=11,E121=13,E121=16),1,IF(OR(E121=4,E121=14,E121=8,E121=12),2,IF(OR(E121=1,E121=3,E121=18,E121=5,E121=10),3,IF(OR(E121=2,E121=15,E121=7,E121=17,E121=9),4))))","v":4},{"$f":"IF(OR(E121=1,E121=10),1,IF(OR(E121=5,E121=8,E121=3,E121=18),2,IF(OR(E121=2,E121=15,E121=9),3,IF(OR(E121=7,E121=17),4,IF(OR(E121=4,E121=14,E121=12),5,IF(OR(E121=6,E121=11),8,IF(E121=13,6,IF(E121=16,7,))))))))","v":4},{"$error":"#N/A"},7,40711,"Laakirchen","BSH Laakirchen","Bezirksseniorenheim Laakirchen",62,"4663 Laakirchen, Wolfstraße 3","07613/2355 - 0","bsh-laakirchen.post@shvgm.at","www.shvgm.at",96]
[49,"AWH Altmünster","072401",3,7,4,4,{"$error":"#N/A"},24,40701,"Altmünster","AWH Altmünster","Altenwohnheim Altmünster",62,"4813 Altmünster, Harstubenweg 2","07612/87591","heimleitung.altenheim@altmuenster.ooe.gv.at","www.altenwohnheim-altmuenster.at",92]
[50,"Evang. APH Bad Goisern","074101",4,7,4,4,{"$error":"#N/A"},41,40702,"Bad Goisern","Evang. APH Bad Goisern","Evang. Alten- und Pflegeheim Bad Goisern",92,"4822 Bad Goisern, Bahnhofstraße 1","06135/8379","office@altenheim-goisern.at","www.altenheim-goisern.at",96]
[51,"Haus St. Josef Gmunden","074401",4,7,4,4,{"$error":"#N/A"},44,40705,"Gmunden","Haus St. Josef Gmunden","Haus St. Josef Gmunden",85,"4810 Gmunden, Herakhstraße 2","07612/64195","gmunden@stiftung-liebenau.at","www.stiftung-liebenau.at",94]
[52,"Brigittaheim Gosau","074501",4,7,4,4,{"$error":"#N/A"},45,40706,"Gosau","Brigittaheim Gosau","Brigittaheim Gosau",34,"4824 Gosau, Brigitta Wallner-Weg 1","06136/8110","office@brigittaheim.at","www.brigittaheim.at",37]
[53,"BAPH Gaspoltshofen","080801",1,8,2,2,{"$error":"#N/A"},8,40806,"Gaspoltshofen","BAPH Gaspoltshofen","Bezirksalten- und Pflegeheim Gaspoltshofen",87,"4673 Gaspoltshofen, Bahnhofweg 2","07735/6561-0","baph-gaspoltshofen@shvgr.at","www.shv-gr-ef.at",116]
[54,"BAPH Grieskirchen","080802",1,8,2,2,{"$error":"#N/A"},8,40808,"Grieskirchen","BAPH Grieskirchen","Bezirksalten- und Pflegeheim Grieskirchen",83,"4710 Grieskirchen, Wagnleithnerstraße 36","07248/62742","baph-grieskirchen@shvgr.at","www.shv-gr-ef.at",94]
[55,"BAPH Peuerbach","080803",1,8,2,2,{"$error":"#N/A"},8,40819,"Peuerbach","BAPH Peuerbach","Bezirksalten- und Pflegeheim Peuerbach",94,"4722 Peuerbach, Georg-von-Peuerbach-Straße 21","07276/3111","baph-peuerbach@shvgr.at","www.shv-gr-ef.at",100]
[56,"BAPH Kallham","080804",1,8,2,2,{"$error":"#N/A"},8,40812,"Peuerbach","BAPH Kallham","Bezirksalten- und Pflegeheim Kallham",80,"4720 Kallham, Kirchenfeld 15","07733/20798-0","baph-kallham@shvgr.at","www.shv-gr-ef.at",84]
[57,"APH Waizenkirchen","083501",3,8,2,2,{"$error":"#N/A"},35,40831,"Waizenkirchen","APH Waizenkirchen","Alten- und Pflegeheim der Marktgde. Waizenkirchen",69,"4730 Waizenkirchen, Klosterstraße 11","07277/2224","altenheim@waizenkirchen.ooe.gv.at","www.waizenkirchen.at/Alten-_und_Pflegeheim",84]
[58,"FraDomo Gallspach","084003",4,8,2,2,{"$error":"#N/A"},40,40805,"Gallspach","FraDomo Gallspach","FraDomo Gallspach - Wohnen, Begleitung & Pflege",68,"4713 Gallspach, Schützenweg 6","07248/684 03","office.gallspach@fradomo.at","www.seniorenhaeuser.at",87]
[59,"APH St. Raphael Bad Schallerbach","084203",4,8,2,2,{"$error":"#N/A"},42,40802,"Bad Schallerbach","APH St. Raphael Bad Schallerbach","St. Raphael Wohnen mit Pflege Bad Schallerbach",56,"4701 Bad Schallerbach, Linzer Straße 17","07249/48400","bewohnerservice@straphael.kreuzschwestern.at","www.wohnen-mit-pflege.kreuzschwestern.at",78]
[60,"BAPH Kirchdorf","090901",1,9,4,3,{"$error":"#N/A"},9,40905,"Kirchdorf/Krems","BAPH Kirchdorf","Bezirksalten- und Pflegeheim Kirchdorf",81,"4560 Kirchdorf, Pernsteiner Straße 32","07582/61600-0","baph-kirchdorf.post@shvki.at","www.shvki.at",123]
[61,"BAPH Windischgarsten","090902",1,9,4,3,{"$error":"#N/A"},9,40923,"Windischgarsten","BAPH Windischgarsten","Bezirksalten- und Pflegeheim Windischgarsten",75,"4580 Windischgarsten, Salzastraße 5","07562/5422-0","baph-windischgarsten.post@shvki.at","www.shvki.at",100]
[62,"BAPH Kremsmünster","090903",1,9,4,3,{"$error":"#N/A"},9,40907,"Kremsmünster","BAPH Kremsmünster","Bezirksalten- und Pflegeheim Kremsmünster",56,"4550 Kremsmünster, Josef Assam Straße 3","07583/5111","baph-kremsmuenster.post@shvki.at","www.shvki.at",78]
[63,"BAPH Micheldorf","090904",1,9,4,3,{"$error":"#N/A"},9,40908,"Micheldorf","BAPH Micheldorf","Bezirksalten- und Pflegeheim Micheldorf",80,"4563 Micheldorf, Heiligenkreuzer Straße 7","07582/62600","baph-micheldorf.post@shvki.at","www.shviki.at",98]
[64,{"$f":"L137","v":"APH Grünburg"},"092001",3,{"$f":"VALUE(MID(C137,1,2))","v":9},{"$f":"IF(OR(E137=6,E137=11,E137=13,E137=16),1,IF(OR(E137=4,E137=14,E137=8,E137=12),2,IF(OR(E137=1,E137=3,E137=18,E137=5,E137=10),3,IF(OR(E137=2,E137=15,E137=7,E137=17,E137=9),4))))","v":4},{"$f":"IF(OR(E137=1,E137=10),1,IF(OR(E137=5,E137=8,E137=3,E137=18),2,IF(OR(E137=2,E137=15,E137=9),3,IF(OR(E137=7,E137=17),4,IF(OR(E137=4,E137=14,E137=12),5,IF(OR(E137=6,E137=11),8,IF(E137=13,6,IF(E137=16,7,))))))))","v":3},{"$error":"#N/A"},20,40902,"Grünburg","APH Grünburg","Alten- und Pflegeheim Grünburg",68,"4594 Grünburg, Messererstr. 12","07257/7273 401","heimleitung@altenheim-gruenburg.at","www.altenheim-gruenburg.at",71]
[65,"APH Ried im Traunkreis","092301",3,9,4,3,{"$error":"#N/A"},23,40913,"Ried i. Traunkreis","APH Ried im Traunkreis","Alten- und Pflegeheim Ried im Traunkreis",72,"4551 Ried im Traunkreis, Hauptstraße 42","07588/7216","gah@altenheim.ried-traunkreis.at","www.altenheim.ried-traunkreis.at",78]
[66,"ZBP Enns","101001",1,10,3,1,{"$error":"#N/A"},10,41005,"Enns","ZBP Enns","Zentrum Betreuung und Pflege Enns",84,"4470 Enns, Eichbergstraße 6 b","072238/2833","enns.post@shvll.at","www.shvll.at",138]
[67,"ZBP Traun","101002",1,10,3,1,{"$f":"IF($E$31<60,\"S\",IF($E$31<90,\"M\",IF($E$31<120,\"L\",\"XL\")))","v":{"$error":"#N/A"}},10,41021,"Traun","ZBP Traun","Zentrum Betreuung und Pflege Traun",90,"4050 Traun, Traunstadlweg 17","07229/61 821","Traun.Post@SHVLL.at","www.shvll.at",128]
[68,"ZBP Leonding","101003",1,10,3,1,{"$error":"#N/A"},10,41012,"Leonding","ZBP Leonding","Zentrum Betreuung und Pflege Leonding",133,"4060 Leonding, Ruflingerstraße 12","0732/677 808 ","Leonding.post@shvll.at","www.shvll.at",150]
[69,"ZBP Haid","101004",1,10,3,1,{"$error":"#N/A"},10,41002,"Haid","ZBP Haid","Zentrum Betreuung und Pflege Haid",104,"4053 Haid, Salzburger Straße 24","07229/80402","haid.post@shvll.at","www.shvll.at",116]
[70,"ZBP Hart","101005",1,10,3,1,{"$error":"#N/A"},10,41012,"Leonding","ZBP Hart","Zentrum Betreuung und Pflege Hart",88,"4060 Leonding, Waggerlstraße 2","0732/67 00 37","hart.post@shvll.at","www.shvll.at",95]
[71,"ZBP Neuhofen/Krems","101006",1,10,3,1,{"$error":"#N/A"},10,41014,"Neuhofen/Krems","ZBP Neuhofen/Krems","Zentrum Betreuung und Pflege Neuhofen/Krems",47,"4501 Neuhofen/Krems, Römerweg 7","07227/5808","neuhofen.post@shvll.at","www.shvll.at",101]
[72,"ZBP Hörsching","101007",1,10,3,1,{"$error":"#N/A"},10,41007,"Hörsching","ZBP Hörsching","Zentrum Betreuung und Pflege Hörsching",82,"4063 Hörching, Rupert-Willenstorfer-Straße 7","07221/73626","hoersching-post@shvll.at","www.shvll.at",99]
[73,"ZBP St. Florian","101008",1,10,3,1,{"$error":"#N/A"},10,41013,"St. Florian","ZBP St. Florian","Zentrum Betreuung und Pflege St. Florian",86,"4490 St. Florian, Linzer Str. 17","07224/82 83 -0","st-florian.post@shvll.at","www.shvll.at",90]
[74,"ZBP Dionysen, Traun","101009",1,10,3,1,{"$error":"#N/A"},10,41021,"Traun","ZBP Dionysen, Traun","Zentrum Betreuung und Pflege Dionysen, Traun",114,"4050 Traun, Wilhelm Anger Straße 21","07229/73401","dionysen.post@shvll.at","www.shvll.at",125]
[75,"SWPH Netzwerk Pasching","103601",3,10,3,1,{"$error":"#N/A"},36,41017,"Pasching","SWPH Netzwerk Pasching","Seniorenwohn- und Pflegeheim Netzwerk Pasching",78,"4061 Pasching, Netzwerkplatz 1","07229/66260-0","office@netzwerk-pasching.at","www.netzwerk-pasching.at",81]
[76,"SENIORium Perg","111101",1,11,1,8,{"$error":"#N/A"},11,41116,"Perg","SENIORium Perg","SENIORium Perg",88,"4320 Perg, Severinweg 5","07262/57671","baph-perg.post@shvpe.at","www.shvpe.at",102]
[77,"SENIORium Mauthausen","111102",1,11,1,8,{"$error":"#N/A"},11,41111,"Mauthausen","SENIORium Mauthausen","SENIORium Mauthausen",59,"4310 Mauthausen, Höhenweg 29","07238/2138-0","baph-mauthausen.post@shvpe.at","www.shvpe.at",127]
[78,"SENIORium Grein","111103",1,11,1,8,{"$error":"#N/A"},11,41105,"Grein","SENIORium Grein","SENIORium Grein",64,"4360 Grein, Greinburgstraße 26","07268/7811-0","baph-grein.post@shvpe.at","www.shvpe.at",96]
[79,"SENIORium Bad Kreuzen","111104",1,11,1,8,{"$error":"#N/A"},11,41108,"Bad Kreuzen","SENIORium Bad Kreuzen","SENIORium Bad Kreuzen",87,"4362 Bad Kreuzen 150","07266/20010","baph-badkreuzen.post@shvpe.at","www.shvpe.at",98]
[80,"SENIORium Baumgartenberg","111105",1,11,1,8,{"$error":"#N/A"},11,41103,"Baumgartenberg","SENIORium Baumgartenberg","SENIORium Baumgartenberg",61,"4342 Baumgartenberg, Klostergarten 1","07269/60118","baph-baumgartenberg.post@shvpe.at","www.shvpe.at",76]
[81,"SENIORium Schwertberg","111106",1,11,1,8,{"$error":"#N/A"},11,41124,"Schwertberg","SENIORium Schwertberg","SENIORium Schwertberg",36,"4311 Schwertberg, Heimstätteweg 4","07262/62770 - 11","baph-schwertberg.post@shvpe.at","www.shvpe.at",38]
[82,"SZ Agevita St. Georgen/Gusen","113201",3,11,1,8,{"$error":"#N/A"},32,41120,"St. Georgen/Gusen","SZ Agevita St. Georgen/Gusen","Seniorenzentrum AGEVITA St. Georgen an der Gusen",71,"4222 St. Georgen an der Gusen, Gusentalstraße 35","07237/5155","pojar-simionca@st-georgen-gusen.at","https://seniorenzentrum-agevita.at/",83]
[83,"PH Ried im Innkreis","121201",1,12,2,5,{"$error":"#N/A"},12,41225,"Ried/Innkreis","PH Ried im Innkreis","Pflegeheim Ried im Innkreis",181,"4910 Ried im Innkreis, Rieplstraße 1, Riedholzstraße 17","07752/89 646; 07752/ 83 586","ph-ried.post@shvri.at ","www.shvri.at ",256]
[84,"PH Obernberg am Inn","121202",1,12,2,5,{"$error":"#N/A"},12,41219,"Obernberg/Inn","PH Obernberg am Inn","Pflegeheim Obernberg am Inn",80,"4982 Obernberg am Inn, Kirchenplatz 6","07758/2012","ph-obernberg.post@shvri.at","www.shvri.at",101]
[85,"PH Eberschwang","121203",1,12,2,5,{"$error":"#N/A"},12,41204,"Eberschwang","PH Eberschwang","Pflegeheim Eberschwang",73,"4906 Eberschwang, Maierhof 160","07753/31032","ph-eberschwang.post@shvri.at","www.shvri.at",84]
[86,"SWH Mehrnbach","122101",3,12,2,5,{"$error":"#N/A"},21,41214,"Mehrnbach","SWH Mehrnbach","Seniorenwohnheim Mehrnbach",61,"4941 Mehrnbach 43","07752/82201","post@swh-mehrnbach.at","www.swh-mehrnbach.at",75]
[87,"BAPH Lembach","131302",1,13,1,6,{"$error":"#N/A"},13,41318,"Lembach","BAPH Lembach","Bezirksalten- und Pflegeheim Lembach",87,"4132 Lembach i./M., Lederergasse 14","07286/73 93 511","baph-lembach.post@shvro.at","www.shvro.at",113]
[88,"BAPH Haslach","131303",1,13,1,6,{"$error":"#N/A"},13,41309,"Haslach a. d. Mühl","BAPH Haslach","Bezirksalten- und Pflegeheim Haslach",86,"4170 Haslach, Am Bach 17","07289/72306","baph-haslach.post@shvro.at","www.shvro.at",100]
[89,"BAPH Kleinzell i.M.","131304",1,13,1,6,{"$error":"#N/A"},13,41316,"Kleinzell/Mühlkreis","BAPH Kleinzell i.M.","Bezirksalten- und Pflegeheim Kleinzell im Mühlkreis",78,"4115 Kleinzell i.M, Weigelsdorf 14","07282/5701 0","baph-kleinzell-post@shvro.at","www.shvro.at",98]
[90,"BAPH Aigen-Schlägl","131305",1,13,1,6,{"$error":"#N/A"},13,41303,"Aigen im Mkr.","BAPH Aigen-Schlägl","Bezirksalten- und Pflegeheim Aigen-Schlägl",57,"4160 Aigen-Schlägl, Hauptstraße 19","07281/20 005","baph-aigen-schlaegl.post@shvro.at","www.shvro.at",60]
[91,"BAPH Ulrichsberg","131306",1,13,1,6,{"$error":"#N/A"},13,41342,"Ulrichsberg","BAPH Ulrichsberg","Bezirksalten- und Pflegeheim Ulrichsberg",66,"4161 Ulrichsberg, Steinwände 6","07288/72038","baph-ulrichsberg.post@shvro.at","www.shvro.at",73]
[92,"BAPH Rohrbach-Berg","131307",1,13,1,6,{"$error":"#N/A"},13,41330,"Rohrbach","BAPH Rohrbach-Berg","Bezirksalten- und Pflegeheim Rohrbach-Berg",73,"4150 Rohrbach-Berg, Am Teich 6","07289/40161","baph-rohrbach-berg.post@shvro.at","www.shvro.at",90]
[93,"BAPH Schärding","141401",1,14,2,5,{"$error":"#N/A"},14,41422,"Schärding","BAPH Schärding","Bezirksalten- und Pflegeheim Schärding",86,"4780 Schärding, Ernst-Fuchsig-Straße 2","07712/4601-0","buero-schaerding@shv-schaerding.at","www.shv-schaerding.at",90]
[94,"BAPH Schärding Tummelplatz","141402",1,{"$f":"VALUE(MID(C167,1,2))","v":14},{"$f":"IF(OR(E167=6,E167=11,E167=13,E167=16),1,IF(OR(E167=4,E167=14,E167=8,E167=12),2,IF(OR(E167=1,E167=3,E167=18,E167=5,E167=10),3,IF(OR(E167=2,E167=15,E167=7,E167=17,E167=9),4))))","v":2},{"$f":"IF(OR(E167=1,E167=10),1,IF(OR(E167=5,E167=8,E167=3,E167=18),2,IF(OR(E167=2,E167=15,E167=9),3,IF(OR(E167=7,E167=17),4,IF(OR(E167=4,E167=14,E167=12),5,IF(OR(E167=6,E167=11),8,IF(E167=13,6,IF(E167=16,7,))))))))","v":5},{"$error":"#N/A"},14,41422,"Schärding","BAPH Schärding Tummelplatz","Bezirksalten- und Pflegeheim Schärding Zentrum Tummelplatz",47,"4780 Schärding/Inn, Tummelplatzstraße 7","07712/20034-0","buero-zetu@shv-schaerding.at","www.shv-schaerding.at",122]
[95,"BAPH Andorf","141403",1,14,2,5,{"$error":"#N/A"},14,41402,"Andorf","BAPH Andorf","Bezirksalten- und Pflegeheim Andorf",67,"4770 Andorf, Sportplatzstr. 32","07766/3999","buero-andorf@shv-schaerding.at","www.shv-schaerding.at",69]
[96,"BAPH Zell/Pram","141404",1,14,2,5,{"$error":"#N/A"},14,41430,"Zell/Pram","BAPH Zell/Pram","Bezirksalten- und Pflegeheim Zell/Pram",60,"4755 Zell an der Pram, Bgm. Felix-Meier-Str. 5","07764/60333","buero-zell@shv-schaerding.at","www.shv-schaerding.at",63]
[97,{"$f":"L170","v":"BAPH Esternberg"},"141405",1,{"$f":"VALUE(MID(C170,1,2))","v":14},{"$f":"IF(OR(E170=6,E170=11,E170=13,E170=16),1,IF(OR(E170=4,E170=14,E170=8,E170=12),2,IF(OR(E170=1,E170=3,E170=18,E170=5,E170=10),3,IF(OR(E170=2,E170=15,E170=7,E170=17,E170=9),4))))","v":2},{"$f":"IF(OR(E170=1,E170=10),1,IF(OR(E170=5,E170=8,E170=3,E170=18),2,IF(OR(E170=2,E170=15,E170=9),3,IF(OR(E170=7,E170=17),4,IF(OR(E170=4,E170=14,E170=12),5,IF(OR(E170=6,E170=11),8,IF(E170=13,6,IF(E170=16,7,))))))))","v":5},{"$error":"#N/A"},14,41409,"Esternberg","BAPH Esternberg","Bezirksalten- und Pflegeheim Esternberg",116,"4092 Esternberg, Am Weinberg 3","07714/50980","buero-esternberg@shv-schaerding.at","www.shv-schaerding.at",125]
[98,"SWH St. Bernhard","144703",4,14,2,5,{"$error":"#N/A"},47,41407,"Engelhartszell","SWH St. Bernhard","Seniorenwohnhaus St. Bernhard, Engelhartszell",24,"4090 Engelhartszell, Stiftstraße 8/3","07717/7840 8555","st.bernhard@caritas-ooe.at","www.caritas.at",30]
[99,"BAPH Weyer","151501",1,15,4,3,{"$error":"#N/A"},15,41520,"Weyer","BAPH Weyer","Bezirksalten- und Pflegeheim Weyer",82,"3335 Weyer, Am Kreuzberg 1","07355/8601","baph-weyer.post@shvse.at","www.shvse.at",90]
[100,"BSWH Bad Hall","151502",1,15,4,3,{"$error":"#N/A"},15,41503,"Bad Hall","BSWH Bad Hall","Bezirksseniorenwohnheim Bad Hall",95,"4540 Bad Hall, Adlwangerstraße 8a","07258/5211-0","bswh-badhall.POST@shvse.at","www.shvse.at",118]
[101,"BAPH Garsten","151503",1,15,4,3,{"$error":"#N/A"},15,41506,"Garsten","BAPH Garsten","Bezirksalten- und Pflegeheim Garsten",55,"4451 Garsten, Marian-Rittinger Straße 11","07252/45406","baph-garsten.POST@shvse.at","www.shvse.at",62]
[102,"BAPH Sierning","151504",1,15,4,3,{"$error":"#N/A"},15,41516,"Sierning","BAPH Sierning","Bezirksalten- und Pflegeheim Sierning",50,"4522 Sierning, Mitterweg 36","07259/6012-0","baph-sierning.post@shvse.at","www.shvse.at",62]
[103,"BAPH Wolfern","151505",1,15,4,3,{"$error":"#N/A"},15,41521,"Wolfern","BAPH Wolfern","Bezirksalten- und Pflegeheim Wolfern",57,"4493 Wolfern, Schulstraße 14","07253/8251","baph-wolfern.Post@shvse.at","www.shvse.at",64]
[104,"BAPH Ternberg","151506",1,15,4,3,{"$error":"#N/A"},15,41517,"Ternberg","BAPH Ternberg","Bezirksalten- und Pflegeheim Ternberg",55,"4452 Ternberg, Schulstraße 4","07256/81101","baph-ternberg.POst@shvse.at","www.shvse.at",64]
[105,"APH St. Josef Sierning","154304",4,15,4,3,{"$error":"#N/A"},43,41516,"Sierning","APH St. Josef Sierning","St. Josef Wohnen mit Pflege Sierning",60,"4522 Sierning, Wallernstrasse 2","07259/2333","office@stjosef.kreuzschwestern.at ","www.stjosef.kreuzschwestern.at ",64]
[106,"SWH Schloss Hall","154704",4,15,4,3,{"$error":"#N/A"},47,41503,"Bad Hall","SWH Schloss Hall","Seniorenwohnhaus Schloss Hall",85,"4540 Bad Hall, Linzer Straße 1","07248/2574-0","schloss.hall@caritas-ooe.at","www.caritas-ooe.at",108]
[107,"BSH Engerwitzdorf","161601",1,16,1,7,{"$error":"#N/A"},16,41605,"Engerwitzdorf","BSH Engerwitzdorf","Bezirksseniorenheim Engerwitzdorf",84,"4209 Engerwitzdorf, Trefflinger Allee 8","07235/50430","bsh-engerwitzdorf.post@shvuu.at","www.shvuu.at",117]
[108,"BSH Bad Leonfelden","161602",1,16,1,7,{"$error":"#N/A"},16,41603,"Bad Leonfelden","BSH Bad Leonfelden","Bezirksseniorenheim Bad Leonfelden",87,"4190 Bad Leonfelden, Adalbert-Stifter-Straße 13","07213/20060-0","bsh-leonfelden.post@shvuu.at","www.shvuu.at",93]
[109,"BSH Walding","161603",1,16,1,7,{"$error":"#N/A"},16,41626,"Walding","BSH Walding","Bezirksseniorenheim Walding",52,"4111 Walding, Reiterstr. 12","0723/83573-0","bsh-walding.post@shvuu.at","www.shvuu.at",70]
[110,"BSH Gramastetten","161604",1,16,1,7,{"$error":"#N/A"},16,41609,"Gramastetten","BSH Gramastetten","Bezirksseniorenhaus Gramastetten",57,"4201 Gramastetten Marktstraße 2","07239/70240","bsh-gramastetten.post@shvuu.at","www.shvuu.at",96]
[111,"BSH Hellmonsödt","161605",1,16,1,7,{"$error":"#N/A"},16,41611,"Hellmonsödt","BSH Hellmonsödt","Bezirksseniorenhaus Hellmonsödt",81,"4202 Hellmonsödt, Wasserwald 1","07215/38364","bsh-hellmonsoedt.post@shvuu.at","www.shvuu.at",96]
[112,"FraDomo Feldkirchen",164005,4,16,1,7,{"$error":"#N/A"},40,41606,"Feldkirchen","FraDomo Feldkirchen","FraDomo Feldkirchen an der Donau - Wohnen, Begleitung & Pflege",64,"4101 Feldkirchen, Franziskanerinnenweg 1","07233/6495-0","office.feldkirchen@fradomo.at","www.seniorenhaeuser.at",90]
[113,"Haus Elisabeth, Gallneukirchen","164905",4,16,1,7,{"$error":"#N/A"},49,41607,"Gallneukirchen","Haus Elisabeth, Gallneukirchen","Haus Elisabeth, Gallneukirchen",39,"4210 Gallneukirchen, Gaisbacher Straße 11","07235/63251701","gerda.diesenreither@diakoniewerk.at","www.diakoniewerk.at",40]
[114,"Haus Abendfrieden, Gallneukirchen","164906",4,16,1,7,{"$error":"#N/A"},49,41607,"Gallneukirchen","Haus Abendfrieden, Gallneukirchen","Haus Abendfrieden, Gallneukirchen",22,"4210 Gallneukirchen, Franz Jäger Zeile 1","07235/50136","gerda.diesenreither@diakoniewerk.at","www.diakoniewerk.at",24]
[115,"BAPH Pfaffing","171701",1,17,4,4,{"$error":"#N/A"},17,41723,"Pfaffing","BAPH Pfaffing","Bezirksalten- und Pflegeheim Pfaffing",27,"4870 Pfaffing, Pfaffing 11","07682/2254","baph-pfaffing.post@shvvb.at","www.shvvb.at",50]
[116,"BAPH Attnang-Puchheim","171702",1,17,4,4,{"$error":"#N/A"},17,41703,"Attnang-Puchheim","BAPH Attnang-Puchheim","Bezirksalten- und Pflegeheim Attnang-Puchheim",178,"4800 Attnang-Puchheim, Mitterweg 61-63","07674/62711-200","baph-attnang.post@shvvb.at","www.shvvb.at",224]
[117,"BAPH Neukirchen a.d. Vöckla","171703",1,17,4,4,{"$error":"#N/A"},17,41716,"Neukirchen/V.","BAPH Neukirchen a.d. Vöckla","Bezirksalten- und Pflegeheim Neukirchen an der Vöckla",44,"4872 Neukirchen an der Vöckla, Dr.-Böhm-Weg 2","07682/39750","baph-neukirchen.post@shvvb.at","www.shvvb.at",48]
[118,{"$f":"L191","v":"BAPH St. Georgen im Attergau"},171704,1,{"$f":"VALUE(MID(C191,1,2))","v":17},{"$f":"IF(OR(E191=6,E191=11,E191=13,E191=16),1,IF(OR(E191=4,E191=14,E191=8,E191=12),2,IF(OR(E191=1,E191=3,E191=18,E191=5,E191=10),3,IF(OR(E191=2,E191=15,E191=7,E191=17,E191=9),4))))","v":4},{"$f":"IF(OR(E191=1,E191=10),1,IF(OR(E191=5,E191=8,E191=3,E191=18),2,IF(OR(E191=2,E191=15,E191=9),3,IF(OR(E191=7,E191=17),4,IF(OR(E191=4,E191=14,E191=12),5,IF(OR(E191=6,E191=11),8,IF(E191=13,6,IF(E191=16,7,))))))))","v":4},{"$error":"#N/A"},17,41734,"St. Georgen/Attergau","BAPH St. Georgen im Attergau","Bezirksalten- und Pflegeheim St. Georgen im Attergau",42,"4880 St. Georgen im Attergau, Jakitschgasse 14","07667/6061","baph-st-georgen.post@shvvb.at","www.shvvb.at",62]
[126,"BAPH Vöcklamarkt",171705,1,{"$f":"VALUE(MID(C192,1,2))","v":17},{"$f":"IF(OR(E192=6,E192=11,E192=13,E192=16),1,IF(OR(E192=4,E192=14,E192=8,E192=12),2,IF(OR(E192=1,E192=3,E192=18,E192=5,E192=10),3,IF(OR(E192=2,E192=15,E192=7,E192=17,E192=9),4))))","v":4},{"$f":"IF(OR(E192=1,E192=10),1,IF(OR(E192=5,E192=8,E192=3,E192=18),2,IF(OR(E192=2,E192=15,E192=9),3,IF(OR(E192=7,E192=17),4,IF(OR(E192=4,E192=14,E192=12),5,IF(OR(E192=6,E192=11),8,IF(E192=13,6,IF(E192=16,7,))))))))","v":4},{"$error":"#N/A"},17,41747,"Vöcklamarkt","BAPH Vöcklamarkt","Bezirksalten- und Pflegeheim Vöcklamarkt",60,"4870 Vöcklamarkt, Herrnwiesweg 5","07682/6219","baph-voecklamarkt.post@shvvb.at","www.shvvb.at",61]
[119,"AH Frankenburg","172501",3,17,4,4,{"$error":"#N/A"},25,41709,"Frankenburg","AH Frankenburg","Altenheim Frankenburg am Hausruck",77,"4873 Frankenburg am Hausruck, Badstraße 10","07683/8553","office@altenheim-frankenburg.at","www.altenheim-frankenburg.at",78]
[120,"APH Frankenmarkt","172601",3,17,4,4,{"$error":"#N/A"},26,41710,"Frankenmarkt","APH Frankenmarkt","Alten- und Pflegeheim Frankenmarkt",63,"4890 Frankenmarkt, Feldweg 14","07684/6506","office@altenheim-frankenmarkt.at","www.altenheim-frankenmarkt.at",81]
[121,"APH Lenzing","172801",3,17,4,4,{"$error":"#N/A"},28,41713,"Lenzing","APH Lenzing","Alten- und Pflegeheim Lenzing",56,"4860 Lenzing, Franz-Auracher-Straße 4","07672/92976","aph@lenzing.or.at","www.lenzing.ooe.gv.at",81]
[122,"SWH Mondsee","172901",3,17,4,4,{"$error":"#N/A"},29,41715,"Mondsee","SWH Mondsee","Seniorenwohnheim Mondsee",63,"5310 Mondsee, Abt Haberl-Straße 2","06232/2506-10","office@swh-mondsee.at","www.swh-mondsee.at",67]
[123,"APH Schwanenstadt","173801",3,17,4,4,{"$error":"#N/A"},38,41738,"Schwanenstadt","APH Schwanenstadt","Alten- und Pflegeheim Schwanenstadt",77,"4690 Schwanenstadt, Rainerpark 2","07673/2393","heimleitung.sh@schwanenstadt.ooe.gv.at","www.schwanenstadt.at/Seniorenheim",81]
[124,"SH Timelkam","173301",3,17,4,4,{"$error":"#N/A"},33,41743,"Timelkam","SH Timelkam","Seniorenheim der Marktgemeinde Timelkam",77,"4850 Timelkam, Ziehrerstraße 5","07672/95424","heimleitung@timelkam.at","www.timelkam.at",80]
[125,"SH Vöcklabruck","173901",3,17,4,4,{"$error":"#N/A"},39,41746,"Vöcklabruck","SH Vöcklabruck","Seniorenheim der Stadt Vöcklabruck",96,"4840 Vöcklabruck, Am Pfarrerfeld 1","07672/27922","office-seniorenheim@voecklabruck.at","www.voecklabruck.at/seniorenheim",99]
[127,"FraDomo Vöcklabruck","174004",4,17,4,4,{"$error":"#N/A"},40,41746,"Vöcklabruck","FraDomo Vöcklabruck","FraDomo Vöcklabruck - Wohnen, Begleitung & Pflege",98,"4840 Vöcklabruck, Salzburger Straße 20","07672/27732","office.voecklabruck@fradomo.at","http://seniorenhaeuser.at/st-klara/lebensraum/",120]
[128,"FraDomo Ottnang",174006,4,17,4,4,{"$error":"#N/A"},40,41722,"Ottnang am Hausruck","FraDomo Ottnang","FraDomo Ottnang - Wohnen, Begleitung & Pflege",67,"4901 Ottnang, Marktplatz 1","07676/20763 510","office.ottnang@fradomo.at","https://seniorenhaeuser.at/haus-barbara/lebensraum/",72]
[129,{"$f":"L202","v":"BAPH Lambach"},"181801",1,{"$f":"VALUE(MID(C202,1,2))","v":18},{"$f":"IF(OR(E202=6,E202=11,E202=13,E202=16),1,IF(OR(E202=4,E202=14,E202=8,E202=12),2,IF(OR(E202=1,E202=3,E202=18,E202=5,E202=10),3,IF(OR(E202=2,E202=15,E202=7,E202=17,E202=9),4))))","v":3},{"$f":"IF(OR(E202=1,E202=10),1,IF(OR(E202=5,E202=8,E202=3,E202=18),2,IF(OR(E202=2,E202=15,E202=9),3,IF(OR(E202=7,E202=17),4,IF(OR(E202=4,E202=14,E202=12),5,IF(OR(E202=6,E202=11),8,IF(E202=13,6,IF(E202=16,7,))))))))","v":2},{"$error":"#N/A"},18,41811,"Lambach","BAPH Lambach","Bezirksalten- und Pflegeheim Lambach",86,"4650 Lambach, Lenaustraße 2","07245/24 575","baph-lambach.post@shvwl.at","www.altenheim-lambach.at",125]
[130,"BAPH Marchtrenk","181802",1,18,3,2,{"$error":"#N/A"},18,41812,"Marchtrenk","BAPH Marchtrenk","Bezirksalten- und Pflegeheim Marchtrenk",114,"4614 Marchtrenk, Augartenstraße 2","07243/52284","baph-marchtrenk.Post@shvwl.at","www.altenheim-marchtrenk.at",126]
[131,"BAPH Thalheim","181803",1,18,3,2,{"$error":"#N/A"},18,41823,"Thalheim bei Wels","BAPH Thalheim","Bezirksalten- und Pflegeheim Thalheim",73,"4600 Thalheim bei Wels, Ascheter Straße 38","07242/36080","baph-thalheim.post@shvwl.at","www.altenheim-thalheim.at",102]
[132,"SZ Sonnleiten, Eberstalzell","181901",3,18,3,2,{"$f":"IF($E$31<60,\"S\",IF($E$31<90,\"M\",IF($E$31<120,\"L\",\"XL\")))","v":{"$error":"#N/A"}},19,41805,"Eberstalzell","SZ Sonnleiten, Eberstalzell","Sozialzentrum Sonnleiten, Eberstalzell",62,"4653 Eberstalzell, Sonnleiten 2","07241/5554 13","heimleitung@sozialzentrum-sonnleiten.at","www.sozialzentrum-sonnleiten.at",68]
[133,"SWPH Gunskirchen","182701",3,18,3,2,{"$error":"#N/A"},27,41808,"Gunskirchen","SWPH Gunskirchen","Seniorenwohn- und Pflegeheim Gunskirchen",74,"4623 Gunskirchen, Welser Straße 7","07246/8994-0","seniorenhaus@gunskirchen.ooe.gv.at","www.gunskirchen.com",77]
[134,"SZ Kloster Nazareth, Stadl-Paura","184402",4,18,3,2,{"$error":"#N/A"},44,41820,"Stadl-Paura","SZ Kloster Nazareth, Stadl-Paura","Sozialzentrum Kloster Nazareth",76,"4651 Stadl-Paura, Am Bräuberg 1","07245/28975","stefanie.freisler@stiftung-liebenau.at","www.stiftung-liebenau.at",80]
[null,null,null,null,null,null,null,null,null,null,null,null,null,{"$f":"SUM(N74:N207)","v":10639},null,null,null,null,{"$f":"SUM(S74:S207)","v":12773}]

{"sheet":"1a_Langzeitpflege","index":2,"n_rows":109,"n_cols":17,"rows_kept":109,"cut":false,"hidden":false,"merged":[[9,13,9,14],[33,0,33,1],[38,4,38,11],[35,0,35,1],[34,0,34,1],[15,0,16,0],[17,0,18,0],[29,0,30,11],[32,0,32,1],[31,0,31,1],[94,1,94,6],[76,8,77,11],[94,13,95,13],[65,6,65,7],[71,6,72,9],[78,6,78,11],[77,6,77,7],[88,6,88,11]]}
[]
["ERHEBUNG IN DEN OÖ. ALTEN- UND PFLEGEHEIMEN\n (Langzeitpflege)"]
[null,null,null,null,null,{"$f":"'0_Einleitung'!$E$2","v":"zum Stichtag"},{"$f":"'0_Einleitung'!$G$2","v":"2025-12-31"}]
[{"$f":"IF(Q97>0,\"Tabellenblatt nicht vollständig oder korrekt ausgefüllt! Bitte Eingaben prüfen!\",\"\")","v":"Tabellenblatt nicht vollständig oder korrekt ausgefüllt! Bitte Eingaben prüfen!"},null,null,null,null,null,null,null,null,null,null,{"$f":"IF(A4=\"\",\"Sie haben dieses Tabellenblatt vollständig ausgefüllt - Vielen Dank!\",\"\")","v":""}]
["Bewohnerzimmer und Plätze, die für Langzeitpflege zur Verfügung stehen",null,null,null,null,null,null,{"$f":"'1_allg. Strukturdaten'!$D$3","v":"zum Stichtag"},{"$f":"'1_allg. Strukturdaten'!$F$3","v":"2025-12-31"}]
[]
[null,null,"1-Personen-Wohneinheiten (Zimmer) mit insgesamt ",null,null,null,null,{"$f":"B7*1","v":0},"Plätzen",null,null,null,null,{"$f":"IF(B7=\"\",\"Eingabe unvollständig\",\"\")","v":"Eingabe unvollständig"},null,null,{"$f":"IF(N7=\"\",\"\",\"x\")","v":"x"}]
[null,null,"2-Personen-Wohneinheiten (Zimmer) mit insgesamt ",null,null,null,null,{"$f":"B8*2","v":0},"Plätzen",null,null,null,null,{"$f":"IF(B8=\"\",\"Eingabe unvollständig\",\"\")","v":"Eingabe unvollständig"},null,null,"x"]
[null,0,"Oase (Mehr-Personen-Wohneinheit mit speziellem Konzept)",null,null,null,null,{"$f":"B9*6","v":0},"Plätzen",null,null,null,null,{"$f":"IF(B9=\"\",\"Eingabe unvollständig\",\"\")","v":""},null,null,""]
[null,{"$f":"SUM(B7:B9)","v":0},"Zimmer mit",null,null,null,null,{"$f":"SUM(H7:H9)","v":0},"Plätzen"]
[null,null,null,null,null,null,null,null,null,null,null,null,null,null,null,null,""]
[null,null,null,null,null,null,null,null,null,null,null,null,null,null,null,null,""]
["Bewohnerinnen und Bewohner in der Langzeitpflege",null,null,null,null,null,{"$f":"'1_allg. Strukturdaten'!$D$3","v":"zum Stichtag"},{"$f":"'1_allg. Strukturdaten'!$F$3","v":"2025-12-31"},null,null,null,null,null,null,null,null,""]
["Altersstruktur der Bewohner:innen nach Kostentragung und Geschlecht:",null,null,null,null,null,null,null,null,null,null,null,null,null,null,null,""]
[null,null,"unter 60 Jahre","60 bis                   unter 65 Jahre","65 bis                   unter 70 Jahre","70 bis                 unter 75 Jahre","75 bis \nunter 80 Jahre","80 bis \nunter 85 Jahre","85 bis                       unter 90 Jahre","90 Jahre                       und älter",null,null,null,{"$f":"IF(L17>L16,\"Anzahl Männer SH ist größer als Anzahl Frauen SH\",\"\")","v":""}]
["mit Sozialhilfe-bezug","weiblich",null,null,null,null,null,null,null,null,"Frauen SH",{"$f":"SUM(C16:J16)","v":0},null,{"$f":"IF(OR(C16=\"\",D16=\"\",E16=\"\",F16=\"\",G16=\"\",H16=\"\",I16=\"\",J16=\"\")=TRUE,\"Eingabe unvollständig\",\"\")","v":"Eingabe unvollständig"},null,null,"x"]
[null,"männlich",null,null,null,null,null,null,null,null,"Männer SH",{"$f":"SUM(C17:J17)","v":0},null,{"$f":"IF(OR(C17=\"\",D17=\"\",E17=\"\",F17=\"\",G17=\"\",H17=\"\",I17=\"\",J17=\"\")=TRUE,\"Eingabe unvollständig\",\"\")","v":"Eingabe unvollständig"},null,null,"x"]
["Selbstzahler:\ninnen","weiblich",null,null,null,null,null,null,null,null,"Frauen SZ",{"$f":"SUM(C18:J18)","v":0},null,{"$f":"IF(OR(C18=\"\",D18=\"\",E18=\"\",F18=\"\",G18=\"\",H18=\"\",I18=\"\",J18=\"\")=TRUE,\"Eingabe unvollständig\",\"\")","v":"Eingabe unvollständig"},null,null,"x"]
[null,"männlich",null,null,null,null,null,null,null,null,"Männer SZ",{"$f":"SUM(C19:J19)","v":0},null,{"$f":"IF(OR(C19=\"\",D19=\"\",E19=\"\",F19=\"\",G19=\"\",H19=\"\",I19=\"\",J19=\"\")=TRUE,\"Eingabe unvollständig\",\"\")","v":"Eingabe unvollständig"},null,null,"x"]
[null,"Summe SH",{"$f":"C16+C17","v":0},{"$f":"D16+D17","v":0},0,0,0,0,0,0,"Summe SH",{"$f":"L16+L17","v":0},null,{"$f":"IF(L20<L21,\"Es scheinen mehr SZ als SH auf, bitte überprüfen!\",\"\")","v":""}]
[null,"Summe SZ",{"$f":"C18+C19","v":0},{"$f":"D18+D19","v":0},{"$f":"E18+E19","v":0},0,0,0,0,0,"Summe SZ",{"$f":"L18+L19","v":0},null,null,null,null,""]
[null,"Summe Frauen",{"$f":"C16+C18","v":0},{"$f":"D16+D18","v":0},{"$f":"E16+E18","v":0},0,0,0,0,0,"Frauen",0,null,{"$f":"IF(L22<L23,\"Es scheinen mehr Männer als Frauen auf, bitte überprüfen!\",\"\")","v":""}]
[null,"Summe Männer",{"$f":"C17+C19","v":0},{"$f":"D17+D19","v":0},0,0,0,0,0,0,"Männer",{"$f":"SUM(C23:J23)","v":0},null,null,null,null,""]
[null,"Gesamtsumme",{"$f":"SUM(C16:C19)","v":0},{"$f":"SUM(D16:D19)","v":0},{"$f":"SUM(E16:E19)","v":0},0,0,0,0,0,"Gesamt",{"$f":"SUM(C24:J24)","v":0},null,{"$f":"IF(H10<L24,\"Es wurden mehr HB als LZP-Plätze angegeben, bitte überprüfen!\",\"\")","v":""},null,null,""]
[null,null,null,null,null,null,null,null,null,null,null,null,null,null,null,null,""]
["Das Durchschnittsalter aller Heimbewohnerinnen und -bewohner beträgt zum Stichtag",null,null,null,null,null,null,"Jahre.",null,null,null,null,null,{"$f":"IF(G26=\"\",\"Eingabe unvollständig\",\"\")","v":"Eingabe unvollständig"},null,null,"x"]
[null,null,null,null,null,null,null,null,null,null,null,null,null,null,null,null,""]
[null,null,null,null,null,null,null,null,null,null,null,null,null,null,null,null,""]
["Pflegebedarf (Pflegegeldeinstufung) der Bewohnerinnen und Bewohner",null,null,null,null,null,null,null,{"$f":"$F$3","v":"zum Stichtag"},{"$f":"$G$3","v":"2025-12-31"},null,null,null,null,null,null,""]
["tatsächliche Einstufungen aller Langzeitpflegebewohnerinnen und -bewohner laut gültigem Bescheid (bei PG aus dem Ausland nach österr. Kriterien einstufen; z.B. Pflegegrad 5 Deutschland entspricht     St. 7 Öst., daher bei St. 7 eintragen)",null,null,null,null,null,null,null,null,null,null,null,null,null,null,null,""]
[null,null,null,null,null,null,null,null,null,null,null,null,null,null,null,null,""]
[null,null,"kein PG","Stufe 1","Stufe 2","Stufe 3","Stufe 4","Stufe 5","Stufe 6","Stufe 7","Gesamt",null,null,null,null,null,""]
["mit Sozialhilfebezug",null,null,null,null,null,null,null,null,null,{"$f":"SUM(C33:J33)","v":0},null,null,{"$f":"IF(OR(C33=\"\",D33=\"\",E33=\"\",F33=\"\",G33=\"\",H33=\"\",I33=\"\",J33=\"\")=TRUE,\"Eingabe unvollständig\",IF(K33<>L20,\"Summe SH-Bezug stimmt nicht mit L20 überein!\",\"\"))","v":"Eingabe unvollständig"},null,null,"x"]
["Selbstzahler:innen",null,null,null,null,null,null,null,null,null,{"$f":"SUM(C34:J34)","v":0},null,null,{"$f":"IF(OR(C34=\"\",D34=\"\",E34=\"\",F34=\"\",G34=\"\",H34=\"\",I34=\"\",J34=\"\")=TRUE,\"Eingabe unvollständig\",IF(K34<>L21,\"Summe Selbstzahler stimmt nicht mit L21 überein!\",\"\"))","v":"Eingabe unvollständig"},null,null,"x"]
["Summe tatsächliche PG-Einst.",null,{"$f":"SUM(C33:C34)","v":0},0,0,0,0,0,0,0,0,null,null,{"$f":"IF(L24<>K35,\"Summe Bewohner stimmt nicht mit L24 überein\",\"\")","v":""},null,null,""]
["Summe inkl. offene PG-Verf.",null,{"$f":"B41-C41+E49","v":0},{"$f":"B42-$C42+F49","v":0},{"$f":"B43-C43+G49","v":0},{"$f":"B44-C44+H49","v":0},{"$f":"B45-C45+I49","v":0},{"$f":"B46-C46+J49","v":0},{"$f":"B47-C47+K49","v":0},{"$f":"B48+L49","v":0},{"$f":"SUM(C36:J36)","v":0},null,null,{"$f":"IF(L24<>K36,\"Summe Bewohner stimmt nicht mit L24 überein\",\"\")","v":""},null,null,""]
[null,null,null,null,null,null,null,null,null,null,null,null,null,null,null,null,""]
[null,null,null,null,null,null,null,null,null,null,null,null,null,null,null,null,""]
["alle Bewohner:innen (Langzeitpflege)",null,null,null,"erwartete Einstufung",null,null,null,null,null,null,null,null,null,null,null,""]
["derzeitige PG-Stufe","Heimbew. ohne PG bzw. lt. PG-Bescheid","Anzahl offene PG-Verfahren",null,0,1,2,3,4,5,6,7,null,null,null,null,""]
["kein PG",{"$f":"C35","v":0},null,null,null,null,null,null,null,null,null,null,{"$f":"SUM(F41:L41)","v":0},{"$f":"IF(C41=\"\",\"Eingabe unvollständig\",IF(B41<C41,\"Wert in Spalte C kann nicht größer sein als Wert in Spalte B\",IF(C41<>M41,\"Summe erwartete Einstufungen stimmt nicht mit Wert in Spalte C überein\",\"\")))","v":"Eingabe unvollständig"},null,null,"x"]
[1,{"$f":"D35","v":0},null,null,null,null,null,null,null,null,null,null,0,"Eingabe unvollständig",null,null,"x"]
[2,{"$f":"E35","v":0},null,null,null,null,null,null,null,null,null,null,0,"Eingabe unvollständig",null,null,"x"]
[3,{"$f":"F35","v":0},null,null,null,null,null,null,null,null,null,null,0,"Eingabe unvollständig",null,null,"x"]
[4,{"$f":"G35","v":0},null,null,null,null,null,null,null,null,null,null,0,"Eingabe unvollständig",null,null,"x"]
[5,{"$f":"H35","v":0},null,null,null,null,null,null,null,null,null,null,0,{"$f":"IF(C46=\"\",\"Eingabe unvollständig\",IF(B46<C46,\"Wert in Spalte C kann nicht größer sein als Wert in Spalte B\",IF(C46<>M46,\"Summe erwartete Einstufungen stimmt nicht mit Wert in Spalte C überein\",\"\")))","v":"Eingabe unvollständig"},null,null,"x"]
[6,{"$f":"I35","v":0},null,null,null,null,null,null,null,null,null,null,0,{"$f":"IF(C47=\"\",\"Eingabe unvollständig\",IF(B47<C47,\"Wert in Spalte C kann nicht größer sein als Wert in Spalte B\",IF(C47<>M47,\"L47 stimmt nicht mit Wert in Spalte C überein\",\"\")))","v":"Eingabe unvollständig"},null,null,"x"]
[7,{"$f":"J35","v":0},null,null,null,null,null,null,null,null,null,null,null,null,null,null,""]
[null,{"$f":"SUM(B41:B48)","v":0},{"$f":"SUM(C41:C47)","v":0},null,{"$f":"SUM(E41:E48)","v":0},0,0,0,0,0,0,{"$f":"SUM(L41:L48)","v":0},null,null,null,null,""]
[null,null,null,null,null,null,null,null,null,null,"Kontrollsumme",{"$f":"SUM(E49:L49)","v":0},null,{"$f":"IF(C49<>L50,\"Kontrollsumme stimmt nicht mit C49 überein\",\"\")","v":""},null,null,""]
[null,null,null,null,null,null,null,null,null,null,null,null,null,null,null,null,""]
[null,null,null,null,null,null,null,null,null,null,null,null,null,null,null,null,""]
["Anzahl aller Bewohnerinnen und Bewohner (Langzeitpflege) nach Herkunftsbezirk ",null,null,null,null,null,null,null,null,{"$f":"$F$3","v":"zum Stichtag"},{"$f":"$G$3","v":"2025-12-31"},null,null,null,null,null,""]
[null,null,null,null,null,null,null,null,null,null,null,null,null,null,null,null,""]
["Braunau",null,"Eferding",null,"Freistadt",null,"Gmunden",null,"Grieskirchen",null,"Kirchdorf",null,null,{"$f":"IF(OR(B55=\"\",D55=\"\",F55=\"\",H55=\"\",J55=\"\",L55=\"\")=TRUE,\"Eingabe unvollständig\",\"\")","v":"Eingabe unvollständig"},null,null,"x"]
["Linz-Land",null,"Perg",null,"Ried i.I.",null,"Rohrbach",null,"Schärding",null,"Steyr-Land",null,null,{"$f":"IF(OR(B56=\"\",D56=\"\",F56=\"\",H56=\"\",J56=\"\",L56=\"\")=TRUE,\"Eingabe unvollständig\",\"\")","v":"Eingabe unvollständig"},null,null,"x"]
["Urfahr-Umg.",null,"Vöcklabruck",null,"Wels-Land",null,"Linz",null,"Steyr",null,"Wels",null,null,{"$f":"IF(OR(B57=\"\",D57=\"\",F57=\"\",H57=\"\",J57=\"\",L57=\"\")=TRUE,\"Eingabe unvollständig\",\"\")","v":"Eingabe unvollständig"},null,null,"x"]
[null,"andere Bundesländer",null,null,null,null,null,null,null,null,null,null,null,{"$f":"IF(C58=\"\",\"Eingabe unvollständig\",\"\")","v":"Eingabe unvollständig"},null,null,"x"]
[null,"Ausland",null,null,null,null,null,null,null,null,null,null,null,{"$f":"IF(C59=\"\",\"Eingabe unvollständig\",\"\")","v":"Eingabe unvollständig"},null,null,"x"]
[null,null,null,null,null,null,null,null,null,null,"Gesamt",{"$f":"SUM(B55:B57)+SUM(D55:D57)+SUM(F55:F57)+SUM(H55:H57)+SUM(J55:J57)+SUM(L55:L57)+SUM(C58:C59)","v":0},null,{"$f":"IF(L60<>L24,\"Summe Bewohner stimmt nicht mit L24 überein\",\"\")","v":""},null,null,""]
[null,"Bewohnerinnen bzw. Bewohner kommen aus der Standortgemeinde.",null,null,null,null,null,null,null,null,null,null,null,{"$f":"IF(A61=\"\",\"Eingabe unvollständig\",IF(MAX(Datenblatt!DP6:EH6)<'1a_Langzeitpflege'!A61,\"Angabe zu hoch, bitte überprüfen!\",\"\"))","v":"Eingabe unvollständig"},null,null,"x"]
[null,null,null,null,null,null,null,null,null,null,null,null,null,null,null,null,""]
[null,null,null,null,null,null,null,null,null,null,null,null,null,null,null,null,""]
["Statistische Angaben",null,"im Jahr",{"$f":"'1_allg. Strukturdaten'!F3","v":"2025-12-31"},"(Begriffsbestimmungen lt. § 24 Oö. HVO)",null,null,null,null,null,null,null,null,null,null,null,""]
[null,null,null,null,null,null,null,null,null,null,null,null,null,null,null,null,""]
["Anzahl aller Bewohntage (BT) in der Langzeitpflege",null,null,null,null,null,"darin enthalten sind",null,null,"Krankenhaustage (aller HB in der LZP)",null,null,null,{"$f":"IF(OR(F66=\"\",I66=\"\")=TRUE,\"Eingabe unvollständig\",\"\")","v":"Eingabe unvollständig"},null,null,"x"]
["davon Bewohntage von Heimbewohner:innen (HB) mit Sozialhilfe(SH)-Bezug",null,null,null,null,null,null,null,null,null,null,null,null,{"$f":"IF(F67=\"\",\"Eingabe unvollständig\",\"\")","v":"Eingabe unvollständig"},null,null,"x"]
["davon Bewohntage von Selbstzahler:innen (SZ)",null,null,null,null,{"$f":"F66-F67","v":0},null,null,null,null,null,null,null,{"$f":"IF(F67<F68,\"Bewohntage SZ sind höher als BT SH, bitte überprüfen!\",\"\")","v":""},null,null,""]
[]
[null,null,null,null,null,"Aufgrund der angegeben LZP-Plätze und Bewohntage ergibt sich eine Auslastung von",{"$f":"IF(H10=0,\"\",F66/(H10*365))","v":""},"in der Langzeitpflege."]
[null,null,null,null,null,{"$f":"IF(OR(H10=0,G70>1)=TRUE,\"\",\"Das bedeutet es waren ständig\")","v":""},{"$f":"IF(G70>1,\"\",H10-(F66/365))","v":""},{"$f":"IF(OR(H10=0,G70>1)=TRUE,\"\",\"LZP-Plätze nicht bewohnt.\")","v":""}]
[null,null,null,null,null,{"$f":"IF(H10=0,\"\",IF(G70<0.98,\"Begründung für die geringe Auslastung (weniger als 98%):\",IF(G70>1,\"Begründung für die Auslastung über 100%:\",\"\")))","v":""},null,null,null,null,null,null,null,{"$f":"IF(AND(G72=\"\",OR(G70<0.98,G70>1))=TRUE,\"Bitte Begründung für die Auslastung angeben\",\"\")","v":"Bitte Begründung für die Auslastung angeben"},null,null,{"$f":"IF(N72=\"\",\"\",\"x\")","v":"x"}]
[null,null,null,null,null,{"$f":"IF(H10=0,\"\",IF(OR(G70<0.98,G70>1)=TRUE,\"\",\"Eine Begründung ist bei dieser Auslastung nicht erforderlich.\"))","v":""}]
[null,null,null,null,null,{"$f":"(H10+'1b_Kurzzeitpflege'!G10)*365","v":0},{"$f":"IF(F66>F74,\"Summe Bewohntage (F66) ist größer als Plätze LZP+KZP mal 365 Tage - bitte überprüfen!\",\"\")","v":""}]
["Summe der betreuten Personen im Jahr",null,null,{"$f":"G3-1","v":"2025-12-30"},null,null,null,"Summe HB 31.12.2025 + alle Austritte 2025",{"$f":"L60+D86","v":0},{"$f":"IF(AND(I75<>\"\",D86=\"\")=TRUE,\"Für die Prüfung ist eine Eingabe in D86 notwendig!\",\"\")","v":"Für die Prüfung ist eine Eingabe in D86 notwendig!"},null,null,null,{"$f":"IF(E75=\"\",\"Eingabe unvollständig\",\"\")","v":"Eingabe unvollständig"},null,null,"x"]
["davon betreute Personen mit SH-Bezug",null,null,null,null,null,null,"Abweichung zur Angabe in E75",{"$f":"E75-I75","v":0},null,null,null,null,{"$f":"IF(E76=\"\",\"Eingabe unvollständig\",\"\")","v":"Eingabe unvollständig"},null,null,"x"]
["betreute Personen, die 2025 immer Selbstzahler waren",null,null,null,{"$f":"E75-E76","v":0},null,null,"Begründung für die Abweichung",null,null,null,null,null,{"$f":"IF(AND(I77=\"\",I76<>0)=TRUE,\"Bitte Begründung für die Abweichung angeben\",\"\")","v":""},null,null,""]
[null,null,null,null,null,null,{"$f":"IF(I76<>0,\"Bitte überprüfen, ob Doppel-\",\"\")","v":""},null,null,null,null,null,null,{"$f":"IF(E77>E76,\"betreute Personen SH ist geringer als betreute Pers. SZ, bitte überprüfen!\",\"\")","v":""},null,null,""]
["Eintritte/Übernahmen in die Langzeitpflege im Jahr",null,null,null,{"$f":"G3-1","v":"2025-12-30"},null,{"$f":"IF(I76<>0,\"nennungen vorliegen oder irrtümlich Kurzzeitpflegegäste/Zimmerwechsel mitgezählt wurden!\",\"\")","v":""},null,null,null,null,null,null,{"$f":"IF(E76<=L20,\"betreute Personen mit SH (E76) ist kleiner oder gleich HB SH zum Stichtag (L20), bitte überprüfen!\",\"\")","v":"betreute Personen mit SH (E76) ist kleiner oder gleich HB SH zum Stichtag (L20), bitte überprüfen!"},null,null,"x"]
["Anzahl der in die LZP eingetretenen/übernommenen Bewohner:innen mit SH-Bezug:",null,null,null,null,null,null,null,null,null,null,null,null,{"$f":"IF(F80=\"\",\"Eingabe unvollständig\",\"\")","v":"Eingabe unvollständig"},null,null,"x"]
["Anzahl der in die LZP eingetretenen/übernommenen Bewohner:innen (Selbstzahler):",null,null,null,null,null,null,null,"Plausibilisierung der Ein- und Austritte in der LZP:",null,null,null,null,{"$f":"IF(F81=\"\",\"Eingabe unvollständig\",\"\")","v":"Eingabe unvollständig"},null,null,"x"]
[null,null,null,null,"Summe Neueintritte",{"$f":"F80+F81","v":0},null,null,"Am 31.12.2024 wurden",{"$f":"IF('1_allg. Strukturdaten'!D7=\"\",\"0\",VLOOKUP(Datenblatt!J6,'1_allg. Strukturdaten'!$B$74:$N$207,13,FALSE))","v":{"$error":"#N/A"}},"HB in der LZP angegeben.",null,null,{"$f":"IF(E77<0,\"Die Zahl in E75 muss größer sein, als die Zahl in E76\",\"\")","v":""},null,null,""]
[null,null,null,null,null,null,null,null,"Addiert man die angegebenen",{"$f":"F82","v":0},"Eintritte und"]
[null,null,null,null,null,null,null,null,"zieht die angegebenen",{"$f":"D86","v":0},"Austritte ab,"]
["Ausgetretene Bewohner:innen im Jahr",null,null,{"$f":"G3-1","v":"2025-12-30"},null,null,null,null,"ergeben sich für 31.12.2025",{"$f":"J82+J83-J84","v":{"$error":"#N/A"}},"HB in der LZP."]
[null,null,"Anzahl aller ausgetretenen Bewohner:innen",null,null,null,null,null,"In L24 werden am 31.12.2025",{"$f":"L24","v":0},"HB angegeben,",null,null,{"$f":"IF(D86=\"\",\"Eingabe unvollständig\",\"\")","v":"Eingabe unvollständig"},null,null,"x"]
[null,null,"davon sind verstorben",null,null,null,null,null,"dadurch ergibt sich eine Abweichung von",{"$f":"J85-J86","v":{"$error":"#N/A"}},"HB in der LZP.",null,null,{"$f":"IF(D87=\"\",\"Eingabe unvollständig\",\"\")","v":"Eingabe unvollständig"},null,null,"x"]
[null,null,"davon wiederum sind im Heim verstorben",null,null,null,null,null,null,null,null,{"$f":"IF(OR(J87<-2,J87>2),\"Bitte überprüfen Sie daher die Anzahl der Ein- und Austritte und begründen Sie die Abweichung:\",\"\")","v":{"$error":"#N/A"}},null,{"$f":"IF(D88=\"\",\"Eingabe unvollständig\",\"\")","v":"Eingabe unvollständig"},null,null,"x"]
[null,null,"in ein anderes oö. APH sind übersiedelt",null,null,null,null,null,null,null,null,null,null,{"$f":"IF(AND(L90=\"\",G89=\"\"),\"Bitte Begründung für die Abweichung in J87 angeben!\",\"\")","v":{"$error":"#N/A"}},null,null,{"$error":"#N/A"}]
[null,null,null,"davon waren",null,"immer Selbstzahler:innen",null,null,null,null,null,{"$f":"IF(L88=\"\",\"Hier (G89) ist nur ein Eintrag erforderlich, wenn dazu aufgefordert wird.\",\"\")","v":{"$error":"#N/A"}},null,{"$f":"IF(D89=\"\",\"Eingabe unvollständig\",\"\")","v":"Eingabe unvollständig"},null,null,"x"]
[null,null,"Differenz Sonstiges:",{"$f":"D86-D87-D89","v":0},null,null,null,null,null,null,null,null,null,{"$f":"IF(E90=\"\",\"Eingabe unvollständig\",\"\")","v":"Eingabe unvollständig"},null,null,"x"]
[null,null,null,null,null,null,null,null,null,null,null,null,null,{"$f":"IF(OR(D89=\"\",E90=\"\")=TRUE,\"Eingabe unvollständig\",IF(E90>D89,\"E90 kann nicht größer sein als D89!\",\"\"))","v":"Eingabe unvollständig"},null,null,"x"]
["Verweildauer im Heim","weniger als 1 Monat *","1 bis 3 Monate *","4 bis 6 Monate *","7 bis 12 Monate *","1 bis 5                 Jahre *","6 bis 10   Jahre *","länger *","Summe",null,null,null,null,{"$f":"IF((D87+D89)>D86,\"Summe verstorbene (D87) und übersiedelte HB (D89) kann nicht höher sein als alle ausgetretenen HB (D86)!\",\"\")","v":""},null,null,""]
["Verstorbene",null,null,null,null,null,null,null,{"$f":"SUM(B94:H94)","v":0},null,null,null,null,{"$f":"IF(OR(B94=\"\",C94=\"\",D94=\"\",E94=\"\",F94=\"\",G94=\"\",H94=\"\")=TRUE,\"Eingabe unvollständig\",IF(D87<>I94,\"Summe der Verstorbenen stimmt nicht mit D87 überein, bitte überprüfen!\",\"\"))","v":"Eingabe unvollständig"},null,null,"x"]
[null,"* maßgeblich für die Zuordnung ist das Datum des Todes (siehe Ausfüllbeispiel im Kommentarfeld)",null,null,null,null,null,null,null,null,null,null,null,{"$f":"IF(AND(E77=0,E90>0),\"Wenn es bei den Austritten in E90 Selbstzahler:innen gab, müssen diese auch in E77 aufscheinen.\",\"\")","v":""},null,null,""]
[]
[null,null,null,null,null,null,null,null,null,null,null,null,null,null,null,null,{"$f":"COUNTIF(Q1:Q96,\"x\")","v":37}]
[]
[]
[]
[]
[]
[]
[]
[]
[]
[]
[]
[null,null,null,null,null,null,null,null,null,null,null,null,{"$f":"IF(AND(G107=\"Ja\",I108=\"\")=TRUE,\"Eingabe unvollständig\",\"\")","v":""}]

{"sheet":"1b_Kurzzeitpflege","index":3,"n_rows":100,"n_cols":17,"rows_kept":100,"cut":false,"hidden":false,"merged":[[55,0,55,1],[58,0,58,1],[38,0,39,0],[40,0,41,0],[2,4,2,5],[15,0,16,0],[17,0,18,0],[79,0,79,2],[81,0,81,2],[28,0,29,11],[30,0,30,1],[31,0,31,1],[32,0,32,1],[33,0,33,1],[36,0,36,4],[57,0,57,1],[62,4,62,11],[59,0,59,1],[53,0,54,11],[56,0,56,1]]}
[null,null,null,null,null,null,null,null,null,null,null,null,null,null,null,null,{"$f":"IF(N1=\"\",\"\",\"x\")","v":""}]
["ERHEBUNG IN DEN OÖ. ALTEN- UND PFLEGEHEIMEN\n(Kurzzeitpflege)",null,null,null,null,null,null,null,null,null,null,null,null,null,null,null,{"$f":"IF(N2=\"\",\"\",\"x\")","v":""}]
[null,null,null,null,{"$f":"'0_Einleitung'!$E$2","v":"zum Stichtag"},null,{"$f":"'0_Einleitung'!$G$2","v":"2025-12-31"},null,null,null,null,null,null,null,null,null,{"$f":"IF(N3=\"\",\"\",\"x\")","v":""}]
[{"$f":"IF(Q100>0,\"Tabellenblatt nicht vollständig oder korrekt ausgefüllt! Bitte Eingaben prüfen!\",\"\")","v":"Tabellenblatt nicht vollständig oder korrekt ausgefüllt! Bitte Eingaben prüfen!"},null,null,null,null,null,null,null,null,null,null,null,{"$f":"IF(A4=\"\",\"Sie haben dieses Tabellenblatt vollständig ausgefüllt - Vielen Dank!\",\"\")","v":""},null,null,null,{"$f":"IF(N4=\"\",\"\",\"x\")","v":""}]
["Bewohnerzimmer und Plätze, die für Kurzzeitpflege zur Verfügung stehen",null,null,null,null,null,null,{"$f":"$E$3","v":"zum Stichtag"},{"$f":"$G$3","v":"2025-12-31"},null,null,null,null,null,null,null,{"$f":"IF(N5=\"\",\"\",\"x\")","v":""}]
[]
[null,"Die KZP-Plätze befinden sich zum Stichtag in"]
[null,null,"1-Personen-Wohneinheiten (Zimmer) mit insgesamt ",null,null,null,{"$f":"B8*1","v":0},"Plätzen",null,null,null,null,null,{"$f":"IF(B8=\"\",\"Eingabe unvollständig\",\"\")","v":"Eingabe unvollständig"},null,null,{"$f":"IF(N8=\"\",\"\",\"x\")","v":"x"}]
[null,null,"2-Personen-Wohneinheiten (Zimmer) mit insgesamt ",null,null,null,{"$f":"B9*2","v":0},"Plätzen",null,null,null,null,null,{"$f":"IF(B9=\"\",\"Eingabe unvollständig\",\"\")","v":"Eingabe unvollständig"},null,null,{"$f":"IF(N9=\"\",\"\",\"x\")","v":"x"}]
[null,{"$f":"SUM(B8:B9)","v":0},"Zimmer",null,null,null,{"$f":"SUM(G8:G9)","v":0},"Plätze",null,null,null,null,null,null,null,null,{"$f":"IF(N10=\"\",\"\",\"x\")","v":""}]
[null,null,null,null,null,null,null,null,null,null,null,null,null,null,null,null,{"$f":"IF(N11=\"\",\"\",\"x\")","v":""}]
[]
["Kurzzeitpflegegäste",null,"im Monat","2025-12-01",null,null,null,null,null,null,null,null,null,null,null,null,""]
["Altersstruktur der KZP-Gäste nach Kostentragung und Geschlecht (bei SH-Bezug sind nur die personenbezogenen SH-Zuzahlungen relevant, eine pauschale Förderung ist hier unerheblich):",null,null,null,null,null,null,null,null,null,null,null,null,null,null,null,""]
[null,null,"unter 60 Jahre","60 bis \nunter 65 Jahre","65 bis                   unter 70 Jahre","70 bis                           unter 75 Jahre","75 bis \nunter 80 Jahre","80 bis \nunter 85 Jahre","85 bis                       unter 90 Jahre","90 Jahre                       und älter",null,null,null,null,null,null,""]
["mit Sozialhilfe-bezug","weiblich",null,null,null,null,null,null,null,null,"Frauen SH",{"$f":"SUM(C16:J16)","v":0},null,{"$f":"IF(OR(C16=\"\",D16=\"\",E16=\"\",F16=\"\",G16=\"\",H16=\"\",I16=\"\",J16=\"\")=TRUE,\"Eingabe unvollständig\",\"\")","v":"Eingabe unvollständig"},null,null,{"$f":"IF(N16=\"\",\"\",\"x\")","v":"x"}]
[null,"männlich",null,null,null,null,null,null,null,null,"Männer SH",{"$f":"SUM(C17:J17)","v":0},null,{"$f":"IF(OR(C17=\"\",D17=\"\",E17=\"\",F17=\"\",G17=\"\",H17=\"\",I17=\"\",J17=\"\")=TRUE,\"Eingabe unvollständig\",\"\")","v":"Eingabe unvollständig"},null,null,{"$f":"IF(N17=\"\",\"\",\"x\")","v":"x"}]
["Selbstzahler:\ninnen","weiblich",null,null,null,null,null,null,null,null,"Frauen SZ",0,null,"Eingabe unvollständig",null,null,{"$f":"IF(N18=\"\",\"\",\"x\")","v":"x"}]
[null,"männlich",null,null,null,null,null,null,null,null,"Männer SZ",0,null,"Eingabe unvollständig",null,null,{"$f":"IF(N19=\"\",\"\",\"x\")","v":"x"}]
[null,"Summe SH",{"$f":"SUM(C16,C17)","v":0},{"$f":"SUM(D16,D17)","v":0},0,0,0,0,0,0,"Summe SH",{"$f":"L16+L17","v":0}]
[null,"Summe SZ",{"$f":"SUM(C18:C19)","v":0},{"$f":"SUM(D18:D19)","v":0},0,0,0,0,0,0,"Summe SZ",{"$f":"L18+L19","v":0}]
[null,"Summe Frauen",{"$f":"SUM(C16,C18)","v":0},{"$f":"SUM(D16,D18)","v":0},0,0,0,0,0,0,"Frauen",{"$f":"SUM(C22:J22)","v":0}]
[null,"Summe Männer",{"$f":"SUM(C17,C19)","v":0},{"$f":"SUM(D17,D19)","v":0},0,0,0,0,0,0,"Männer",{"$f":"SUM(C23:J23)","v":0}]
[null,"Gesamtsumme",{"$f":"SUM(C16:C19)","v":0},{"$f":"SUM(D16:D19)","v":0},0,0,0,0,0,0,"Gesamt",{"$f":"SUM(C24:J24)","v":0},null,null,null,null,{"$f":"IF(N24=\"\",\"\",\"x\")","v":""}]
[]
[]
["Pflegebedarf (Pflegegeldeinstufung) der Kurzzeitpflegegäste",null,null,null,null,"im Monat",{"$f":"D13","v":"2025-12-01"}]
[]
["KZP-Gäste ohne Pflegegeld bzw. tatsächliche Einstufung laut gültigem Bescheid (bei PG aus dem Ausland nach österr. Kriterien einstufen; z.B. Pflegegrad 5 Deutschland entspricht St. 7 Öst., daher bei St. 7 eintragen)"]
[]
[null,null,"kein PG","Stufe 1","Stufe 2","Stufe 3","Stufe 4","Stufe 5","Stufe 6","Stufe 7","Gesamt"]
["mit Sozialhilfeunterstützung",null,null,null,null,null,null,null,null,null,{"$f":"SUM(C32:J32)","v":0},null,null,{"$f":"IF(OR(C32=\"\",D32=\"\",E32=\"\",F32=\"\",G32=\"\",H32=\"\",I32=\"\",J32=\"\")=TRUE,\"Eingabe unvollständig\",IF(K32<>L20,\"Summe SH-Bezug stimmt nicht mit L20 überein!\",\"\"))","v":"Eingabe unvollständig"},null,null,{"$f":"IF(N32=\"\",\"\",\"x\")","v":"x"}]
["Selbstzahler:innen",null,null,null,null,null,null,null,null,null,{"$f":"SUM(C33:J33)","v":0},null,null,{"$f":"IF(OR(C33=\"\",D33=\"\",E33=\"\",F33=\"\",G33=\"\",H33=\"\",I33=\"\",J33=\"\")=TRUE,\"Eingabe unvollständig\",IF(K33<>L21,\"Summe Selbstzahler stimmt nicht mit L21 überein!\",\"\"))","v":"Eingabe unvollständig"},null,null,{"$f":"IF(N33=\"\",\"\",\"x\")","v":"x"}]
["Summe tatsächliche PG-Einst.",null,{"$f":"SUM(C32:C33)","v":0},0,0,0,0,0,0,0,{"$f":"SUM(C34:J34)","v":0},null,null,{"$f":"IF(L24<>K34,\"Summe Bewohner stimmt nicht mit Summe nach Alter (L24) überein\",\"\")","v":""},null,null,{"$f":"IF(N34=\"\",\"\",\"x\")","v":""}]
[]
["Kurzzeitpflegegäste",null,{"$f":"$E$3","v":"zum Stichtag"},{"$f":"$G$3","v":"2025-12-31"}]
["Altersstruktur der KZP-Gäste nach Kostentragung und Geschlecht:"]
[null,null,"unter 60 Jahre","60 bis \nunter 65 Jahre","65 bis                   unter 70 Jahre","70 bis                           unter 75 Jahre","75 bis \nunter 80 Jahre","80 bis \nunter 85 Jahre","85 bis                       unter 90 Jahre","90 Jahre                       und älter"]
["mit Sozialhilfe-bezug","weiblich",null,null,null,null,null,null,null,null,"Frauen SH",{"$f":"SUM(C39:J39)","v":0},null,{"$f":"IF(OR(C39=\"\",D39=\"\",E39=\"\",F39=\"\",G39=\"\",H39=\"\",I39=\"\",J39=\"\")=TRUE,\"Eingabe unvollständig\",\"\")","v":"Eingabe unvollständig"},null,null,{"$f":"IF(N39=\"\",\"\",\"x\")","v":"x"}]
[null,"männlich",null,null,null,null,null,null,null,null,"Männer SH",{"$f":"SUM(C40:J40)","v":0},null,{"$f":"IF(OR(C40=\"\",D40=\"\",E40=\"\",F40=\"\",G40=\"\",H40=\"\",I40=\"\",J40=\"\")=TRUE,\"Eingabe unvollständig\",\"\")","v":"Eingabe unvollständig"},null,null,{"$f":"IF(N40=\"\",\"\",\"x\")","v":"x"}]
["Selbstzahler:\ninnen","weiblich",null,null,null,null,null,null,null,null,"Frauen SZ",0,null,"Eingabe unvollständig",null,null,{"$f":"IF(N41=\"\",\"\",\"x\")","v":"x"}]
[null,"männlich",null,null,null,null,null,null,null,null,"Männer SZ",0,null,"Eingabe unvollständig",null,null,{"$f":"IF(N42=\"\",\"\",\"x\")","v":"x"}]
[null,"Summe SH",{"$f":"SUM(C39,C40)","v":0},{"$f":"SUM(D39,D40)","v":0},0,0,0,0,0,0,"Summe SH",{"$f":"L39+L40","v":0},null,null,null,null,{"$f":"IF(N43=\"\",\"\",\"x\")","v":""}]
[null,"Summe SZ",{"$f":"SUM(C41,C42)","v":0},{"$f":"SUM(D41,D42)","v":0},0,0,0,0,0,0,"Summe SZ",{"$f":"L41+L42","v":0},null,null,null,null,""]
[null,"Summe Frauen",{"$f":"SUM(C39,C41)","v":0},{"$f":"SUM(D39,D41)","v":0},0,0,0,0,0,0,"Frauen",0,null,null,null,null,""]
[null,"Summe Männer",{"$f":"SUM(C40,C42)","v":0},{"$f":"SUM(D40,D42)","v":0},0,0,0,0,0,0,"Männer",{"$f":"SUM(C46:J46)","v":0},null,null,null,null,""]
[null,"Gesamtsumme",{"$f":"SUM(C39:C42)","v":0},{"$f":"SUM(D39:D42)","v":0},0,0,0,0,0,0,"Gesamt",{"$f":"SUM(C47:J47)","v":0},null,{"$f":"IF(L47>G10,\"Summe KZP-Gäste zum Stichtag ist größer als verfügbare Plätze (G10) - bitte überprüfen!\",\"\")","v":""},null,null,""]
[null,null,null,null,null,null,null,null,null,null,null,null,null,null,null,null,""]
["Das Durchschnittsalter aller KZP-Gäste beträgt zum Stichtag",null,null,null,null,null,"Jahre.",null,null,null,null,null,null,{"$f":"IF(F49=\"\",\"Eingabe unvollständig\",\"\")","v":"Eingabe unvollständig"},null,null,{"$f":"IF(N49=\"\",\"\",\"x\")","v":"x"}]
[]
[]
["Pflegebedarf (Pflegegeldeinstufung) der Kurzzeitpflegegäste",null,null,null,null,{"$f":"$E$3","v":"zum Stichtag"},{"$f":"$G$3","v":"2025-12-31"}]
[]
["KZP-Gäste ohne Pflegegeld bzw. tatsächliche Einstufung laut gültigem Bescheid (bei PG aus dem Ausland nach österr. Kriterien einstufen; z.B. Pflegegrad 5 Deutschland enstpricht St. 7 Öst., daher bei St. 7 eintragen)"]
[]
[null,null,"kein PG","Stufe 1","Stufe 2","Stufe 3","Stufe 4","Stufe 5","Stufe 6","Stufe 7","Gesamt"]
["mit Sozialhilfeunterstützung",null,null,null,null,null,null,null,null,null,{"$f":"SUM(C57:J57)","v":0},null,null,{"$f":"IF(OR(C57=\"\",D57=\"\",E57=\"\",F57=\"\",G57=\"\",H57=\"\",I57=\"\",J57=\"\")=TRUE,\"Eingabe unvollständig\",IF(K57<>L43,\"Summe SH-Bezug stimmt nicht mit L43 überein!\",\"\"))","v":"Eingabe unvollständig"},null,null,{"$f":"IF(N57=\"\",\"\",\"x\")","v":"x"}]
["Selbstzahler:innen",null,null,null,null,null,null,null,null,null,{"$f":"SUM(C58:J58)","v":0},null,null,{"$f":"IF(OR(C58=\"\",D58=\"\",E58=\"\",F58=\"\",G58=\"\",H58=\"\",I58=\"\",J58=\"\")=TRUE,\"Eingabe unvollständig\",IF(K58<>L44,\"Summe Selbstzahler stimmt nicht mit L44 überein!\",\"\"))","v":"Eingabe unvollständig"},null,null,{"$f":"IF(N58=\"\",\"\",\"x\")","v":"x"}]
["Summe tatsächliche PG-Einst.",null,{"$f":"SUM(C57:C58)","v":0},0,0,0,0,0,0,0,{"$f":"SUM(C59:J59)","v":0},null,null,{"$f":"IF(L47<>K59,\"Summe Bewohner nach tats. PG stimmt nicht mit Summe nach Alter (L47) überein\",\"\")","v":""},null,null,{"$f":"IF(N59=\"\",\"\",\"x\")","v":""}]
["Summe inkl. erwarteten PG-Einst.",null,{"$f":"B65-C65+E73","v":0},{"$f":"B66-$C66+F73","v":0},{"$f":"B67-C67+G73","v":0},{"$f":"B68-C68+H73","v":0},{"$f":"B69-C69+I73","v":0},{"$f":"B70-C70+J73","v":0},{"$f":"B71-C71+K73","v":0},{"$f":"B72+L73","v":0},{"$f":"SUM(C60:J60)","v":0},null,null,{"$f":"IF(L47<>K60,\"Summe Bewohner nach erw. PG stimmt nicht mit Summe nach Alter (L47) überein\",\"\")","v":""},null,null,{"$f":"IF(N60=\"\",\"\",\"x\")","v":""}]
[]
[]
["alle KZP-Gäste",null,null,null,"erwartete Einstufung"]
["derzeitige PG-Stufe","KZP-Gäste ohne PG bzw. lt. PG-Bescheid","Anzahl offene Verfahren",null,0,1,2,3,4,5,6,7]
["kein PG",{"$f":"C59","v":0},null,null,null,null,null,null,null,null,null,null,{"$f":"SUM(F65:L65)","v":0},{"$f":"IF(C65=\"\",\"Eingabe unvollständig\",IF(B65<C65,\"Wert in Spalte C kann nicht größer sein als Wert in Spalte B\",IF(C65<>M65,\"Summe erwartete Einstufungen stimmt nicht mit Wert in Spalte C überein\",\"\")))","v":"Eingabe unvollständig"},null,null,{"$f":"IF(N65=\"\",\"\",\"x\")","v":"x"}]
[1,{"$f":"D59","v":0},null,null,null,null,null,null,null,null,null,null,0,"Eingabe unvollständig",null,null,"x"]
[2,{"$f":"E59","v":0},null,null,null,null,null,null,null,null,null,null,0,"Eingabe unvollständig",null,null,"x"]
[3,{"$f":"F59","v":0},null,null,null,null,null,null,null,null,null,null,0,"Eingabe unvollständig",null,null,"x"]
[4,{"$f":"G59","v":0},null,null,null,null,null,null,null,null,null,null,0,"Eingabe unvollständig",null,null,"x"]
[5,{"$f":"H59","v":0},null,null,null,null,null,null,null,null,null,null,0,{"$f":"IF(C70=\"\",\"Eingabe unvollständig\",IF(B70<C70,\"Wert in Spalte C kann nicht größer sein als Wert in Spalte B\",IF(C70<>M70,\"Summe erwartete Einstufungen stimmt nicht mit Wert in Spalte C überein\",\"\")))","v":"Eingabe unvollständig"},null,null,"x"]
[6,{"$f":"I59","v":0},null,null,null,null,null,null,null,null,null,null,0,{"$f":"IF(C71=\"\",\"Eingabe unvollständig\",IF(B71<C71,\"Wert in Spalte C kann nicht größer sein als Wert in Spalte B\",IF(C71<>M71,\"L74 stimmt nicht mit Wert in Spalte C überein\",\"\")))","v":"Eingabe unvollständig"},null,null,"x"]
[7,{"$f":"J59","v":0}]
[null,{"$f":"SUM(B65:B72)","v":0},{"$f":"SUM(C65:C71)","v":0},null,{"$f":"SUM(E65:E72)","v":0},0,0,0,0,0,0,0,null,null,null,null,{"$f":"IF(N73=\"\",\"\",\"x\")","v":""}]
[null,null,null,null,null,null,null,null,null,null,"Kontrollsumme",{"$f":"SUM(E73:L73)","v":0},null,{"$f":"IF(C73<>L74,\"Kontrollsumme stimmt nicht mit C73 überein\",\"\")","v":""}]
[]
[]
[]
["Statistische Angaben ",null,{"$f":"'1a_Langzeitpflege'!C64","v":"im Jahr"},{"$f":"$G$3","v":"2025-12-31"}]
[null,null,null,null,{"$f":"E80+'1a_Langzeitpflege'!F66","v":0},"BT KZP+LZP"]
["Anzahl der KZP-Bewohntage (inkl. Selbstzahler):",null,null,null,null,"Bewohntage",null,null,null,null,null,null,null,{"$f":"IF(E80=\"\",\"Eingabe unvollständig\",\"\")","v":"Eingabe unvollständig"},null,null,{"$f":"IF(N80=\"\",\"\",\"x\")","v":"x"}]
[null,null,null,null,null,{"$f":"IF(E79>('1_allg. Strukturdaten'!E31*365),\"Summe Bewohntage KZP+LZP ist größer als max. verfügbare Plätze mal 365 Tage - bitte überprüfen!\",\"\")","v":{"$error":"#N/A"}},null,null,null,null,null,null,null,{"$f":"IF(G86=0,\"\",IF(E80<=G86,\"Bewohntage müssen höher sein als Aufenthalte G86\",\"\"))","v":""},null,null,{"$f":"IF(N81=\"\",\"\",\"x\")","v":""}]
["Anzahl der Verrechnungstage mit den SH-Trägern:",null,null,null,null,"Verrechnungstage",null,null,null,null,null,null,null,{"$f":"IF(E82=\"\",\"Eingabe unvollständig\",\"\")","v":"Eingabe unvollständig"},null,null,{"$f":"IF(N82=\"\",\"\",\"x\")","v":"x"}]
[null,null,null,null,null,null,null,null,null,null,null,null,null,{"$f":"IF(E82=0,\"\",IF(E82<=E80,\"Die Verrechnungstage können nicht höher sein als die Bewohntage\",\"\"))","v":""}]
["Anzahl der KZP-Aufenthalte von Gästen mit SH-Unterstützung",null,null,null,null,null,null,"Aufenthalte","von",null,"Personen",null,null,{"$f":"IF(OR(G84=\"\",J84=\"\")=TRUE,\"Eingabe unvollständig\",IF(J84>G84,\"Anzahl Personen kann nicht größer sein als Aufenthalte\",\"\"))","v":"Eingabe unvollständig"},null,null,{"$f":"IF(N84=\"\",\"\",\"x\")","v":"x"}]
["Anzahl der KZP-Aufenthalte von Gästen ohne SH-Unterstützung (Selbstzahler:innen)",null,null,null,null,null,null,"Aufenthalte","von",null,"Personen",null,null,{"$f":"IF(OR(G85=\"\",J85=\"\")=TRUE,\"Eingabe unvollständig\",IF(J85>G85,\"Anzahl Personen kann nicht größer sein als Aufenthalte\",\"\"))","v":"Eingabe unvollständig"},null,null,{"$f":"IF(N85=\"\",\"\",\"x\")","v":"x"}]
["Summe aller KZP-Aufenthalte",null,null,null,null,null,{"$f":"SUM(G84:G85)","v":0},"Aufenthalte","von",{"$f":"SUM(J84:J85)","v":0},"Personen"]
[null,null,null,null,null,null,null,null,null,null,null,null,null,{"$f":"IF(E88>J86,\"Es können nicht mehr Personen aufgenommen werden, als in J86 angegeben wurden!\",\"\")","v":""},null,null,{"$f":"IF(N86=\"\",\"\",\"x\")","v":""}]
["Von den in Kurzzeitpflege betreuten Personen wurden",null,null,null,null,"Personen direkt im Anschluss an die KZP als Dauerbewohner:innen aufgenommen.",null,null,null,null,null,null,null,{"$f":"IF(E88=\"\",\"Eingabe unvollständig\",\"\")","v":"Eingabe unvollständig"},null,null,{"$f":"IF(N88=\"\",\"\",\"x\")","v":"x"}]
["Von den in Kurzzeitpflege betreuten Personen sind",null,null,null,null,"Personen während ihres KZP-Aufenthaltes verstorben. ",null,null,null,null,null,null,null,{"$f":"IF(E89=\"\",\"Eingabe unvollständig\",\"\")","v":"Eingabe unvollständig"},null,null,{"$f":"IF(N89=\"\",\"\",\"x\")","v":"x"}]
[null,null,null,null,null,null,null,null,null,null,null,null,null,{"$f":"IF(E88>('1a_Langzeitpflege'!F82),\"Fehler! Es wurden lt. Blatt 1a_ F82 weniger Personen in die LZP aufgenommen als in E88 angegeben!\",\"\")","v":""},null,null,""]
["Anzahl der KZP-Gäste nach Herkunftsbezirk "]
["Braunau",null,"Eferding",null,"Freistadt",null,"Gmunden",null,"Grieskirchen",null,"Kirchdorf",null,null,{"$f":"IF(OR(B92=\"\",D92=\"\",F92=\"\",H92=\"\",J92=\"\",L92=\"\")=TRUE,\"Eingabe unvollständig\",\"\")","v":"Eingabe unvollständig"},null,null,{"$f":"IF(N92=\"\",\"\",\"x\")","v":"x"}]
["Linz-Land",null,"Perg",null,"Ried i.I.",null,"Rohrbach",null,"Schärding",null,"Steyr-Land",null,null,{"$f":"IF(OR(B93=\"\",D93=\"\",F93=\"\",H93=\"\",J93=\"\",L93=\"\")=TRUE,\"Eingabe unvollständig\",\"\")","v":"Eingabe unvollständig"},null,null,"x"]
["Urfahr-Umg.",null,"Vöcklabruck",null,"Wels-Land",null,"Linz",null,"Steyr",null,"Wels",null,null,{"$f":"IF(OR(B94=\"\",D94=\"\",F94=\"\",H94=\"\",J94=\"\",L94=\"\")=TRUE,\"Eingabe unvollständig\",\"\")","v":"Eingabe unvollständig"},null,null,"x"]
[null,"andere Bundesländer",null,null,null,null,null,null,null,null,null,null,null,{"$f":"IF(C95=\"\",\"Eingabe unvollständig\",\"\")","v":"Eingabe unvollständig"},null,null,"x"]
[null,"Ausland",null,null,null,null,null,null,null,null,null,null,null,{"$f":"IF(C96=\"\",\"Eingabe unvollständig\",\"\")","v":"Eingabe unvollständig"},null,null,"x"]
[null,null,null,null,null,null,null,null,null,null,"Gesamt",{"$f":"SUM(B92:B94)+SUM(D92:D94)+SUM(F92:F94)+SUM(H92:H94)+SUM(J92:J94)+SUM(L92:L94)+SUM(C95:C96)","v":0},null,{"$f":"IF(L97<>J86,\"Anzahl stimmt nicht mit J86 überein\",\"\")","v":""},null,null,""]
[null,null,"KZP-Gäste kommen aus der Standortgemeinde.",null,null,null,null,null,null,null,null,null,null,{"$f":"IF(B98=\"\",\"Eingabe unvollständig\",IF(MAX(Datenblatt!DD12:DU12)<B98,\"Angabe höher als im eigenen Bezirk, bitte überprüfen!\",\"\"))","v":"Eingabe unvollständig"},null,null,"x"]
[]
[null,null,null,null,null,null,null,null,null,null,null,null,null,null,null,null,{"$f":"COUNTIF(Q1:Q99,\"x\")","v":34}]

{"sheet":"2_Personal","index":4,"n_rows":102,"n_cols":13,"rows_kept":102,"cut":false,"hidden":false,"merged":[[82,0,82,1],[83,0,83,1],[80,0,80,1],[76,0,76,1],[77,0,77,1],[78,0,78,1],[79,0,79,1],[81,0,81,1],[75,0,75,1],[72,0,72,1],[73,0,73,1],[74,0,74,1],[70,2,70,7],[1,0,1,7],[24,0,24,1],[7,0,7,1],[64,0,64,1],[6,4,6,5],[44,4,44,5],[53,3,54,5],[5,0,5,7],[59,2,59,7]]}
[]
["ERHEBUNG IN DEN OÖ. ALTEN- UND PFLEGEHEIMEN\nbeschäftigtes/geleastes Personal"]
[null,{"$f":"'0_Einleitung'!$E$2","v":"zum Stichtag"},{"$f":"'0_Einleitung'!$G$2","v":"2025-12-31"}]
[{"$f":"IF(L102>0,\"Tabellenblatt nicht vollständig oder korrekt ausgefüllt! Bitte Eingaben prüfen!\",\"\")","v":"Tabellenblatt nicht vollständig oder korrekt ausgefüllt! Bitte Eingaben prüfen!"},null,null,null,null,null,null,{"$f":"IF(A4=\"\",\"Sie haben dieses Tabellenblatt vollständig ausgefüllt - Vielen Dank!\",\"\")","v":""}]
["Personal (ohne Stiftungsteilnehmerinnen und -teilnehmer)",null,{"$f":"$B$3","v":"zum Stichtag"},{"$f":"$C$3","v":"2025-12-31"}]
["Hier sind all jene Mitarbeiter:innen anzugeben, mit denen ein aufrechtes Dienstverhältnis bzw. ein Leasingvertrag besteht. (auch Personal in Langzeitkrankenstand, Sabbatical, Karenz u.ä.)"]
["Betreuung und Pflege",null,"fix angestelltes Personal",null,"Leasingpersonal / Honorarkräfte",null,"Gesamt"]
["Personal, das bei der Berechnung des \nMindestpflegepersonalbedarfs (MPPB) berücksichtigt werden darf:",null,"Personen","PE","Personen","PE","Personen","PE"]
["1. Leitung des Betreuungs- und Pflegedienstes",null,null,null,null,null,{"$f":"C9+E9","v":0},{"$f":"D9+F9","v":0},{"$f":"IF(OR(C9=\"\",D9=\"\",E9=\"\",F9=\"\")=TRUE,\"Eingabe unvollständig\",IF(OR(C9<D9,E9<F9)=TRUE,\"Anzahl PE kann nicht größer sein als Personenanzahl\",\"\"))","v":"Eingabe unvollständig"},null,null,{"$f":"IF(I9=\"\",\"\",\"x\")","v":"x"}]
["2. Angehörige des gehobenen Dienstes (DGKP)",null,null,null,null,null,{"$f":"C10+E10","v":0},{"$f":"D10+F10","v":0},{"$f":"IF(OR(C10=\"\",D10=\"\",E10=\"\",F10=\"\")=TRUE,\"Eingabe unvollständig\",IF(OR(C10<D10,E10<F10)=TRUE,\"Anzahl PE kann nicht größer sein als Personenanzahl\",\"\"))","v":"Eingabe unvollständig"},null,null,"x"]
["3. Pflegefachassistent:innen (PFA)",null,null,null,null,null,{"$f":"C11+E11","v":0},{"$f":"D11+F11","v":0},"Eingabe unvollständig",null,null,"x"]
["4. Fach-Sozialbetreuer:innen \"A\" (FSB \"A\")",null,null,null,null,null,0,0,"Eingabe unvollständig",null,null,"x"]
["5. Fach-Sozialbetreuer:innen \"BA\" (FSB \"BA\")",null,null,null,null,null,{"$f":"C13+E13","v":0},0,"Eingabe unvollständig",null,null,"x"]
["6. Diplom-Sozialbetreuer:innen \"A\" (DSB \"A\")",null,null,null,null,null,{"$f":"C14+E14","v":0},0,{"$f":"IF(OR(C14=\"\",D14=\"\",E14=\"\",F14=\"\")=TRUE,\"Eingabe unvollständig\",IF(OR(C14<D14,E14<F14)=TRUE,\"Anzahl PE kann nicht größer sein als Personenanzahl\",\"\"))","v":"Eingabe unvollständig"},null,null,{"$f":"IF(I14=\"\",\"\",\"x\")","v":"x"}]
["7. Diplom-Sozialbetreuer:innen \"BA\" (DSB \"BA\")",null,null,null,null,null,0,0,{"$f":"IF(OR(C15=\"\",D15=\"\",E15=\"\",F15=\"\")=TRUE,\"Eingabe unvollständig\",IF(OR(C15<D15,E15<F15)=TRUE,\"Anzahl PE kann nicht größer sein als Personenanzahl\",\"\"))","v":"Eingabe unvollständig"},null,null,{"$f":"IF(I15=\"\",\"\",\"x\")","v":"x"}]
["8. Diplom-Sozialbetreuer:innen \"F\" (DSB \"F\")",null,null,null,null,null,0,0,{"$f":"IF(OR(C16=\"\",D16=\"\",E16=\"\",F16=\"\")=TRUE,\"Eingabe unvollständig\",IF(OR(C16<D16,E16<F16)=TRUE,\"Anzahl PE kann nicht größer sein als Personenanzahl\",\"\"))","v":"Eingabe unvollständig"},null,null,{"$f":"IF(I16=\"\",\"\",\"x\")","v":"x"}]
["9. Pflegeassistent:innen PA",null,null,null,null,null,{"$f":"C17+E17","v":0},{"$f":"D17+F17","v":0},"Eingabe unvollständig",null,null,"x"]
["10. Heimhelfer:innen HH und Altenbetreuer:innen AB",null,null,null,null,null,0,0,{"$f":"IF(OR(C18=\"\",D18=\"\",E18=\"\",F18=\"\")=TRUE,\"Eingabe unvollständig\",IF(OR(C18<D18,E18<F18)=TRUE,\"Anzahl PE kann nicht größer sein als Personenanzahl\",\"\"))","v":"Eingabe unvollständig"},null,null,"x"]
["11. Fach-Sozialbetreuer:innen \"BB\" (FSB \"BB\")",null,null,null,null,null,0,0,{"$f":"IF(OR(C19=\"\",D19=\"\",E19=\"\",F19=\"\")=TRUE,\"Eingabe unvollständig\",IF(OR(C19<D19,E19<F19)=TRUE,\"Anzahl PE kann nicht größer sein als Personenanzahl\",\"\"))","v":"Eingabe unvollständig"},null,null,{"$f":"IF(I19=\"\",\"\",\"x\")","v":"x"}]
["12. Diplom-Sozialbetreuer:innen \"BB\" (DSB \"BB\")",null,null,null,null,null,{"$f":"C20+E20","v":0},{"$f":"D20+F20","v":0},{"$f":"IF(OR(C20=\"\",D20=\"\",E20=\"\",F20=\"\")=TRUE,\"Eingabe unvollständig\",IF(OR(C20<D20,E20<F20)=TRUE,\"Anzahl PE kann nicht größer sein als Personenanzahl\",\"\"))","v":"Eingabe unvollständig"},null,null,"x"]
["13. Stützpersonal",null,null,null,null,null,0,0,{"$f":"IF(OR(C21=\"\",D21=\"\",E21=\"\",F21=\"\")=TRUE,\"Eingabe unvollständig\",IF(OR(C21<D21,E21<F21)=TRUE,\"Anzahl PE kann nicht größer sein als Personenanzahl\",\"\"))","v":"Eingabe unvollständig"},null,null,"x"]
[null,"Summe 1.-13.",{"$f":"SUM(C9:C21)","v":0},0,0,0,0,0]
[null,"davon männlich:",null,null,null,null,{"$f":"C23+E23","v":0},{"$f":"D23+F23","v":0},"Eingabe unvollständig",null,null,"x"]
[null,"davon weiblich:",{"$f":"C22-C23","v":0},{"$f":"D22-D23","v":0},{"$f":"E22-E23","v":0},{"$f":"F22-F23","v":0},{"$f":"C24+E24","v":0},{"$f":"D24+F24","v":0}]
["Personal, das bei der Berechnung des \nMindestpflegepersonalbedarfs (MPPB) NICHT berücksichtigt werden darf:"]
["14. Therapeut:innen",null,null,null,null,null,0,{"$f":"D26+F26","v":0},"Eingabe unvollständig",null,null,"x"]
["15. Hilfskräfte",null,null,null,null,null,{"$f":"C27+E27","v":0},{"$f":"D27+F27","v":0},{"$f":"IF(OR(C27=\"\",D27=\"\",E27=\"\",F27=\"\")=TRUE,\"Eingabe unvollständig\",IF(OR(C27<D27,E27<F27)=TRUE,\"Anzahl PE kann nicht größer sein als Personenanzahl\",\"\"))","v":"Eingabe unvollständig"},null,null,{"$f":"IF(I27=\"\",\"\",\"x\")","v":"x"}]
[null,"Summe 14.-15.",{"$f":"SUM(C26:C27)","v":0},0,0,0,0,0]
[null,"davon männlich:",null,null,null,null,{"$f":"C29+E29","v":0},{"$f":"D29+F29","v":0},"Eingabe unvollständig",null,null,"x"]
[null,"davon weiblich:",{"$f":"C28-C29","v":0},{"$f":"D28-D29","v":0},{"$f":"E28-E29","v":0},{"$f":"F28-F29","v":0},{"$f":"C30+E30","v":0},{"$f":"D30+F30","v":0}]
["Verwaltungs- und Funktionspersonal (ohne Lehrlinge, diese werden in Zeile 93 erfasst)"]
["16. Heimleitung",null,null,null,null,null,{"$f":"C32+E32","v":0},0,"Eingabe unvollständig",null,null,"x"]
["17. Verwaltung",null,null,null,null,null,0,0,"Eingabe unvollständig",null,null,"x"]
["18. Küche",null,null,null,null,null,0,0,"Eingabe unvollständig",null,null,"x"]
["19. Reinigung",null,null,null,null,null,0,0,"Eingabe unvollständig",null,null,"x"]
["20. Wäscherei",null,null,null,null,null,0,0,"Eingabe unvollständig",null,null,"x"]
["21. Haustechnik",null,null,null,null,null,0,0,"Eingabe unvollständig",null,null,"x"]
[null,"Summe 16.-21.",{"$f":"SUM(C32:C37)","v":0},0,0,0,0,0]
[null,"davon männlich:",null,null,null,null,{"$f":"C39+E39","v":0},{"$f":"D39+F39","v":0},"Eingabe unvollständig",null,null,"x"]
[null,"davon weiblich:",{"$f":"C38-C39","v":0},{"$f":"D38-D39","v":0},{"$f":"E38-E39","v":0},{"$f":"F38-F39","v":0},{"$f":"C40+E40","v":0},{"$f":"D40+F40","v":0}]
[null,"Gesamtsumme",{"$f":"C38+C28+C22","v":0},0,0,0,0,0]
[null,"davon männlich:",0,0,0,0,0,0]
[null,"davon weiblich:",0,0,0,0,0,0]
[]
[null,null,"fix angestelltes Personal",null,"Leasingpersonal / Honorarkräfte"]
[null,"Personal gesamt (in Personen)","männlich","weiblich","männlich","weiblich","gesamt"]
[null,"Summe",{"$f":"C42","v":0},{"$f":"C43","v":0},{"$f":"E42","v":0},{"$f":"E43","v":0},{"$f":"SUM(C47:F47)","v":0},null,null,null,null,""]
[]
[]
["Überstunden, Krankenstände und Urlaube",{"$f":"'1a_Langzeitpflege'!$C$64","v":"im Jahr"},{"$f":"'1b_Kurzzeitpflege'!$D$78","v":"2025-12-31"},"im Bereich des Pflegepersonals Pkt. 1.-13."]
["betrifft nur Pflegepersonal Pkt. 1. bis 13.!"]
["Anzahl der ins Jahr 2026 übertragenen Über- bzw. Mehrstunden (Summe in Stunden)",null,null,null,null,null,"Durchschnitt je beschäft. MA (1.-13.)",null,{"$f":"IF(C52=\"\",\"Eingabe unvollständig\",\"\")","v":"Eingabe unvollständig"},null,null,"x"]
["Anzahl der im Jahr 2025 ausbezahlten Über- bzw. Mehrstunden (Summe in Stunden)",null,null,"Summe",{"$f":"C52+C53","v":0},null,{"$f":"IF(E53=0,\"\",E53/C22)","v":""},"Stunden",{"$f":"IF(C53=\"\",\"Eingabe unvollständig\",\"\")","v":"Eingabe unvollständig"},null,null,"x"]
["Anzahl der Krankenstandstage",null,null,null,null,null,{"$f":"IF(C54=\"\",\"\",C54/C22)","v":""},"Tage",{"$f":"IF(C54=\"\",\"Eingabe unvollständig\",IF(C54-INT(C54)<>0,\"Bitte nur ganze Tage angeben!\",\"\"))","v":"Eingabe unvollständig"},null,null,"x"]
["Resturlaub in Tagen",null,null,null,null,null,{"$f":"IF(C55=\"\",\"\",C55/C22)","v":""},"Tage",{"$f":"IF(C55=\"\",\"Eingabe unvollständig\",IF(C55-INT(C55)<>0,\"Bitte nur ganze Tage angeben!\",\"\"))","v":"Eingabe unvollständig"},null,null,"x"]
[]
[]
["Fluktuation (ohne Leasingpersonal)",{"$f":"'1a_Langzeitpflege'!$C$64","v":"im Jahr"},{"$f":"'1b_Kurzzeitpflege'!$D$78","v":"2025-12-31"}]
[]
[null,null,"Anzahl der Personen"]
["Begründung Dienstverhältnis aufgrund (gekommen von ...)",null,"DGKP inkl. LBPD","PFA","FSB & DSB","PA","HH","Stützpers."]
["einem Heim des selbenTrägers",null,null,null,null,null,null,null,{"$f":"IF(OR(C62=\"\",D62=\"\",E62=\"\",F62=\"\",G62=\"\",H62=\"\")=TRUE,\"Eingabe unvollständig\",\"\")","v":"Eingabe unvollständig"},null,null,"x",{"$f":"SUM(C62:H62)","v":0}]
["einem Heim eines anderen Trägers",null,null,null,null,null,null,null,{"$f":"IF(OR(C63=\"\",D63=\"\",E63=\"\",F63=\"\",G63=\"\",H63=\"\")=TRUE,\"Eingabe unvollständig\",\"\")","v":"Eingabe unvollständig"},null,null,"x",{"$f":"SUM(C63:H63)","v":0}]
["den Mobilen Diensten ",null,null,null,null,null,null,null,{"$f":"IF(OR(C64=\"\",D64=\"\",E64=\"\",F64=\"\",G64=\"\",H64=\"\")=TRUE,\"Eingabe unvollständig\",\"\")","v":"Eingabe unvollständig"},null,null,"x",0]
["einer Einrichtung d. Gesundheitsbereichs (z.B. Krankenanstalt, Praxis, Kuranstalt, Institut)",null,null,null,null,null,null,null,"Eingabe unvollständig",null,null,"x",0]
["einer Einrichtung für Menschen mit Beeinträchtigungen",null,null,null,null,null,null,null,"Eingabe unvollständig",null,null,"x",0]
["Sonstigem (z.B. anderes Berufsfeld, Privatfirmen, Anwerbung aus dem Ausland, etc.)",null,null,null,null,null,null,null,"Eingabe unvollständig",null,null,"x",0]
["direkt nach Beendigung einer Ausbildung",null,null,null,null,null,null,null,"Eingabe unvollständig",null,null,"x",0]
["Wiedereinsteiger:innen",null,null,null,null,null,null,null,"Eingabe unvollständig",null,null,"x",0]
["von Karenz* zurückgekommen",null,null,null,null,null,null,null,"Eingabe unvollständig",null,null,"x",0]
[null,null,"Anzahl der Personen"]
["Auflösung/Ende Dienstverhältnis wegen Wechsel ...",null,"DGKP inkl. LBPD","PFA","FSB & DSB","PA","HH","Stützpers."]
["in ein Heim des selben Trägers",null,null,null,null,null,null,null,"Eingabe unvollständig",null,null,{"$f":"IF(I73=\"\",\"\",\"x\")","v":"x"},{"$f":"SUM(C73:H73)","v":0}]
["in ein Heim eines anderen Trägers",null,null,null,null,null,null,null,"Eingabe unvollständig",null,null,"x",{"$f":"SUM(C74:H74)","v":0}]
["zu den Mobilen Diensten",null,null,null,null,null,null,null,"Eingabe unvollständig",null,null,"x",0]
["einer Einrichtung d. Gesundheitsbereichs (z.B. Krankenanstalt, Praxis, Kuranstalt, Institut)",null,null,null,null,null,null,null,"Eingabe unvollständig",null,null,"x",0]
["einer Einrichtung für Menschen mit Beeinträchtigungen",null,null,null,null,null,null,null,"Eingabe unvollständig",null,null,"x",0]
["zu Sonstigem (z.B. anderes Berufsfeld, Privatfirmen etc.)",null,null,null,null,null,null,null,"Eingabe unvollständig",null,null,"x",0]
["wegen einer Ausbildung",null,null,null,null,null,null,null,"Eingabe unvollständig",null,null,"x",0]
["wegen Ende der Befristung des Dienstverhältnisses",null,null,null,null,null,null,null,"Eingabe unvollständig",null,null,"x",0]
["weiterer Berufsweg unbekannt bzw. sonstige Gründe (z.B. Tod)",null,null,null,null,null,null,null,"Eingabe unvollständig",null,null,"x",0]
["Pensionierung",null,null,null,null,null,null,null,"Eingabe unvollständig",null,null,"x",0]
["ganzjährig in Karenz*",null,null,null,null,null,null,null,"Eingabe unvollständig",null,null,"x",0]
["in Karenz* gegangen",null,null,null,null,null,null,null,"Eingabe unvollständig",null,null,"x",0]
["(*Karenz aufgrund der Geburt eines Kindes oder Bildungskarenz)"]
[]
[]
["Zusätzlich tätige Personen ",{"$f":"'1a_Langzeitpflege'!$C$64","v":"im Jahr"},{"$f":"'1b_Kurzzeitpflege'!$D$78","v":"2025-12-31"}]
[]
["Sonstige Personen","Anz. d. Personen"]
["Zivildiener",null,null,null,null,null,null,null,{"$f":"IF(B91=\"\",\"Eingabe unvollständig\",\"\")","v":"Eingabe unvollständig"},null,null,"x"]
["Lehrlinge",null,null,null,null,null,null,null,{"$f":"IF(B92=\"\",\"Eingabe unvollständig\",\"\")","v":"Eingabe unvollständig"},null,null,{"$f":"IF(I92=\"\",\"\",\"x\")","v":"x"}]
["Freiwilliges soziales Jahr",null,null,null,null,null,null,null,"Eingabe unvollständig",null,null,"x"]
["Freiwillige / Ehrenamtliche",null,null,null,null,null,null,null,"Eingabe unvollständig",null,null,"x"]
[null,{"$f":"SUM(B91:B94)","v":0},null,null,null,null,null,null,null,null,null,""]
[]
["Pflegelehre",{"$f":"$B$3","v":"zum Stichtag"},{"$f":"$C$3","v":"2025-12-31"}]
[null,null,null,null,null,null,null,null,null,null,null,""]
["Anzahl der Pflegelehrlinge im APH",null,null,null,null,null,null,null,{"$f":"IF(C99=\"\",\"Eingabe unvollständig\",\"\")","v":"Eingabe unvollständig"},null,null,"x"]
["Ist das APH als Lehrbetrieb für die Pflegelehre nach § 3a BAG zugelassen?",null,null,null,null,null,null,null,{"$f":"IF(C100=\"\",\"Eingabe unvollständig\",\"\")","v":"Eingabe unvollständig"},null,null,"x"]
[null,null,null,null,null,null,null,null,null,null,null,""]
[null,null,null,null,null,null,null,null,null,null,null,{"$f":"COUNTIF(L1:L101,\"x\")","v":55}]

{"sheet":"4_Pflegepersonalbedarf 2025","index":5,"n_rows":301,"n_cols":26,"rows_kept":301,"cut":false,"hidden":false,"merged":[[9,0,9,2],[10,0,10,2],[122,0,122,2],[139,0,139,2],[148,0,148,2],[149,0,149,2],[292,0,292,2],[293,0,293,2],[30,0,30,12],[43,0,43,12],[56,0,56,12],[69,0,69,12],[83,0,84,0],[83,1,84,1],[83,2,84,2],[44,4,44,12],[31,0,32,0],[31,1,32,1],[31,2,32,2],[31,4,31,12],[57,2,58,2],[57,4,57,12],[44,0,45,0],[70,0,71,0],[299,0,299,2],[128,17,128,23],[133,0,133,2],[129,0,129,2],[130,0,130,2],[131,0,131,2],[144,0,144,2],[147,0,147,2],[152,0,152,2],[216,1,217,1],[216,2,217,2],[203,4,203,12],[216,4,216,12],[242,14,243,14],[242,15,243,15],[241,16,243,16],[190,0,191,0],[177,0,178,0],[274,17,274,23],[189,0,189,12],[190,4,190,12],[190,2,191,2],[268,0,268,2],[270,0,270,2],[127,17,127,23],[273,0,273,2],[273,17,273,23],[277,0,277,2],[278,0,278,2],[290,0,290,2],[287,0,287,2],[242,13,243,13],[177,1,178,1],[177,4,177,12],[281,0,281,2],[272,0,272,2],[274,0,274,2],[279,0,279,2],[280,0,280,2],[242,0,243,0],[242,4,242,12],[275,0,275,2],[262,0,262,2],[271,0,271,2],[229,0,230,0],[190,1,191,1],[285,0,285,2],[143,0,143,2],[83,4,83,12],[70,4,70,12],[44,2,45,2],[70,1,71,1],[44,1,45,1],[57,0,58,0],[57,1,58,1],[70,2,71,2],[82,0,82,12],[258,15,258,16],[241,0,241,12],[260,0,260,2],[261,0,261,2],[229,1,230,1],[229,2,230,2],[242,1,243,1],[242,2,243,2],[256,0,256,16],[96,0,97,0],[96,1,97,1],[96,2,97,2],[96,4,96,12],[128,0,128,2],[114,0,114,2],[120,0,120,2],[121,0,121,2],[124,0,124,2],[125,0,125,2],[110,0,110,16],[118,0,118,2],[126,0,126,2],[298,0,298,2],[115,0,115,2],[141,0,141,2],[127,0,127,2],[116,0,116,2],[123,0,123,2],[119,0,119,2],[132,0,132,2],[202,0,202,12],[203,0,204,0],[203,1,204,1],[215,0,215,12],[228,0,228,12],[229,4,229,12],[216,0,217,0],[134,0,134,2],[177,2,178,2],[146,0,146,2],[135,0,135,2],[176,0,176,12],[153,0,153,2],[137,0,137,2],[138,0,138,2],[145,0,145,2],[9,5,9,6],[10,5,10,6],[142,0,142,2],[140,0,140,2],[151,0,151,2],[286,0,286,2],[297,0,297,2],[291,0,291,2],[296,0,296,2],[276,0,276,2],[288,0,288,2],[289,0,289,2],[150,0,150,2],[269,0,269,2],[203,2,204,2],[267,0,267,2],[263,0,263,2],[264,0,264,2],[265,0,265,2],[266,0,266,2],[294,0,294,2],[295,0,295,2],[95,0,95,12],[117,0,117,2]]}
[]
["ERHEBUNG IN DEN OÖ. ALTEN- UND PFLEGEHEIMEN\nMindestpflegepersonalbedarf MPPB\nPflegepersonal in Langzeit-Krankenstand ist hier abzuziehen!"]
[null,null,null,null,null,null,null,null,{"$f":"J6","v":"2025-12-31"}]
[]
[{"$f":"IF(Y301>0,\"Tabellenblatt nicht vollständig oder korrekt ausgefüllt! Bitte Eingaben prüfen!\",\"\")","v":"Tabellenblatt nicht vollständig oder korrekt ausgefüllt! Bitte Eingaben prüfen!"},null,null,null,null,null,null,null,null,null,null,null,null,null,null,null,{"$f":"IF(A5=\"\",\"Sie haben dieses Tabellenblatt vollständig ausgefüllt - Vielen Dank!\",\"\")","v":""}]
["PFLEGEBEDARF aller Heimbewohnerinnen und -bewohner inkl. Kurzzeitpflegegäste",null,null,null,null,null,null,null,{"$f":"'1a_Langzeitpflege'!$C$64","v":"im Jahr"},{"$f":"'1a_Langzeitpflege'!$D$64","v":"2025-12-31"},"zum jeweiligen Stichtag"]
[]
["1.","Halbjahr",{"$f":"I3","v":"2025-12-31"}]
[null,null,null,{"$f":"IF(D10=40,\"wenn weniger als 40-Std-Woche, dann bitte Wert in D10 bzw. D11 ändern!\",\"\")","v":"wenn weniger als 40-Std-Woche, dann bitte Wert in D10 bzw. D11 ändern!"}]
["Wochenstunden einer vollbeschäftigten Pflegekraft lt. Dienstvertrag:",null,null,40,"Std.","Berücksichtigung des 40tels (außer FSB A)",null,"Nein",null,null,null,null,null,null,null,null,null,{"$f":"IF(D10=\"\",\"Eingabe unvollständig\",\"\")","v":""},null,null,null,null,null,null,{"$f":"IF(R10=\"\",\"\",\"x\")","v":""}]
["Wochenstunden einer vollbeschäftigten FSB A lt. Dienstvertrag:",null,null,40,"Std.","Berücksichtigung der Bonuswoche der FSB A",null,"Nein",null,null,null,null,null,null,null,null,null,{"$f":"IF(D11=\"\",\"Eingabe unvollständig\",\"\")","v":""}]
[]
[null,null,null,"31.1.",{"$f":"I3","v":"2025-12-31"},"28.2.",{"$f":"I3","v":"2025-12-31"},"31.3.",{"$f":"I3","v":"2025-12-31"},"30.4.",{"$f":"I3","v":"2025-12-31"},"31.5.",{"$f":"I3","v":"2025-12-31"},"30.6.",{"$f":"I3","v":"2025-12-31"},"Durchschnitt 1. HJ"]
[null,"Schlüssel","PG-Stufe","Personal- bedarf lt. PG-Bescheid","Personal- bedarf nach erwarteter\nPG-Einstufung","Personal- bedarf lt. PG-Bescheid","Personal- bedarf nach erwarteter\nPG-Einstufung","Personal- bedarf lt. PG-Bescheid","Personal- bedarf nach erwarteter\nPG-Einstufung","Personal- bedarf lt. PG-Bescheid","Personal- bedarf nach erwarteter\nPG-Einstufung","Personal- bedarf lt. PG-Bescheid","Personal- bedarf nach erwarteter\nPG-Einstufung","Personal- bedarf lt. PG-Bescheid","Personal- bedarf nach erwarteter\nPG-Einstufung","Personal- bedarf lt. PG-Bescheid","Personal- bedarf nach erwarteter\nPG-Einstufung"]
[null,24,"kein PG",{"$f":"$B34/$B15*40/$D$10","v":0},{"$f":"($B34-$C34+E$42)/$B15*40/$D$10","v":0},{"$f":"$B47/$B15*40/$D$10","v":0},{"$f":"($B47-$C47+E$55)/$B15*40/$D$10","v":0},{"$f":"$B60/$B15*40/$D$10","v":0},{"$f":"($B60-$C60+$E68)/$B15*40/$D$10","v":0},{"$f":"$B73/$B15*40/$D$10","v":0},{"$f":"($B73-$C73+E$81)/$B15*40/$D$10","v":0},{"$f":"$B86/$B15*40/$D$10","v":0},{"$f":"($B86-$C86+E$94)/$B15*40/$D$10","v":0},{"$f":"$B99/$B15*40/$D$10","v":0},{"$f":"($B99-$C99+E$107)/$B15*40/$D$10","v":0},{"$f":"(D15+F15+H15+J15+L15+N15)/$Z$21","v":{"$error":"#DIV/0!"}},{"$f":"(E15+G15+I15+K15+M15+O15)/$Z$21","v":{"$error":"#DIV/0!"}},null,null,null,null,null,null,null,null,{"$f":"IF(D23<>0,1,0)","v":0}]
[null,12,1,0,{"$f":"($B35-$C35+F$42)/$B16*40/$D$10","v":0},0,{"$f":"($B48-$C48+F$55)/$B16*40/$D$10","v":0},0,{"$f":"($B61-$C61+$F68)/$B16*40/$D$10","v":0},0,{"$f":"($B74-$C74+F$81)/$B16*40/$D$10","v":0},0,{"$f":"($B87-$C87+F$94)/$B16*40/$D$10","v":0},0,{"$f":"($B100-$C100+F$107)/$B16*40/$D$10","v":0},{"$f":"(D16+F16+H16+J16+L16+N16)/$Z$21","v":{"$error":"#DIV/0!"}},{"$f":"(E16+G16+I16+K16+M16+O16)/$Z$21","v":{"$error":"#DIV/0!"}},null,null,null,null,null,null,null,null,{"$f":"IF(F23<>0,1,0)","v":0}]
[null,7.5,2,0,{"$f":"($B36-$C36+G$42)/$B17*40/$D$10","v":0},0,{"$f":"($B49-$C49+G$55)/$B17*40/$D$10","v":0},0,{"$f":"($B62-$C62+$G68)/$B17*40/$D$10","v":0},0,{"$f":"($B75-$C75+G$81)/$B17*40/$D$10","v":0},0,{"$f":"($B88-$C88+G$94)/$B17*40/$D$10","v":0},0,{"$f":"($B101-$C101+G$107)/$B17*40/$D$10","v":0},{"$f":"(D17+F17+H17+J17+L17+N17)/$Z$21","v":{"$error":"#DIV/0!"}},{"$error":"#DIV/0!"},null,null,null,null,null,null,null,null,{"$f":"IF(H23<>0,1,0)","v":0}]
[null,4,3,0,{"$f":"($B37-$C37+H$42)/$B18*40/$D$10","v":0},0,{"$f":"($B50-$C50+H$55)/$B18*40/$D$10","v":0},0,{"$f":"($B63-$C63+$H68)/$B18*40/$D$10","v":0},0,{"$f":"($B76-$C76+H$81)/$B18*40/$D$10","v":0},0,{"$f":"($B89-$C89+H$94)/$B18*40/$D$10","v":0},0,{"$f":"($B102-$C102+H$107)/$B18*40/$D$10","v":0},{"$error":"#DIV/0!"},{"$error":"#DIV/0!"},null,null,null,null,null,null,null,null,{"$f":"IF(J23<>0,1,0)","v":0}]
[null,2.5,4,0,{"$f":"($B38-$C38+I$42)/$B19*40/$D$10","v":0},0,{"$f":"($B51-$C51+I$55)/$B19*40/$D$10","v":0},0,{"$f":"($B64-$C64+$I68)/$B19*40/$D$10","v":0},0,{"$f":"($B77-$C77+I$81)/$B19*40/$D$10","v":0},0,{"$f":"($B90-$C90+I$94)/$B19*40/$D$10","v":0},0,{"$f":"($B103-$C103+I$107)/$B19*40/$D$10","v":0},{"$error":"#DIV/0!"},{"$error":"#DIV/0!"},null,null,null,null,null,null,null,null,{"$f":"IF(L23<>0,1,0)","v":0}]
[null,2,5,0,{"$f":"($B39-$C39+J$42)/$B20*40/$D$10","v":0},0,{"$f":"($B52-$C52+J$55)/$B20*40/$D$10","v":0},0,{"$f":"($B65-$C65+$J68)/$B20*40/$D$10","v":0},0,{"$f":"($B78-$C78+J$81)/$B20*40/$D$10","v":0},0,{"$f":"($B91-$C91+J$94)/$B20*40/$D$10","v":0},0,{"$f":"($B104-$C104+J$107)/$B20*40/$D$10","v":0},{"$error":"#DIV/0!"},{"$error":"#DIV/0!"},null,null,null,null,null,null,null,null,{"$f":"IF(N23<>0,1,0)","v":0}]
[null,1.5,6,0,{"$f":"($B40-$C40+K$42)/$B21*40/$D$10","v":0},0,{"$f":"($B53-$C53+K$55)/$B21*40/$D$10","v":0},0,{"$f":"($B66-$C66+$K68)/$B21*40/$D$10","v":0},0,{"$f":"($B79-$C79+K$81)/$B21*40/$D$10","v":0},0,{"$f":"($B92-$C92+K$94)/$B21*40/$D$10","v":0},0,{"$f":"($B105-$C105+K$107)/$B21*40/$D$10","v":0},{"$error":"#DIV/0!"},{"$error":"#DIV/0!"},null,null,null,null,null,null,null,null,{"$f":"SUM(Z15:Z20)","v":0}]
[null,1.5,7,0,{"$f":"($B41-$C41+L$42)/$B22*40/$D$10","v":0},0,{"$f":"($B54-$C54+L$55)/$B22*40/$D$10","v":0},0,{"$f":"($B67-$C67+$L68)/$B22*40/$D$10","v":0},0,{"$f":"($B80-$C80+L$81)/$B22*40/$D$10","v":0},0,{"$f":"($B93-$C93+L$94)/$B22*40/$D$10","v":0},0,{"$f":"($B106-$C106+L$107)/$B22*40/$D$10","v":0},{"$error":"#DIV/0!"},{"$error":"#DIV/0!"}]
[null,null,"MPPB",{"$f":"SUM(D15:D22)","v":0},0,0,0,0,0,0,0,0,0,0,0,{"$f":"(D23+F23+H23+J23+L23+N23)/$Z$21","v":{"$error":"#DIV/0!"}},{"$f":"(E23+G23+I23+K23+M23+O23)/$Z$21","v":{"$error":"#DIV/0!"}}]
[null,null,"anrechenb. Pflegepersonal / Erfüllungsgrad:",{"$f":"E129","v":0},{"$f":"D24/E23","v":{"$error":"#DIV/0!"}},{"$f":"G129","v":0},{"$f":"F24/G23","v":{"$error":"#DIV/0!"}},{"$f":"I129","v":0},{"$f":"H24/I23","v":{"$error":"#DIV/0!"}},{"$f":"K129","v":0},{"$f":"J24/K23","v":{"$error":"#DIV/0!"}},{"$f":"M129","v":0},{"$f":"L24/M23","v":{"$error":"#DIV/0!"}},{"$f":"O129","v":0},{"$f":"N24/O23","v":{"$error":"#DIV/0!"}},{"$f":"(D24+F24+H24+J24+L24+N24)/$Z$21","v":{"$error":"#DIV/0!"}},{"$f":"P24/Q23","v":{"$error":"#DIV/0!"}}]
[null,null,"Bewohneranzahl / offene Verfahren:",{"$f":"B42","v":0},{"$f":"C42","v":0},{"$f":"B55","v":0},{"$f":"C55","v":0},{"$f":"B68","v":0},{"$f":"C68","v":0},{"$f":"B81","v":0},{"$f":"C81","v":0},{"$f":"B94","v":0},{"$f":"C94","v":0},{"$f":"B107","v":0},{"$f":"C107","v":0}]
[null,null,null,null,null,null,null,null,null,null,null,null,null,null,"Pflegeintensität (Verhältnis Pflegepersonaleinheit-SOLL zu HB)","1 : ",{"$f":"((B42+B55+B68+B81+B94+B107)/$Z$21)/Q23","v":{"$error":"#DIV/0!"}}]
[null,null,null,null,null,null,null,null,null,null,null,null,null,null,"(diese Kennzahl ist der Indikator für den durchschnittlichen Pflegebedarf aller HB,"]
[null,null,null,null,null,null,null,null,null,null,null,null,null,null,"die Berechnung einer durchschnittlichen Pflegegeld-Stufe ist nicht zulässig!)"]
[]
[null,"bitte Pflegegeld-Angaben (Summe LZP + KZP) zum Stichtag eintragen!"]
[{"$f":"D13","v":"31.1."},null,null,null,null,null,null,null,null,null,null,null,null,null,null,null,null,null,null,null,null,null,null,null,{"$f":"IF(R31=\"\",\"\",\"x\")","v":""}]
["derzeitige PG-Stufe","Personen ohne PG bzw. lt. PG-Bescheid","Anzahl offene Verfahren",null,"erwartete Einstufung"]
[null,null,null,null,0,1,2,3,4,5,6,7]
[0,null,null,null,null,null,null,null,null,null,null,null,null,null,null,null,null,{"$f":"IF(OR(B34=\"\",C34=\"\")=TRUE,\"Eingabe unvollständig\",IF(B34<C34,\"Wert in Spalte C kann nicht größer sein als jener in Spalte B\",\"\"))","v":"Eingabe unvollständig"},null,null,null,null,null,null,{"$f":"IF(R34=\"\",\"\",\"x\")","v":"x"}]
[1,null,null,null,null,null,null,null,null,null,null,null,null,null,null,null,null,{"$f":"IF(OR(B35=\"\",C35=\"\")=TRUE,\"Eingabe unvollständig\",IF(B35<C35,\"Wert in Spalte C kann nicht größer sein als jener in Spalte B\",\"\"))","v":"Eingabe unvollständig"},null,null,null,null,null,null,"x"]
[2,null,null,null,null,null,null,null,null,null,null,null,null,null,null,null,null,"Eingabe unvollständig",null,null,null,null,null,null,"x"]
[3,null,null,null,null,null,null,null,null,null,null,null,null,null,null,null,null,"Eingabe unvollständig",null,null,null,null,null,null,"x"]
[4,null,null,null,null,null,null,null,null,null,null,null,null,null,null,null,null,"Eingabe unvollständig",null,null,null,null,null,null,"x"]
[5,null,null,null,null,null,null,null,null,null,null,null,null,null,null,null,null,"Eingabe unvollständig",null,null,null,null,null,null,"x"]
[6,null,null,null,null,null,null,null,null,null,null,null,null,null,null,null,null,"Eingabe unvollständig",null,null,null,null,null,null,"x"]
[7,null,null,null,null,null,null,null,null,null,null,null,"Summe",null,null,null,null,{"$f":"IF(B41=\"\",\"Eingabe unvollständig\",\"\")","v":"Eingabe unvollständig"},null,null,null,null,null,null,"x"]
[null,{"$f":"SUM(B34:B41)","v":0},{"$f":"SUM(C34:C41)","v":0},null,{"$f":"SUM(E34:E41)","v":0},0,0,0,0,0,0,0,{"$f":"SUM(E42:L42)","v":0},null,null,null,null,{"$f":"IF(C42<>M42,\"Summe in C42 muss gleich hoch sein wie Summe in M42\",\"\")","v":""},null,null,null,null,null,null,""]
[]
[{"$f":"F13","v":"28.2."}]
["derzeitige PG-Stufe","Personen ohne PG bzw. lt. PG-Bescheid","Anzahl offene Verfahren",null,"erwartete Einstufung"]
[null,null,null,null,0,1,2,3,4,5,6,7]
[0,null,null,null,null,null,null,null,null,null,null,null,null,null,null,null,null,{"$f":"IF(OR(B47=\"\",C47=\"\")=TRUE,\"Eingabe unvollständig\",IF(B47<C47,\"Wert in Spalte C kann nicht größer sein als jener in Spalte B\",\"\"))","v":"Eingabe unvollständig"},null,null,null,null,null,null,{"$f":"IF(R47=\"\",\"\",\"x\")","v":"x"}]
[1,null,null,null,null,null,null,null,null,null,null,null,null,null,null,null,null,"Eingabe unvollständig",null,null,null,null,null,null,"x"]
[2,null,null,null,null,null,null,null,null,null,null,null,null,null,null,null,null,"Eingabe unvollständig",null,null,null,null,null,null,"x"]
[3,null,null,null,null,null,null,null,null,null,null,null,null,null,null,null,null,"Eingabe unvollständig",null,null,null,null,null,null,"x"]
[4,null,null,null,null,null,null,null,null,null,null,null,null,null,null,null,null,"Eingabe unvollständig",null,null,null,null,null,null,"x"]
[5,null,null,null,null,null,null,null,null,null,null,null,null,null,null,null,null,"Eingabe unvollständig",null,null,null,null,null,null,"x"]
[6,null,null,null,null,null,null,null,null,null,null,null,null,null,null,null,null,"Eingabe unvollständig",null,null,null,null,null,null,"x"]
[7,null,null,null,null,null,null,null,null,null,null,null,"Summe",null,null,null,null,{"$f":"IF(B54=\"\",\"Eingabe unvollständig\",\"\")","v":"Eingabe unvollständig"},null,null,null,null,null,null,"x"]
[null,{"$f":"SUM(B47:B54)","v":0},{"$f":"SUM(C47:C54)","v":0},null,{"$f":"SUM(E47:E54)","v":0},0,0,0,0,0,0,0,{"$f":"SUM(E55:L55)","v":0},null,null,null,null,{"$f":"IF(C55<>M55,\"Summe in C55 muss gleich hoch sein wie Summe in M55\",\"\")","v":""},null,null,null,null,null,null,""]
[]
[{"$f":"H13","v":"31.3."}]
["derzeitige PG-Stufe","Personen ohne PG bzw. lt. PG-Bescheid","Anzahl offene Verfahren",null,"erwartete Einstufung"]
[null,null,null,null,0,1,2,3,4,5,6,7]
[0,null,null,null,null,null,null,null,null,null,null,null,null,null,null,null,null,{"$f":"IF(OR(B60=\"\",C60=\"\")=TRUE,\"Eingabe unvollständig\",IF(B60<C60,\"Wert in Spalte C kann nicht größer sein als jener in Spalte B\",\"\"))","v":"Eingabe unvollständig"},null,null,null,null,null,null,{"$f":"IF(R60=\"\",\"\",\"x\")","v":"x"}]
[1,null,null,null,null,null,null,null,null,null,null,null,null,null,null,null,null,"Eingabe unvollständig",null,null,null,null,null,null,"x"]
[2,null,null,null,null,null,null,null,null,null,null,null,null,null,null,null,null,"Eingabe unvollständig",null,null,null,null,null,null,"x"]
[3,null,null,null,null,null,null,null,null,null,null,null,null,null,null,null,null,"Eingabe unvollständig",null,null,null,null,null,null,"x"]
[4,null,null,null,null,null,null,null,null,null,null,null,null,null,null,null,null,"Eingabe unvollständig",null,null,null,null,null,null,"x"]
[5,null,null,null,null,null,null,null,null,null,null,null,null,null,null,null,null,"Eingabe unvollständig",null,null,null,null,null,null,"x"]
[6,null,null,null,null,null,null,null,null,null,null,null,null,null,null,null,null,"Eingabe unvollständig",null,null,null,null,null,null,"x"]
[7,null,null,null,null,null,null,null,null,null,null,null,"Summe",null,null,null,null,{"$f":"IF(B67=\"\",\"Eingabe unvollständig\",\"\")","v":"Eingabe unvollständig"},null,null,null,null,null,null,{"$f":"IF(R67=\"\",\"\",\"x\")","v":"x"}]
[null,{"$f":"SUM(B60:B67)","v":0},{"$f":"SUM(C60:C67)","v":0},null,{"$f":"SUM(E60:E67)","v":0},0,0,0,0,0,0,0,{"$f":"SUM(E68:L68)","v":0},null,null,null,null,{"$f":"IF(C68<>M68,\"Summe in C68 muss gleich hoch sein wie Summe in M68\",\"\")","v":""},null,null,null,null,null,null,""]
[]
[{"$f":"J13","v":"30.4."}]
["derzeitige PG-Stufe","Personen ohne PG bzw. lt. PG-Bescheid","Anzahl offene Verfahren",null,"erwartete Einstufung"]
[null,null,null,null,0,1,2,3,4,5,6,7]
[0,null,null,null,null,null,null,null,null,null,null,null,null,null,null,null,null,{"$f":"IF(OR(B73=\"\",C73=\"\")=TRUE,\"Eingabe unvollständig\",IF(B73<C73,\"Wert in Spalte C kann nicht größer sein als jener in Spalte B\",\"\"))","v":"Eingabe unvollständig"},null,null,null,null,null,null,"x"]
[1,null,null,null,null,null,null,null,null,null,null,null,null,null,null,null,null,"Eingabe unvollständig",null,null,null,null,null,null,"x"]
[2,null,null,null,null,null,null,null,null,null,null,null,null,null,null,null,null,"Eingabe unvollständig",null,null,null,null,null,null,"x"]
[3,null,null,null,null,null,null,null,null,null,null,null,null,null,null,null,null,"Eingabe unvollständig",null,null,null,null,null,null,"x"]
[4,null,null,null,null,null,null,null,null,null,null,null,null,null,null,null,null,"Eingabe unvollständig",null,null,null,null,null,null,"x"]
[5,null,null,null,null,null,null,null,null,null,null,null,null,null,null,null,null,"Eingabe unvollständig",null,null,null,null,null,null,"x"]
[6,null,null,null,null,null,null,null,null,null,null,null,null,null,null,null,null,"Eingabe unvollständig",null,null,null,null,null,null,"x"]
[7,null,null,null,null,null,null,null,null,null,null,null,"Summe",null,null,null,null,{"$f":"IF(B80=\"\",\"Eingabe unvollständig\",\"\")","v":"Eingabe unvollständig"},null,null,null,null,null,null,"x"]
[null,{"$f":"SUM(B73:B80)","v":0},{"$f":"SUM(C73:C80)","v":0},null,{"$f":"SUM(E73:E80)","v":0},0,0,0,0,0,0,0,{"$f":"SUM(E81:L81)","v":0},null,null,null,null,{"$f":"IF(C81<>M81,\"Summe in C81 muss gleich hoch sein wie Summe in M81\",\"\")","v":""},null,null,null,null,null,null,""]
[]
[{"$f":"L13","v":"31.5."}]
["derzeitige PG-Stufe","Personen ohne PG bzw. lt. PG-Bescheid","Anzahl offene Verfahren",null,"erwartete Einstufung"]
[null,null,null,null,0,1,2,3,4,5,6,7]
[0,null,null,null,null,null,null,null,null,null,null,null,null,null,null,null,null,{"$f":"IF(OR(B86=\"\",C86=\"\")=TRUE,\"Eingabe unvollständig\",IF(B86<C86,\"Wert in Spalte C kann nicht größer sein als jener in Spalte B\",\"\"))","v":"Eingabe unvollständig"},null,null,null,null,null,null,"x"]
[1,null,null,null,null,null,null,null,null,null,null,null,null,null,null,null,null,"Eingabe unvollständig",null,null,null,null,null,null,"x"]
[2,null,null,null,null,null,null,null,null,null,null,null,null,null,null,null,null,"Eingabe unvollständig",null,null,null,null,null,null,"x"]
[3,null,null,null,null,null,null,null,null,null,null,null,null,null,null,null,null,"Eingabe unvollständig",null,null,null,null,null,null,"x"]
[4,null,null,null,null,null,null,null,null,null,null,null,null,null,null,null,null,"Eingabe unvollständig",null,null,null,null,null,null,"x"]
[5,null,null,null,null,null,null,null,null,null,null,null,null,null,null,null,null,"Eingabe unvollständig",null,null,null,null,null,null,"x"]
[6,null,null,null,null,null,null,null,null,null,null,null,null,null,null,null,null,"Eingabe unvollständig",null,null,null,null,null,null,"x"]
[7,null,null,null,null,null,null,null,null,null,null,null,"Summe",null,null,null,null,{"$f":"IF(B93=\"\",\"Eingabe unvollständig\",\"\")","v":"Eingabe unvollständig"},null,null,null,null,null,null,"x"]
[null,{"$f":"SUM(B86:B93)","v":0},{"$f":"SUM(C86:C93)","v":0},null,{"$f":"SUM(E86:E93)","v":0},0,0,0,0,0,0,0,{"$f":"SUM(E94:L94)","v":0},null,null,null,null,{"$f":"IF(C94<>M94,\"Summe in C94 muss gleich hoch sein wie Summe in M94\",\"\")","v":""},null,null,null,null,null,null,""]
[]
[{"$f":"N13","v":"30.6."}]
["derzeitige PG-Stufe","Personen ohne PG bzw. lt. PG-Bescheid","Anzahl offene Verfahren",null,"erwartete Einstufung"]
[null,null,null,null,0,1,2,3,4,5,6,7]
[0,null,null,null,null,null,null,null,null,null,null,null,null,null,null,null,null,{"$f":"IF(OR(B99=\"\",C99=\"\")=TRUE,\"Eingabe unvollständig\",IF(B99<C99,\"Wert in Spalte C kann nicht größer sein als jener in Spalte B\",\"\"))","v":"Eingabe unvollständig"},null,null,null,null,null,null,"x"]
[1,null,null,null,null,null,null,null,null,null,null,null,null,null,null,null,null,"Eingabe unvollständig",null,null,null,null,null,null,"x"]
[2,null,null,null,null,null,null,null,null,null,null,null,null,null,null,null,null,"Eingabe unvollständig",null,null,null,null,null,null,"x"]
[3,null,null,null,null,null,null,null,null,null,null,null,null,null,null,null,null,"Eingabe unvollständig",null,null,null,null,null,null,"x"]
[4,null,null,null,null,null,null,null,null,null,null,null,null,null,null,null,null,"Eingabe unvollständig",null,null,null,null,null,null,"x"]
[5,null,null,null,null,null,null,null,null,null,null,null,null,null,null,null,null,"Eingabe unvollständig",null,null,null,null,null,null,"x"]
[6,null,null,null,null,null,null,null,null,null,null,null,null,null,null,null,null,"Eingabe unvollständig",null,null,null,null,null,null,"x"]
[7,null,null,null,null,null,null,null,null,null,null,null,"Summe",null,null,null,null,{"$f":"IF(B106=\"\",\"Eingabe unvollständig\",\"\")","v":"Eingabe unvollständig"},null,null,null,null,null,null,"x"]
[null,{"$f":"SUM(B99:B106)","v":0},{"$f":"SUM(C99:C106)","v":0},null,{"$f":"SUM(E99:E106)","v":0},0,0,0,0,0,0,0,{"$f":"SUM(E107:L107)","v":0},null,null,null,null,{"$f":"IF(C107<>M107,\"Summe in C107 muss gleich hoch sein wie Summe in M107\",\"\")","v":""},null,null,null,null,null,null,""]
[]
["BETREUUNGS- und PFLEGEPERSONAL (inkl. Leasingpersonal und Poolkräfte) am jeweiligen Stichtag",null,null,null,null,null,null,null,null,{"$f":"I3","v":"2025-12-31"}]
["Pflegepersonal in Langzeit-Krankenstand ist hier nicht anzugeben, auch nicht Pflegepersonal in Altersteilzeit-Freizeitphase oder Sabbatical (jew. ab Beginn)!"]
["Werdende Mütter mit Eintritt in das sechste Schwangerschaftsmonat sind nur mehr zu 50 % ihres Beschäftigungsausmaßes zu berücksichtigen."]
[null,null,null,"bitte Personalangaben und KZP-Gäste zum Stichtag eintragen!"]
[null,null,null,{"$f":"D13","v":"31.1."},{"$f":"I3","v":"2025-12-31"},{"$f":"F13","v":"28.2."},{"$f":"I3","v":"2025-12-31"},{"$f":"H13","v":"31.3."},{"$f":"I3","v":"2025-12-31"},{"$f":"J13","v":"30.4."},{"$f":"I3","v":"2025-12-31"},{"$f":"L13","v":"31.5."},{"$f":"I3","v":"2025-12-31"},{"$f":"N13","v":"30.6."},{"$f":"I3","v":"2025-12-31"}]
[null,null,null,"Personen","PE","Personen","PE","Personen","PE","Personen","PE","Personen","PE","Personen","PE"]
["Leitung des Betr.- und Pflegedienstes",null,null,null,null,null,null,null,null,null,null,null,null,null,null,null,null,{"$f":"IF(OR(D115=\"\",E115=\"\",F115=\"\",G115=\"\",H115=\"\",I115=\"\",J115=\"\",K115=\"\",L115=\"\",M115=\"\",N115=\"\",O115=\"\")=TRUE,\"Eingabe unvollständig\",\"\")","v":"Eingabe unvollständig"},null,null,null,null,null,null,"x"]
["Angehörige des gehobenen Dienstes DGKP",null,null,null,null,null,null,null,null,null,null,null,null,null,null,null,null,{"$f":"IF(OR(D116=\"\",E116=\"\",F116=\"\",G116=\"\",H116=\"\",I116=\"\",J116=\"\",K116=\"\",L116=\"\",M116=\"\",N116=\"\",O116=\"\")=TRUE,\"Eingabe unvollständig\",\"\")","v":"Eingabe unvollständig"},null,null,null,null,null,null,"x"]
["Pflegefachassistent:innen PFA",null,null,null,null,null,null,null,null,null,null,null,null,null,null,null,null,{"$f":"IF(OR(D117=\"\",E117=\"\",F117=\"\",G117=\"\",H117=\"\",I117=\"\",J117=\"\",K117=\"\",L117=\"\",M117=\"\",N117=\"\",O117=\"\")=TRUE,\"Eingabe unvollständig\",\"\")","v":"Eingabe unvollständig"},null,null,null,null,null,null,"x"]
["Fach-Sozialbetreuer:innen \"A\"",null,null,null,null,null,null,null,null,null,null,null,null,null,null,null,null,{"$f":"IF(OR(D118=\"\",E118=\"\",F118=\"\",G118=\"\",H118=\"\",I118=\"\",J118=\"\",K118=\"\",L118=\"\",M118=\"\",N118=\"\",O118=\"\")=TRUE,\"Eingabe unvollständig\",\"\")","v":"Eingabe unvollständig"},null,null,null,null,null,null,"x"]
["Fach-Sozialbetreuer:innen \"BA\"",null,null,null,null,null,null,null,null,null,null,null,null,null,null,null,null,"Eingabe unvollständig",null,null,null,null,null,null,{"$f":"IF(R119=\"\",\"\",\"x\")","v":"x"}]
["Diplom. Sozialbetreuer:innen \"A\"",null,null,null,null,null,null,null,null,null,null,null,null,null,null,null,null,"Eingabe unvollständig",null,null,null,null,null,null,{"$f":"IF(R120=\"\",\"\",\"x\")","v":"x"}]
["Diplom. Sozialbetreuer:innen \"BA\"",null,null,null,null,null,null,null,null,null,null,null,null,null,null,null,null,"Eingabe unvollständig",null,null,null,null,null,null,{"$f":"IF(R121=\"\",\"\",\"x\")","v":"x"}]
["Diplom. Sozialbetreuer:innen \"F\"",null,null,null,null,null,null,null,null,null,null,null,null,null,null,null,null,"Eingabe unvollständig",null,null,null,null,null,null,{"$f":"IF(R122=\"\",\"\",\"x\")","v":"x"}]
["Pflegeassistent:innen PA",null,null,null,null,null,null,null,null,null,null,null,null,null,null,null,null,"Eingabe unvollständig",null,null,null,null,null,null,"x"]
["Heimhelfer:innen HH \nund Altenbetreuer:innen AB",null,null,null,null,null,null,null,null,null,null,null,null,null,null,null,null,"Eingabe unvollständig",null,null,null,null,null,null,"x"]
["Fach-Sozialbetreuer:innen \"BB\"",null,null,null,null,null,null,null,null,null,null,null,null,null,null,null,null,"Eingabe unvollständig",null,null,null,null,null,null,{"$f":"IF(R125=\"\",\"\",\"x\")","v":"x"}]
["Diplom. Sozialbetreuer:innen \"BB\"",null,null,null,null,null,null,null,null,null,null,null,null,null,null,null,null,"Eingabe unvollständig",null,null,null,null,null,null,"x"]
["Stützpersonal",null,null,null,null,null,null,null,null,null,null,null,null,null,null,null,null,"Eingabe unvollständig",null,null,null,null,null,null,"x"]
["Summe Pflegepersonal",null,null,{"$f":"SUM(D115:D127)","v":0},0,0,0,0,0,0,0,0,0,0,0,"PE"]
["Summe anrechenbares Pflegepersonal",null,null,null,{"$f":"IF(AND($D$10=40,$H$10=\"Ja\"),SUM(E130:E133)+(SUM(E119:E123)/$D$10*39.2),SUM(E130:E133)+SUM(E119:E123))","v":0},null,{"$f":"IF(AND($D$10=40,$H$10=\"Ja\"),SUM(G130:G133)+(SUM(G119:G123)/$D$10*39.2),SUM(G130:G133)+SUM(G119:G123))","v":0},null,{"$f":"IF(AND($D$10=40,$H$10=\"Ja\"),SUM(I130:I133)+(SUM(I119:I123)/$D$10*39.2),SUM(I130:I133)+SUM(I119:I123))","v":0},null,{"$f":"IF(AND($D$10=40,$H$10=\"Ja\"),SUM(K130:K133)+(SUM(K119:K123)/$D$10*39.2),SUM(K130:K133)+SUM(K119:K123))","v":0},null,{"$f":"IF(AND($D$10=40,$H$10=\"Ja\"),SUM(M130:M133)+(SUM(M119:M123)/$D$10*39.2),SUM(M130:M133)+SUM(M119:M123))","v":0},null,{"$f":"IF(AND($D$10=40,$H$10=\"Ja\"),SUM(O130:O133)+(SUM(O119:O123)/$D$10*39.2),SUM(O130:O133)+SUM(O119:O123))","v":0},"PE",null,{"$f":"IF(D11=\"\",\"Eintrag in D11 fehlt!\",\"\")","v":""},null,null,null,null,null,null,""]
["Summe anrechenbare DGKP/PFA",null,null,null,{"$f":"IF(AND($D$10=40,$H$10=\"Ja\"),SUM(E116,E117)/$D$10*39.2,SUM(E116,E117))","v":0},null,{"$f":"IF(AND($D$10=40,$H$10=\"Ja\"),SUM(G116,G117)/$D$10*39.2,SUM(G116,G117))","v":0},null,{"$f":"IF(AND($D$10=40,$H$10=\"Ja\"),SUM(I116,I117)/$D$10*39.2,SUM(I116,I117))","v":0},null,{"$f":"IF(AND($D$10=40,$H$10=\"Ja\"),SUM(K116,K117)/$D$10*39.2,SUM(K116,K117))","v":0},null,{"$f":"IF(AND($D$10=40,$H$10=\"Ja\"),SUM(M116,M117)/$D$10*39.2,SUM(M116,M117))","v":0},null,{"$f":"IF(AND($D$10=40,$H$10=\"Ja\"),SUM(O116,O117)/$D$10*39.2,SUM(O116,O117))","v":0},"PE"]
["Summe anrechenbare FSB \"A\"",null,null,null,{"$f":"IF(OR($D$11=\"40\",$H$11=\"Ja\"),(E118/$D$11*39),IF(OR($D$11=\"39\",$H$11=\"Nein\"),E118/$D$10*$D$11))","v":0},null,{"$f":"IF(OR($D$11=\"40\",$H$11=\"Ja\"),(G118/$D$11*39),IF(OR($D$11=\"39\",$H$11=\"Nein\"),G118/$D$10*$D$11))","v":0},null,{"$f":"IF(OR($D$11=\"40\",$H$11=\"Ja\"),(I118/$D$11*39),IF(OR($D$11=\"39\",$H$11=\"Nein\"),I118/$D$10*$D$11))","v":0},null,{"$f":"IF(OR($D$11=\"40\",$H$11=\"Ja\"),(K118/$D$11*39),IF(OR($D$11=\"39\",$H$11=\"Nein\"),K118/$D$10*$D$11))","v":0},null,{"$f":"IF(OR($D$11=\"40\",$H$11=\"Ja\"),(M118/$D$11*39),IF(OR($D$11=\"39\",$H$11=\"Nein\"),M118/$D$10*$D$11))","v":0},null,{"$f":"IF(OR($D$11=\"40\",$H$11=\"Ja\"),(O118/$D$11*39),IF(OR($D$11=\"39\",$H$11=\"Nein\"),O118/$D$10*$D$11))","v":0},"PE"]
["Summe anrechenbare HH, AB, FSB \"BB\", DSB \"BB\"",null,null,null,{"$f":"IF(AND($D$10=40,$H$10=\"Ja\",SUM(E124:E126)>E144),E144,IF(AND($D$10=40,$H$10=\"Ja\",SUM(E124:E126)<E144),(SUM(E124:E126)/$D$10*39.2),IF(SUM(E124:E126)>E144,E144,SUM(E124:E126))))","v":0},null,{"$f":"IF(AND($D$10=40,$H$10=\"Ja\",SUM(G124:G126)>G144),G144,IF(AND($D$10=40,$H$10=\"Ja\",SUM(G124:G126)<G144),(SUM(G124:G126)/$D$10*39.2),IF(SUM(G124:G126)>G144,G144,SUM(G124:G126))))","v":0},null,{"$f":"IF(AND($D$10=40,$H$10=\"Ja\",SUM(I124:I126)>I144),I144,IF(AND($D$10=40,$H$10=\"Ja\",SUM(I124:I126)<I144),(SUM(I124:I126)/$D$10*39.2),IF(SUM(I124:I126)>I144,I144,SUM(I124:I126))))","v":0},null,{"$f":"IF(AND($D$10=40,$H$10=\"Ja\",SUM(K124:K126)>K144),K144,IF(AND($D$10=40,$H$10=\"Ja\",SUM(K124:K126)<K144),(SUM(K124:K126)/$D$10*39.2),IF(SUM(K124:K126)>K144,K144,SUM(K124:K126))))","v":0},null,{"$f":"IF(AND($D$10=40,$H$10=\"Ja\",SUM(M124:M126)>M144),M144,IF(AND($D$10=40,$H$10=\"Ja\",SUM(M124:M126)<M144),(SUM(M124:M126)/$D$10*39.2),IF(SUM(M124:M126)>M144,M144,SUM(M124:M126))))","v":0},null,{"$f":"IF(AND($D$10=40,$H$10=\"Ja\",SUM(O124:O126)>O144),O144,IF(AND($D$10=40,$H$10=\"Ja\",SUM(O124:O126)<O144),(SUM(O124:O126)/$D$10*39.2),IF(SUM(O124:O126)>O144,O144,SUM(O124:O126))))","v":0},"PE"]
["Summe anrechenbares Stützpersonal",null,null,null,{"$f":"IF(AND($D$10=40,$H$10=\"Ja\",(E127*0.9)>E145),E145,IF(AND($D$10=40,$H$10=\"Ja\",(SUM(E127*0.9)<E145)),(E127*0.9/$D$10*39.2),IF(E127*0.9>E145,E145,E127*0.9)))","v":0},null,{"$f":"IF(AND($D$10=40,$H$10=\"Ja\",(G127*0.9)>G145),G145,IF(AND($D$10=40,$H$10=\"Ja\",(SUM(G127*0.9)<G145)),(G127*0.9/$D$10*39.2),IF(G127*0.9>G145,G145,G127*0.9)))","v":0},null,{"$f":"IF(AND($D$10=40,$H$10=\"Ja\",(I127*0.9)>I145),I145,IF(AND($D$10=40,$H$10=\"Ja\",(SUM(I127*0.9)<I145)),(I127*0.9/$D$10*39.2),IF(I127*0.9>I145,I145,I127*0.9)))","v":0},null,{"$f":"IF(AND($D$10=40,$H$10=\"Ja\",(K127*0.9)>K145),K145,IF(AND($D$10=40,$H$10=\"Ja\",(SUM(K127*0.9)<K145)),(K127*0.9/$D$10*39.2),IF(K127*0.9>K145,K145,K127*0.9)))","v":0},null,{"$f":"IF(AND($D$10=40,$H$10=\"Ja\",(M127*0.9)>M145),M145,IF(AND($D$10=40,$H$10=\"Ja\",(SUM(M127*0.9)<M145)),(M127*0.9/$D$10*39.2),IF(M127*0.9>M145,M145,M127*0.9)))","v":0},null,{"$f":"IF(AND($D$10=40,$H$10=\"Ja\",(O127*0.9)>O145),O145,IF(AND($D$10=40,$H$10=\"Ja\",(SUM(O127*0.9)<O145)),(O127*0.9/$D$10*39.2),IF(O127*0.9>O145,O145,O127*0.9)))","v":0},"PE"]
["Therapeut:innen",null,null,null,null,null,null,null,null,null,null,null,null,null,null,null,null,{"$f":"IF(OR(D134=\"\",E134=\"\",F134=\"\",G134=\"\",H134=\"\",I134=\"\",J134=\"\",K134=\"\",L134=\"\",M134=\"\",N134=\"\",O134=\"\")=TRUE,\"Eingabe unvollständig\",\"\")","v":"Eingabe unvollständig"},null,null,null,null,null,null,"x"]
["Hilfskräfte",null,null,null,null,null,null,null,null,null,null,null,null,null,null,null,null,{"$f":"IF(OR(D135=\"\",E135=\"\",F135=\"\",G135=\"\",H135=\"\",I135=\"\",J135=\"\",K135=\"\",L135=\"\",M135=\"\",N135=\"\",O135=\"\")=TRUE,\"Eingabe unvollständig\",\"\")","v":"Eingabe unvollständig"},null,null,null,null,null,null,"x"]
["Summe nicht anrechenbares Pflegepersonal (inkl. Überhang HH,... und Stützpersonal)",null,null,null,{"$f":"SUM(E134:E135)+(E128-E129)","v":0},null,{"$f":"SUM(G134:G135)+(G128-G129)","v":0},null,{"$f":"SUM(I134:I135)+(I128-I129)","v":0},null,{"$f":"SUM(K134:K135)+(K128-K129)","v":0},null,{"$f":"SUM(M134:M135)+(M128-M129)","v":0},null,{"$f":"SUM(O134:O135)+(O128-O129)","v":0}]
[null,null,null,null,null,null,null,null,null,null,null,null,null,null,null,null,null,null,null,null,null,null,null,null,{"$f":"IF(R137=\"\",\"\",\"x\")","v":""}]
["Heimbewohner:innen",null,null,null,{"$f":"B42","v":0},null,{"$f":"B55","v":0},null,{"$f":"B68","v":0},null,{"$f":"B81","v":0},null,{"$f":"B94","v":0},null,{"$f":"B107","v":0}]
["davon Kurzzeitpflege-Gäste",null,null,null,null,null,null,null,null,null,null,null,null,null,null,null,null,{"$f":"IF(OR(E139=\"\",G139=\"\",I139=\"\",K139=\"\",M139=\"\",O139=\"\")=TRUE,\"Eingabe unvollständig\",\"\")","v":"Eingabe unvollständig"},null,null,null,null,null,null,"x"]
["Mindestpflegepersonalbedarf",null,null,null,{"$f":"E23","v":0},"PE",{"$f":"G23","v":0},"PE",{"$f":"I23","v":0},"PE",{"$f":"K23","v":0},"PE",{"$f":"M23","v":0},"PE",{"$f":"O23","v":0},"PE"]
["Mindestbedarf DGKP+PFA bei Anteil 20 %",null,null,null,{"$f":"E140*0.2","v":0},"PE",{"$f":"G140*0.2","v":0},"PE",{"$f":"I140*0.2","v":0},"PE",{"$f":"K140*0.2","v":0},"PE",{"$f":"M140*0.2","v":0},"PE",{"$f":"O140*0.2","v":0},"PE",null,null,null,null,{"$f":"IF(R141=\"\",\"\",\"x\")","v":""}]
["Mindestbedarf DGKP+PFA bei Anteil 25 %",null,null,null,{"$f":"E140*0.25","v":0},"PE",{"$f":"G140*0.25","v":0},"PE",{"$f":"I140*0.25","v":0},"PE",{"$f":"K140*0.25","v":0},"PE",{"$f":"M140*0.25","v":0},"PE",{"$f":"O140*0.25","v":0},"PE",null,null,null,null,null,null,null,null,{"$f":"IF(R142=\"\",\"\",\"x\")","v":""}]
["Mindestbedarf FSB+DSB (ohne BB) und PA",null,null,null,{"$f":"E140*0.55","v":0},"PE",{"$f":"G140*0.55","v":0},"PE",{"$f":"I140*0.55","v":0},"PE",{"$f":"K140*0.55","v":0},"PE",{"$f":"M140*0.55","v":0},"PE",{"$f":"O140*0.55","v":0},"PE",null,null,null,null,null,null,null,null,{"$f":"IF(R143=\"\",\"\",\"x\")","v":""}]
["Maximalbedarf HH+AB+FSB\"BB\"/DSB\"BB\"",null,null,null,{"$f":"E140*0.2","v":0},"PE",{"$f":"G140*0.2","v":0},"PE",{"$f":"I140*0.2","v":0},"PE",{"$f":"K140*0.2","v":0},"PE",{"$f":"M140*0.2","v":0},"PE",{"$f":"O140*0.2","v":0},"PE",null,null,null,null,null,null,null,null,{"$f":"IF(R144=\"\",\"\",\"x\")","v":""}]
["Maximalbedarf Stützpersonal",null,null,null,{"$f":"E140*0.1","v":0},"PE",{"$f":"G140*0.1","v":0},"PE",{"$f":"I140*0.1","v":0},"PE",{"$f":"K140*0.1","v":0},"PE",{"$f":"M140*0.1","v":0},"PE",{"$f":"O140*0.1","v":0},"PE",null,null,null,null,null,null,null,null,{"$f":"IF(R145=\"\",\"\",\"x\")","v":""}]
["ERFÜLLUNG MPPB",null,null,null,{"$f":"IF(E140=0,\"0\",E129/E140*100)","v":"0"},"%",{"$f":"IF(G140=0,\"0\",G129/G140*100)","v":"0"},"%",{"$f":"IF(I140=0,\"0\",I129/I140*100)","v":"0"},"%",{"$f":"IF(K140=0,\"0\",K129/K140*100)","v":"0"},"%",{"$f":"IF(M140=0,\"0\",M129/M140*100)","v":"0"},"%",{"$f":"IF(O140=0,\"0\",O129/O140*100)","v":"0"},"%"]
["Anteil anrechenbares DGKP+PFA am MPPB",null,null,null,{"$f":"IF(E129=0,\"0\",(E130/E140*100))","v":"0"},"%",{"$f":"IF(G129=0,\"0\",(G130/G140*100))","v":"0"},"%",{"$f":"IF(I129=0,\"0\",(I130/I140*100))","v":"0"},"%",{"$f":"IF(K129=0,\"0\",(K130/K140*100))","v":"0"},"%",{"$f":"IF(M129=0,\"0\",(M130/M140*100))","v":"0"},"%",{"$f":"IF(O129=0,\"0\",(O130/O140*100))","v":"0"},"%"]
["Anteil anrechenb. FSB \"A\" und \"BA\", DSB \"A\" und \"BA\", DSB \"F\" und PA am MPPB",null,"Anteil Pflegeassistent/innen",null,{"$f":"IF(E129=0,\"0\",(E131+E119+E120+E121+E122+E123)/E140*100)","v":"0"},"%",{"$f":"IF(G129=0,\"0\",(G131+G119+G120+G121+G122+G123)/G140*100)","v":"0"},"%",{"$f":"IF(I129=0,\"0\",(I131+I119+I120+I121+I122+I123)/I140*100)","v":"0"},"%",{"$f":"IF(K129=0,\"0\",(K131+K119+K120+K121+K122+K123)/K140*100)","v":"0"},"%",{"$f":"IF(M129=0,\"0\",(M131+M119+M120+M121+M122+M123)/M140*100)","v":"0"},"%",{"$f":"IF(O129=0,\"0\",(O131+O119+O120+O121+O122+O123)/O140*100)","v":"0"},"%"]
["Anteil anrechenb. HH, AB, FSB \"BB\"und DSB \"BB\" am MPPB",null,null,null,{"$f":"IF(E129=0,\"0\",E132/E140*100)","v":"0"},"%",{"$f":"IF(G129=0,\"0\",G132/G140*100)","v":"0"},"%",{"$f":"IF(I129=0,\"0\",I132/I140*100)","v":"0"},"%",{"$f":"IF(K129=0,\"0\",K132/K140*100)","v":"0"},"%",{"$f":"IF(M129=0,\"0\",M132/M140*100)","v":"0"},"%",{"$f":"IF(O129=0,\"0\",O132/O140*100)","v":"0"},"%",null,null,null,null,null,null,null,null,{"$f":"IF(R149=\"\",\"\",\"x\")","v":""}]
["Anteil anrechenb. Stützpersonal am MPPB",null,null,null,{"$f":"IF(E129=0,\"0\",(E133/E140*100))","v":"0"},"%",{"$f":"IF(G129=0,\"0\",(G133/G140*100))","v":"0"},"%",{"$f":"IF(I129=0,\"0\",(I133/I140*100))","v":"0"},"%",{"$f":"IF(K129=0,\"0\",(K133/K140*100))","v":"0"},"%",{"$f":"IF(M129=0,\"0\",(M133/M140*100))","v":"0"},"%",{"$f":"IF(O129=0,\"0\",(O133/O140*100))","v":"0"},"%",null,null,null,null,null,null,null,null,""]
["es fehlen insgesamt",null,null,null,{"$f":"IF(E140<E129,\"0\",E140-E129)","v":0},{"$f":"IF(E151=\"\",\"\",\"PE\")","v":"PE"},{"$f":"IF(G140<G129,\"0\",G140-G129)","v":0},{"$f":"IF(G151=\"\",\"\",\"PE\")","v":"PE"},{"$f":"IF(I140<I129,\"0\",I140-I129)","v":0},{"$f":"IF(I151=\"\",\"\",\"PE\")","v":"PE"},{"$f":"IF(K140<K129,\"0\",K140-K129)","v":0},{"$f":"IF(K151=\"\",\"\",\"PE\")","v":"PE"},{"$f":"IF(M140<M129,\"0\",M140-M129)","v":0},{"$f":"IF(M151=\"\",\"\",\"PE\")","v":"PE"},{"$f":"IF(O140<O129,\"0\",O140-O129)","v":0},"PE"]
["es fehlen an DGKP+PFA auf Anteil 20 %",null,null,null,{"$f":"IF(E141<E130,\"0\",E141-E130)","v":0},{"$f":"IF(E152=\"\",\"\",\"PE\")","v":"PE"},{"$f":"IF(G141<G130,\"0\",G141-G130)","v":0},{"$f":"IF(G152=\"\",\"\",\"PE\")","v":"PE"},{"$f":"IF(I141<I130,\"0\",I141-I130)","v":0},{"$f":"IF(I152=\"\",\"\",\"PE\")","v":"PE"},{"$f":"IF(K141<K130,\"0\",K141-K130)","v":0},{"$f":"IF(K152=\"\",\"\",\"PE\")","v":"PE"},{"$f":"IF(M141<M130,\"0\",M141-M130)","v":0},{"$f":"IF(M152=\"\",\"\",\"PE\")","v":"PE"},{"$f":"IF(O141<O130,\"0\",O141-O130)","v":0},{"$f":"IF(O152=\"\",\"\",\"PE\")","v":"PE"},null,null,null,null,{"$f":"IF(R152=\"\",\"\",\"x\")","v":""}]
["es fehlen an DGKP+PFA auf Anteil 25 %",null,null,null,{"$f":"IF(E142<E130,\"0\",E142-E130)","v":0},{"$f":"IF(E153=\"\",\"\",\"PE\")","v":"PE"},{"$f":"IF(G142<G130,\"0\",G142-G130)","v":0},{"$f":"IF(G153=\"\",\"\",\"PE\")","v":"PE"},{"$f":"IF(I142<I130,\"0\",I142-I130)","v":0},{"$f":"IF(I153=\"\",\"\",\"PE\")","v":"PE"},{"$f":"IF(K142<K130,\"0\",K142-K130)","v":0},{"$f":"IF(K153=\"\",\"\",\"PE\")","v":"PE"},{"$f":"IF(M142<M130,\"0\",M142-M130)","v":0},{"$f":"IF(M153=\"\",\"\",\"PE\")","v":"PE"},{"$f":"IF(O142<O130,\"0\",O142-O130)","v":0},"PE",null,null,null,null,null,null,null,null,{"$f":"IF(R153=\"\",\"\",\"x\")","v":""}]
["es fehlen an FSB+DSB (ohne BB) und PA",null,null,null,{"$f":"IF(E143<SUM(E131,E119,E120:E123),\"0\",E143-(SUM(E131,E119,E120:E123)))","v":0},{"$f":"IF(E154=\"\",\"\",\"PE\")","v":"PE"},{"$f":"IF(G143<SUM(G131,G119,G120:G123),\"0\",G143-(SUM(G131,G119,G120:G123)))","v":0},{"$f":"IF(G154=\"\",\"\",\"PE\")","v":"PE"},{"$f":"IF(I143<SUM(I131,I119,I120:I123),\"0\",I143-(SUM(I131,I119,I120:I123)))","v":0},{"$f":"IF(I154=\"\",\"\",\"PE\")","v":"PE"},{"$f":"IF(K143<SUM(K131,K119,K120:K123),\"0\",K143-(SUM(K131,K119,K120:K123)))","v":0},{"$f":"IF(K154=\"\",\"\",\"PE\")","v":"PE"},{"$f":"IF(M143<SUM(M131,M119,M120:M123),\"0\",M143-(SUM(M131,M119,M120:M123)))","v":0},{"$f":"IF(M154=\"\",\"\",\"PE\")","v":"PE"},{"$f":"IF(O143<SUM(O131,O119,O120:O123),\"0\",O143-(SUM(O131,O119,O120:O123)))","v":0},"PE",null,null,null,null,null,null,null,null,{"$f":"IF(R154=\"\",\"\",\"x\")","v":""}]
[]
[]
["2.","Halbjahr",{"$f":"I3","v":"2025-12-31"}]
[]
[null,null,null,"31.7.",{"$f":"C157","v":"2025-12-31"},"31.8.",{"$f":"C157","v":"2025-12-31"},"30.9.",{"$f":"C157","v":"2025-12-31"},"31.10.",{"$f":"C157","v":"2025-12-31"},"30.11.",{"$f":"C157","v":"2025-12-31"},"31.12.",{"$f":"C157","v":"2025-12-31"},"Durchschnitt 2. HJ"]
[null,"Schlüssel","PG-Stufe","Personal- bedarf lt. PG-Bescheid","Personal- bedarf nach erwarteter\nPG-Einstufung","Personal- bedarf lt. PG-Bescheid","Personal- bedarf nach erwarteter\nPG-Einstufung","Personal- bedarf lt. PG-Bescheid","Personal- bedarf nach erwarteter\nPG-Einstufung","Personal- bedarf lt. PG-Bescheid","Personal- bedarf nach erwarteter\nPG-Einstufung","Personal- bedarf lt. PG-Bescheid","Personal- bedarf nach erwarteter\nPG-Einstufung","Personal- bedarf lt. PG-Bescheid","Personal- bedarf nach erwarteter\nPG-Einstufung","Personal- bedarf lt. PG-Bescheid","Personal- bedarf nach erwarteter\nPG-Einstufung"]
[null,24,"kein PG",{"$f":"$B180/$B161*40/$D$10","v":0},{"$f":"($B180-$C180+E$188)/$B161*40/$D$10","v":0},{"$f":"$B193/$B161*40/$D$10","v":0},{"$f":"($B193-$C193+E$201)/$B161*40/$D$10","v":0},{"$f":"$B206/$B161*40/$D$10","v":0},{"$f":"($B206-$C206+E$214)/$B161*40/$D$10","v":0},{"$f":"$B219/$B161*40/$D$10","v":0},{"$f":"($B219-$C219+E$227)/$B161*40/$D$10","v":0},{"$f":"$B232/$B161*40/$D$10","v":0},{"$f":"($B232-$C232+E$240)/$B161*40/$D$10","v":0},{"$f":"$B245/$B161*40/$D$10","v":0},{"$f":"($B245-$C245+E$253)/$B161*40/$D$10","v":0},{"$f":"(D161+F161+H161+J161+L161+N161)/$Z$167","v":{"$error":"#DIV/0!"}},{"$f":"(E161+G161+I161+K161+M161+O161)/$Z$167","v":{"$error":"#DIV/0!"}},null,null,null,null,null,null,null,null,{"$f":"IF(D169<>0,1,0)","v":0}]
[null,12,1,0,{"$f":"($B181-$C181+F$188)/$B162*40/$D$10","v":0},0,{"$f":"($B194-$C194+F$201)/$B162*40/$D$10","v":0},0,{"$f":"($B207-$C207+F$214)/$B162*40/$D$10","v":0},0,{"$f":"($B220-$C220+F$227)/$B162*40/$D$10","v":0},0,{"$f":"($B233-$C233+F$240)/$B162*40/$D$10","v":0},0,{"$f":"($B246-$C246+F$253)/$B162*40/$D$10","v":0},{"$error":"#DIV/0!"},{"$error":"#DIV/0!"},null,null,null,null,null,null,null,null,{"$f":"IF(F169<>0,1,0)","v":0}]
[null,7.5,2,0,{"$f":"($B182-$C182+G$188)/$B163*40/$D$10","v":0},0,{"$f":"($B195-$C195+G$201)/$B163*40/$D$10","v":0},0,{"$f":"($B208-$C208+G$214)/$B163*40/$D$10","v":0},0,{"$f":"($B221-$C221+G$227)/$B163*40/$D$10","v":0},0,{"$f":"($B234-$C234+G$240)/$B163*40/$D$10","v":0},0,{"$f":"($B247-$C247+G$253)/$B163*40/$D$10","v":0},{"$error":"#DIV/0!"},{"$error":"#DIV/0!"},null,null,null,null,null,null,null,null,{"$f":"IF(H169<>0,1,0)","v":0}]
[null,4,3,0,{"$f":"($B183-$C183+H$188)/$B164*40/$D$10","v":0},0,{"$f":"($B196-$C196+H$201)/$B164*40/$D$10","v":0},0,{"$f":"($B209-$C209+H$214)/$B164*40/$D$10","v":0},0,{"$f":"($B222-$C222+H$227)/$B164*40/$D$10","v":0},0,{"$f":"($B235-$C235+H$240)/$B164*40/$D$10","v":0},0,{"$f":"($B248-$C248+H$253)/$B164*40/$D$10","v":0},{"$error":"#DIV/0!"},{"$error":"#DIV/0!"},null,null,null,null,null,null,null,null,{"$f":"IF(J169<>0,1,0)","v":0}]
[null,2.5,4,0,{"$f":"($B184-$C184+I$188)/$B165*40/$D$10","v":0},0,{"$f":"($B197-$C197+I$201)/$B165*40/$D$10","v":0},0,{"$f":"($B210-$C210+I$214)/$B165*40/$D$10","v":0},0,{"$f":"($B223-$C223+I$227)/$B165*40/$D$10","v":0},0,{"$f":"($B236-$C236+I$240)/$B165*40/$D$10","v":0},0,{"$f":"($B249-$C249+I$253)/$B165*40/$D$10","v":0},{"$error":"#DIV/0!"},{"$error":"#DIV/0!"},null,null,null,null,null,null,null,null,{"$f":"IF(L169<>0,1,0)","v":0}]
[null,2,5,0,{"$f":"($B185-$C185+J$188)/$B166*40/$D$10","v":0},0,{"$f":"($B198-$C198+J$201)/$B166*40/$D$10","v":0},0,{"$f":"($B211-$C211+J$214)/$B166*40/$D$10","v":0},0,{"$f":"($B224-$C224+J$227)/$B166*40/$D$10","v":0},0,{"$f":"($B237-$C237+J$240)/$B166*40/$D$10","v":0},0,{"$f":"($B250-$C250+J$253)/$B166*40/$D$10","v":0},{"$error":"#DIV/0!"},{"$error":"#DIV/0!"},null,null,null,null,null,null,null,null,{"$f":"IF(N169<>0,1,0)","v":0}]
[null,1.5,6,0,{"$f":"($B186-$C186+K$188)/$B167*40/$D$10","v":0},0,{"$f":"($B199-$C199+K$201)/$B167*40/$D$10","v":0},0,{"$f":"($B212-$C212+K$214)/$B167*40/$D$10","v":0},0,{"$f":"($B225-$C225+K$227)/$B167*40/$D$10","v":0},0,{"$f":"($B238-$C238+K$240)/$B167*40/$D$10","v":0},0,{"$f":"($B251-$C251+K$253)/$B167*40/$D$10","v":0},{"$error":"#DIV/0!"},{"$error":"#DIV/0!"},null,null,null,null,null,null,null,null,{"$f":"SUM(Z161:Z166)","v":0}]
[null,1.5,7,0,{"$f":"($B187-$C187+L$188)/$B168*40/$D$10","v":0},0,{"$f":"($B200-$C200+L$201)/$B168*40/$D$10","v":0},0,{"$f":"($B213-$C213+L$214)/$B168*40/$D$10","v":0},0,{"$f":"($B226-$C226+L$227)/$B168*40/$D$10","v":0},0,{"$f":"($B239-$C239+L$240)/$B168*40/$D$10","v":0},0,{"$f":"($B252-$C252+L$253)/$B168*40/$D$10","v":0},{"$error":"#DIV/0!"},{"$error":"#DIV/0!"}]
[null,null,"MPPB",{"$f":"SUM(D161:D168)","v":0},0,0,0,0,0,0,0,0,0,0,0,{"$error":"#DIV/0!"},{"$error":"#DIV/0!"}]
[null,null,"anrechenb. Pflegepersonal / Erfüllungsgrad:",{"$f":"E275","v":0},{"$f":"D170/E169","v":{"$error":"#DIV/0!"}},{"$f":"G275","v":0},{"$f":"F170/G169","v":{"$error":"#DIV/0!"}},{"$f":"I275","v":0},{"$f":"H170/I169","v":{"$error":"#DIV/0!"}},{"$f":"K275","v":0},{"$f":"J170/K169","v":{"$error":"#DIV/0!"}},{"$f":"M275","v":0},{"$f":"L170/M169","v":{"$error":"#DIV/0!"}},{"$f":"O275","v":0},{"$f":"N170/O169","v":{"$error":"#DIV/0!"}},{"$f":"(D170+F170+H170+J170+L170+N170)/$Z$167","v":{"$error":"#DIV/0!"}},{"$f":"P170/Q169","v":{"$error":"#DIV/0!"}}]
[null,null,"Bewohneranzahl / offene Verfahren:",{"$f":"B188","v":0},{"$f":"C188","v":0},{"$f":"B201","v":0},{"$f":"C201","v":0},{"$f":"B214","v":0},{"$f":"C214","v":0},{"$f":"B227","v":0},{"$f":"C227","v":0},{"$f":"B240","v":0},{"$f":"C240","v":0},{"$f":"B253","v":0},{"$f":"C253","v":0}]
[null,null,null,null,null,null,null,null,null,null,null,null,null,null,"Pflegeintensität (Verhältnis Pflegepersonaleinheit-SOLL zu HB)","1 : ",{"$f":"((B188+B201+B214+B227+B240+B253)/Z167)/Q169","v":{"$error":"#DIV/0!"}}]
[null,null,null,null,null,null,null,null,null,null,null,null,null,null,"(diese Kennzahl ist der Indikator für den durchschnittlichen Pflegebedarf aller HB,"]
[null,null,null,null,null,null,null,null,null,null,null,null,null,null,"die Berechnung einer durchschnittlichen Pflegegeld-Stufe ist nicht zulässig!)"]
[]
[null,"bitte Pflegegeld-Angaben (Summe LZP + KZP) zum Stichtag eintragen!"]
[{"$f":"D159","v":"31.7."}]
["derzeitige PG-Stufe","Personen ohne PG bzw. lt. PG-Bescheid","Anzahl offene Verfahren",4,"erwartete Einstufung"]
[null,null,null,null,0,1,2,3,4,5,6,7]
[0,null,null,null,null,null,null,null,null,null,null,null,null,null,null,null,null,{"$f":"IF(OR(B180=\"\",C180=\"\")=TRUE,\"Eingabe unvollständig\",IF(B180<C180,\"Wert in Spalte C kann nicht größer sein als jener in Spalte B\",\"\"))","v":"Eingabe unvollständig"},null,null,null,null,null,null,{"$f":"IF(R180=\"\",\"\",\"x\")","v":"x"}]
[1,null,null,null,null,null,null,null,null,null,null,null,null,null,null,null,null,{"$f":"IF(OR(B181=\"\",C181=\"\")=TRUE,\"Eingabe unvollständig\",IF(B181<C181,\"Wert in Spalte C kann nicht größer sein als jener in Spalte B\",\"\"))","v":"Eingabe unvollständig"},null,null,null,null,null,null,"x"]
[2,null,null,null,null,null,null,null,null,null,null,null,null,null,null,null,null,"Eingabe unvollständig",null,null,null,null,null,null,"x"]
[3,null,null,null,null,null,null,null,null,null,null,null,null,null,null,null,null,"Eingabe unvollständig",null,null,null,null,null,null,"x"]
[4,null,null,null,null,null,null,null,null,null,null,null,null,null,null,null,null,"Eingabe unvollständig",null,null,null,null,null,null,"x"]
[5,null,null,null,null,null,null,null,null,null,null,null,null,null,null,null,null,"Eingabe unvollständig",null,null,null,null,null,null,"x"]
[6,null,null,null,null,null,null,null,null,null,null,null,null,null,null,null,null,"Eingabe unvollständig",null,null,null,null,null,null,"x"]
[7,null,null,null,null,null,null,null,null,null,null,null,"Summe",null,null,null,null,{"$f":"IF(B187=\"\",\"Eingabe unvollständig\",\"\")","v":"Eingabe unvollständig"},null,null,null,null,null,null,"x"]
[null,{"$f":"SUM(B180:B187)","v":0},{"$f":"SUM(C180:C187)","v":0},null,{"$f":"SUM(E180:E187)","v":0},0,0,0,0,0,0,0,{"$f":"SUM(E188:L188)","v":0},null,null,null,null,{"$f":"IF(C188<>M188,\"Summe in C188 muss gleich hoch sein wie Summe in M188\",\"\")","v":""},null,null,null,null,null,null,""]
[]
[{"$f":"F159","v":"31.8."}]
["derzeitige PG-Stufe","Personen ohne PG bzw. lt. PG-Bescheid","Anzahl offene Verfahren",null,"erwartete Einstufung"]
[null,null,null,null,0,1,2,3,4,5,6,7]
[0,null,null,null,null,null,null,null,null,null,null,null,null,null,null,null,null,{"$f":"IF(OR(B193=\"\",C193=\"\")=TRUE,\"Eingabe unvollständig\",IF(B193<C193,\"Wert in Spalte C kann nicht größer sein als jener in Spalte B\",\"\"))","v":"Eingabe unvollständig"},null,null,null,null,null,null,{"$f":"IF(R193=\"\",\"\",\"x\")","v":"x"}]
[1,null,null,null,null,null,null,null,null,null,null,null,null,null,null,null,null,"Eingabe unvollständig",null,null,null,null,null,null,"x"]
[2,null,null,null,null,null,null,null,null,null,null,null,null,null,null,null,null,"Eingabe unvollständig",null,null,null,null,null,null,"x"]
[3,null,null,null,null,null,null,null,null,null,null,null,null,null,null,null,null,"Eingabe unvollständig",null,null,null,null,null,null,"x"]
[4,null,null,null,null,null,null,null,null,null,null,null,null,null,null,null,null,"Eingabe unvollständig",null,null,null,null,null,null,"x"]
[5,null,null,null,null,null,null,null,null,null,null,null,null,null,null,null,null,"Eingabe unvollständig",null,null,null,null,null,null,"x"]
[6,null,null,null,null,null,null,null,null,null,null,null,null,null,null,null,null,"Eingabe unvollständig",null,null,null,null,null,null,"x"]
[7,null,null,null,null,null,null,null,null,null,null,null,"Summe",null,null,null,null,{"$f":"IF(B200=\"\",\"Eingabe unvollständig\",\"\")","v":"Eingabe unvollständig"},null,null,null,null,null,null,"x"]
[null,{"$f":"SUM(B193:B200)","v":0},{"$f":"SUM(C193:C200)","v":0},null,{"$f":"SUM(E193:E200)","v":0},0,0,0,0,0,0,0,{"$f":"SUM(E201:L201)","v":0},null,null,null,null,{"$f":"IF(C201<>M201,\"Summe in C201 muss gleich hoch sein wie Summe in M201\",\"\")","v":""},null,null,null,null,null,null,""]
[]
[{"$f":"H159","v":"30.9."}]
["derzeitige PG-Stufe","Personen ohne PG bzw. lt. PG-Bescheid","Anzahl offene Verfahren",null,"erwartete Einstufung"]
[null,null,null,null,0,1,2,3,4,5,6,7]
[0,null,null,null,null,null,null,null,null,null,null,null,null,null,null,null,null,{"$f":"IF(OR(B206=\"\",C206=\"\")=TRUE,\"Eingabe unvollständig\",IF(B206<C206,\"Wert in Spalte C kann nicht größer sein als jener in Spalte B\",\"\"))","v":"Eingabe unvollständig"},null,null,null,null,null,null,{"$f":"IF(R206=\"\",\"\",\"x\")","v":"x"}]
[1,null,null,null,null,null,null,null,null,null,null,null,null,null,null,null,null,"Eingabe unvollständig",null,null,null,null,null,null,"x"]
[2,null,null,null,null,null,null,null,null,null,null,null,null,null,null,null,null,"Eingabe unvollständig",null,null,null,null,null,null,"x"]
[3,null,null,null,null,null,null,null,null,null,null,null,null,null,null,null,null,"Eingabe unvollständig",null,null,null,null,null,null,"x"]
[4,null,null,null,null,null,null,null,null,null,null,null,null,null,null,null,null,"Eingabe unvollständig",null,null,null,null,null,null,"x"]
[5,null,null,null,null,null,null,null,null,null,null,null,null,null,null,null,null,"Eingabe unvollständig",null,null,null,null,null,null,"x"]
[6,null,null,null,null,null,null,null,null,null,null,null,null,null,null,null,null,"Eingabe unvollständig",null,null,null,null,null,null,"x"]
[7,null,null,null,null,null,null,null,null,null,null,null,"Summe",null,null,null,null,{"$f":"IF(B213=\"\",\"Eingabe unvollständig\",\"\")","v":"Eingabe unvollständig"},null,null,null,null,null,null,"x"]
[null,{"$f":"SUM(B206:B213)","v":0},{"$f":"SUM(C206:C213)","v":0},null,{"$f":"SUM(E206:E213)","v":0},0,0,0,0,0,0,0,{"$f":"SUM(E214:L214)","v":0},null,null,null,null,{"$f":"IF(C214<>M214,\"Summe in C214 muss gleich hoch sein wie Summe in M214\",\"\")","v":""},null,null,null,null,null,null,""]
[]
[{"$f":"J159","v":"31.10."}]
["derzeitige PG-Stufe","Personen ohne PG bzw. lt. PG-Bescheid","Anzahl offene Verfahren",null,"erwartete Einstufung"]
[null,null,null,null,0,1,2,3,4,5,6,7]
[0,null,null,null,null,null,null,null,null,null,null,null,null,null,null,null,null,{"$f":"IF(OR(B219=\"\",C219=\"\")=TRUE,\"Eingabe unvollständig\",IF(B219<C219,\"Wert in Spalte C kann nicht größer sein als jener in Spalte B\",\"\"))","v":"Eingabe unvollständig"},null,null,null,null,null,null,{"$f":"IF(R219=\"\",\"\",\"x\")","v":"x"}]
[1,null,null,null,null,null,null,null,null,null,null,null,null,null,null,null,null,"Eingabe unvollständig",null,null,null,null,null,null,"x"]
[2,null,null,null,null,null,null,null,null,null,null,null,null,null,null,null,null,"Eingabe unvollständig",null,null,null,null,null,null,"x"]
[3,null,null,null,null,null,null,null,null,null,null,null,null,null,null,null,null,"Eingabe unvollständig",null,null,null,null,null,null,"x"]
[4,null,null,null,null,null,null,null,null,null,null,null,null,null,null,null,null,"Eingabe unvollständig",null,null,null,null,null,null,"x"]
[5,null,null,null,null,null,null,null,null,null,null,null,null,null,null,null,null,"Eingabe unvollständig",null,null,null,null,null,null,"x"]
[6,null,null,null,null,null,null,null,null,null,null,null,null,null,null,null,null,"Eingabe unvollständig",null,null,null,null,null,null,"x"]
[7,null,null,null,null,null,null,null,null,null,null,null,"Summe",null,null,null,null,{"$f":"IF(B226=\"\",\"Eingabe unvollständig\",\"\")","v":"Eingabe unvollständig"},null,null,null,null,null,null,"x"]
[null,{"$f":"SUM(B219:B226)","v":0},{"$f":"SUM(C219:C226)","v":0},null,{"$f":"SUM(E219:E226)","v":0},0,0,0,0,0,0,0,{"$f":"SUM(E227:L227)","v":0},null,null,null,null,{"$f":"IF(C227<>M227,\"Summe in C227 muss gleich hoch sein wie Summe in M227\",\"\")","v":""},null,null,null,null,null,null,""]
[]
[{"$f":"L159","v":"30.11."}]
["derzeitige PG-Stufe","Personen ohne PG bzw. lt. PG-Bescheid","Anzahl offene Verfahren",null,"erwartete Einstufung"]
[null,null,null,null,0,1,2,3,4,5,6,7]
[0,null,null,null,null,null,null,null,null,null,null,null,null,null,null,null,null,{"$f":"IF(OR(B232=\"\",C232=\"\")=TRUE,\"Eingabe unvollständig\",IF(B232<C232,\"Wert in Spalte C kann nicht größer sein als jener in Spalte B\",\"\"))","v":"Eingabe unvollständig"},null,null,null,null,null,null,"x"]
[1,null,null,null,null,null,null,null,null,null,null,null,null,null,null,null,null,"Eingabe unvollständig",null,null,null,null,null,null,"x"]
[2,null,null,null,null,null,null,null,null,null,null,null,null,null,null,null,null,"Eingabe unvollständig",null,null,null,null,null,null,"x"]
[3,null,null,null,null,null,null,null,null,null,null,null,null,null,null,null,null,"Eingabe unvollständig",null,null,null,null,null,null,"x"]
[4,null,null,null,null,null,null,null,null,null,null,null,null,null,null,null,null,"Eingabe unvollständig",null,null,null,null,null,null,"x"]
[5,null,null,null,null,null,null,null,null,null,null,null,null,null,null,null,null,"Eingabe unvollständig",null,null,null,null,null,null,"x"]
[6,null,null,null,null,null,null,null,null,null,null,null,null,null,null,null,null,"Eingabe unvollständig",null,null,null,null,null,null,"x"]
[7,null,null,null,null,null,null,null,null,null,null,null,"Summe",null,null,null,null,{"$f":"IF(B239=\"\",\"Eingabe unvollständig\",\"\")","v":"Eingabe unvollständig"},null,null,null,null,null,null,"x"]
[null,{"$f":"SUM(B232:B239)","v":0},{"$f":"SUM(C232:C239)","v":0},null,{"$f":"SUM(E232:E239)","v":0},0,0,0,0,0,0,0,{"$f":"SUM(E240:L240)","v":0},null,null,null,null,{"$f":"IF(C240<>M240,\"Summe in C240 muss gleich hoch sein wie Summe in M240\",\"\")","v":""},null,null,null,null,null,null,""]
[]
[{"$f":"N159","v":"31.12."},null,null,null,null,null,null,null,null,null,null,null,null,"Summe der Angaben in 1a_ + 1b_",null,null,"Kontrollspalte\nSumme muss in jeder Zeile \"0\"  ergeben"]
["derzeitige PG-Stufe","Personen ohne PG bzw. lt. PG-Bescheid","Anzahl offene Verfahren",null,"erwartete Einstufung",null,null,null,null,null,null,null,null,"derzeitige PG-Stufe","Personen ohne PG bzw. lt. PG-Bescheid","Anzahl offene Verfahren"]
[null,null,null,null,0,1,2,3,4,5,6,7]
[0,null,null,null,null,null,null,null,null,null,null,null,null,0,{"$f":"'1a_Langzeitpflege'!B41+'1b_Kurzzeitpflege'!B65","v":0},{"$f":"'1a_Langzeitpflege'!C41+'1b_Kurzzeitpflege'!C65","v":0},{"$f":"B245+C245-O245-P245","v":0},{"$f":"IF(OR(B245=\"\",C245=\"\")=TRUE,\"Eingabe unvollständig\",IF(B245<C245,\"Wert in Spalte C kann nicht größer sein als jener in Spalte B\",\"\"))","v":"Eingabe unvollständig"},null,null,null,null,null,null,"x"]
[1,null,null,null,null,null,null,null,null,null,null,null,null,1,{"$f":"'1a_Langzeitpflege'!B42+'1b_Kurzzeitpflege'!B66","v":0},{"$f":"'1a_Langzeitpflege'!C42+'1b_Kurzzeitpflege'!C66","v":0},{"$f":"B246+C246-O246-P246","v":0},"Eingabe unvollständig",null,null,null,null,null,null,"x"]
[2,null,null,null,null,null,null,null,null,null,null,null,null,2,{"$f":"'1a_Langzeitpflege'!B43+'1b_Kurzzeitpflege'!B67","v":0},{"$f":"'1a_Langzeitpflege'!C43+'1b_Kurzzeitpflege'!C67","v":0},0,"Eingabe unvollständig",null,null,null,null,null,null,"x"]
[3,null,null,null,null,null,null,null,null,null,null,null,null,3,{"$f":"'1a_Langzeitpflege'!B44+'1b_Kurzzeitpflege'!B68","v":0},{"$f":"'1a_Langzeitpflege'!C44+'1b_Kurzzeitpflege'!C68","v":0},0,"Eingabe unvollständig",null,null,null,null,null,null,"x"]
[4,null,null,null,null,null,null,null,null,null,null,null,null,4,{"$f":"'1a_Langzeitpflege'!B45+'1b_Kurzzeitpflege'!B69","v":0},{"$f":"'1a_Langzeitpflege'!C45+'1b_Kurzzeitpflege'!C69","v":0},0,"Eingabe unvollständig",null,null,null,null,null,null,"x"]
[5,null,null,null,null,null,null,null,null,null,null,null,null,5,{"$f":"'1a_Langzeitpflege'!B46+'1b_Kurzzeitpflege'!B70","v":0},{"$f":"'1a_Langzeitpflege'!C46+'1b_Kurzzeitpflege'!C70","v":0},0,"Eingabe unvollständig",null,null,null,null,null,null,"x"]
[6,null,null,null,null,null,null,null,null,null,null,null,null,6,{"$f":"'1a_Langzeitpflege'!B47+'1b_Kurzzeitpflege'!B71","v":0},{"$f":"'1a_Langzeitpflege'!C47+'1b_Kurzzeitpflege'!C71","v":0},0,"Eingabe unvollständig",null,null,null,null,null,null,"x"]
[7,null,null,null,null,null,null,null,null,null,null,null,"Summe",7,{"$f":"'1a_Langzeitpflege'!B48+'1b_Kurzzeitpflege'!B72","v":0},null,0,{"$f":"IF(B252=\"\",\"Eingabe unvollständig\",\"\")","v":"Eingabe unvollständig"},null,null,null,null,null,null,"x"]
[null,{"$f":"SUM(B245:B252)","v":0},{"$f":"SUM(C245:C252)","v":0},null,{"$f":"SUM(E245:E252)","v":0},0,0,0,0,0,0,0,{"$f":"SUM(E253:L253)","v":0},null,{"$f":"'1a_Langzeitpflege'!B49+'1b_Kurzzeitpflege'!B73","v":0},{"$f":"'1a_Langzeitpflege'!C49+'1b_Kurzzeitpflege'!C73","v":0},{"$f":"SUM(Q245:Q252)","v":0},{"$f":"IF(C253<>M253,\"Summe in C253 muss gleich hoch sein wie Summe in M253\",\"\")","v":""},null,null,null,null,null,null,{"$f":"IF(R253=\"\",\"\",\"x\")","v":""}]
[null,null,null,null,null,null,null,null,null,null,null,null,null,null,null,null,{"$f":"IF(AND(Q253=0,Q252=0,Q251=0,Q250=0,Q249=0,Q248=0,Q247=0,Q246=0,Q245=0)=TRUE,\"\",\"Die Angaben bzgl. PG-Einstufung am Stichtag 31.12.2023 sind nicht ident mit den Angaben in den Tabellenblättern 1a_ und 1b_, bitte überprüfen!\")","v":""},null,null,null,null,null,null,null,{"$f":"IF(Q254=\"\",\"\",\"x\")","v":""}]
["BETREUUNGS- und PFLEGEPERSONAL (inkl. Leasingpersonal und Poolkräfte) am jeweiligen Stichtag",null,null,null,null,null,null,null,null,{"$f":"I3","v":"2025-12-31"}]
["Pflegepersonal in Langzeit-Krankenstand ist hier nicht anzugeben, auch nicht Pflegepersonal in Altersteilzeit-Freizeitphase oder Sabbatical (jew. ab Beginn)!"]
["Werdende Mütter mit Eintritt in das sechste Schwangerschaftsmonat sind nur mehr zu 50 % ihres Beschäftigungsausmaßes zu berücksichtigen. "]
[null,null,null,"bitte Personalangaben und KZP-Gäste zum Stichtag eintragen!"]
[null,null,null,{"$f":"D159","v":"31.7."},{"$f":"C157","v":"2025-12-31"},{"$f":"F159","v":"31.8."},{"$f":"C157","v":"2025-12-31"},{"$f":"H159","v":"30.9."},{"$f":"C157","v":"2025-12-31"},{"$f":"J159","v":"31.10."},{"$f":"C157","v":"2025-12-31"},{"$f":"L159","v":"30.11."},{"$f":"C157","v":"2025-12-31"},{"$f":"N159","v":"31.12."},{"$f":"C157","v":"2025-12-31"},"Ihre Angaben in 2_Personal"]
[null,null,null,"Personen","PE","Personen","PE","Personen","PE","Personen","PE","Personen","PE","Personen","PE","Personen","PE"]
["Leitung des Betr.- und Pflegedienstes",null,null,null,null,null,null,null,null,null,null,null,null,null,null,{"$f":"'2_Personal'!G9","v":0},{"$f":"'2_Personal'!H9","v":0},{"$f":"IF(OR(D261=\"\",E261=\"\",F261=\"\",G261=\"\",H261=\"\",I261=\"\",J261=\"\",K261=\"\",L261=\"\",M261=\"\",N261=\"\",O261=\"\")=TRUE,\"Eingabe unvollständig\",IF(OR(N261>P261,O261>Q261)=TRUE,\"Die Werte in den Spalten N und O dürfen nur kleiner oder gleich hoch sein wie die Werte in den Spalten P und Q , bitte überprüfen!\",\"\"))","v":"Eingabe unvollständig"},null,null,null,null,null,null,"x"]
["Angehörige des gehobenen Dienstes DGKP",null,null,null,null,null,null,null,null,null,null,null,null,null,null,{"$f":"'2_Personal'!G10","v":0},{"$f":"'2_Personal'!H10","v":0},"Eingabe unvollständig",null,null,null,null,null,null,"x"]
["Pflegefachassistent:innen PFA",null,null,null,null,null,null,null,null,null,null,null,null,null,null,{"$f":"'2_Personal'!G11","v":0},{"$f":"'2_Personal'!H11","v":0},"Eingabe unvollständig",null,null,null,null,null,null,"x"]
["Fach-Sozialbetreuer:innen \"A\"",null,null,null,null,null,null,null,null,null,null,null,null,null,null,{"$f":"'2_Personal'!G12","v":0},{"$f":"'2_Personal'!H12","v":0},"Eingabe unvollständig",null,null,null,null,null,null,"x"]
["Fach-Sozialbetreuer:innen \"BA\"",null,null,null,null,null,null,null,null,null,null,null,null,null,null,{"$f":"'2_Personal'!G13","v":0},{"$f":"'2_Personal'!H13","v":0},"Eingabe unvollständig",null,null,null,null,null,null,"x"]
["Diplom. Sozialbetreuer:innen \"A\"",null,null,null,null,null,null,null,null,null,null,null,null,null,null,{"$f":"'2_Personal'!G14","v":0},{"$f":"'2_Personal'!H14","v":0},"Eingabe unvollständig",null,null,null,null,null,null,"x"]
["Diplom. Sozialbetreuer:innen \"BA\"",null,null,null,null,null,null,null,null,null,null,null,null,null,null,{"$f":"'2_Personal'!G15","v":0},{"$f":"'2_Personal'!H15","v":0},"Eingabe unvollständig",null,null,null,null,null,null,"x"]
["Diplom. Sozialbetreuer:innen \"F\"",null,null,null,null,null,null,null,null,null,null,null,null,null,null,{"$f":"'2_Personal'!G16","v":0},{"$f":"'2_Personal'!H16","v":0},"Eingabe unvollständig",null,null,null,null,null,null,"x"]
["Pflegeassistent:innen PA",null,null,null,null,null,null,null,null,null,null,null,null,null,null,{"$f":"'2_Personal'!G17","v":0},{"$f":"'2_Personal'!H17","v":0},"Eingabe unvollständig",null,null,null,null,null,null,"x"]
["Heimhelfer:innen HH \nund Altenbetreuer:innen AB",null,null,null,null,null,null,null,null,null,null,null,null,null,null,{"$f":"'2_Personal'!G18","v":0},{"$f":"'2_Personal'!H18","v":0},"Eingabe unvollständig",null,null,null,null,null,null,"x"]
["Fach-Sozialbetreuer:innen \"BB\"",null,null,null,null,null,null,null,null,null,null,null,null,null,null,{"$f":"'2_Personal'!G19","v":0},{"$f":"'2_Personal'!H19","v":0},"Eingabe unvollständig",null,null,null,null,null,null,"x"]
["Diplom. Sozialbetreuer:innen \"BB\"",null,null,null,null,null,null,null,null,null,null,null,null,null,null,{"$f":"'2_Personal'!G20","v":0},{"$f":"'2_Personal'!H20","v":0},"Eingabe unvollständig",null,null,null,null,null,null,"x"]
["Stützpersonal",null,null,null,null,null,null,null,null,null,null,null,null,null,null,{"$f":"'2_Personal'!G21","v":0},{"$f":"'2_Personal'!H21","v":0},"Eingabe unvollständig",null,null,null,null,null,null,"x"]
["Summe Pflegepersonal",null,null,{"$f":"SUM(D261:D273)","v":0},{"$f":"SUM(E261:E273)","v":0},0,0,0,{"$f":"SUM(I261:I273)","v":0},0,{"$f":"SUM(K261:K273)","v":0},0,{"$f":"SUM(M261:M273)","v":0},0,{"$f":"SUM(O261:O273)","v":0},{"$f":"SUM(P261:P273)","v":0},0]
["Summe anrechenbares Pflegepersonal",null,null,null,{"$f":"IF(AND($D$10=40,$H$10=\"Ja\"),SUM(E276:E279)+(SUM(E265:E269)/$D$10*39.2),SUM(E276:E279)+SUM(E265:E269))","v":0},null,{"$f":"IF(AND($D$10=40,$H$10=\"Ja\"),SUM(G276:G279)+(SUM(G265:G269)/$D$10*39.2),SUM(G276:G279)+SUM(G265:G269))","v":0},null,{"$f":"IF(AND($D$10=40,$H$10=\"Ja\"),SUM(I276:I279)+(SUM(I265:I269)/$D$10*39.2),SUM(I276:I279)+SUM(I265:I269))","v":0},null,{"$f":"IF(AND($D$10=40,$H$10=\"Ja\"),SUM(K276:K279)+(SUM(K265:K269)/$D$10*39.2),SUM(K276:K279)+SUM(K265:K269))","v":0},null,{"$f":"IF(AND($D$10=40,$H$10=\"Ja\"),SUM(M276:M279)+(SUM(M265:M269)/$D$10*39.2),SUM(M276:M279)+SUM(M265:M269))","v":0},null,{"$f":"IF(AND($D$10=40,$H$10=\"Ja\"),SUM(O276:O279)+(SUM(O265:O269)/$D$10*39.2),SUM(O276:O279)+SUM(O265:O269))","v":0},"PE"]
["Summe anrechenbare DGKP/PFA",null,null,null,{"$f":"IF(AND($D$10=40,$H$10=\"Ja\"),SUM(E262,E263)/$D$10*39.2,SUM(E262,E263))","v":0},null,{"$f":"IF(AND($D$10=40,$H$10=\"Ja\"),SUM(G262,G263)/$D$10*39.2,SUM(G262,G263))","v":0},null,{"$f":"IF(AND($D$10=40,$H$10=\"Ja\"),SUM(I262,I263)/$D$10*39.2,SUM(I262,I263))","v":0},null,{"$f":"IF(AND($D$10=40,$H$10=\"Ja\"),SUM(K262,K263)/$D$10*39.2,SUM(K262,K263))","v":0},null,{"$f":"IF(AND($D$10=40,$H$10=\"Ja\"),SUM(M262,M263)/$D$10*39.2,SUM(M262,M263))","v":0},null,{"$f":"IF(AND($D$10=40,$H$10=\"Ja\"),SUM(O262,O263)/$D$10*39.2,SUM(O262,O263))","v":0},"PE"]
["Summe anrechenbare FSB \"A\"",null,null,null,{"$f":"IF(OR($D$11=\"40\",$H$11=\"Ja\"),(E264/$D$11*39),IF(OR($D$11=\"39\",$H$11=\"Nein\"),E264/$D$10*$D$11))","v":0},null,{"$f":"IF(OR($D$11=\"40\",$H$11=\"Ja\"),(G264/$D$11*39),IF(OR($D$11=\"39\",$H$11=\"Nein\"),G264/$D$10*$D$11))","v":0},null,{"$f":"IF(OR($D$11=\"40\",$H$11=\"Ja\"),(I264/$D$11*39),IF(OR($D$11=\"39\",$H$11=\"Nein\"),I264/$D$10*$D$11))","v":0},null,{"$f":"IF(OR($D$11=\"40\",$H$11=\"Ja\"),(K264/$D$11*39),IF(OR($D$11=\"39\",$H$11=\"Nein\"),K264/$D$10*$D$11))","v":0},null,{"$f":"IF(OR($D$11=\"40\",$H$11=\"Ja\"),(M264/$D$11*39),IF(OR($D$11=\"39\",$H$11=\"Nein\"),M264/$D$10*$D$11))","v":0},null,{"$f":"IF(OR($D$11=\"40\",$H$11=\"Ja\"),(O264/$D$11*39),IF(OR($D$11=\"39\",$H$11=\"Nein\"),O264/$D$10*$D$11))","v":0},"PE"]
["Summe anrechenbare HH, AB, FSB \"BB\", DSB \"BB\"",null,null,null,{"$f":"IF(AND($D$10=40,$H$10=\"Ja\",SUM(E270:E272)>E290),E290,IF(AND($D$10=40,$H$10=\"Ja\",SUM(E270:E272)<E290),(SUM(E270:E272)/$D$10*39.2),IF(SUM(E270:E272)>E290,E290,SUM(E270:E272))))","v":0},null,{"$f":"IF(AND($D$10=40,$H$10=\"Ja\",SUM(G270:G272)>G290),G290,IF(AND($D$10=40,$H$10=\"Ja\",SUM(G270:G272)<G290),(SUM(G270:G272)/$D$10*39.2),IF(SUM(G270:G272)>G290,G290,SUM(G270:G272))))","v":0},null,{"$f":"IF(AND($D$10=40,$H$10=\"Ja\",SUM(I270:I272)>I290),I290,IF(AND($D$10=40,$H$10=\"Ja\",SUM(I270:I272)<I290),(SUM(I270:I272)/$D$10*39.2),IF(SUM(I270:I272)>I290,I290,SUM(I270:I272))))","v":0},null,{"$f":"IF(AND($D$10=40,$H$10=\"Ja\",SUM(K270:K272)>K290),K290,IF(AND($D$10=40,$H$10=\"Ja\",SUM(K270:K272)<K290),(SUM(K270:K272)/$D$10*39.2),IF(SUM(K270:K272)>K290,K290,SUM(K270:K272))))","v":0},null,{"$f":"IF(AND($D$10=40,$H$10=\"Ja\",SUM(M270:M272)>M290),M290,IF(AND($D$10=40,$H$10=\"Ja\",SUM(M270:M272)<M290),(SUM(M270:M272)/$D$10*39.2),IF(SUM(M270:M272)>M290,M290,SUM(M270:M272))))","v":0},null,{"$f":"IF(AND($D$10=40,$H$10=\"Ja\",SUM(O270:O272)>O290),O290,IF(AND($D$10=40,$H$10=\"Ja\",SUM(O270:O272)<O290),(SUM(O270:O272)/$D$10*39.2),IF(SUM(O270:O272)>O290,O290,SUM(O270:O272))))","v":0},"PE"]
["Summe anrechenbares Stützpersonal",null,null,null,{"$f":"IF(AND($D$10=40,$H$10=\"Ja\",(E273*0.9)>E291),E291,IF(AND($D$10=40,$H$10=\"Ja\",(SUM(E273*0.9)<E291)),(E273*0.9/$D$10*39.2),IF(E273*0.9>E291,E291,E273*0.9)))","v":0},null,{"$f":"IF(AND($D$10=40,$H$10=\"Ja\",(G273*0.9)>G291),G291,IF(AND($D$10=40,$H$10=\"Ja\",(SUM(G273*0.9)<G291)),(G273*0.9/$D$10*39.2),IF(G273*0.9>G291,G291,G273*0.9)))","v":0},null,{"$f":"IF(AND($D$10=40,$H$10=\"Ja\",(I273*0.9)>I291),I291,IF(AND($D$10=40,$H$10=\"Ja\",(SUM(I273*0.9)<I291)),(I273*0.9/$D$10*39.2),IF(I273*0.9>I291,I291,I273*0.9)))","v":0},null,{"$f":"IF(AND($D$10=40,$H$10=\"Ja\",(K273*0.9)>K291),K291,IF(AND($D$10=40,$H$10=\"Ja\",(SUM(K273*0.9)<K291)),(K273*0.9/$D$10*39.2),IF(K273*0.9>K291,K291,K273*0.9)))","v":0},null,{"$f":"IF(AND($D$10=40,$H$10=\"Ja\",(M273*0.9)>M291),M291,IF(AND($D$10=40,$H$10=\"Ja\",(SUM(M273*0.9)<M291)),(M273*0.9/$D$10*39.2),IF(M273*0.9>M291,M291,M273*0.9)))","v":0},null,{"$f":"IF(AND($D$10=40,$H$10=\"Ja\",(O273*0.9)>O291),O291,IF(AND($D$10=40,$H$10=\"Ja\",(SUM(O273*0.9)<O291)),(O273*0.9/$D$10*39.2),IF(O273*0.9>O291,O291,O273*0.9)))","v":0},"PE"]
["Therapeut:innen",null,null,null,null,null,null,null,null,null,null,null,null,null,null,{"$f":"'2_Personal'!G26","v":0},{"$f":"'2_Personal'!H26","v":0},{"$f":"IF(OR(D280=\"\",E280=\"\",F280=\"\",G280=\"\",H280=\"\",I280=\"\",J280=\"\",K280=\"\",L280=\"\",M280=\"\",N280=\"\",O280=\"\")=TRUE,\"Eingabe unvollständig\",IF(OR(N280>P280,O280>Q280)=TRUE,\"Die Werte in den Spalten N und O dürfen nur kleiner oder gleich hoch sein wie die Werte in den Spalten P und Q , bitte überprüfen!\",\"\"))","v":"Eingabe unvollständig"},null,null,null,null,null,null,"x"]
["Hilfskräfte",null,null,null,null,null,null,null,null,null,null,null,null,null,null,{"$f":"'2_Personal'!G27","v":0},{"$f":"'2_Personal'!H27","v":0},{"$f":"IF(OR(D281=\"\",E281=\"\",F281=\"\",G281=\"\",H281=\"\",I281=\"\",J281=\"\",K281=\"\",L281=\"\",M281=\"\",N281=\"\",O281=\"\")=TRUE,\"Eingabe unvollständig\",IF(OR(N281>P281,O281>Q281)=TRUE,\"Die Werte in den Spalten N und O dürfen nur kleiner oder gleich hoch sein wie die Werte in den Spalten P und Q , bitte überprüfen!\",\"\"))","v":"Eingabe unvollständig"},null,null,null,null,null,null,"x"]
["Summe nicht anrechenbares Pflegepersonal (inkl. Überhang HH,... und Stützpersonal)",null,null,null,{"$f":"SUM(E280:E281)+(E274-E275)","v":0},null,{"$f":"SUM(G280:G281)+(G274-G275)","v":0},null,{"$f":"SUM(I280:I281)+(I274-I275)","v":0},null,{"$f":"SUM(K280:K281)+(K274-K275)","v":0},null,{"$f":"SUM(M280:M281)+(M274-M275)","v":0},null,{"$f":"SUM(O280:O281)+(O274-O275)","v":0},{"$f":"SUM(P280:P281)","v":0},{"$f":"SUM(Q280:Q281)","v":0}]
[null,null,null,null,null,null,null,null,null,null,null,null,null,null,null,null,{"$f":"IF(OR(N274>P274,O274>Q274)=TRUE,\"Die Werte im Bereich N261:O273 dürfen nur kleiner (wenn Langzeitkrankenstände herausgerechnet werden) oder gleich hoch sein wie die Werte im Bereich P261:Q273 , bitte überprüfen!\",\"\")","v":""},null,null,null,null,null,null,null,{"$f":"IF(Q283=\"\",\"\",\"x\")","v":""}]
[null,null,"Heimbewohner/innen:",null,{"$f":"B188","v":0},null,{"$f":"B201","v":0},null,{"$f":"B214","v":0},null,{"$f":"B227","v":0},null,{"$f":"B240","v":0},null,{"$f":"B253","v":0}]
[null,null,"davon Kurzzeitpflege-Gäste",null,null,null,null,null,null,null,null,null,null,null,null,null,null,{"$f":"IF(OR(E285=\"\",G285=\"\",I285=\"\",K285=\"\",M285=\"\",O285=\"\")=TRUE,\"Eingabe unvollständig\",IF(O285<>'1b_Kurzzeitpflege'!L47,\"Anzahl der KZP-Gäste zum Stichtag 31.12. stimmt nicht mit 1b_L47 überein!\",\"\"))","v":"Eingabe unvollständig"},null,null,null,null,null,null,"x"]
["Mindestpflegepersonalbedarf",null,null,null,{"$f":"E169","v":0},"PE",{"$f":"G169","v":0},"PE",{"$f":"I169","v":0},"PE",{"$f":"K169","v":0},"PE",{"$f":"M169","v":0},"PE",{"$f":"O169","v":0},"PE",null,null,null,null,null,null,null,null,{"$f":"IF(R286=\"\",\"\",\"x\")","v":""}]
["Mindestbedarf DGKP+PFA bei Anteil 20 %",null,null,null,{"$f":"E286*0.2","v":0},"PE",{"$f":"G286*0.2","v":0},"PE",{"$f":"I286*0.2","v":0},"PE",{"$f":"K286*0.2","v":0},"PE",{"$f":"M286*0.2","v":0},"PE",{"$f":"O286*0.2","v":0},"PE",null,null,null,null,{"$f":"IF(R287=\"\",\"\",\"x\")","v":""},null,null,null,""]
["Mindestbedarf DGKP+PFA bei Anteil 25 %",null,null,null,{"$f":"E286*0.25","v":0},"PE",{"$f":"G286*0.25","v":0},"PE",{"$f":"I286*0.25","v":0},"PE",{"$f":"K286*0.25","v":0},"PE",{"$f":"M286*0.25","v":0},"PE",{"$f":"O286*0.25","v":0},"PE",null,null,null,null,null,null,null,null,""]
["Mindestbedarf FSB+DSB (ohne BB) und PA",null,null,null,{"$f":"E286*0.55","v":0},"PE",{"$f":"G286*0.55","v":0},"PE",{"$f":"I286*0.55","v":0},"PE",{"$f":"K286*0.55","v":0},"PE",{"$f":"M286*0.55","v":0},"PE",{"$f":"O286*0.55","v":0},"PE",null,null,null,null,null,null,null,null,""]
["Maximalbedarf HH+AB+FSB\"BB\"/DSB\"BB\"",null,null,null,{"$f":"E286*0.2","v":0},"PE",{"$f":"G286*0.2","v":0},"PE",{"$f":"I286*0.2","v":0},"PE",{"$f":"K286*0.2","v":0},"PE",{"$f":"M286*0.2","v":0},"PE",{"$f":"O286*0.2","v":0},"PE",null,null,null,null,null,null,null,null,""]
["Maximalbedarf Stützpersonal",null,null,null,{"$f":"E286*0.1","v":0},"PE",{"$f":"G286*0.1","v":0},"PE",{"$f":"I286*0.1","v":0},"PE",{"$f":"K286*0.1","v":0},"PE",{"$f":"M286*0.1","v":0},"PE",{"$f":"O286*0.1","v":0},"PE",null,null,null,null,null,null,null,null,""]
["ERFÜLLUNG MPPB",null,null,null,{"$f":"IF(E286=0,\"0\",E275/E286*100)","v":"0"},"%",{"$f":"IF(G286=0,\"0\",G275/G286*100)","v":"0"},"%",{"$f":"IF(I286=0,\"0\",I275/I286*100)","v":"0"},"%",{"$f":"IF(K286=0,\"0\",K275/K286*100)","v":"0"},"%",{"$f":"IF(M286=0,\"0\",M275/M286*100)","v":"0"},"%",{"$f":"IF(O286=0,\"0\",O275/O286*100)","v":"0"},"%"]
["Anteil anrechenbares DGKP+PFA am MPPB",null,null,null,{"$f":"IF(E275=0,\"0\",(E276/E286*100))","v":"0"},"%",{"$f":"IF(G275=0,\"0\",(G276/G286*100))","v":"0"},"%",{"$f":"IF(I275=0,\"0\",(I276/I286*100))","v":"0"},"%",{"$f":"IF(K275=0,\"0\",(K276/K286*100))","v":"0"},"%",{"$f":"IF(M275=0,\"0\",(M276/M286*100))","v":"0"},"%",{"$f":"IF(O275=0,\"0\",(O276/O286*100))","v":"0"},"%"]
["Anteil anrechenb. FSB \"A\" und \"BA\", DSB \"A\" und \"BA\", DSB \"F\" und PA am MPPB",null,"Anteil Pflegeassistent/innen",null,{"$f":"IF(E275=0,\"0\",(E277+E265+E266+E267+E268+E269)/E286*100)","v":"0"},"%",{"$f":"IF(G275=0,\"0\",(G277+G265+G266+G267+G268+G269)/G286*100)","v":"0"},"%",{"$f":"IF(I275=0,\"0\",(I277+I265+I266+I267+I268+I269)/I286*100)","v":"0"},"%",{"$f":"IF(K275=0,\"0\",(K277+K265+K266+K267+K268+K269)/K286*100)","v":"0"},"%",{"$f":"IF(M275=0,\"0\",(M277+M265+M266+M267+M268+M269)/M286*100)","v":"0"},"%",{"$f":"IF(O275=0,\"0\",(O277+O265+O266+O267+O268+O269)/O286*100)","v":"0"},"%"]
["Anteil anrechenb. HH, AB, FSB \"BB\"und DSB \"BB\" am MPPB",null,null,null,{"$f":"IF(E275=0,\"0\",E278/E286*100)","v":"0"},"%",{"$f":"IF(G275=0,\"0\",G278/G286*100)","v":"0"},"%",{"$f":"IF(I275=0,\"0\",I278/I286*100)","v":"0"},"%",{"$f":"IF(K275=0,\"0\",K278/K286*100)","v":"0"},"%",{"$f":"IF(M275=0,\"0\",M278/M286*100)","v":"0"},"%",{"$f":"IF(O275=0,\"0\",O278/O286*100)","v":"0"},"%",null,null,null,null,null,null,null,null,{"$f":"IF(R295=\"\",\"\",\"x\")","v":""}]
["Anteil anrechenb. Stützpersonal am MPPB",null,null,null,{"$f":"IF(E275=0,\"0\",(E279/E286*100))","v":"0"},"%",{"$f":"IF(G275=0,\"0\",(G279/G286*100))","v":"0"},"%",{"$f":"IF(I275=0,\"0\",(I279/I286*100))","v":"0"},"%",{"$f":"IF(K275=0,\"0\",(K279/K286*100))","v":"0"},"%",{"$f":"IF(M275=0,\"0\",(M279/M286*100))","v":"0"},"%",{"$f":"IF(O275=0,\"0\",(O279/O286*100))","v":"0"},"%",null,null,null,null,null,null,null,null,""]
["es fehlen insgesamt",null,"es fehlen insgesamt:",null,{"$f":"IF(E286<E275,\"0\",E286-E275)","v":0},{"$f":"IF(E297=\"\",\"\",\"PE\")","v":"PE"},{"$f":"IF(G286<G275,\"0\",G286-G275)","v":0},{"$f":"IF(G297=\"\",\"\",\"PE\")","v":"PE"},{"$f":"IF(I286<I275,\"0\",I286-I275)","v":0},{"$f":"IF(I297=\"\",\"\",\"PE\")","v":"PE"},{"$f":"IF(K286<K275,\"0\",K286-K275)","v":0},{"$f":"IF(K297=\"\",\"\",\"PE\")","v":"PE"},{"$f":"IF(M286<M275,\"0\",M286-M275)","v":0},{"$f":"IF(M297=\"\",\"\",\"PE\")","v":"PE"},{"$f":"IF(O286<O275,\"0\",O286-O275)","v":0},"PE"]
["es fehlen an DGKP+PFA auf Anteil 20 %",null,null,null,{"$f":"IF(E287<E276,\"0\",E287-E276)","v":0},{"$f":"IF(E298=\"\",\"\",\"PE\")","v":"PE"},{"$f":"IF(G287<G276,\"0\",G287-G276)","v":0},{"$f":"IF(G298=\"\",\"\",\"PE\")","v":"PE"},{"$f":"IF(I287<I276,\"0\",I287-I276)","v":0},{"$f":"IF(I298=\"\",\"\",\"PE\")","v":"PE"},{"$f":"IF(K287<K276,\"0\",K287-K276)","v":0},{"$f":"IF(K298=\"\",\"\",\"PE\")","v":"PE"},{"$f":"IF(M287<M276,\"0\",M287-M276)","v":0},{"$f":"IF(M298=\"\",\"\",\"PE\")","v":"PE"},{"$f":"IF(O287<O276,\"0\",O287-O276)","v":0},{"$f":"IF(O298=\"\",\"\",\"PE\")","v":"PE"},null,null,null,null,{"$f":"IF(R298=\"\",\"\",\"x\")","v":""}]
["es fehlen an DGKP+PFA auf Anteil 25 %",null,null,null,{"$f":"IF(E288<E276,\"0\",E288-E276)","v":0},{"$f":"IF(E299=\"\",\"\",\"PE\")","v":"PE"},{"$f":"IF(G288<G276,\"0\",G288-G276)","v":0},{"$f":"IF(G299=\"\",\"\",\"PE\")","v":"PE"},{"$f":"IF(I288<I276,\"0\",I288-I276)","v":0},{"$f":"IF(I299=\"\",\"\",\"PE\")","v":"PE"},{"$f":"IF(K288<K276,\"0\",K288-K276)","v":0},{"$f":"IF(K299=\"\",\"\",\"PE\")","v":"PE"},{"$f":"IF(M288<M276,\"0\",M288-M276)","v":0},{"$f":"IF(M299=\"\",\"\",\"PE\")","v":"PE"},{"$f":"IF(O288<O276,\"0\",O288-O276)","v":0},"PE",null,null,null,null,null,null,null,null,{"$f":"IF(R299=\"\",\"\",\"x\")","v":""}]
["es fehlen an FSB+DSB (ohne BB) und PA",null,null,null,{"$f":"IF(E289<SUM(E277,E265,E266:E269),\"0\",E289-(SUM(E277,E265,E266:E269)))","v":0},{"$f":"IF(E300=\"\",\"\",\"PE\")","v":"PE"},{"$f":"IF(G289<SUM(G277,G265,G266:G269),\"0\",G289-(SUM(G277,G265,G266:G269)))","v":0},{"$f":"IF(G300=\"\",\"\",\"PE\")","v":"PE"},{"$f":"IF(I289<SUM(I277,I265,I266:I269),\"0\",I289-(SUM(I277,I265,I266:I269)))","v":0},{"$f":"IF(I300=\"\",\"\",\"PE\")","v":"PE"},{"$f":"IF(K289<SUM(K277,K265,K266:K269),\"0\",K289-(SUM(K277,K265,K266:K269)))","v":0},{"$f":"IF(K300=\"\",\"\",\"PE\")","v":"PE"},{"$f":"IF(M289<SUM(M277,M265,M266:M269),\"0\",M289-(SUM(M277,M265,M266:M269)))","v":0},{"$f":"IF(M300=\"\",\"\",\"PE\")","v":"PE"},{"$f":"IF(O289<SUM(O277,O265,O266:O269),\"0\",O289-(SUM(O277,O265,O266:O269)))","v":0},"PE",null,null,null,null,null,null,null,null,{"$f":"IF(R300=\"\",\"\",\"x\")","v":""}]
[null,null,null,null,null,null,null,null,null,null,null,null,null,null,null,null,null,null,null,null,null,null,null,null,{"$f":"COUNTIF(Y1:Y300,\"x\")","v":128}]

{"sheet":"4a_Darstellung_MPPB,AnteilDGKP","index":6,"n_rows":82,"n_cols":15,"rows_kept":82,"cut":false,"hidden":false,"merged":[[15,1,15,4]]}
[]
["ERHEBUNG IN DEN OÖ. ALTEN- UND PFLEGEHEIMEN\nDarstellung Erfüllung MPPB und Anteil DGKP+PFA an MPPB\nnach Angabe der Daten in Blatt 4_Pflegepersonalbedarf"]
["(Langzeitkrankenstände u.ä. sind also abgezogen)"]
[{"$f":"IF(N12>0,\"Tabellenblatt nicht vollständig oder korrekt ausgefüllt! Bitte Eingaben prüfen!\",\"\")","v":""},null,null,null,null,null,null,null,null,null,{"$f":"IF(A4=\"\",\"Sie haben dieses Tabellenblatt vollständig ausgefüllt - Vielen Dank!\",\"\")","v":"Sie haben dieses Tabellenblatt vollständig ausgefüllt - Vielen Dank!"}]
[]
["Pflegeintensität IST/SOLL:",null,null,null,null,null,null,null,null,null,null,"Zeilen 4 bis 12 ausblenden!"]
[null,null,"Verhältnis Pflegepersonal IST zu HB","1 : ",{"$f":"'4_Pflegepersonalbedarf 2025'!O284/'4_Pflegepersonalbedarf 2025'!O275","v":{"$error":"#DIV/0!"}}]
[]
[null,null,"Verhältnis Pflegepersonal SOLL zu HB","1 : ",{"$f":"'4_Pflegepersonalbedarf 2025'!O284/'4_Pflegepersonalbedarf 2025'!O286","v":{"$error":"#DIV/0!"}}]
[null,null,null,null,"Die Kennzahl Pflegeintensität ist der Indikator für den durchschnittlichen Pflegebedarf"]
[null,null,null,null,"aller HB, die Berechnung einer durchschnittlichen Pflegegeld-Stufe ist nicht zulässig!"]
[null,null,null,null,null,null,null,null,null,null,null,null,null,{"$f":"COUNTIF(N1:N11,\"x\")","v":0}]
[]
[null,"Die Vorgaben sind erfüllt, wenn sich die Werte in jedem Monat über der roten Linie befinden."]
[]
[null,{"$f":"'1_allg. Strukturdaten'!D7","v":"Bitte auswählen…"}]
[]
[]
[]
[]
[]
[]
[]
[]
[]
[]
[]
[]
[]
[]
[]
[]
[]
[]
[]
[]
[]
[]
[]
[]
[]
[]
[]
[]
[]
[]
[]
[]
[]
[]
[]
[]
[]
[]
[]
[]
[]
[]
[]
[]
[]
[]
[]
[]
[]
[]
[]
[]
[]
[]
[]
[]
[]
[]
[]
[]
[]
[]
[]
["31. Jän","28. Feb","31. Mar","30. Apr","31. Mai","30. Jun","31. Jul","31. Aug","30. Sept","31. Okt","30. Nov","31. Dez","1. HJ","2. HJ","2025"]
[{"$f":"'4_Pflegepersonalbedarf 2025'!E146","v":"0"},{"$f":"'4_Pflegepersonalbedarf 2025'!G146","v":"0"},{"$f":"'4_Pflegepersonalbedarf 2025'!I146","v":"0"},{"$f":"'4_Pflegepersonalbedarf 2025'!K146","v":"0"},{"$f":"'4_Pflegepersonalbedarf 2025'!M146","v":"0"},{"$f":"'4_Pflegepersonalbedarf 2025'!O146","v":"0"},{"$f":"'4_Pflegepersonalbedarf 2025'!E292","v":"0"},{"$f":"'4_Pflegepersonalbedarf 2025'!G292","v":"0"},{"$f":"'4_Pflegepersonalbedarf 2025'!I292","v":"0"},{"$f":"'4_Pflegepersonalbedarf 2025'!K292","v":"0"},{"$f":"'4_Pflegepersonalbedarf 2025'!M292","v":"0"},{"$f":"'4_Pflegepersonalbedarf 2025'!O292","v":"0"},{"$f":"'4_Pflegepersonalbedarf 2025'!Q24*100","v":{"$error":"#DIV/0!"}},{"$f":"'4_Pflegepersonalbedarf 2025'!Q170*100","v":{"$error":"#DIV/0!"}},{"$f":"(M81+N81)/2","v":{"$error":"#DIV/0!"}}]
[{"$f":"'4_Pflegepersonalbedarf 2025'!E147","v":"0"},{"$f":"'4_Pflegepersonalbedarf 2025'!G147","v":"0"},{"$f":"'4_Pflegepersonalbedarf 2025'!I147","v":"0"},{"$f":"'4_Pflegepersonalbedarf 2025'!K147","v":"0"},{"$f":"'4_Pflegepersonalbedarf 2025'!M147","v":"0"},{"$f":"'4_Pflegepersonalbedarf 2025'!O147","v":"0"},{"$f":"'4_Pflegepersonalbedarf 2025'!E293","v":"0"},{"$f":"'4_Pflegepersonalbedarf 2025'!G293","v":"0"},{"$f":"'4_Pflegepersonalbedarf 2025'!I293","v":"0"},{"$f":"'4_Pflegepersonalbedarf 2025'!K293","v":"0"},{"$f":"'4_Pflegepersonalbedarf 2025'!M293","v":"0"},{"$f":"'4_Pflegepersonalbedarf 2025'!O293","v":"0"},{"$f":"SUM(A82:F82)/6","v":0},{"$f":"SUM(G82:L82)/6","v":0},{"$f":"(M82+N82)/2","v":0}]

{"sheet":"5_Betreuung und Pflege","index":7,"n_rows":93,"n_cols":11,"rows_kept":93,"cut":false,"hidden":false,"merged":[[29,8,29,9],[31,8,31,9],[42,0,42,6],[32,0,33,4],[75,1,75,5],[63,8,64,8],[77,8,78,8],[34,8,35,9],[79,0,79,5],[54,0,54,4],[66,0,66,5],[4,0,4,3],[4,4,4,7],[6,0,6,5],[92,0,92,4],[83,0,84,4],[27,0,27,5],[24,0,24,6],[71,4,71,6],[48,0,48,6],[26,6,26,7],[36,0,36,6],[76,1,76,4],[86,0,86,5],[90,0,90,4]]}
[]
["ERHEBUNG IN DEN OÖ. ALTEN- UND PFLEGEHEIMEN\n(Daten zur Betreuung und Pflege)"]
[null,null,null,{"$f":"'0_Einleitung'!$E$2","v":"zum Stichtag"},{"$f":"'0_Einleitung'!$G$2","v":"2025-12-31"}]
[{"$f":"IF(K93>0,\"Tabellenblatt nicht vollständig oder korrekt ausgefüllt! Bitte Eingaben prüfen!\",\"\")","v":"Tabellenblatt nicht vollständig oder korrekt ausgefüllt! Bitte Eingaben prüfen!"},null,null,null,null,null,null,{"$f":"IF(A4=\"\",\"Sie haben dieses Tabellenblatt vollständig ausgefüllt - Vielen Dank!\",\"\")","v":""}]
[{"$f":"'1_allg. Strukturdaten'!D7","v":"Bitte auswählen…"},null,null,null,"zu den mit einem grünen Punkt gekennzeichneten Bereichen finden Sie im Tabellenblatt 7_ Definitionen, Literatur und Quellennachweise!"]
[]
["Schutz vor gesundheitlichen Schädigungen                              (ohne Kurzzeitpflege)"]
[]
["MOBILITÄTSEINSCHRÄNKUNGEN"]
[]
["Dekubitus        (Bei HB mit mehreren Dekubitalgeschwüren bitte nur den höchsten Grad zählen!)",null,null,null,null,null,"zum Stichtag",{"$f":"$E$3","v":"2025-12-31"}]
[]
["Anzahl der Bewohner:innen mit Dekubitus Grad III",null,null,null,null,null,null,null,{"$f":"IF(F13=\"\",\"Eingabe unvollständig\",\"\")","v":"Eingabe unvollständig"},null,{"$f":"IF(I13=\"\",\"\",\"x\")","v":"x"}]
["Anzahl der Bewohner:innen mit Dekubitus Grad IV",null,null,null,null,null,null,null,{"$f":"IF(F14=\"\",\"Eingabe unvollständig\",\"\")","v":"Eingabe unvollständig"},null,"x"]
[null,null,null,null,"Summe Grad III und IV ",{"$f":"SUM(F13:F14)","v":0},{"$f":"IF(F15=0,\"0,00%\",F15/'1a_Langzeitpflege'!$L$24)","v":"0,00%"},null,{"$f":"IF(AND(F15=0,(SUM(F18:F20)>0)),\"Wenn hier die Summe 0 ergibt, dann bitte in F18 bis F20 ebenfalls '0' eintragen!\",\"\")","v":""},null,""]
[]
["Anzahl der HB, bei denen der überwiegende Teil der Dekubitalgeschwüre (Grad III oder IV)"]
[null,null,null,null,"im Heim entstanden ist/sind",null,null,null,{"$f":"IF(F18=\"\",\"Eingabe unvollständig\",\"\")","v":"Eingabe unvollständig"},null,{"$f":"IF(I18=\"\",\"\",\"x\")","v":"x"}]
[null,null,null,null,"in einem Krankenhaus entstanden ist/sind",null,null,null,{"$f":"IF(F19=\"\",\"Eingabe unvollständig\",\"\")","v":"Eingabe unvollständig"},null,{"$f":"IF(I19=\"\",\"\",\"x\")","v":"x"}]
[null,null,null,null,"wo anders (zu Hause,...) entstanden ist/sind",null,null,null,{"$f":"IF(F20=\"\",\"Eingabe unvollständig\",\"\")","v":"Eingabe unvollständig"},null,{"$f":"IF(I20=\"\",\"\",\"x\")","v":"x"}]
[]
["Gibt es für die Einrichtung eine/n interne/n zertifizierte/n Wundmanager/in?",null,null,null,null,null,null,null,{"$f":"IF(F22=\"\",\"Eingabe unvollständig\",\"\")","v":"Eingabe unvollständig"},null,{"$f":"IF(I22=\"\",\"\",\"x\")","v":"x"}]
["Gibt es für die Einrichtung eine/n externe/n zertifizierte/n Wundmanager/in?",null,null,null,null,null,null,null,"Eingabe unvollständig",null,"x"]
[null,null,null,null,null,null,null,null,{"$f":"IF((SUM(F18:F20)<>F15),\"Die Summe von F18 bis F20 muss gleich hoch sein wie F15!\",\"\")","v":""}]
[{"$f":"IF(F15=0,\"\",IF(AND(G15>3%,F15>=3),\"Die Schwellenwerte im Bereich Dekubitus wurden überschritten!\",IF(AND(G15>2%,F18>=2),\"Die Schwellenwerte im Bereich Dekubitus wurden überschritten!\",\"\")))","v":""}]
[null,null,null,null,null,null,null,null,null,null,{"$f":"IF(I26=\"\",\"\",\"x\")","v":""}]
["Stürze",null,null,null,null,null,"im Jahr 2025",null,null,null,""]
[null,null,null,null,null,null,null,null,null,null,""]
["Anzahl der Bewohner:innen, die im abgelaufenen Jahr zu Sturz gekommen sind",null,null,null,null,null,{"$f":"IF(F29=0,\"0,00%\",F29/'1a_Langzeitpflege'!E75)","v":"0,00%"},null,{"$f":"IF(F29=\"\",\"Eingabe unvollständig\",\"\")","v":"Eingabe unvollständig"},null,"x"]
[null,null,null,null,null,null,null,null,{"$f":"IF(F29>'1a_Langzeitpflege'!E75,\"Die Anzahl der gestürzten HB kann nicht höher sein als die Anzahl aller HB [1a_E75] im Berichtsjahr!\",\"\")","v":""},null,{"$f":"IF(I30=\"\",\"\",\"x\")","v":""}]
["Anzahl aller Stürze in der Einrichtung (inkl. Außenanlagen) im abgelaufenen Jahr",null,null,null,null,null,{"$f":"IF(F31=0,\"0\",(F31/F29))","v":"0"},null,{"$f":"IF(F31=\"\",\"Eingabe unvollständig\",\"\")","v":"Eingabe unvollständig"},null,{"$f":"IF(I31=\"\",\"\",\"x\")","v":"x"}]
[null,null,null,null,null,null,null,null,{"$f":"IF(OR(F29=0,F31=0),\"\",IF(F29>F31,\"Die Anzahl der Stürze kann nicht niedriger sein als die Anzahl der gestürzten HB!\",\"\"))","v":""},null,""]
["Anzahl der Stürze, die eine ambulante oder stationäre Behandlung in einem Krankenhaus nach sich gezogen haben",null,null,null,null,null,null,null,null,null,""]
[null,null,null,null,null,null,{"$f":"IF(F31=0,\"0,00%\",F34/F31)","v":"0,00%"},null,{"$f":"IF(F34=\"\",\"Eingabe unvollständig\",\"\")","v":"Eingabe unvollständig"},null,"x"]
[null,null,null,null,null,null,null,null,{"$f":"IF(AND(F34=0),\"\",IF(F34>F31,\"Die Anzahl der Stürze, welche eine Behandlung in einem Krankenhaus nach sich gezogen haben, kann nicht höher sein als die Anzahl aller Stürze!\",\"\"))","v":""},null,""]
[]
[{"$f":"IF(OR(F29=0,F31=0),\"\",IF(OR(G29>60%,G31>5),\"Die Anzahl der Stürze im Verhältnis zu allen Heimbewohner:innen übersteigt 60 % und/oder die durchschnittliche Sturzanzahl pro gestürztem/r HB beträgt mehr als 5!\",\"\"))","v":""}]
[null,null,null,null,null," "]
["Freiheitsbe- bzw. -einschränkende Maßnahmen",null,null,null,null,null,"zum Stichtag",{"$f":"$E$3","v":"2025-12-31"}]
[]
["Anzahl der Bewohner:innen mit freiheitsbeschränkenden Maßnahmen",null,null,null,null,null,{"$f":"IF(F41=0,\"0,00%\",F41/'1a_Langzeitpflege'!L24)","v":"0,00%"},null,{"$f":"IF(F41=\"\",\"Eingabe unvollständig\",\"\")","v":"Eingabe unvollständig"},null,{"$f":"IF(I41=\"\",\"\",\"x\")","v":"x"}]
[]
[{"$f":"IF(OR(F41=\"\",F41=0),\"\",IF(G41>20%,\"Der Anteil an HB mit freiheitsbeschränkenden Maßnahmen ist höher als 20%!\",\"\"))","v":""}]
[]
["Anzahl der Bewohner:innen mit freiheitseinschränkenden Maßnahmen",null,null,null,null,null,{"$f":"IF(F45=0,\"0,00%\",F45/'1a_Langzeitpflege'!L24)","v":"0,00%"},null,{"$f":"IF(F45=\"\",\"Eingabe unvollständig\",\"\")","v":"Eingabe unvollständig"},null,{"$f":"IF(I45=\"\",\"\",\"x\")","v":"x"}]
[]
["Summe aller Bewohner:innen mit freiheitsbe- und -einschränkenden Maßnahmen",null,null,null,null,{"$f":"SUM(F41,F45)","v":0},{"$f":"IF(F47=0,\"0,00%\",F47/'1a_Langzeitpflege'!L24)","v":"0,00%"}]
[]
[{"$f":"IF(F47=0,\"\",IF(G47>25%,\"Der Anteil an HB mit freiheitsbe- und -einschränkenden Maßnahmen ist höher als 25%!\",\"\"))","v":""}]
[]
["ERNÄHRUNG",null,null,null,null,null,"zum Stichtag",{"$f":"$E$3","v":"2025-12-31"}]
[]
["Ist in der Einrichtung ein Qualitätsstandard (SOP) für Ernährung inkl. Exsikkose vorhanden?",null,null,null,null,null,null,null,{"$f":"IF(G53=\"\",\"Eingabe unvollständig\",\"\")","v":"Eingabe unvollständig"},null,{"$f":"IF(I53=\"\",\"\",\"x\")","v":"x"}]
[]
["Erfolgt in der Einrichtung eine individuelle Risikoeinschätzung zum Thema Ernährung?",null,null,null,null,null,null,null,{"$f":"IF(G55=\"\",\"Eingabe unvollständig\",\"\")","v":"Eingabe unvollständig"},null,{"$f":"IF(I55=\"\",\"\",\"x\")","v":"x"}]
[]
["AUSSCHEIDUNG",null,null,null,null,null,"zum Stichtag",{"$f":"$E$3","v":"2025-12-31"}]
[]
["Anzahl der Bewohner:innen, die zum Stichtag über einen Dauerkatheter verfügen",null,null,null,null,{"$f":"F60+F62","v":0},{"$f":"IF(F59=0,\"0,00%\",F59/'1a_Langzeitpflege'!L24)","v":"0,00%"},null,null,null,{"$f":"IF(I59=\"\",\"\",\"x\")","v":""}]
[null,null,null,null,"davon transurethrale Dauerkatheter",null,null,null,{"$f":"IF(F60=\"\",\"Eingabe unvollständig\",\"\")","v":"Eingabe unvollständig"},null,{"$f":"IF(I60=\"\",\"\",\"x\")","v":"x"}]
[null,null,null,null,null,"davon voraussichtlicher Wechsel im Krankenhaus",null,null,{"$f":"IF(G61=\"\",\"Eingabe unvollständig\",IF(G61>F60,\"Der Wert in G61 kann nicht größer sein als der Wert in F60!\",\"\"))","v":"Eingabe unvollständig"},null,{"$f":"IF(I61=\"\",\"\",\"x\")","v":"x"}]
[null,null,null,null,"davon suprapubische Dauerkatheter",null,null,null,{"$f":"IF(F62=\"\",\"Eingabe unvollständig\",\"\")","v":"Eingabe unvollständig"},null,"x"]
[null,null,null,null,null,"davon voraussichtlicher Wechsel im Krankenhaus",null,null,{"$f":"IF(G63=\"\",\"Eingabe unvollständig\",IF(G63>F62,\"Der Wert in G63 kann nicht größer sein als der Wert in F62!\",\"\"))","v":"Eingabe unvollständig"},null,"x"]
[null,null,null,null,null,null,null,null,{"$f":"IF(SUM(F60,F62)=F59,\"\",\"Die Summe der transurethralen und suprapubischen Dauerkatheter in F60 und F62 stimmt nicht mit der Anzahl an HB mit Dauerkathetern in F59 überein!\")","v":""}]
["SCHMERZEN",null,null,null,null,null,"zum Stichtag",{"$f":"$E$3","v":"2025-12-31"}]
[]
["Ist in der Einrichtung ein Qualitätsstandard (SOP) für den Umgang mit Schmerzen vorhanden? ",null,null,null,null,null,null,null,{"$f":"IF(G67=\"\",\"Eingabe unvollständig\",\"\")","v":"Eingabe unvollständig"},null,{"$f":"IF(I67=\"\",\"\",\"x\")","v":"x"}]
[]
["Erfolgt in der Einrichtung eine regelmäßige individuelle Schmerzeinschätzung der Heimbewohner:innen?",null,null,null,null,null,null,null,{"$f":"IF(G69=\"\",\"Eingabe unvollständig\",\"\")","v":"Eingabe unvollständig"},null,{"$f":"IF(I69=\"\",\"\",\"x\")","v":"x"}]
[]
["Wenn ja: Welches Instrument/welche Methode zur Einschätzung von Schmerzen wird verwendet?"]
[null,null,null,null,null,null,null,null,{"$f":"IF(AND(G69=\"Ja\",E72=\"\")=TRUE,\"Eingabe unvollständig\",\"\")","v":""},null,{"$f":"IF(I72=\"\",\"\",\"x\")","v":""}]
[]
["Anzahl der Bewohner:innen, die eine Dauermedikation mit Suchtmitteln erhalten",null,null,null,null,null,{"$f":"IF(F74=0,\"0,00%\",F74/'1a_Langzeitpflege'!L24)","v":"0,00%"},null,{"$f":"IF(F74=\"\",\"Eingabe unvollständig\",\"\")","v":"Eingabe unvollständig"},null,{"$f":"IF(I74=\"\",\"\",\"x\")","v":"x"}]
[]
[null,"DAVON: Anzahl der Bewohner:innen, bei denen die Suchtmittel subcutan durch den "]
[null,"Nachtdienst verabreicht werden",null,null,null,null,{"$f":"IF(F77=0,\"0,00%\",F77/F74)","v":"0,00%"},null,{"$f":"IF(F77=\"\",\"Eingabe unvollständig\",\"\")","v":"Eingabe unvollständig"},null,{"$f":"IF(I77=\"\",\"\",\"x\")","v":"x"}]
[null,null,null,null,null,null,null,null,{"$f":"IF(F77<=F74,\"\",\"Die Anzahl der HB mit Suchtmitteln, die der Nachtdienst verabreicht, muss kleiner sein als die Anzahl aller HB mit einer Suchtmitteldauermedikation!\")","v":""},null,{"$f":"IF(I78=\"\",\"\",\"x\")","v":""}]
[]
["Unterstützung bei spezifischen Bedarfslagen                          (ohne Kurzzeitpflege)",null,null,null,null,null,"zum Stichtag",{"$f":"$E$3","v":"2025-12-31"}]
[]
["Demenz",null,null,null,null,null,"zum Stichtag",{"$f":"$E$3","v":"2025-12-31"}]
[]
["Anzahl der Bewohner:innen mit medizinisch diagnostizierter Demenz (unabhängig von der Demenz-Stufe)"]
[null,null,null,null,null,null,{"$f":"IF(F85=0,\"0,00%\",F85/'1a_Langzeitpflege'!L24)","v":"0,00%"},null,{"$f":"IF(F85=\"\",\"Eingabe unvollständig\",\"\")","v":"Eingabe unvollständig"},null,{"$f":"IF(I85=\"\",\"\",\"x\")","v":"x"}]
[]
["Medikamentengebarung",null,null,null,null,null,"zum Stichtag",{"$f":"$E$3","v":"2025-12-31"}]
[]
["Verblisterung",null,null,null,null,null,"zum Stichtag",{"$f":"$E$3","v":"2025-12-31"}]
[]
["Wird der überwiegende Teil der Medikamente verblistert?",null,null,null,null,null,null,null,{"$f":"IF(F91=\"\",\"Eingabe unvollständig\",\"\")","v":"Eingabe unvollständig"},null,{"$f":"IF(I91=\"\",\"\",\"x\")","v":"x"}]
[]
[null,null,null,null,null,null,null,null,null,null,{"$f":"COUNTIF(K1:K92,\"x\")","v":24}]

{"sheet":"6_Kennzahlen","index":8,"n_rows":210,"n_cols":16,"rows_kept":210,"cut":false,"hidden":false,"merged":[[5,2,5,4],[174,1,174,3],[4,2,4,4],[9,0,9,2],[11,0,11,2]]}
[]
["ERHEBUNG IN DEN OÖ. ALTEN- UND PFLEGEHEIMEN\nKENNZAHLEN"]
[]
[]
[null,null,"Erhebung 31.12.2025",null,null,null,"OÖ-Durchschnitt"]
[null,null,{"$f":"'1_allg. Strukturdaten'!D7","v":"Bitte auswählen…"},null,null,null,"Erhebung 31.12.2024","Erhebung 31.12.2023","Erhebung 31.12.2022","Erhebung 31.12.2021","Erhebung 31.12.2020","Erhebung 31.12.2019","Erhebung 31.12.2018"]
[]
["Langzeitpflegeplätze"]
[]
["Langzeitpflegeplätze in 1-Personen-Wohneinheiten"]
["an Gesamtplätzen in LZP",null,null,null,null,null,null,null,null,0.93566775244299671,0.93466277561608302,0.92954324586977644,0.91813622391198835]
["Plätze in 1-Personen-Wohneinheiten"]
["an Gesamtplätzen",null,null,{"$f":"('1a_Langzeitpflege'!H7+'1b_Kurzzeitpflege'!G8)/('1a_Langzeitpflege'!H10+'1b_Kurzzeitpflege'!G10)","v":{"$error":"#DIV/0!"}},null,null,0.93943188042882853,0.93973074514715094,0.93670288143599434]
[]
["Bewohnerinnen und Bewohner"]
[]
["Durchschnittsalter LZP",null,{"$f":"'1a_Langzeitpflege'!G26","v":0},"Jahre",null,null,84.784136034115136,85.742470149253705,84.672631578947346,84.636462121212105,84.8215328280303,84.747424242424273,84.819067164179089]
[]
["Neueintritte aus KZP in % der Gesamt-Neueintritte",null,null,{"$f":"IF('1b_Kurzzeitpflege'!E88=\"\",\"0,00%\",'1b_Kurzzeitpflege'!E88/('1a_Langzeitpflege'!F80+'1a_Langzeitpflege'!F81))","v":"0,00%"},null,null,0.15252766326752007,0.17769500438212094,0.16095107453132146,0.17471650566988661,0.17466504263093788,0.18154964780731653,0.20959821428571429]
[]
["Anteile an Summe HB (LZP und KZP)"]
["HB mit PG-Stufen 0-2",null,{"$f":"(('1a_Langzeitpflege'!C36+'1a_Langzeitpflege'!D36+'1a_Langzeitpflege'!E36)+('1b_Kurzzeitpflege'!C60+'1b_Kurzzeitpflege'!D60+'1b_Kurzzeitpflege'!E60))/('1b_Kurzzeitpflege'!K60+'1a_Langzeitpflege'!K36)","v":{"$error":"#DIV/0!"}},null,null,null,2.6742899299151603E-2,2.9631010063361909E-2,3.6912438089898143E-2,3.8217138707334786E-2,4.3094023323615158E-2,4.5157456922162803E-2,5.1985981308411214E-2]
["HB mit PG-Stufe 3",null,{"$f":"('1a_Langzeitpflege'!F36+'1b_Kurzzeitpflege'!F60)/('1a_Langzeitpflege'!K36+'1b_Kurzzeitpflege'!K60)","v":{"$error":"#DIV/0!"}},null,null,null,0.12596827738841757,0.13725307491613864,0.15138772077375945,0.15904139433551198,0.15852769679300291,0.16959511077158135,0.19459279038718291]
["HB mit PG-Stufen 4+5",null,{"$f":"(('1a_Langzeitpflege'!G36+'1a_Langzeitpflege'!H36)+('1b_Kurzzeitpflege'!G60+'1b_Kurzzeitpflege'!H60))/('1a_Langzeitpflege'!K36+'1b_Kurzzeitpflege'!K60)","v":{"$error":"#DIV/0!"}},null,null,null,0.67244559203246035,0.66753633991800221,0.64835062143724886,0.63988743645606394,0.63729956268221577,0.63186486715898482,0.60405540720961282]
["HB mit PG-Stufen 6+7",null,{"$f":"(('1a_Langzeitpflege'!I36+'1a_Langzeitpflege'!J36)+('1b_Kurzzeitpflege'!I60+'1b_Kurzzeitpflege'!J60))/('1a_Langzeitpflege'!K36+'1b_Kurzzeitpflege'!K60)","v":{"$error":"#DIV/0!"}},null,null,null,0.17484323127997048,0.16557957510249721,0.16334921969909355,0.16285403050108932,0.16107871720116618,0.15338256514727103,0.14936582109479304]
[]
["HB jünger als 75 Jahre (LZP)",null,null,{"$f":"SUM('1a_Langzeitpflege'!C24:F24)/'1a_Langzeitpflege'!L24","v":{"$error":"#DIV/0!"}},null,null,0.11533038819437917,0.12244315479021976,0.12040835798110867,0.12478015366102009,0.12605431457966448,0.12362470761500477,0.118586186288739]
["HB, die aus der Standortgemeinde kommen (LZP)",null,null,{"$f":"'1a_Langzeitpflege'!A61/'1a_Langzeitpflege'!L60","v":{"$error":"#DIV/0!"}},null,null,0.54507002537832505,0.54190847683379317,0.54918423814521511,0.55419790798852175,0.54601909352117894,0.54968379104219012,0.5501579441646034]
["Selbstzahler:innen (LZP)",null,{"$f":"'1a_Langzeitpflege'!K34/'1a_Langzeitpflege'!K35","v":{"$error":"#DIV/0!"}},null,null,null,1.0621298994266379E-2,1.2463133859765959E-2,1.4597843717202557E-2,1.9531611589373322E-2,1.8908147186949671E-2,2.1744780386381356E-2,2.6893195594638437E-2]
[]
["Neueintritte im Jahr 2025 an Langzeitpflegeplätzen zum 31.12.2025",null,null,null,{"$f":"('1a_Langzeitpflege'!F80+'1a_Langzeitpflege'!F81)/'1a_Langzeitpflege'!H10","v":{"$error":"#DIV/0!"}},null,0.37046861184792218,0.36744223492472428,0.3536831891323684,0.38778501628664497,0.33276588845654992,0.35641399416909619,0.36240090600226499]
["HB, deren Verweildauer im Heim weniger als 4 Monate betrug (LZP)",null,null,null,{"$f":"('1a_Langzeitpflege'!B94+'1a_Langzeitpflege'!C94)/'1a_Langzeitpflege'!I94","v":{"$error":"#DIV/0!"}},null,0.21769177608845888,0.22074040009197515,0.1957342812708287,0.20784139006460237,0.17884405670665213,0.21262855776130113,0.19080679913813742]
["HB, die im Heim verstorben sind, an Gesamt-Verstorbenen (LZP)",null,null,null,{"$f":"'1a_Langzeitpflege'!D88/'1a_Langzeitpflege'!D87","v":{"$error":"#DIV/0!"}},null,0.76203639714351534,0.77098183490457572,0.75294379026882918,0.74671419024281582,0.74171752397558854,0.7168141592920354,0.7246827866890112]
[]
["Pflegegeldanträge"]
[]
["Neuanträge in % der Neu-Eingetretenen",null,null,null,null,null,null,null,null,0.15140697186056279,0.14835566382460413,0.13746875710065895,0.1484375]
["Erhöhungsanträge in % der Bewohnerzahl",null,null,null,null,null,null,null,null,0.29502925856858081,0.2517388807351158,0.29999377606273731,0.32256871687415262]
["Klagen in % aller Neu- und Erhöhungsanträge",null,null,null,null,null,null,null,null,2.8818986626483332E-2,3.0303030303030304E-2,3.391705069124424E-2,3.0344126123071708E-2]
["Klagen in % der abgelehnten Neu- und Erhöhungsanträge",null,null,null,null,null,null,null,null,0.27224199288256229,0.27878787878787881,0.3188908145580589,0.26636904761904762]
[]
["Pflegepersonal"]
[]
["Anteile an MPPB-wirksamem Gesamt-Pflegepersonal (PE)"]
["Leitung des Betreuungs- und Pflegedienstes",null,null,{"$f":"('4_Pflegepersonalbedarf 2025'!O276-'4_Pflegepersonalbedarf 2025'!O262-'4_Pflegepersonalbedarf 2025'!O263)/'4_Pflegepersonalbedarf 2025'!O275","v":{"$error":"#DIV/0!"}},null,null,6.9848639783655678E-4,2.7443512650929686E-4,5.4204886377756441E-3,6.0399832103828271E-3,5.1170758073063437E-3,4.6453803539749476E-3,5.0463152291875795E-3]
["Angehörige des gehobenen Dienstes (DGKP)",null,null,{"$f":"'4_Pflegepersonalbedarf 2025'!O262/'4_Pflegepersonalbedarf 2025'!$O$275","v":{"$error":"#DIV/0!"}},null,null,0.20381866079569125,0.20923452727457886,0.21510275038194054,0.22248749634894943,0.23066819928733376,0.23488958298700299,0.23035710610048576]
["Pflegefachassistent:innen (PFA)",null,null,{"$f":"'4_Pflegepersonalbedarf 2025'!O263/'4_Pflegepersonalbedarf 2025'!$O$275","v":{"$error":"#DIV/0!"}},null,null,4.2835031164518089E-2,3.5474673671473243E-2,2.5794546475221745E-2,1.5243607093623822E-2,9.0239560142067379E-3,3.2125336196058298E-3,1.6203818440799977E-3]
["Fach-Sozialbetreuer:innen \"A\" und \"BA\" (FSB \"A\"/\"BA\")",null,null,{"$f":"('4_Pflegepersonalbedarf 2025'!O277+'4_Pflegepersonalbedarf 2025'!O265)/'4_Pflegepersonalbedarf 2025'!$O$275","v":{"$error":"#DIV/0!"}},null,null,0.56779531317462761,0.5890038199814176,0.617257531505499,0.63316538487701457,0.65329999999999999,0.665489605638656,0.68192181543489994]
["Diplom-Sozialbetreuer:innen \"A\" und \"BA\" (DSB \"A\"/\"BA\")",null,null,{"$f":"('4_Pflegepersonalbedarf 2025'!O266+'4_Pflegepersonalbedarf 2025'!O267)/'4_Pflegepersonalbedarf 2025'!$O$275","v":{"$error":"#DIV/0!"}},null,null,5.2850182431949701E-3,6.4821579979935772E-3,6.8358195823177131E-3,7.28412119454145E-3,6.913937483179089E-3,6.2768440644012076E-3,6.5052593479690739E-3]
["Diplom-Sozialbetreuer:innen \"F\" (DSB \"F\")",null,null,{"$f":"'4_Pflegepersonalbedarf 2025'!O268/'4_Pflegepersonalbedarf 2025'!$O$275","v":{"$error":"#DIV/0!"}},null,null,5.8089288619868351E-4,0]
["Pflegeassistent:innen (PA)",null,null,{"$f":"'4_Pflegepersonalbedarf 2025'!O269/'4_Pflegepersonalbedarf 2025'!$O$275","v":{"$error":"#DIV/0!"}},null,null,3.7696235027907747E-2,2.9385470493134776E-2,2.315295780028118E-2,1.5741106310388026E-2]
["Altenbetreuer:innen",null,null,null,null,null,null,null,0,0,3.6311514452675846E-4,0,1.8243434407565838E-4]
["Heimhelfer:innen",null,null,null,null,null,null,null,0.10643590561696464,0.10003830096509944,8.9438431907728072E-2,8.0783532842138503E-2,7.0508341796546192E-2]
["Heimhelfer:innen und Altenbetreuer:innen",null,null,{"$f":"('4_Pflegepersonalbedarf 2025'!O278-'4_Pflegepersonalbedarf 2025'!O271-'4_Pflegepersonalbedarf 2025'!O272)/'4_Pflegepersonalbedarf 2025'!$O$275","v":{"$error":"#DIV/0!"}},null,null,0.11911195504024069,0.11168047544328678,0.10643590561696464,{"$f":"SUM(J52:J53)","v":0.10003830096509944},8.9801547052254835E-2,8.0783532842138503E-2,7.0690776140621844E-2]
["FSB \"BB\" und DSB \"BB\"",null,null,{"$f":"('4_Pflegepersonalbedarf 2025'!O271+'4_Pflegepersonalbedarf 2025'!O272)/'4_Pflegepersonalbedarf 2025'!$O$275","v":{"$error":"#DIV/0!"}},null,null,0,8.1667117601662666E-4]
["Stützpersonal",null,null,{"$f":"'4_Pflegepersonalbedarf 2025'!O279/'4_Pflegepersonalbedarf 2025'!$O$275","v":{"$error":"#DIV/0!"}},null,null,2.2178407269784643E-2,1.7647754877325686E-2]
["HH in berufsbegleitender Ausbildung zu PA",null,null,null,null,null,null,null,null,null,9.2403726403446861E-4,6.7295036781245124E-4,2.0067777848322424E-4]
["PA in berufsbegleitender Ausbildung zu FSB \"A\"",null,null,null,null,null,null,null,null,null,4.2982416246259599E-3,4.0294309240456209E-3,3.6576681242720117E-3]
[null,null,null,{"$f":"SUM(D45:D56)","v":{"$error":"#DIV/0!"}},null,null,1.0000000000000002,{"$f":"SUM(H45:H56)","v":0.99999998604173646},{"$f":"SUM(I45:I53)","v":1.0000000000000004},{"$f":"SUM(J45:J53)","v":0.99999999999999967},{"$f":"SUM(K57:K58,K45:K53)","v":1.0000469945329411},{"$f":"SUM(L57:L58,L45:L53)","v":0.99999986079763747},{"$f":"SUM(M57:M58,M45:M53)","v":0.99999999999999944}]
["Leasingpersonal (Anteil an Gesamtpersonal)",null,null,{"$f":"'2_Personal'!F22/'4_Pflegepersonalbedarf 2025'!$O$275","v":{"$error":"#DIV/0!"}},null,null,9.5656163453708126E-3,1.0283633060556373E-2,7.6551692709436745E-3,7.064740217866872E-3,8.4787386246998105E-3,6.0242137748251516E-3,4.0363598626739416E-3]
["Personen in berufsbegleitender Ausbildung an"]
["MPPB-wirksamem Gesamtpersonal",null,null,null,null,null,null,null,null,null,1.076085580453222E-2,1.086817542513745E-2,8.807761041613479E-3]
["Personal in berufsbegl. Ausbildung an erforderlichem Pflegepersonal",null,null,null,null,null,null,null,null,null,1.2105633227370811E-2,1.1086685341918229E-2,8.9602961125591143E-3]
["Personen Nachtdienst in % an Gesamt-Plätzen",null,null,{"$f":"'1_allg. Strukturdaten'!G58/('1a_Langzeitpflege'!H10+'1b_Kurzzeitpflege'!G10)","v":{"$error":"#DIV/0!"}},null,null,2.2771734877533454E-2,2.2933625547902316E-2,2.2822066577476981E-2,2.3204244872099468E-2,2.2897749703908409E-2,2.2199480437691883E-2,2.2176785152563699E-2]
[]
["Anteile anrechenbares Pflegepersonal am MPPB zum Stichtag"]
[]
["Anteil anrechenbare LBPD+DGKP+PFA am MPPB",null,null,{"$f":"'4_Pflegepersonalbedarf 2025'!O293/100","v":0},null,null,0.26754970004363599,0.27184831387318747,0.27394663187906454,0.26880396533074824,0.27691668266836439,0.25626610871836114]
["Ant. anrechenb. FSB'A','BA',DSB'A','BA','F' u. PA am MPPB",null,null,{"$f":"'4_Pflegepersonalbedarf 2025'!O294/100","v":0},null,null,0.66064947651156014,0.69339423906081032,0.71984629920154497,{"$f":"SUM(J74:J75)","v":0.72357489578815715},0.75161175020922011,0.71544537063881131]
["Anteil anrechenb. HH, AB, FSB \"BB\"und DSB \"BB\"",null,null,{"$f":"'4_Pflegepersonalbedarf 2025'!O295/100","v":0},null,null,0.1294663575338823,0.12483352621702704,0.11837455340943981,{"$f":"SUM(J76:J77)","v":0.11031124467460898},0.11338536766718116,9.7036141033815651E-2]
["Anteil anrechenb. Stützpersonal ",null,null,{"$f":"'4_Pflegepersonalbedarf 2025'!O296/100","v":0},null,null,2.3989383282839651E-2,1.9582991272230683E-2]
[]
["Anteil anrechenb. DGKP ohne PFA am MPPB",null,{"$f":"('4_Pflegepersonalbedarf 2025'!O276-'4_Pflegepersonalbedarf 2025'!O263)/'4_Pflegepersonalbedarf 2025'!O286","v":{"$error":"#DIV/0!"}},null,null,null,0.22121697794875564,0.23248352046333215,0.24525877601215551,0.25199499061200542,0.26670920824968808,0.25286763543591839,0.24937523498641939]
["Anteil DSB'A'+'BA' und FSB'A'+'BA' am MPPB",null,null,null,null,null,null,null,0.69409633236630197,0.70621733360544836,0.75161175020922011,0.71544537063881131]
["Anteil PA am MPPB",null,null,null,null,null,null,null,2.5749966835242971E-2,1.7357562182708734E-2]
["Anteil AB/HH am MPPB",null,null,null,null,null,null,null,0.11837455340943981,0.11031124467460898,0.10262451186264894,8.6167965608678204E-2]
["davon Anteil AB und HH/PA i.berufsbegl.Ausb. am MPPB",null,null,null,null,null,null,null,null,null,1.076085580453222E-2,1.086817542513745E-2]
[]
["Mindestpflegepersonalbedarf / Pflegeintensität am Stichtag   lt. Blatt 4_"]
[]
["Erfüllung MPPB",null,{"$f":"'4_Pflegepersonalbedarf 2025'!O292/100","v":0},null,null,null,1.0816549431271494,2.1096590173820902,1.1118449304573703,1.1026923663167887,1.1309344320294148,1.0577000000000001]
["am Stichtag fehlen insgesamt",null,{"$f":"'4_Pflegepersonalbedarf 2025'!O297","v":0},"PE",null,"gesamt OÖ",7.2642425791175853,1.6954058558558636,4.47,5.4521055218173764,3.784456818181809,16.83104884370017]
["am Stichtag fehlen an DGKP/PFA auf 20 %",null,{"$f":"'4_Pflegepersonalbedarf 2025'!O298","v":0},"PE",null,"gesamt OÖ",3.5907692307692374,2.9492307692307715,5.0529999999999999,7.8369999999999997,8.3949649122807024,8.1971578947368471]
["am Stichtag fehlen an DGKP/PFA auf 25 %",null,{"$f":"'4_Pflegepersonalbedarf 2025'!O299","v":0},"PE",null,"gesamt OÖ",58.399319473319451,49.979989778239769,50.92,55.618124786324771]
["am Stichtag fehlen an FSB/DSB/PA",null,{"$f":"'4_Pflegepersonalbedarf 2025'!O300","v":0},"PE",null,"gesamt OÖ",23.919764062139077,8.0920732617232645]
["Pflegeintensität IST","1 :",{"$f":"'4_Pflegepersonalbedarf 2025'!O284/'4_Pflegepersonalbedarf 2025'!O275","v":{"$error":"#DIV/0!"}},null,null,"1 :",1.9875062497471228,1.9634919456524715,1.99,2.0189245544391246,1.9808096469895793,2.1351964991650951,2.1742947812478635]
["Pflegeintensität SOLL","1 :",{"$f":"'4_Pflegepersonalbedarf 2025'!O284/'4_Pflegepersonalbedarf 2025'!O286","v":{"$error":"#DIV/0!"}},null,null,"1 :",2.1497959595350782,2.1788065430503765,2.21,2.226252694349546,2.2401658330765453,2.258437916295863,2.3028726583765486]
[]
["Betreuungs- und Pflegepersonal (nicht MPPB-wirksam)"]
[]
["Anteile am MPPB"]
["Hilfskräfte (inkl. Hauswirtschaftskräfte)",null,{"$f":"'4_Pflegepersonalbedarf 2025'!O281/'4_Pflegepersonalbedarf 2025'!O286","v":{"$error":"#DIV/0!"}},null,null,null,5.5953574457316489E-2,5.4758045394936769E-2,2.226268861915448E-2,1.7864384479159119E-2]
[]
["Funktionspersonal"]
[]
["Anteile an Gesamt-Funktionspersonal (PE)"]
["Heimleitung",null,{"$f":"'2_Personal'!H32/'2_Personal'!$H$38","v":{"$error":"#DIV/0!"}},null,null,null,6.1521262320856397E-2,5.9218264328120294E-2,5.9503822975271618E-2,5.4697068956053557E-2,5.7247282304452959E-2,5.7308728319768902E-2,5.9132992204085535E-2]
["Verwaltung",null,{"$f":"'2_Personal'!H33/'2_Personal'!$H$38","v":{"$error":"#DIV/0!"}},null,null,null,8.8822361787776985E-2,8.4489918163575234E-2,8.4517377663282434E-2,7.3632742236563478E-2,7.4757111482527672E-2,7.3017927061614335E-2,7.4504908266935316E-2]
["Küche",null,{"$f":"'2_Personal'!H34/'2_Personal'!$H$38","v":{"$error":"#DIV/0!"}},null,null,null,0.45023398294927208,0.46067924073829364,0.45469087766982086,0.40294559281240344,0.41924912751109616,0.44888208540618257,0.45654378095743564]
["Reinigung",null,{"$f":"'2_Personal'!H35/'2_Personal'!$H$38","v":{"$error":"#DIV/0!"}},null,null,null,0.27045253399301677,0.2664837519598004,0.2754159201948253,0.25371117094442597,0.25789497224767444,0.25070218047637843,0.25568473027051863]
["Wäscherei",null,{"$f":"'2_Personal'!H36/'2_Personal'!$H$38","v":{"$error":"#DIV/0!"}},null,null,null,4.847701968381872E-2,4.9402992507619946E-2,5.0886662689954225E-2,4.7309523789953095E-2,4.9922963149405516E-2,5.060505705319495E-2,5.0575952140007062E-2]
["Hauswirtschaftskräfte",null,null,null,null,null,null,null,null,6.000667439500966E-2,7.0885682906994416E-2,4.878384886456838E-2,3.020022610216502E-2]
["Hilfskräfte",null,null,null,null,null,null,null,null,4.0366481641258216E-2]
["Haustechnik",null,{"$f":"'2_Personal'!H37/'2_Personal'!$H$38","v":{"$error":"#DIV/0!"}},null,null,null,8.0492839265258936E-2,7.9725832302590394E-2,7.4985338806845422E-2,6.7330745224332453E-2,7.00428603978486E-2,7.0700172818292537E-2,7.3357410058852671E-2]
[null,null,{"$f":"SUM(C97:C104)","v":{"$error":"#DIV/0!"}},null,null,null,0.99999999999999989,{"$f":"SUM(H97:H104)","v":0.99999999999999978},{"$f":"SUM(I97:I104)","v":0.99999999999999989},0.99999999999999989,0.99999999999999967,1,0.99999999999999989]
["Anteile an Langzeitpflegeplätzen"]
["Heimleitung",null,{"$f":"'2_Personal'!H32/'1a_Langzeitpflege'!$H$10","v":{"$error":"#DIV/0!"}},null,null,null,9.9463924204389025E-3,9.8706324927656051E-3,9.731677222999096E-3,9.8892833553500658E-3,9.815666310862961E-3,9.6739469578783158E-3,9.9033946830265843E-3]
["Verwaltung",null,{"$f":"'2_Personal'!H33/'1a_Langzeitpflege'!$H$10","v":{"$error":"#DIV/0!"}},null,null,null,1.4254079254079257E-2,1.3713348361645601E-2,1.3749059073801341E-2,1.3130741042345281E-2,1.2710421755414432E-2,1.2214401096312796E-2,1.2399730938058852E-2]
["Küche",null,{"$f":"'2_Personal'!H34/'1a_Langzeitpflege'!$H$10","v":{"$error":"#DIV/0!"}},null,null,null,8.8929362880886459E-2,9.0848019172454261E-2,8.8164179832260589E-2,8.7055544593528003E-2,8.7234455958549215E-2,8.8649462055715667E-2,8.9115130136333279E-2]
["Reinigung",null,{"$f":"'2_Personal'!H35/'1a_Langzeitpflege'!$H$10","v":{"$error":"#DIV/0!"}},null,null,null,6.0581397958038831E-2,6.0404429952777151E-2,6.3444965820878219E-2,6.1229039012563373E-2,6.0219367102761934E-2,5.8702710706150359E-2,6.0379400230680516E-2]
["Wäscherei",null,{"$f":"'2_Personal'!H36/'1a_Langzeitpflege'!$H$10","v":{"$error":"#DIV/0!"}},null,null,null,1.5110850897736143E-2,1.452493801954207E-2,1.4701394943330425E-2,1.4953998267898385E-2,1.5060704998555333E-2,1.5106310134272815E-2,1.5637163998791906E-2]
["Hauswirtschaftskräfte",null,null,null,null,null,null,null,null,1.8710850064075184E-2,2.2176029962546813E-2,1.6566402378592665E-2,1.4686935866983372E-2]
["Hilfskräfte",null,null,null,null,null,null,null,null,1.2450281690140848E-2]
["Haustechnik",null,{"$f":"'2_Personal'!H37/'1a_Langzeitpflege'!$H$10","v":{"$error":"#DIV/0!"}},null,null,null,1.31155635354607E-2,1.3072712484749897E-2,1.217848390785819E-2,1.2327146559652202E-2,1.197225178030613E-2,1.188568157658026E-2,1.2337120091999342E-2]
[]
["Beschäftigte"]
[]
["männliche Beschäftigte",null,{"$f":"'2_Personal'!C47/('2_Personal'!$C$47+'2_Personal'!$D$47)","v":{"$error":"#DIV/0!"}},null,null,null,0.13003288596569193,0.1268497058299162,0.12761255869625265,0.1273879500367377,0.12861617836742215,0.12864573657811629,0.12836958542480015]
["weibliche Beschäftigte",null,{"$f":"'2_Personal'!D47/('2_Personal'!$C$47+'2_Personal'!$D$47)","v":{"$error":"#DIV/0!"}},null,null,null,0.86996711403430804,0.87315029417008383,0.87238744130374735,0.87261204996326236,0.87138382163257788,0.87135426342188371,0.87163041457519985]
["Teilzeitbeschäftigte",null,null,null,null,null,null,0.68354430379746833,0.68943927815118311,0.67367744305657606,0.69660954486825133,0.69719487274753855,0.68748838073991447]
[]
["Überstunden, Mehrstunden"]
[]
["übertragene Stunden pro Person",null,null,{"$f":"'2_Personal'!C52/'2_Personal'!C22","v":{"$error":"#DIV/0!"}},null,null,40.839457605985025,42.84075987460816,38.59556067386157,34.691219543805097,25.757082004846318,27.52402518956432,27.029580984110712]
["ausbezahlte Stunden pro Person",null,null,{"$f":"'2_Personal'!C53/'2_Personal'!C22","v":{"$error":"#DIV/0!"}},null,null,19.919598503740655,20.470443887147333,27.190618583837846,15.423754536029033,14.314690728223441,14.130127233003472,10.502202716555614]
[]
["Fluktuation Pflegepersonal (Auflösung Dienstverhältnis) (ohne Leasingpersonal)"]
[]
["Anteile an Summe Personen"]
["in ein Heim des selben Trägers",null,null,{"$f":"'2_Personal'!M73/'2_Personal'!$C$22","v":{"$error":"#DIV/0!"}},null,null,9.3516209476309231E-3,5.8934169278996862E-3,7.2387470386943934E-3,9.3457943925233638E-3,1.1821252273317744E-2,8.3409357487293102E-3,1.009578048149107E-2]
["in ein Heim eines anderen Trägers",null,null,{"$f":"'2_Personal'!M74/'2_Personal'!$C$22","v":{"$error":"#DIV/0!"}},null,null,2.032418952618454E-2,2.0062695924764892E-2,2.1847854698604896E-2,1.8958611481975966E-2,1.9225772928033256E-2,2.0591685129675484E-2,1.8379497799637587E-2]
["zu den Mobilen Diensten",null,null,{"$f":"'2_Personal'!M75/'2_Personal'!$C$22","v":{"$error":"#DIV/0!"}},null,null,7.3566084788029926E-3,6.269592476489028E-3,8.2916556988681233E-3,7.7436582109479306E-3,5.4559625876851132E-3,4.3007949954385512E-3,5.5656225731296922E-3]
["in eine Einrichtung des Gesundheitsbereiches (inkl. KA)",null,null,{"$f":"'2_Personal'!M76/'2_Personal'!$C$22","v":{"$error":"#DIV/0!"}},null,null,1.9950124688279301E-2,1.9561128526645769E-2,2.0268491708344299E-2,1.6688918558077435E-2,1.623798389191998E-2,1.5899908771015249E-2,3.4946932435930625E-3]
["in eine Einrichtung für Menschen mit Beeinträchtigungen",null,null,{"$f":"'2_Personal'!M77/'2_Personal'!$C$22","v":{"$error":"#DIV/0!"}},null,null,5.9850374064837905E-3,6.5203761755485892E-3,7.2387470386943934E-3,7.2096128170894523E-3,2.8578851649779164E-3,5.3434119640297147E-3,3.2358270774009838E-3]
["zu Sonstigem (z.B. anderes Berufsfeld, Privatfirmen etc.)",null,null,{"$f":"'2_Personal'!M78/'2_Personal'!$C$22","v":{"$error":"#DIV/0!"}},null,null,1.9950124688279301E-2,1.7429467084639497E-2,2.5664648591734666E-2,1.7890520694259011E-2,1.2210963886723825E-2,1.4075329075980712E-2,1.2813875226507895E-2]
["weiterer Berufsweg unbekannt bzw. sonstige Gründe",null,null,{"$f":"'2_Personal'!M81/'2_Personal'!$C$22","v":{"$error":"#DIV/0!"}},null,null,3.0673316708229426E-2,2.8338557993730407E-2,2.7244011581995263E-2,2.5500667556742324E-2,2.6240581969342685E-2,2.6586732699074678E-2,2.0579860212270255E-2]
[]
["BETREUUNG UND PFLEGE (ohne Kurzzeitpflege)"]
["Erhaltung und Förderung von Selbständigkeit"]
[]
["HB mit einer schweren Bettlägrigkeit",null,null,null,null,null,null,null,null,9.4695917800610943E-2,9.0647882102141072E-2,7.9442086112795629E-2,7.2910441389908653E-2]
["Qualitätsstandard (SOP) Mobilitätserhaltung und -verbesserg. vorhanden",null,null,null,null,null,null,null,null,0.84090909090909094,0.84090909090909094,0.83333333333333337,0.79850746268656714]
[]
["Schutz vor gesundheitlichen Schädigungen"]
[null,null,null,null,null,null,null,null,null,null,null,null,null,null,null,{"$f":"IF(N145=\"\",\"\",\"x\")","v":""}]
["Dekubitus (Anteile an Summe HB der Langzeitpflege)"]
["Qualitätsstandard (SOP) Dekubitus vorhanden",null,null,null,null,null,null,null,null,0.96969696969696972,0.96969696969696972,0.95454545454545459,0.95522388059701491]
["Risikoeinschätzung Dekubitus wird durchgeführt",null,null,null,null,null,null,null,null,0.91666666666666663,0.90909090909090906,0.88636363636363635,0.88805970149253732]
["HB mit Dekubitusrisiko",null,null,null,null,null,null,null,null,0.17115616032583542,0.17916396329594958,0.17707701637355974,0.17681208913173396]
["HB mit Dekubitus Grad I",null,null,null,null,null,null,null,null,1.1293159307599741E-2,2.4932801927889516E-2,2.616304253660227E-2,1.9E-2]
["HB mit Dekubitus Grad II",null,null,null,null,null,null,null,null,6.4796815699342779E-3,1.8537399202891835E-2,1.6720090097894828E-2,1.55E-2]
["Dekubitalgeschwüre I und II im Heim entstanden",null,null,null,null,null,null,null,null,0.578125,0.80383795309168449,0.6767676767676768,0.65759999999999996]
["Dekubitalgeschwüre I und II im Krankenhaus entstanden",null,null,null,null,null,null,null,null,0.234375,0.11940298507462686,0.19191919191919191,0.20100000000000001]
["Dekubitalgeschwüre I und II anderswo (z.B. zu Hause,..) entstanden",null,null,null,null,null,null,null,null,0.21875,0.10874200426439233,0.13535353535353536,0.15629999999999999]
["HB mit Dekubitus Grad III",null,null,{"$f":"IF('5_Betreuung und Pflege'!F13=0,\"0,00%\",'5_Betreuung und Pflege'!F13/'1a_Langzeitpflege'!L24)","v":"0,00%"},null,null,1.1561236958360747E-2,1.3033964418228523E-2,1.44E-2,1.1293159307599741E-2,1.0566317545648346E-2,8.4899939357186167E-3,7.8545206181166224E-3]
["HB mit Dekubitus Grad IV",null,null,{"$f":"IF('5_Betreuung und Pflege'!F14=0,\"0,00%\",'5_Betreuung und Pflege'!F14/'1a_Langzeitpflege'!L24)","v":"0,00%"},null,null,6.7675533414794627E-3,6.4694129959090478E-3,6.0000000000000001E-3,6.4796815699342779E-3,5.6539067568820095E-3,5.024690288486529E-3,4.0980107572782375E-3]
["Summe HB mit Deku. Grad III und IV",null,null,{"$f":"'5_Betreuung und Pflege'!G15","v":"0,00%"},null,null,1.8328790299840209E-2,1.950337741413757E-2,2.0400000000000001E-2,1.7772840877534019E-2,1.6220224302530353E-2,1.3514684224205147E-2,1.195253137539486E-2]
["Dekubitalgeschwüre III und IV im Heim entstanden",null,null,{"$f":"IF('5_Betreuung und Pflege'!F18=0,\"0,00%\",'5_Betreuung und Pflege'!F18/'5_Betreuung und Pflege'!F15)","v":"0,00%"},null,null,0.64102564102564108,0.62439024390243902,0.58879999999999999,0.578125,0.56571428571428573,0.5,0.50714285714285712]
["Dekubitalgeschwüre III und IV im Krankenhaus entstanden",null,null,{"$f":"IF('5_Betreuung und Pflege'!F19=0,\"0,00%\",'5_Betreuung und Pflege'!F19/'5_Betreuung und Pflege'!F15)","v":"0,00%"},null,null,0.14871794871794872,0.15121951219512195,0.16819999999999999,0.234375,0.24,0.26923076923076922,0.23571428571428571]
["Dekubitalgeschw. III u. IV anderswo (z.B. zu Hause,..) entstanden",null,null,null,{"$f":"IF('5_Betreuung und Pflege'!F20=0,\"0,00%\",'5_Betreuung und Pflege'!F20/'5_Betreuung und Pflege'!F15)","v":"0,00%"},null,0.21025641025641026,0.22439024390243903,0.24299999999999999,0.21875,0.21142857142857144,0.23717948717948717,0.27857142857142858]
[]
["Stürze"]
["Qualitätsstandard (SOP) Stürze vorhanden",null,null,null,null,null,null,null,null,0.96212121212121215,0.96212121212121215,0.93181818181818177,0.92537313432835822]
["Risikoeinschätzung Stürze wird durchgeführt",null,null,null,null,null,null,null,null,0.91666666666666663,0.90151515151515149,0.84848484848484851,0.85074626865671643]
["HB, bei denen ein Sturzrisiko eingeschätzt wurde",null,null,null,null,null,null,null,null,0.73609182634453396,0.74353508202799146,0.69912501082907386,0.65781610176726713]
["gestürzte HB gemessen an allen HB",null,null,{"$f":"'5_Betreuung und Pflege'!G29","v":"0,00%"},null,null,0.44371079564212612,0.42422030524220306,0.43340000000000001,0.42036251446201311,0.40155721488288976,0.40878546540567445,0.41155078895463509]
["durchschnittl. Sturzanzahl pro gestürztem HB",null,null,{"$f":"'5_Betreuung und Pflege'!G31","v":"0"},null,null,3.7669642857142858,3.851087126544658,3.91,3.9582568807339449,4.1470120788302607,4.3076103500761036,4.2095252358843789]
["Stürze mit ambulanter oder stationärer Behandlung"]
["     im Verhältnis zu allen Stürzen des Jahres",null,null,{"$f":"'5_Betreuung und Pflege'!G34","v":"0,00%"},null,null,0.18231018408785651,0.19212022745735174,0.17249999999999999,0.16544983968787422,0.16088606139577666,0.17836825553867355,0.19834916568826272]
[]
["Freiheitsbe- bzw. -einschränkende Maßnahmen"]
["HB sind in ihrer Freiheit beschränkt ",null,null,{"$f":"'5_Betreuung und Pflege'!G41","v":"0,00%"},null,null,0.19983081116646301,0.18913519170392923,0.16639999999999999,0.15551235767842267,0.14894800259523588,0.13583990297149787,0.11124391701528216]
["HB sind in ihrer Freiheit eingeschränkt ",null,null,{"$f":"'5_Betreuung und Pflege'!G45","v":"0,00%"},null,null,5.6302284049252749E-2,4.8901151174959565E-2,4.7100000000000003E-2,5.3040821993890583E-2,5.9412364445268331E-2,4.5482110369921162E-2,4.8578502518569114E-2]
[]
[]
["Atmung"]
["HB mit Trachealkanüle, bei denen ein Absaugen notw. ist",null,null,null,null,null,null,null,null,1.1108025548458762E-3,1.2049309481879692E-3,2.1658147795200556E-3,1.1952531375394859E-3]
[]
["Ernährungs- und Flüssigkeitszustand"]
["Qualitätsstandard (SOP) Ernährung inkl. Exsikkose vorhanden",null,null,null,{"$f":"'5_Betreuung und Pflege'!G53","v":0},null,0.93283582089552242,0.91791044776119401,0.89470000000000005,0.93939393939393945,0.91666666666666663,0.87878787878787878,0.87313432835820892]
["Risikoeinschätzung zum Thema Ernährung wird durchgeführt",null,null,null,{"$f":"'5_Betreuung und Pflege'!G55","v":0},null,0.97014925373134331,0.91791044776119401,0.90980000000000005,0.90909090909090906,0.90151515151515149,0.90909090909090906,0.83582089552238803]
["HB, die zum Stichtag über eine Magensonde (PEG) ernährt wurden",null,null,null,null,null,null,null,null,1.5366102008701287E-2,1.5293354342385762E-2,1.5160703456640388E-2,1.7245795270212583E-2]
["HB, die im Berichtsjahr über eine Magensonde ernährt wurden",null,null,null,null,null,null,null,null,1.5111568387885023E-2,1.5570161444706783E-2,1.6431194373560713E-2,1.7626032293849379E-2]
["HB, bei denen eine Magensonde wieder stillgelegt wurde",null,null,null,null,null,null,null,null,0.1148936170212766,4.9180327868852458E-2,7.575757575757576E-2,7.6923076923076927E-2]
[]
["Ausscheidung"]
["HB mit Inkontinenzversorgung über 24 Stunden",null,null,null,null,null,null,null,null,0.80320281403313898,0.79182500695152469,0.77518842588581827,0.69913771023648941]
["HB mit Dauerkatheter",null,null,{"$f":"'5_Betreuung und Pflege'!G59","v":"0,00%"},null,null,6.7675533414794625E-2,6.8499667015507568E-2,6.4699999999999994E-2,6.2297509950939557E-2]
[]
["Schmerzen"]
["Qualitätsstandard (SOP) Schmerzen vorh.",null,{"$f":"'5_Betreuung und Pflege'!G67","v":0},null,null,null,0.93283582089552242,0.94029850746268662,0.9173,0.90151515151515149,0.89393939393939392,0.84848484848484851,0.78358208955223885]
["Schmerzeinschätzung wird durchgeführt",null,{"$f":"'5_Betreuung und Pflege'!G69","v":0},null,null,null,0.97014925373134331,0.94029850746268662,0.9173,0.87878787878787878,0.84090909090909094,0.84848484848484851,0.77611940298507465]
["HB mit einer Dauermedikation Schmerzmittel",null,null,null,null,null,null,null,null,0.26880396533074824,0.35276670683103162,0.35770596898553236,0.36463758217365322]
["HB mit einer Dauermedikation Suchtmittel",null,null,{"$f":"'5_Betreuung und Pflege'!G74","v":"0,00%"},null,null,0.21580975655606729,0.2258586242983541,0.21229999999999999,0.20975654910672961,0.2065993141162295,0.20549250628086285,0.19644839067702552]
["davon: HB mit Suchtmittel subcutan im Nachtdienst",null,null,{"$f":"'5_Betreuung und Pflege'!G77","v":"0,00%"},null,null,1.6986062717770034E-2,3.1171019376579612E-2,1.84E-2,2.4713150926743161E-2,3.6339165545087482E-2,2.4873524451939293E-2,1.3906996957844416E-2]
[]
["Unterstützung bei spezifischen Bedarfslagen"]
[]
["Verhaltensauffälligkeiten"]
["HB mit herausforderndem Verhalten",null,null,null,null,null,null,null,null,0.20299916689808387,0.19492075261840763,0.21502209131075112,0.20122940322718347]
["davon: HB, bei denen auf Grund einer Suchterkrankung "]
["psychiatrische Pflegemaßnahmen erforderlich wären",null,null,null,null,null,null,null,null,0.12676698586411309,0.14265335235378032,0.11966156325543917,0.12176495545184557]
[]
["Demenz"]
["HB mit medizinisch diagnostizierter Demenz",null,null,{"$f":"IF('5_Betreuung und Pflege'!F85=0,\"0,00%\",'5_Betreuung und Pflege'!F85/'1a_Langzeitpflege'!L24)","v":"0,00%"},null,null,0.52279349562928845,0.53258491104557126,0.52010000000000001,0.49393686938813292,0.49745110760960237,0.51936238412890934,0.48988303594296934]
["Qualitätsstandard (SOP) Demenz vorhanden",null,null,null,null,null,null,null,null,0.83333333333333337,0.81060606060606055,0.75757575757575757,0.80597014925373134]
[]
["Medikamentengebarung"]
[]
["überwiegende Verblisterung der Medikamente",null,null,{"$f":"'5_Betreuung und Pflege'!F91","v":0},null,null,0.29104477611940299,0.27611940298507465]

{"sheet":"7_Definitionen","index":9,"n_rows":133,"n_cols":1,"rows_kept":133,"cut":false,"hidden":false,"merged":[]}
["ERHEBUNG IN DEN OÖ. ALTEN- UND PFLEGEHEIMEN                                               Literatur- und Quellennachweis"]
[]
["Qualitätsmanagementsystem"]
[]
["Definition:"]
["Ein Qualitätsmanagementsystem muss aus einem Regelkreis (z.B. Deming) sowie einer nachvollziehbaren Selbstbewertung bestehen, die in regelmäßigen Abständen adaptiert werden müssen."]
[]
["weiterführende Informationen:"]
["https://goeg.at/Qualitaetsmanagement"]
[]
["Qualitätsstandard"]
[]
["Definition:"]
["Beschreibbare Regelmäßigkeiten bzw. Vorgaben hinsichtlich Ausstattung, Verfahren oder Verhalten."]
[]
["Quelle:"]
["§ 2 Z. 12 Bundesgesetz zur Qualität von Gesundheitsleistungen (Gesundheitsqualitätsgesetz – GQG), BGBl. I Nr. 179/2004 i.d.g.F."]
[]
["weiterführende Informationen:"]
["https://www.sozialministerium.at/dam/sozialministeriumat/Anlagen/Themen/Gesundheit/Gesundheitssystem/Gesundheitssystem-und-Qualit%C3%A4tssicherung/Qualit%C3%A4tsstandards/Qualit%C3%A4tsstandards-gem%C3%A4%C3%9F-Gesundheitsqualit%C3%A4tsgesetz/methodenhandbuch_qualitaetsstandards__aktualisierung_2019.pdf"]
[]
["SOP - Standard Operating Procedures / Handlungsanweisungen:"]
[]
["Definition:"]
["Standard Operating Procedure (kurz SOP, auch Standard Operation Procedure genannt), auf Deutsch etwa Standardvorgehensweise oder standardisiertes Vorgehen, ist eine verbindliche textliche Beschreibung der Abläufe von Vorgängen einschließlich der Prüfung der Ergebnisse und deren Dokumentation insbesondere in Bereichen kritischer Vorgänge mit potentiellen Auswirkungen auf Umwelt, Gesundheit und Sicherheit."]
[]
["Risikoeinschätzung"]
[]
["Definition:"]
["Risiko-Pflegediagnosen beschreiben mögliche Reaktionen, die unter Einwirkung bestimmter Faktoren mit hoher Wahrscheinlichkeit eintreten können, wenn prophylaktisch keine pflegerischen Maßnahmen getroffen werden."]
[]
["Quelle:"]
["POP – Praxis Orientierte Pflegediagnostik – Stefan, Allmer, 2. Auflage 2013, ISBN 978-3-7091-1284-7"]
["https://link.springer.com/book/10.1007/978-3-7091-1284-7"]
[]
["Dekubitus"]
[]
["Definition:"]
["Dekubitus ist eine lokal begrenzte Schädigung der Haut und /oder des darunterliegenden Gewebes, in der Regel über knöchernen Vorsprüngen, infolge von Druck oder von Druck in Kombination mit Scherkräften. Es gibt eine Reihe weiterer Faktoren, welche tatsächlich oder mutmaßlich mit Dekubitus assoziiert sind; deren Bedeutung ist aber noch zu klären."]
[]
["Kategorie/ Stufe/ Grad I: Nicht wegdrückbare Rötung"]
["Nicht wegdrückbare, umschriebene Rötung bei intakter Haut, gewöhnlich über einem knöchernen Vorsprung. Bei dunkel pigmentierter Haut ist ein Abblassen möglicherweise nicht sichtbar, die Farbe kann sich aber von der umgebenden Haut unterscheiden. Der Bereich kann schmerzempfindlich, verhärtet, weich, wärmer oder kälter sein als das umgebende Gewebe. Diese Symptome können auf eine (Dekubitus-) Gefährdung hinweisen."]
[]
["Kategorie/ Stufe/ Grad II: Teilverlust der Haut"]
["Teilzerstörung der Haut (bis in die Dermis/Lederhaut), die als flaches, offenes Ulcus mit einem rot bis rosafarbenen Wundbett ohne Beläge in Erscheinung tritt. Kann sich auch als intakte oder offene/rupturierte, serumgefüllte Blase darstellen. Manifestiert sich als glänzendes oder trockenes, flaches Ulcus ohne nekrotisches Gewebe oder Bluterguss. Diese Kategorie sollte nicht benutzt werden um Skin Tears (Gewebezerreißungen), verbands- oder pflasterbedingte Hautschädigungen, feuchtigkeitsbedingte Läsionen, Mazerationen oder Abschürfungen zu beschreiben. *Blutergüsse weisen auf eine tiefe Gewebsschädigung hin."]
[]
["Kategorie/ Stufe/ Grad III: Verlust der Haut"]
["Zerstörung aller Hautschichten. Subkutanes Fett kann sichtbar sein, jedoch keine Knochen, Muskeln oder Sehnen. Es kann ein Belag vorliegen, der jedoch nicht die Tiefe der Gewebsschädigung verschleiert. Es können Tunnel oder Unterminierungen vorliegen. Die Tiefe des Dekubitus der Kategorie/Stufe/Grad III variiert je nach anatomischer Lokalisation. Der Nasenrücken, das Ohr, der Hinterkopf und das Gehörknöchelchen haben kein subkutanes Gewebe, daher können Kategorie III Wunden dort auch sehr oberflächlich sein. Im Gegensatz dazu können an besonders adipösen Körperstellen extrem tiefe Kategorie III Wunden auftreten. Knochen und Sehnen sind nicht sichtbar oder tastbar."]
[]
["Kategorie/ Stufe/ Grad IV: vollständiger Haut oder Gewebeverlust"]
["Totaler Gewebsverlust mit freiliegenden Knochen, Sehnen oder Muskeln. Belag und Schorf können vorliegen. Tunnel oder Unterminierungen liegen oft vor. Die Tiefe des Kategorie IV  Dekubitus hängt von der anatomischen Lokalisation ab. Der Nasenrücken, das Ohr, der Hinterkopf und der Knochenvorsprung am Fußknöchel haben kein subkutanes Gewebe, daher können Wunden dort auch sehr oberflächlich sein. Kategorie IV Wunden können sich in Muskeln oder unterstützende Strukturen ausbreiten (Fascien, Sehnen oder Gelenkkapseln) und können dabei leicht Osteomyelitis oder Ostitis verursachen. Knochen und Sehnen sind sichtbar oder tastbar."]
[]
["Autor:"]
["European Pressure Ulcer Advisory Panel (EPUAP) and National Pressure Ulcer Advisory Panel (NPUAP)"]
[]
["Quelle:"]
["Österreichische Gesellschaft für Dekubitusprävention"]
["http://www.apupa.at/dekubitus"]
[]
["weiterführende Informationen:"]
["Expertenstandard Dekubitusprophylaxe in der Pflege - in der aktuellen Fassung"]
["https://www.dnqp.de/de/expertenstandards-und-auditinstrumente"]
[]
["Sturz"]
[]
["Definition"]
["Im Expertenstandard des DNQP wird die folgende Definition zugrunde gelegt: \"Ein Sturz ist ein Ereignis, bei dem eine Person unbeabsichtigt auf dem Boden oder auf einer tieferen Ebene aufkommt.\""]
[]
["Autor:"]
["Deutsches Netzwerk für Qualitätsentwicklung in der Pflege (DNQP); Büscher et al."]
[]
["Quelle:"]
["Expertenstandard Sturzprophylaxe in der Pflege, aktuelle Fassung"]
["https://www.dnqp.de/de/expertenstandards-und-auditinstrumente"]
[]
["weiterführende Informationen: "]
["Evidenzbasierte Leitlinie Sturzprävention bei älteren und alten Menschen in Krankenhäusern und Langzeitpflegeeinrichtungen"]
["https://pflegewissenschaft.medunigraz.at/frontend/user_upload/OEs/institute/pflegewissenschaft/pdf/EBN_Sturzleitlinie.pdf"]
[]
["Hinweis:"]
["Beinahestürze, bei denen ein Sturz so weit abgefangen wird, dass es nicht zu einer Berührung des Körpers mit dem Boden kommt, zählen nicht als Stürze."]
[]
["Freiheitsbe- und -einschränkende Maßnahmen"]
[]
["Definition Freiheitsbeschränkung:"]
["Eine Freiheitsbeschränkung liegt vor, wenn eine Ortsveränderung einer betreuten oder gepflegten Person gegen oder ohne ihren Willen mit physischen Mitteln, insbesondere durch mechanische, elektronische oder medikamentöse Maßnahmen, oder durch deren Androhung unterbunden wird."]
[]
["Definition Freiheitseinschränkung:"]
["Eine Freiheitsbeschränkung liegt nicht vor, wenn der entscheidungsfähige Bewohner einer Unterbindung der Ortsveränderung, insbesondere im Rahmen eines Vertrages über die ärztliche Behandlung, zugestimmt hat. "]
[]
["Quelle:"]
["§ 3 Bundesgesetz über den Schutz der persönlichen Freiheit während des Aufenthalts in Heimen und anderen Pflege- und Betreuungseinrichtungen (Heimaufenthaltsgesetz – HeimAufG) BGBl. I Nr. 11/2004 i.d.g.F."]
[]
["Ernährung"]
[]
["Definition:"]
["Im Rahmen des Alterungsprozesses kommt es zu Veränderungen, die sowohl die körperliche wie auch die soziale Ebene betreffen. Dazu gehören beispielsweise Veränderungen in der Leber- und Nierengesundheit sowie die schlechtere Aufnahme von vereinzelten Nährstoffen. Das kann dazu führen, dass es bei einer unausgewogenen Ernährung leichter zu Mangelzuständen kommen kann. Demnach ist die bedarfs- und bedürfnisgerechte Ernährung in Wohn- und Pflegeeinrichtungen ein wesentlicher Teil der Versorgung von Bewohnerinnen und Bewohnern, wobei die individuelle Betreuung ein wesentliches Kernelement darstellt."]
[]
["Autor:"]
["Bundesministerium Soziales, Gesundheit, Pflege und Konsumentenschutz"]
[]
["Quelle:"]
["https://www.sozialministerium.at/Themen/Gesundheit/Ern%C3%A4hrung/Gemeinschaftsverpflegung.html"]
["Qualitätsstandard zu finden unter dem Reiter \"Weiterführende Dokumente\"."]
[]
["weiterführende Informationen:"]
["Expertenstandard Ernährungsmanagement zur Sicherung und Förderung der oralen Ernährung in der Pflege - in der aktuellen Fassung"]
["https://www.dnqp.de/de/expertenstandards-und-auditinstrumente"]
["http://www.fitimalter-dge.de"]
[]
["herausforderndes Verhalten - Demenz"]
[]
["Definition:"]
["Der Begriff „herausforderndes Verhalten“ beschreibt wiederkehrende Verhaltensweisen, die vom sozialen Umfeld als unangepasst und als nicht situationsgerecht empfunden werden. Typischerweise zählen zu diesen Verhaltensweisen Agitation, Aggression, Reizbarkeit, Apathie, Depression, Ängstlichkeit, Wahnvorstellungen und Halluzinationen, Weglauftendenz, Enthemmung, Euphorie und ständiges Rufen. Dieses Verhalten endet zumeist erst im Endstadium einer Demenz. "]
["Zur kontrollierten Erfassung herausfordernden Verhaltens stehen verschiedene validierte Selbst- und Fremdeinschätzungsinstrumente zur Verfügung. Für den Umgang mit herausforderndem Verhalten gibt es \"Rahmenempfehlungen zum Umgang mit herausforderndem Verhalten bei Menschen mit Demenz in der stationären Altenhilfe\"."]
[]
["Autor:"]
["Universitätsklinikum Freiburg; Härter et al."]
[]
["weiterführende Informationen: "]
["https://www.demenzstrategie.at"]
[]
["Schmerzen"]
[]
["Definition:"]
["Die Weltschmerzorganisation International Association for the Study of Pain (IASP) definiert Schmerz als „ein unangenehmes Sinnes- und Gefühlserlebnis, das mit aktueller oder potentieller Gewebeschädigung verknüpft ist oder mit Begriffen einer solchen Schädigung beschrieben wird.\" \n\nAkuter Schmerz ist ein Warnsignal und ein Symptom. Er zeigt an, dass der Körper geschädigt oder verletzt wurde. Darum ist er in der Regel auf den Ort der Schädigung begrenzt. Bei einem gebrochenen Bein schmerzt ausschließlich das Bein. Die Intensität des Schmerzes hängt meist vom Ausmaß der Verletzung ab. Ein Bruch schmerzt stärker als eine leichte Prellung. Entscheidend ist: Akuter Schmerz, der Warner und Schützer, verschwindet wieder, sobald die Ursache geheilt ist. \n\nChronischer Schmerz kann ebenfalls die Folge einer Gewebeschädigung sein, etwa bei chronischen Erkrankungen und Entzündungen (Rheuma, Krebs). Von chronischem Schmerz sprechen Fachleute dann, wenn der Schmerz seit mindestens drei bis sechs Monaten besteht und den betroffenen Patienten physisch (Mobilitätsverlust und Funktionseinschränkung), psychisch-kognitiv (Befindlichkeit, Stimmung und Denken) und sozial beeinträchtigt. "]
[]
["Autor:"]
["Deutsches Netzwerk für Qualitätsentwicklung in der Pflege (DNQP); Büscher et al."]
[]
["Quelle:"]
["Expertenstandard Schmerzmanagement in der Pflege - in der aktuellen Fassung"]
["https://www.dnqp.de/de/expertenstandards-und-auditinstrumente"]

{"sheet":"Datenblatt","index":10,"n_rows":42,"n_cols":440,"rows_kept":42,"cut":false,"hidden":false,"merged":[]}
[]
["Hauptdaten1 (Strukturdaten; Langzeitpflege)"]
["Code","Träger","Bezirk","Region","Planungsraum","Größengruppe","PDL-Statistik","Gemeinde\nKennzahl","Gemeinde","Kurzbezeichnung","Adresse","Telefon","E-mail","Homepage","Heimleiter/in","Ausbildung nach Oö. HVO abgeschlossen","wenn nein: wann vorauss. Abschluß\nmm.jj","Leitung des Betreuungs- und Pflegedienstes","Ausbildung nach Oö. HVO abgeschlossen","wenn nein: wann vorauss. Abschluß\nmm.jj","1-Personen-Einheiten","2-Personen-Einheiten","Oase","gesamt","in 1-Personen-Einheiten","in 2-Personen-Einheiten","Oase","insgesamt","Frauen","Männer","insgesamt","Frauen","Männer","insgesamt","Frauen","Männer","insgesamt","unter 60 Jahre","60 bis unter 65 Jahre","65 bis unter 70 Jahre","70 bis unter 75 Jahre","75 bis unter 80 Jahre","80 bis unter 85 Jahre","85 bis unter 90 Jahre","90 Jahre und älter","Summe","unter 60 Jahre","60 bis unter 65 Jahre","65 bis unter 70 Jahre","70 bis unter 75 Jahre","75 bis unter 80 Jahre","80 bis unter 85 Jahre","85 bis unter 90 Jahre","90 Jahre und älter","Summe","unter 60 Jahre","60 bis unter 65 Jahre","65 bis unter 70 Jahre","70 bis unter 75 Jahre","75 bis unter 80 Jahre","80 bis unter 85 Jahre","85 bis unter 90 Jahre","90 Jahre und älter","Summe","unter 60 Jahre","60 bis unter 65 Jahre","65 bis unter 70 Jahre","70 bis unter 75 Jahre","75 bis unter 80 Jahre","80 bis unter 85 Jahre","85 bis unter 90 Jahre","90 Jahre und älter","Summe","unter 60 Jahre","60 bis unter 65 Jahre","65 bis unter 70 Jahre","70 bis unter 75 Jahre","75 bis unter 80 Jahre","80 bis unter 85 Jahre","85 bis unter 90 Jahre","90 Jahre und älter","Summe","unter 60 Jahre","60 bis unter 65 Jahre","65 bis unter 70 Jahre","70 bis unter 75 Jahre","75 bis unter 80 Jahre","80 bis unter 85 Jahre","85 bis unter 90 Jahre","90 Jahre und älter","Summe","unter 60 Jahre","60 bis unter 65 Jahre","65 bis unter 70 Jahre","70 bis unter 75 Jahre","75 bis unter 80 Jahre","80 bis unter 85 Jahre","85 bis unter 90 Jahre","90 Jahre und älter","Summe","unter 60 Jahre","60 bis unter 65 Jahre","65 bis unter 70 Jahre","70 bis unter 75 Jahre","75 bis unter 80 Jahre","80 bis unter 85 Jahre","85 bis unter 90 Jahre","90 Jahre und älter","Summe","unter 60 Jahre","60 bis unter 65 Jahre","65 bis unter 70 Jahre","70 bis unter 75 Jahre","75 bis unter 80 Jahre","80 bis unter 85 Jahre","85 bis unter 90 Jahre","90 Jahre und älter","Summe","Durchschnittsalter HB LZP","Braunau","Eferding","Freistadt","Gmunden","Grieskirchen","Kirchdorf","Linz-Land","Perg","Ried","Rohrbach","Schärding","Steyr-Land","Urfahr-Umgebung","Vöcklabruck","Wels-Land","Linz","Steyr","Wels","andere Bundesländer","Ausland","Standortgemeinde","Summe Bewohntage LZP","HB mit SH-Bezug","Selbstzahler:innen","davon Krankenhaustage","berechnete Auslastung aufgrund der Bewohntage","das bedeutet, es wären ständig .... LZP-Plätze nicht bewohnt gewesen","Begründung für Auslastung unter 98% oder über 100%","betreute Personen LZP","davon SH","davon immer SZ","Summe HB 31.12.2025 + alle Austritte 2025","Abweichung zur Angabe in E75","Begründung","Anzahl mit SH-Bezug","Anzahl Selbstzahler:innen","Summe Neueintritte","ausgetretene HB 2025","in ein anderes Heim übersiedelt","davon immer Selbstzahler:innen","Todesfälle 2025","Anteil Todesfälle 2025 an betreuten Personen LZP","DAVON: im Heim verstorben","Anteil der im Heim verstorbenen LZP an allen Todesfällen","Plausibilisierung Ein-/Austritte zum Vorjahr","bis 1 Monat","1 bis 3 Monate","4 bis 6 Monate","7 bis 12 Monate","1 bis 5 Jahre","6 bis 10 Jahre","länger","Summe"]
[null,null,null,null,null,null,null,null,null,null,null,null,null,null,null,null,null,null,null,null,null,null,null,null,null,null,null,null,null,null,null,null,null,null,null,null,null,null,null,null,null,null,null,null,null,null,null,null,null,null,null,null,null,null,null,null,null,null,null,null,null,null,null,null,null,null,null,null,null,null,null,null,null,null,null,null,null,null,null,null,null,null,null,null,null,null,null,null,null,null,null,null,null,null,null,null,null,null,null,null,null,null,null,null,null,null,null,null,null,null,null,null,null,null,null,null,null,null,null,null,null,null,null,null,null,null,null,null,null,null,null,null,null,null,null,null,null,null,null,null,"Bewohntage",null,null,null,null,null,null,"betreute Personen LZP",null,null,null,null,null,"Neueintritte",null,null,"Austritte/Todesfälle"]
[null,null,null,null,null,null,null,"Standortgemeinde",null,"Kurzbezeichnung","Adressdaten",null,null,null,"Leitung",null,null,null,null,null,"Zimmer",null,null,null,"LZP-Plätze",null,null,null,"HB (Langzeitpflege)\nmit SH",null,null,"HB (Langzeitpflege) \nSelbstzahler",null,null,"HB (Langzeitpflege) \ngesamt",null,null,"Altersstruktur der Bewohner (Langzeitpflege)\nmit SH-Bezug - weiblich",null,null,null,null,null,null,null,null,"Altersstruktur der Bewohner (Langzeitpflege)\nmit SH-Bezug - männlich",null,null,null,null,null,null,null,null,"Altersstruktur der Bewohner (Langzeitpflege)\nmit SH-Bezug gesamt",null,null,null,null,null,null,null,null,"Altersstruktur der Bewohner (Langzeitpflege)\nSelbstzahlerinnen - weiblich",null,null,null,null,null,null,null,null,"Altersstruktur der Bewohner (Langzeitpflege)\nSelbstzahler - männlich",null,null,null,null,null,null,null,null,"Altersstruktur der Bewohner (Langzeitpflege)\nSelbstzahler:innen gesamt",null,null,null,null,null,null,null,null,"Altersstruktur der Bewohner (Langzeitpflege)\nweiblich",null,null,null,null,null,null,null,null,"Altersstruktur der Bewohner (Langzeitpflege)\nmännlich",null,null,null,null,null,null,null,null,"Altersstruktur der Bewohner (Langzeitpflege)\nGesamt",null,null,null,null,null,null,null,null,null,"BEWOHNER NACH HERKUNFTSBEZIRK (Langzeitpflege)",null,null,null,null,null,null,null,null,null,null,null,null,null,null,null,null,null,null,null,null,"Statistische Angaben zum Jahr 2025",null,null,null,null,null,null,null,null,null,null,null,null,null,null,null,null,null,null,null,null,null,null,null,"Verweildauer der im Jahr 2025 Verstorbenen im Heim"]
[{"$f":"VLOOKUP($J$6,'1_allg. Strukturdaten'!$B$74:$N$207,2,FALSE)","v":{"$error":"#N/A"}},{"$f":"VLOOKUP($J$6,'1_allg. Strukturdaten'!$B$74:$N$207,3,FALSE)","v":{"$error":"#N/A"}},{"$f":"VLOOKUP($J$6,'1_allg. Strukturdaten'!$B$74:$N$207,4,FALSE)","v":{"$error":"#N/A"}},{"$f":"VLOOKUP($J$6,'1_allg. Strukturdaten'!$B$74:$N$207,5,FALSE)","v":{"$error":"#N/A"}},{"$f":"VLOOKUP($J$6,'1_allg. Strukturdaten'!$B$74:$N$207,6,FALSE)","v":{"$error":"#N/A"}},{"$f":"VLOOKUP($J$6,'1_allg. Strukturdaten'!$B$74:$N$207,7,FALSE)","v":{"$error":"#N/A"}},{"$f":"VLOOKUP($J$6,'1_allg. Strukturdaten'!$B$74:$N$207,8,FALSE)","v":{"$error":"#N/A"}},{"$f":"VLOOKUP($J$6,'1_allg. Strukturdaten'!$B$74:$N$207,9,FALSE)","v":{"$error":"#N/A"}},{"$f":"VLOOKUP($J$6,'1_allg. Strukturdaten'!$B$74:$N$207,10,FALSE)","v":{"$error":"#N/A"}},{"$f":"'1_allg. Strukturdaten'!$D$7","v":"Bitte auswählen…"},{"$f":"'1_allg. Strukturdaten'!D8","v":{"$error":"#N/A"}},{"$f":"'1_allg. Strukturdaten'!D9","v":{"$error":"#N/A"}},{"$f":"'1_allg. Strukturdaten'!D10","v":{"$error":"#N/A"}},{"$f":"'1_allg. Strukturdaten'!G10","v":{"$error":"#N/A"}},{"$f":"'1_allg. Strukturdaten'!D17","v":0},{"$f":"'1_allg. Strukturdaten'!E18","v":0},{"$f":"IF('1_allg. Strukturdaten'!E19=\"\",\"\",'1_allg. Strukturdaten'!E19)","v":""},{"$f":"'1_allg. Strukturdaten'!G17","v":0},{"$f":"'1_allg. Strukturdaten'!H18","v":0},{"$f":"IF('1_allg. Strukturdaten'!H19=\"\",\"\",'1_allg. Strukturdaten'!H19)","v":""},{"$f":"'1a_Langzeitpflege'!B7","v":0},{"$f":"'1a_Langzeitpflege'!B8","v":0},{"$f":"'1a_Langzeitpflege'!B9","v":0},{"$f":"'1a_Langzeitpflege'!B10","v":0},{"$f":"'1a_Langzeitpflege'!H7","v":0},{"$f":"'1a_Langzeitpflege'!H8","v":0},{"$f":"'1a_Langzeitpflege'!H9","v":0},{"$f":"'1a_Langzeitpflege'!H10","v":0},{"$f":"'1a_Langzeitpflege'!L16","v":0},{"$f":"'1a_Langzeitpflege'!L17","v":0},{"$f":"AC6+AD6","v":0},{"$f":"'1a_Langzeitpflege'!L18","v":0},{"$f":"'1a_Langzeitpflege'!L19","v":0},{"$f":"AF6+AG6","v":0},{"$f":"'1a_Langzeitpflege'!L22","v":0},{"$f":"'1a_Langzeitpflege'!L23","v":0},{"$f":"SUM(AI6:AJ6)","v":0},{"$f":"'1a_Langzeitpflege'!C16","v":0},{"$f":"'1a_Langzeitpflege'!D16","v":0},{"$f":"'1a_Langzeitpflege'!E16","v":0},{"$f":"'1a_Langzeitpflege'!F16","v":0},{"$f":"'1a_Langzeitpflege'!G16","v":0},{"$f":"'1a_Langzeitpflege'!H16","v":0},{"$f":"'1a_Langzeitpflege'!I16","v":0},{"$f":"'1a_Langzeitpflege'!J16","v":0},{"$f":"'1a_Langzeitpflege'!L16","v":0},{"$f":"'1a_Langzeitpflege'!C17","v":0},{"$f":"'1a_Langzeitpflege'!D17","v":0},{"$f":"'1a_Langzeitpflege'!E17","v":0},{"$f":"'1a_Langzeitpflege'!F17","v":0},{"$f":"'1a_Langzeitpflege'!G17","v":0},{"$f":"'1a_Langzeitpflege'!H17","v":0},{"$f":"'1a_Langzeitpflege'!I17","v":0},{"$f":"'1a_Langzeitpflege'!J17","v":0},{"$f":"'1a_Langzeitpflege'!L17","v":0},{"$f":"'1a_Langzeitpflege'!C20","v":0},{"$f":"'1a_Langzeitpflege'!D20","v":0},{"$f":"'1a_Langzeitpflege'!E20","v":0},{"$f":"'1a_Langzeitpflege'!F20","v":0},{"$f":"'1a_Langzeitpflege'!G20","v":0},{"$f":"'1a_Langzeitpflege'!H20","v":0},{"$f":"'1a_Langzeitpflege'!I20","v":0},{"$f":"'1a_Langzeitpflege'!J20","v":0},{"$f":"'1a_Langzeitpflege'!L20","v":0},{"$f":"'1a_Langzeitpflege'!C18","v":0},{"$f":"'1a_Langzeitpflege'!D18","v":0},{"$f":"'1a_Langzeitpflege'!E18","v":0},{"$f":"'1a_Langzeitpflege'!F18","v":0},{"$f":"'1a_Langzeitpflege'!G18","v":0},{"$f":"'1a_Langzeitpflege'!H18","v":0},{"$f":"'1a_Langzeitpflege'!I18","v":0},{"$f":"'1a_Langzeitpflege'!J18","v":0},{"$f":"'1a_Langzeitpflege'!L18","v":0},{"$f":"'1a_Langzeitpflege'!C19","v":0},{"$f":"'1a_Langzeitpflege'!D19","v":0},{"$f":"'1a_Langzeitpflege'!E19","v":0},{"$f":"'1a_Langzeitpflege'!F19","v":0},{"$f":"'1a_Langzeitpflege'!G19","v":0},{"$f":"'1a_Langzeitpflege'!H19","v":0},{"$f":"'1a_Langzeitpflege'!I19","v":0},{"$f":"'1a_Langzeitpflege'!J19","v":0},{"$f":"'1a_Langzeitpflege'!L19","v":0},{"$f":"'1a_Langzeitpflege'!C21","v":0},{"$f":"'1a_Langzeitpflege'!D21","v":0},{"$f":"'1a_Langzeitpflege'!E21","v":0},{"$f":"'1a_Langzeitpflege'!F21","v":0},{"$f":"'1a_Langzeitpflege'!G21","v":0},{"$f":"'1a_Langzeitpflege'!H21","v":0},{"$f":"'1a_Langzeitpflege'!I21","v":0},{"$f":"'1a_Langzeitpflege'!J21","v":0},{"$f":"'1a_Langzeitpflege'!L21","v":0},{"$f":"'1a_Langzeitpflege'!C22","v":0},{"$f":"'1a_Langzeitpflege'!D22","v":0},{"$f":"'1a_Langzeitpflege'!E22","v":0},{"$f":"'1a_Langzeitpflege'!F22","v":0},{"$f":"'1a_Langzeitpflege'!G22","v":0},{"$f":"'1a_Langzeitpflege'!H22","v":0},{"$f":"'1a_Langzeitpflege'!I22","v":0},{"$f":"'1a_Langzeitpflege'!J22","v":0},{"$f":"'1a_Langzeitpflege'!L22","v":0},{"$f":"'1a_Langzeitpflege'!C23","v":0},{"$f":"'1a_Langzeitpflege'!D23","v":0},{"$f":"'1a_Langzeitpflege'!E23","v":0},{"$f":"'1a_Langzeitpflege'!F23","v":0},{"$f":"'1a_Langzeitpflege'!G23","v":0},{"$f":"'1a_Langzeitpflege'!H23","v":0},{"$f":"'1a_Langzeitpflege'!I23","v":0},{"$f":"'1a_Langzeitpflege'!J23","v":0},{"$f":"'1a_Langzeitpflege'!L23","v":0},{"$f":"'1a_Langzeitpflege'!C24","v":0},{"$f":"'1a_Langzeitpflege'!D24","v":0},{"$f":"'1a_Langzeitpflege'!E24","v":0},{"$f":"'1a_Langzeitpflege'!F24","v":0},{"$f":"'1a_Langzeitpflege'!G24","v":0},{"$f":"'1a_Langzeitpflege'!H24","v":0},{"$f":"'1a_Langzeitpflege'!I24","v":0},{"$f":"'1a_Langzeitpflege'!J24","v":0},{"$f":"'1a_Langzeitpflege'!L24","v":0},{"$f":"'1a_Langzeitpflege'!G26","v":0},{"$f":"'1a_Langzeitpflege'!B55","v":0},{"$f":"'1a_Langzeitpflege'!D55","v":0},{"$f":"'1a_Langzeitpflege'!F55","v":0},{"$f":"'1a_Langzeitpflege'!H55","v":0},{"$f":"'1a_Langzeitpflege'!J55","v":0},{"$f":"'1a_Langzeitpflege'!L55","v":0},{"$f":"'1a_Langzeitpflege'!B56","v":0},{"$f":"'1a_Langzeitpflege'!D56","v":0},{"$f":"'1a_Langzeitpflege'!F56","v":0},{"$f":"'1a_Langzeitpflege'!H56","v":0},{"$f":"'1a_Langzeitpflege'!J56","v":0},{"$f":"'1a_Langzeitpflege'!L56","v":0},{"$f":"'1a_Langzeitpflege'!B57","v":0},{"$f":"'1a_Langzeitpflege'!D57","v":0},{"$f":"'1a_Langzeitpflege'!F57","v":0},{"$f":"'1a_Langzeitpflege'!H57","v":0},{"$f":"'1a_Langzeitpflege'!J57","v":0},{"$f":"'1a_Langzeitpflege'!L57","v":0},{"$f":"'1a_Langzeitpflege'!C58","v":0},{"$f":"'1a_Langzeitpflege'!C59","v":0},{"$f":"'1a_Langzeitpflege'!A61","v":0},{"$f":"'1a_Langzeitpflege'!F66","v":0},{"$f":"'1a_Langzeitpflege'!F67","v":0},{"$f":"'1a_Langzeitpflege'!F68","v":0},{"$f":"'1a_Langzeitpflege'!I66","v":0},{"$f":"'1a_Langzeitpflege'!G70","v":""},{"$f":"'1a_Langzeitpflege'!G71","v":""},{"$f":"'1a_Langzeitpflege'!G72","v":0},{"$f":"'1a_Langzeitpflege'!E75","v":0},{"$f":"'1a_Langzeitpflege'!E76","v":0},{"$f":"'1a_Langzeitpflege'!E77","v":0},{"$f":"'1a_Langzeitpflege'!I75","v":0},{"$f":"'1a_Langzeitpflege'!I76","v":0},{"$f":"'1a_Langzeitpflege'!I77","v":0},{"$f":"'1a_Langzeitpflege'!F80","v":0},{"$f":"'1a_Langzeitpflege'!F81","v":0},{"$f":"'1a_Langzeitpflege'!F82","v":0},{"$f":"'1a_Langzeitpflege'!D86","v":0},{"$f":"'1a_Langzeitpflege'!D89","v":0},{"$f":"'1a_Langzeitpflege'!E90","v":0},{"$f":"'1a_Langzeitpflege'!D87","v":0},{"$f":"FD6/ER6","v":{"$error":"#DIV/0!"}},{"$f":"'1a_Langzeitpflege'!D88","v":0},{"$f":"FF6/FD6","v":{"$error":"#DIV/0!"}},{"$f":"'1a_Langzeitpflege'!J87","v":{"$error":"#N/A"}},{"$f":"'1a_Langzeitpflege'!B94","v":0},{"$f":"'1a_Langzeitpflege'!C94","v":0},{"$f":"'1a_Langzeitpflege'!D94","v":0},{"$f":"'1a_Langzeitpflege'!E94","v":0},{"$f":"'1a_Langzeitpflege'!F94","v":0},{"$f":"'1a_Langzeitpflege'!G94","v":0},{"$f":"'1a_Langzeitpflege'!H94","v":0},{"$f":"'1a_Langzeitpflege'!I94","v":0}]
[]
["Hauptdaten2 (Kurzzeitpflege)"]
["Code","Träger","Bezirk","Region","Planungsraum","Größengruppe","PDL-Statistik","Gemeinde\nKennzahl","Gemeinde","Kurzbezeichnung","1-Personen-Einheiten","2-Personen-Einheiten","gesamt","in 1-Personen-Einheiten","in 2-Personen-Einheiten","insgesamt","Frauen","Männer","insgesamt","Frauen","Männer","insgesamt","Frauen","Männer","insgesamt","unter 60 Jahre","60 bis unter 65 Jahre","65 bis unter 70 Jahre","70 bis unter 75 Jahre","75 bis unter 80 Jahre","80 bis unter 85 Jahre","85 bis unter 90 Jahre","90 Jahre und älter","Summe","unter 60 Jahre","60 bis unter 65 Jahre","65 bis unter 70 Jahre","70 bis unter 75 Jahre","75 bis unter 80 Jahre","80 bis unter 85 Jahre","85 bis unter 90 Jahre","90 Jahre und älter","Summe","unter 60 Jahre","60 bis unter 65 Jahre","65 bis unter 70 Jahre","70 bis unter 75 Jahre","75 bis unter 80 Jahre","80 bis unter 85 Jahre","85 bis unter 90 Jahre","90 Jahre und älter","Summe","unter 60 Jahre","60 bis unter 65 Jahre","65 bis unter 70 Jahre","70 bis unter 75 Jahre","75 bis unter 80 Jahre","80 bis unter 85 Jahre","85 bis unter 90 Jahre","90 Jahre und älter","Summe","unter 60 Jahre","60 bis unter 65 Jahre","65 bis unter 70 Jahre","70 bis unter 75 Jahre","75 bis unter 80 Jahre","80 bis unter 85 Jahre","85 bis unter 90 Jahre","90 Jahre und älter","Summe","unter 60 Jahre","60 bis unter 65 Jahre","65 bis unter 70 Jahre","70 bis unter 75 Jahre","75 bis unter 80 Jahre","80 bis unter 85 Jahre","85 bis unter 90 Jahre","90 Jahre und älter","Summe","unter 60 Jahre","60 bis unter 65 Jahre","65 bis unter 70 Jahre","70 bis unter 75 Jahre","75 bis unter 80 Jahre","80 bis unter 85 Jahre","85 bis unter 90 Jahre","90 Jahre und älter","Summe","unter 60 Jahre","60 bis unter 65 Jahre","65 bis unter 70 Jahre","70 bis unter 75 Jahre","75 bis unter 80 Jahre","80 bis unter 85 Jahre","85 bis unter 90 Jahre","90 Jahre und älter","Summe","unter 60 Jahre","60 bis unter 65 Jahre","65 bis unter 70 Jahre","70 bis unter 75 Jahre","75 bis unter 80 Jahre","80 bis unter 85 Jahre","85 bis unter 90 Jahre","90 Jahre und älter","Summe","Durchschnittsalter KZP-Gäste","Braunau","Eferding","Freistadt","Gmunden","Grieskirchen","Kirchdorf","Linz-Land","Perg","Ried","Rohrbach","Schärding","Steyr-Land","Urfahr-Umgebung","Vöcklabruck","Wels-Land","Linz","Steyr","Wels","andere Bundesländer","Ausland","Standortgemeinde","Bewohntage Kurzzeitpflege","Verrechnungstage SH-Träger (ohne SZ)","Aufenthalte","Personen","Aufenthalte","Personen","Aufenthalte","Personen","direkt nach KZP als Dauerbewohner aufgenommen","während KZP-Aufenthalt verstorben",null,"Frauen","Männer","insgesamt","Frauen","Männer","insgesamt","Frauen","Männer","insgesamt","unter 60 Jahre","60 bis unter 65 Jahre","65 bis unter 70 Jahre","70 bis unter 75 Jahre","75 bis unter 80 Jahre","80 bis unter 85 Jahre","85 bis unter 90 Jahre","90 Jahre und älter","Summe","unter 60 Jahre","60 bis unter 65 Jahre","65 bis unter 70 Jahre","70 bis unter 75 Jahre","75 bis unter 80 Jahre","80 bis unter 85 Jahre","85 bis unter 90 Jahre","90 Jahre und älter","Summe","unter 60 Jahre","60 bis unter 65 Jahre","65 bis unter 70 Jahre","70 bis unter 75 Jahre","75 bis unter 80 Jahre","80 bis unter 85 Jahre","85 bis unter 90 Jahre","90 Jahre und älter","Summe","unter 60 Jahre","60 bis unter 65 Jahre","65 bis unter 70 Jahre","70 bis unter 75 Jahre","75 bis unter 80 Jahre","80 bis unter 85 Jahre","85 bis unter 90 Jahre","90 Jahre und älter","Summe","unter 60 Jahre","60 bis unter 65 Jahre","65 bis unter 70 Jahre","70 bis unter 75 Jahre","75 bis unter 80 Jahre","80 bis unter 85 Jahre","85 bis unter 90 Jahre","90 Jahre und älter","Summe","unter 60 Jahre","60 bis unter 65 Jahre","65 bis unter 70 Jahre","70 bis unter 75 Jahre","75 bis unter 80 Jahre","80 bis unter 85 Jahre","85 bis unter 90 Jahre","90 Jahre und älter","Summe","unter 60 Jahre","60 bis unter 65 Jahre","65 bis unter 70 Jahre","70 bis unter 75 Jahre","75 bis unter 80 Jahre","80 bis unter 85 Jahre","85 bis unter 90 Jahre","90 Jahre und älter","Summe","unter 60 Jahre","60 bis unter 65 Jahre","65 bis unter 70 Jahre","70 bis unter 75 Jahre","75 bis unter 80 Jahre","80 bis unter 85 Jahre","85 bis unter 90 Jahre","90 Jahre und älter","Summe","unter 60 Jahre","60 bis unter 65 Jahre","65 bis unter 70 Jahre","70 bis unter 75 Jahre","75 bis unter 80 Jahre","80 bis unter 85 Jahre","85 bis unter 90 Jahre","90 Jahre und älter","Summe",null,0,1,2,3,4,5,6,7,"insgesamt",0,1,2,3,4,5,6,7,"insgesamt",0,1,2,3,4,5,6,7,"insgesamt"]
[null,null,null,null,null,null,null,null,null,null,"Zimmer",null,null,"Plätze",null,null,null,null,null,null,null,null,null,null,null,null,null,null,null,null,null,null,null,null,null,null,null,null,null,null,null,null,null,null,null,null,null,null,null,null,null,null,null,null,null,null,null,null,null,null,null,null,null,null,null,null,null,null,null,null,null,null,null,null,null,null,null,null,null,null,null,null,null,null,null,null,null,null,null,null,null,null,null,null,null,null,null,null,null,null,null,null,null,null,null,null,null,null,null,null,null,null,null,null,null,null,null,null,null,null,null,null,null,null,null,null,null,null,null,null,"mit SH",null,"SZ",null,"gesamt",null,"Personen"]
[null,null,null,null,null,null,null,"Standortgemeinde",null,"Kurzbezeichnung",null,null,null,null,null,null,"KZP-Gäste 31.12.\nmit SH",null,null,"KZP-Gäste 31.12.\nSelbstzahler",null,null,"KZP-Gäste 31.12.\ngesamt",null,null,"Altersstruktur der KZP-Gäste 31.12.\nmit SH-Bezug - weiblich",null,null,null,null,null,null,null,null,"Altersstruktur der KZP-Gäste 31.12.\nmit SH-Bezug - männlich",null,null,null,null,null,null,null,null,"Altersstruktur der KZP-Gäste 31.12.\nmit SH-Bezug gesamt",null,null,null,null,null,null,null,null,"Altersstruktur der KZP-Gäste 31.12.\nSelbstzahlerinnen - weiblich",null,null,null,null,null,null,null,null,"Altersstruktur der KZP-Gäste 31.12.\nSelbstzahler - männlich",null,null,null,null,null,null,null,null,"Altersstruktur der KZP-Gäste 31.12.\nSelbstzahler:innen gesamt",null,null,null,null,null,null,null,null,"Altersstruktur der KZP-Gäste 31.12.\nweiblich",null,null,null,null,null,null,null,null,"Altersstruktur der KZP-Gäste 31.12.\nmännlich",null,null,null,null,null,null,null,null,"Altersstruktur der KZP-Gäste 31.12.\nGesamt",null,null,null,null,null,null,null,null,null,"KZP-Gäste NACH HERKUNFTSBEZIRK",null,null,null,null,null,null,null,null,null,null,null,null,null,null,null,null,null,null,null,null,"Statistische Angaben zum Jahr 2025",null,null,null,null,null,null,null,null,null,null,"KZP-Gäste Monat Dez.\nmit SH",null,null,"KZP-Gäste Monat Dez.\nSelbstzahler",null,null,"KZP-Gäste Monat Dez.\ngesamt",null,null,"Altersstruktur der KZP-Gäste Monat Dez.\nmit SH-Bezug - weiblich",null,null,null,null,null,null,null,null,"Altersstruktur der KZP-Gäste Monat Dez.\nmit SH-Bezug - männlich",null,null,null,null,null,null,null,null,"Altersstruktur der KZP-Gäste Monat Dez.\nSelbstzahlerinnen - weiblich",null,null,null,null,null,null,null,null,"Altersstruktur der KZP-Gäste Monat Dez.\nSelbstzahlerinnen - männlich",null,null,null,null,null,null,null,null,"Altersstruktur der KZP-Gäste Monat Dez.\nmit SH-Bezug gesamt",null,null,null,null,null,null,null,null,"Altersstruktur der KZP-Gäste Monat Dez.\nSelbstzahler:innen gesamt",null,null,null,null,null,null,null,null,"Altersstruktur der KZP-Gäste Monat Dez.\nweiblich",null,null,null,null,null,null,null,null,"Altersstruktur der KZP-Gäste Monat Dez.\nmännlich",null,null,null,null,null,null,null,null,"Altersstruktur der KZP-Gäste Monat Dez.\nGesamt",null,null,null,null,null,null,null,null,null,"Bewohner nach tatsächl. Pflegegeldstufenverteilung Monat Dez.\nKurzzeitpflege - mit SH-Bezug",null,null,null,null,null,null,null,null,"Bewohner nach tatsächl. Pflegegeldstufenverteilung Monat Dez.\nKurzzeitpflege - Selbstzahler",null,null,null,null,null,null,null,null,"Bewohner nach tatsächl. Pflegegeldstufenverteilung Monat Dez.\nKurzzeitpflege - GESAMT"]
[{"$f":"VLOOKUP($J$6,'1_allg. Strukturdaten'!$B$74:$N$207,2,FALSE)","v":{"$error":"#N/A"}},{"$f":"VLOOKUP($J$6,'1_allg. Strukturdaten'!$B$74:$N$207,3,FALSE)","v":{"$error":"#N/A"}},{"$f":"VLOOKUP($J$6,'1_allg. Strukturdaten'!$B$74:$N$207,4,FALSE)","v":{"$error":"#N/A"}},{"$f":"VLOOKUP($J$6,'1_allg. Strukturdaten'!$B$74:$N$207,5,FALSE)","v":{"$error":"#N/A"}},{"$f":"VLOOKUP($J$6,'1_allg. Strukturdaten'!$B$74:$N$207,6,FALSE)","v":{"$error":"#N/A"}},{"$f":"VLOOKUP($J$6,'1_allg. Strukturdaten'!$B$74:$N$207,7,FALSE)","v":{"$error":"#N/A"}},{"$f":"VLOOKUP($J$6,'1_allg. Strukturdaten'!$B$74:$N$207,8,FALSE)","v":{"$error":"#N/A"}},{"$f":"VLOOKUP($J$6,'1_allg. Strukturdaten'!$B$74:$N$207,9,FALSE)","v":{"$error":"#N/A"}},{"$f":"VLOOKUP($J$6,'1_allg. Strukturdaten'!$B$74:$N$207,10,FALSE)","v":{"$error":"#N/A"}},{"$f":"'1_allg. Strukturdaten'!$D$7","v":"Bitte auswählen…"},{"$f":"'1b_Kurzzeitpflege'!B8","v":0},{"$f":"'1b_Kurzzeitpflege'!B9","v":0},{"$f":"'1b_Kurzzeitpflege'!B10","v":0},{"$f":"'1b_Kurzzeitpflege'!G8","v":0},{"$f":"'1b_Kurzzeitpflege'!G9","v":0},{"$f":"'1b_Kurzzeitpflege'!G10","v":0},{"$f":"'1b_Kurzzeitpflege'!L39","v":0},{"$f":"'1b_Kurzzeitpflege'!L40","v":0},{"$f":"Q12+R12","v":0},{"$f":"'1b_Kurzzeitpflege'!L41","v":0},{"$f":"'1b_Kurzzeitpflege'!L42","v":0},{"$f":"T12+U12","v":0},{"$f":"'1b_Kurzzeitpflege'!L45","v":0},{"$f":"'1b_Kurzzeitpflege'!L46","v":0},{"$f":"W12+X12","v":0},{"$f":"'1b_Kurzzeitpflege'!C39","v":0},{"$f":"'1b_Kurzzeitpflege'!D39","v":0},{"$f":"'1b_Kurzzeitpflege'!E39","v":0},{"$f":"'1b_Kurzzeitpflege'!F39","v":0},{"$f":"'1b_Kurzzeitpflege'!G39","v":0},{"$f":"'1b_Kurzzeitpflege'!H39","v":0},{"$f":"'1b_Kurzzeitpflege'!I39","v":0},{"$f":"'1b_Kurzzeitpflege'!J39","v":0},{"$f":"'1b_Kurzzeitpflege'!L39","v":0},{"$f":"'1b_Kurzzeitpflege'!C40","v":0},{"$f":"'1b_Kurzzeitpflege'!D40","v":0},{"$f":"'1b_Kurzzeitpflege'!E40","v":0},{"$f":"'1b_Kurzzeitpflege'!F40","v":0},{"$f":"'1b_Kurzzeitpflege'!G40","v":0},{"$f":"'1b_Kurzzeitpflege'!H40","v":0},{"$f":"'1b_Kurzzeitpflege'!I40","v":0},{"$f":"'1b_Kurzzeitpflege'!J40","v":0},{"$f":"'1b_Kurzzeitpflege'!L40","v":0},{"$f":"'1b_Kurzzeitpflege'!C43","v":0},{"$f":"'1b_Kurzzeitpflege'!D43","v":0},{"$f":"'1b_Kurzzeitpflege'!E43","v":0},{"$f":"'1b_Kurzzeitpflege'!F43","v":0},{"$f":"'1b_Kurzzeitpflege'!G43","v":0},{"$f":"'1b_Kurzzeitpflege'!H43","v":0},{"$f":"'1b_Kurzzeitpflege'!I43","v":0},{"$f":"'1b_Kurzzeitpflege'!J43","v":0},{"$f":"'1b_Kurzzeitpflege'!L43","v":0},{"$f":"'1b_Kurzzeitpflege'!C41","v":0},{"$f":"'1b_Kurzzeitpflege'!D41","v":0},{"$f":"'1b_Kurzzeitpflege'!E41","v":0},{"$f":"'1b_Kurzzeitpflege'!F41","v":0},{"$f":"'1b_Kurzzeitpflege'!G41","v":0},{"$f":"'1b_Kurzzeitpflege'!H41","v":0},{"$f":"'1b_Kurzzeitpflege'!I41","v":0},{"$f":"'1b_Kurzzeitpflege'!J41","v":0},{"$f":"'1b_Kurzzeitpflege'!L41","v":0},{"$f":"'1b_Kurzzeitpflege'!C42","v":0},{"$f":"'1b_Kurzzeitpflege'!D42","v":0},{"$f":"'1b_Kurzzeitpflege'!E42","v":0},{"$f":"'1b_Kurzzeitpflege'!F42","v":0},{"$f":"'1b_Kurzzeitpflege'!G42","v":0},{"$f":"'1b_Kurzzeitpflege'!H42","v":0},{"$f":"'1b_Kurzzeitpflege'!I42","v":0},{"$f":"'1b_Kurzzeitpflege'!J42","v":0},{"$f":"'1b_Kurzzeitpflege'!L42","v":0},{"$f":"'1b_Kurzzeitpflege'!C44","v":0},{"$f":"'1b_Kurzzeitpflege'!D44","v":0},{"$f":"'1b_Kurzzeitpflege'!E44","v":0},{"$f":"'1b_Kurzzeitpflege'!F44","v":0},{"$f":"'1b_Kurzzeitpflege'!G44","v":0},{"$f":"'1b_Kurzzeitpflege'!H44","v":0},{"$f":"'1b_Kurzzeitpflege'!I44","v":0},{"$f":"'1b_Kurzzeitpflege'!J44","v":0},{"$f":"'1b_Kurzzeitpflege'!L44","v":0},{"$f":"'1b_Kurzzeitpflege'!C45","v":0},{"$f":"'1b_Kurzzeitpflege'!D45","v":0},{"$f":"'1b_Kurzzeitpflege'!E45","v":0},{"$f":"'1b_Kurzzeitpflege'!F45","v":0},{"$f":"'1b_Kurzzeitpflege'!G45","v":0},{"$f":"'1b_Kurzzeitpflege'!H45","v":0},{"$f":"'1b_Kurzzeitpflege'!I45","v":0},{"$f":"'1b_Kurzzeitpflege'!J45","v":0},{"$f":"'1b_Kurzzeitpflege'!L45","v":0},{"$f":"'1b_Kurzzeitpflege'!C46","v":0},{"$f":"'1b_Kurzzeitpflege'!D46","v":0},{"$f":"'1b_Kurzzeitpflege'!E46","v":0},{"$f":"'1b_Kurzzeitpflege'!F46","v":0},{"$f":"'1b_Kurzzeitpflege'!G46","v":0},{"$f":"'1b_Kurzzeitpflege'!H46","v":0},{"$f":"'1b_Kurzzeitpflege'!I46","v":0},{"$f":"'1b_Kurzzeitpflege'!J46","v":0},{"$f":"'1b_Kurzzeitpflege'!L46","v":0},{"$f":"'1b_Kurzzeitpflege'!C47","v":0},{"$f":"'1b_Kurzzeitpflege'!D47","v":0},{"$f":"'1b_Kurzzeitpflege'!E47","v":0},{"$f":"'1b_Kurzzeitpflege'!F47","v":0},{"$f":"'1b_Kurzzeitpflege'!G47","v":0},{"$f":"'1b_Kurzzeitpflege'!H47","v":0},{"$f":"'1b_Kurzzeitpflege'!I47","v":0},{"$f":"'1b_Kurzzeitpflege'!J47","v":0},{"$f":"'1b_Kurzzeitpflege'!L47","v":0},{"$f":"'1b_Kurzzeitpflege'!F49","v":0},{"$f":"'1b_Kurzzeitpflege'!B92","v":0},{"$f":"'1b_Kurzzeitpflege'!D92","v":0},{"$f":"'1b_Kurzzeitpflege'!F92","v":0},{"$f":"'1b_Kurzzeitpflege'!H92","v":0},{"$f":"'1b_Kurzzeitpflege'!J92","v":0},{"$f":"'1b_Kurzzeitpflege'!L92","v":0},{"$f":"'1b_Kurzzeitpflege'!B93","v":0},{"$f":"'1b_Kurzzeitpflege'!D93","v":0},{"$f":"'1b_Kurzzeitpflege'!F93","v":0},{"$f":"'1b_Kurzzeitpflege'!H93","v":0},{"$f":"'1b_Kurzzeitpflege'!J93","v":0},{"$f":"'1b_Kurzzeitpflege'!L93","v":0},{"$f":"'1b_Kurzzeitpflege'!B94","v":0},{"$f":"'1b_Kurzzeitpflege'!D94","v":0},{"$f":"'1b_Kurzzeitpflege'!F94","v":0},{"$f":"'1b_Kurzzeitpflege'!H94","v":0},{"$f":"'1b_Kurzzeitpflege'!J94","v":0},{"$f":"'1b_Kurzzeitpflege'!L94","v":0},{"$f":"'1b_Kurzzeitpflege'!C95","v":0},{"$f":"'1b_Kurzzeitpflege'!C96","v":0},{"$f":"'1b_Kurzzeitpflege'!B98","v":0},{"$f":"'1b_Kurzzeitpflege'!E80","v":0},{"$f":"'1b_Kurzzeitpflege'!E82","v":0},{"$f":"'1b_Kurzzeitpflege'!G84","v":0},{"$f":"'1b_Kurzzeitpflege'!J84","v":0},{"$f":"'1b_Kurzzeitpflege'!G85","v":0},{"$f":"'1b_Kurzzeitpflege'!J85","v":0},{"$f":"'1b_Kurzzeitpflege'!G86","v":0},{"$f":"'1b_Kurzzeitpflege'!J86","v":0},{"$f":"'1b_Kurzzeitpflege'!E88","v":0},{"$f":"'1b_Kurzzeitpflege'!E89","v":0},null,{"$f":"'1b_Kurzzeitpflege'!L16","v":0},{"$f":"'1b_Kurzzeitpflege'!L17","v":0},{"$f":"EJ12+EK12","v":0},{"$f":"'1b_Kurzzeitpflege'!L18","v":0},{"$f":"'1b_Kurzzeitpflege'!L19","v":0},{"$f":"EM12+EN12","v":0},{"$f":"'1b_Kurzzeitpflege'!L22","v":0},{"$f":"'1b_Kurzzeitpflege'!L23","v":0},{"$f":"EQ12+EP12","v":0},{"$f":"'1b_Kurzzeitpflege'!C16","v":0},{"$f":"'1b_Kurzzeitpflege'!D16","v":0},{"$f":"'1b_Kurzzeitpflege'!E16","v":0},{"$f":"'1b_Kurzzeitpflege'!F16","v":0},{"$f":"'1b_Kurzzeitpflege'!G16","v":0},{"$f":"'1b_Kurzzeitpflege'!H16","v":0},{"$f":"'1b_Kurzzeitpflege'!I16","v":0},{"$f":"'1b_Kurzzeitpflege'!J16","v":0},{"$f":"'1b_Kurzzeitpflege'!L16","v":0},{"$f":"'1b_Kurzzeitpflege'!C17","v":0},{"$f":"'1b_Kurzzeitpflege'!D17","v":0},{"$f":"'1b_Kurzzeitpflege'!E17","v":0},{"$f":"'1b_Kurzzeitpflege'!F17","v":0},{"$f":"'1b_Kurzzeitpflege'!G17","v":0},{"$f":"'1b_Kurzzeitpflege'!H17","v":0},{"$f":"'1b_Kurzzeitpflege'!I17","v":0},{"$f":"'1b_Kurzzeitpflege'!J17","v":0},{"$f":"'1b_Kurzzeitpflege'!L17","v":0},{"$f":"'1b_Kurzzeitpflege'!C18","v":0},{"$f":"'1b_Kurzzeitpflege'!D18","v":0},{"$f":"'1b_Kurzzeitpflege'!E18","v":0},{"$f":"'1b_Kurzzeitpflege'!F18","v":0},{"$f":"'1b_Kurzzeitpflege'!G18","v":0},{"$f":"'1b_Kurzzeitpflege'!H18","v":0},{"$f":"'1b_Kurzzeitpflege'!I18","v":0},{"$f":"'1b_Kurzzeitpflege'!J18","v":0},{"$f":"'1b_Kurzzeitpflege'!L18","v":0},{"$f":"'1b_Kurzzeitpflege'!C19","v":0},{"$f":"'1b_Kurzzeitpflege'!D19","v":0},{"$f":"'1b_Kurzzeitpflege'!E19","v":0},{"$f":"'1b_Kurzzeitpflege'!F19","v":0},{"$f":"'1b_Kurzzeitpflege'!G19","v":0},{"$f":"'1b_Kurzzeitpflege'!H19","v":0},{"$f":"'1b_Kurzzeitpflege'!I19","v":0},{"$f":"'1b_Kurzzeitpflege'!J19","v":0},{"$f":"'1b_Kurzzeitpflege'!L19","v":0},{"$f":"'1b_Kurzzeitpflege'!C20","v":0},{"$f":"'1b_Kurzzeitpflege'!D20","v":0},{"$f":"'1b_Kurzzeitpflege'!E20","v":0},{"$f":"'1b_Kurzzeitpflege'!F20","v":0},{"$f":"'1b_Kurzzeitpflege'!G20","v":0},{"$f":"'1b_Kurzzeitpflege'!H20","v":0},{"$f":"'1b_Kurzzeitpflege'!I20","v":0},{"$f":"'1b_Kurzzeitpflege'!J20","v":0},{"$f":"'1b_Kurzzeitpflege'!L20","v":0},{"$f":"'1b_Kurzzeitpflege'!C21","v":0},{"$f":"'1b_Kurzzeitpflege'!D21","v":0},{"$f":"'1b_Kurzzeitpflege'!E21","v":0},{"$f":"'1b_Kurzzeitpflege'!F21","v":0},{"$f":"'1b_Kurzzeitpflege'!G21","v":0},{"$f":"'1b_Kurzzeitpflege'!H21","v":0},{"$f":"'1b_Kurzzeitpflege'!I21","v":0},{"$f":"'1b_Kurzzeitpflege'!J21","v":0},{"$f":"'1b_Kurzzeitpflege'!L21","v":0},{"$f":"'1b_Kurzzeitpflege'!C22","v":0},{"$f":"'1b_Kurzzeitpflege'!D22","v":0},{"$f":"'1b_Kurzzeitpflege'!E22","v":0},{"$f":"'1b_Kurzzeitpflege'!F22","v":0},{"$f":"'1b_Kurzzeitpflege'!G22","v":0},{"$f":"'1b_Kurzzeitpflege'!H22","v":0},{"$f":"'1b_Kurzzeitpflege'!I22","v":0},{"$f":"'1b_Kurzzeitpflege'!J22","v":0},{"$f":"'1b_Kurzzeitpflege'!L22","v":0},{"$f":"'1b_Kurzzeitpflege'!C23","v":0},{"$f":"'1b_Kurzzeitpflege'!D23","v":0},{"$f":"'1b_Kurzzeitpflege'!E23","v":0},{"$f":"'1b_Kurzzeitpflege'!F23","v":0},{"$f":"'1b_Kurzzeitpflege'!G23","v":0},{"$f":"'1b_Kurzzeitpflege'!H23","v":0},{"$f":"'1b_Kurzzeitpflege'!I23","v":0},{"$f":"'1b_Kurzzeitpflege'!J23","v":0},{"$f":"'1b_Kurzzeitpflege'!L23","v":0},{"$f":"'1b_Kurzzeitpflege'!C24","v":0},{"$f":"'1b_Kurzzeitpflege'!D24","v":0},{"$f":"'1b_Kurzzeitpflege'!E24","v":0},{"$f":"'1b_Kurzzeitpflege'!F24","v":0},{"$f":"'1b_Kurzzeitpflege'!G24","v":0},{"$f":"'1b_Kurzzeitpflege'!H24","v":0},{"$f":"'1b_Kurzzeitpflege'!I24","v":0},{"$f":"'1b_Kurzzeitpflege'!J24","v":0},{"$f":"'1b_Kurzzeitpflege'!L24","v":0},null,{"$f":"'1b_Kurzzeitpflege'!C32","v":0},{"$f":"'1b_Kurzzeitpflege'!D32","v":0},{"$f":"'1b_Kurzzeitpflege'!E32","v":0},{"$f":"'1b_Kurzzeitpflege'!F32","v":0},{"$f":"'1b_Kurzzeitpflege'!G32","v":0},{"$f":"'1b_Kurzzeitpflege'!H32","v":0},{"$f":"'1b_Kurzzeitpflege'!I32","v":0},{"$f":"'1b_Kurzzeitpflege'!J32","v":0},{"$f":"'1b_Kurzzeitpflege'!K32","v":0},{"$f":"'1b_Kurzzeitpflege'!C33","v":0},{"$f":"'1b_Kurzzeitpflege'!D33","v":0},{"$f":"'1b_Kurzzeitpflege'!E33","v":0},{"$f":"'1b_Kurzzeitpflege'!F33","v":0},{"$f":"'1b_Kurzzeitpflege'!G33","v":0},{"$f":"'1b_Kurzzeitpflege'!H33","v":0},{"$f":"'1b_Kurzzeitpflege'!I33","v":0},{"$f":"'1b_Kurzzeitpflege'!J33","v":0},{"$f":"'1b_Kurzzeitpflege'!K33","v":0},{"$f":"'1b_Kurzzeitpflege'!C34","v":0},{"$f":"'1b_Kurzzeitpflege'!D34","v":0},{"$f":"'1b_Kurzzeitpflege'!E34","v":0},{"$f":"'1b_Kurzzeitpflege'!F34","v":0},{"$f":"'1b_Kurzzeitpflege'!G34","v":0},{"$f":"'1b_Kurzzeitpflege'!H34","v":0},{"$f":"'1b_Kurzzeitpflege'!I34","v":0},{"$f":"'1b_Kurzzeitpflege'!J34","v":0},{"$f":"'1b_Kurzzeitpflege'!K34","v":0}]
[]
["Hauptdaten3 (Personal; Zivildiener; zusätzlich tätiges Personal)"]
["Code","Träger","Bezirk","Region","Planungsraum","Größengruppe","PDL-Statistik","Gemeinde\nKennzahl","Gemeinde","Kurzbezeichnung","Leitung des Betreuungs- und Pflegedienstes","DGKP","Pflegefachassistenz","FSB-A","FSB-BA","DSB-A","DSB-BA","DSB-F","Pflegeassistenz","HH & AB","FSB-BB","DSB-BB","Stützpersonal","insgesamt","davon Männer","davon Frauen","Leitung des Betreuungs- und Pflegedienstes","DGKP","Pflegefachassistenz","FSB-A","FSB-BA","DSB-A","DSB-BA","DSB-F","Pflegeassistenz","HH & AB","FSB-BB","DSB-BB","Stützpersonal","insgesamt","davon Männer","davon Frauen","Leitung des Betreuungs- und Pflegedienstes","DGKP","Pflegefachassistenz","FSB-A","FSB-BA","DSB-A","DSB-BA","DSB-F","Pflegeassistenz","HH & AB","FSB-BB","DSB-BB","Stützpersonal","insgesamt","davon Männer","davon Frauen","Leitung des Betreuungs- und Pflegedienstes","DGKP","Pflegefachassistenz","FSB-A","FSB-BA","DSB-A","DSB-BA","DSB-F","Pflegeassistenz","HH & AB","FSB-BB","DSB-BB","Stützpersonal","insgesamt","davon Männer","davon Frauen","Leitung des Betreuungs- und Pflegedienstes","DGKP","Pflegefachassistenz","FSB-A","FSB-BA","DSB-A","DSB-BA","DSB-F","Pflegeassistenz","HH & AB","FSB-BB","DSB-BB","Stützpersonal","insgesamt","davon Männer","davon Frauen","Leitung des Betreuungs- und Pflegedienstes","DGKP","Pflegefachassistenz","FSB-A","FSB-BA","DSB-A","DSB-BA","DSB-F","Pflegeassistenz","HH & AB","FSB-BB","DSB-BB","Stützpersonal","insgesamt","davon Männer","davon Frauen","Theratpeut:innen","Hilfskräfte","Insgesamt","davon Männer","davon Frauen","Theratpeut:innen","Hilfskräfte","Insgesamt","davon Männer","davon Frauen","Theratpeut:innen","Hilfskräfte","Insgesamt","davon Männer","davon Frauen","Theratpeut:innen","Hilfskräfte","Insgesamt","davon Männer","davon Frauen","Theratpeut:innen","Hilfskräfte","Insgesamt","davon Männer","davon Frauen","Theratpeut:innen","Hilfskräfte","Insgesamt","davon Männer","davon Frauen","Heimleitung","Verwaltung","Küche","Reinigung","Wäscherei","Haustechnik","insgesamt","davon Männer","davon Frauen","Heimleitung","Verwaltung","Küche","Reinigung","Wäscherei","Haustechnik","insgesamt","davon Männer","davon Frauen","Heimleitung","Verwaltung","Küche","Reinigung","Wäscherei","Haustechnik","insgesamt","davon Männer","davon Frauen","Heimleitung","Verwaltung","Küche","Reinigung","Wäscherei","Haustechnik","insgesamt","davon Männer","davon Frauen","Heimleitung","Verwaltung","Küche","Reinigung","Wäscherei","Haustechnik","insgesamt","davon Männer","davon Frauen","Heimleitung","Verwaltung","Küche","Reinigung","Wäscherei","Haustechnik","insgesamt","davon Männer","davon Frauen","Männer","Frauen","Summe","Männer","Frauen","Summe","Männer","Frauen","Summe","Zivildiener","Lehrlinge","Freiwilliges soziales Jahr","Freiwillige / Ehrenamtliche","Summe","Anzahl Pflegelehrlinge im APH","APH als Pflegelehrbetrieb zugelassen?",null,"Leitung des Betreuungs- und Pflegedienstes","DGKP","Pflegefachassistenz","FSB-A","FSB-BA","DSB-A","DSB-BA","DSB-F","Pflegeassistenz","HH & AB","FSB-BB","DSB-BB","Stützpersonal","insgesamt","Leitung des Betreuungs- und Pflegedienstes","DGKP","Pflegefachassistenz","FSB-A","FSB-BA","DSB-A","DSB-BA","DSB-F","Pflegeassistenz","HH & AB","FSB-BB","DSB-BB","Stützpersonal","insgesamt","davon anrechenbar","DGKP inkl. LBPD und PFA","FSB-A","HH & AB, FSB BB und DSB BB","Stützpersonal","insgesamt","DGKP inkl. LBPD und PFA","FSB-A, FSB-BA, DSB-A, DSB-BA, DSB-F, PA","HH & AB, FSB BB und DSB BB","Stützpersonal","insgesamt"]
[null,null,null,null,null,null,null,null,null,null,1,2,3,4,5,6,7,8,9,10,11,12,13,null,null,null,1,2,3,4,5,6,7,8,9,10,11,12,13,null,null,null,1,2,3,4,5,6,7,8,9,10,11,12,13,null,null,null,1,2,3,4,5,6,7,8,9,10,11,12,13,null,null,null,1,2,3,4,5,6,7,8,9,10,11,12,13,null,null,null,1,2,3,4,5,6,7,8,9,10,11,12,13,null,null,null,null,null,null,null,null,null,null,null,null,null,null,null,null,null,null,null,null,null,null,null,null,null,null,null,null,null,null,null,null,null,null,null,null,null,null,null,null,null,null,null,null,null,null,null,null,null,null,null,null,null,null,null,null,null,null,null,null,null,null,null,null,null,null,null,null,null,null,null,null,null,null,null,null,null,null,null,null,null,null,null,null,null,null,null,"Personen",null,null,"Personen",null,null,"Personen",null,null,"im Jahr 2025",null,null,null,null,"zum Stichtag",null,null,1,2,3,4,5,6,7,8,9,10,11,12,13,null,1,2,3,4,5,6,7,8,9,10,11,12,13]
[null,null,null,null,null,null,null,"Standortgemeinde",null,"Kurzbezeichnung","Angestelltes PFLEGEPERSONAL in PERSONEN (MPPB-wirksam)",null,null,null,null,null,null,null,null,null,null,null,null,null,null,null,"Angestelltes PFLEGEPERSONAL in PE (MPPB-wirksam)",null,null,null,null,null,null,null,null,null,null,null,null,null,null,null,"Nicht angestelltes (z.B. Leasing) PFLEGEPERSONAL in PERSONEN (MPPB-wirksam)",null,null,null,null,null,null,null,null,null,null,null,null,null,null,null,"Nicht angestelltes (z.B. Leasing) PFLEGEPERSONAL in PE (MPPB-wirksam)",null,null,null,null,null,null,null,null,null,null,null,null,null,null,null,"Pflegepersonal GESAMT in PERSONEN (MPPB-wirksam)",null,null,null,null,null,null,null,null,null,null,null,null,null,null,null,"Pflegepersonal GESAMT in PE (MPPB-wirksam)",null,null,null,null,null,null,null,null,null,null,null,null,null,null,null,"Angestelltes SONSTIGES PFLEGEPERSONAL in Personen (nicht MPPB-wirksam)",null,null,null,null,"Angestelltes SONSTIGES PFLEGEPERSONAL in PE (nicht MPPB-wirksam)",null,null,null,null,"Nicht angestelltes (z.B. Leasing) sonst. PFLEGEPERSONAL in PERSONEN (nicht MPPB-wirksam)",null,null,null,null,"Nicht angestelltes (z.B. Leasing) sonst. PFLEGEPERSONAL in PE (nicht MPPB-wirksam)",null,null,null,null,"SONSTIGES Pflegepersonal GESAMT in Personen (nicht MPPB-wirksam)",null,null,null,null,"SONSTIGES Pflegepersonal GESAMT in PE \n(nicht MPPB-wirksam)",null,null,null,null,"Angestelltes VERWALTUNGS- und FUNKTIONSPERSONAL \nin PERSONEN",null,null,null,null,null,null,null,null,"Angestelltes VERWALTUNGS- und FUNKTIONSPERSONAL \nin PE",null,null,null,null,null,null,null,null,"Nicht angestelltes (z.B. Leasing) VERWALTUNGS- und FUNKTIONSPERSONAL \nin PERSONEN",null,null,null,null,null,null,null,null,"Nicht angestelltes (z.B. Leasing) VERWALTUNGS- und FUNKTIONSPERSONAL \nin PE",null,null,null,null,null,null,null,null,"Verwaltungs- und Funktionspersonal GESAMT \nin PERSONEN",null,null,null,null,null,null,null,null,"Verwaltungs- und Funktionspersonal GESAMT \nin PE",null,null,null,null,null,null,null,null,"Angestelltes Personal GESAMT \nin PERSONEN",null,null,"NICHT angestelltes Personal GESAMT \nin PERSONEN",null,null,"PERSONAL GESAMT \nin PERSONEN",null,null,"Zusätzlich tätiges Personal",null,null,null,null,null,null,null,"Pflegepersonal GESAMT in PERSONEN (MPPB-wirksam) nach Blatt 4 - Langzeitkrankenstände abgezogen",null,null,null,null,null,null,null,null,null,null,null,null,null,"Pflegepersonal GESAMT in PE (MPPB-wirksam) nach Blatt 4 - Langzeitkrankenstände abgezogen",null,null,null,null,null,null,null,null,null,null,null,null,null,null,"Pflegepersonal GESAMT in PE nach Blatt 4 - nur Überhang",null,null,null,null,"Pflegepersonal GESAMT in PE (MPPB-wirksam) - Differenz Blatt 2 zu Blatt 4 abzüglich Überhang = Langzeitkrankenstände, Sabbatical, Karenz"]
[{"$f":"VLOOKUP($J$6,'1_allg. Strukturdaten'!$B$74:$N$207,2,FALSE)","v":{"$error":"#N/A"}},{"$f":"VLOOKUP($J$6,'1_allg. Strukturdaten'!$B$74:$N$207,3,FALSE)","v":{"$error":"#N/A"}},{"$f":"VLOOKUP($J$6,'1_allg. Strukturdaten'!$B$74:$N$207,4,FALSE)","v":{"$error":"#N/A"}},{"$f":"VLOOKUP($J$6,'1_allg. Strukturdaten'!$B$74:$N$207,5,FALSE)","v":{"$error":"#N/A"}},{"$f":"VLOOKUP($J$6,'1_allg. Strukturdaten'!$B$74:$N$207,6,FALSE)","v":{"$error":"#N/A"}},{"$f":"VLOOKUP($J$6,'1_allg. Strukturdaten'!$B$74:$N$207,7,FALSE)","v":{"$error":"#N/A"}},{"$f":"VLOOKUP($J$6,'1_allg. Strukturdaten'!$B$74:$N$207,8,FALSE)","v":{"$error":"#N/A"}},{"$f":"VLOOKUP($J$6,'1_allg. Strukturdaten'!$B$74:$N$207,9,FALSE)","v":{"$error":"#N/A"}},{"$f":"VLOOKUP($J$6,'1_allg. Strukturdaten'!$B$74:$N$207,10,FALSE)","v":{"$error":"#N/A"}},{"$f":"'1_allg. Strukturdaten'!D7","v":"Bitte auswählen…"},{"$f":"'2_Personal'!C9","v":0},{"$f":"'2_Personal'!C10","v":0},{"$f":"'2_Personal'!C11","v":0},{"$f":"'2_Personal'!C12","v":0},{"$f":"'2_Personal'!C13","v":0},{"$f":"'2_Personal'!C14","v":0},{"$f":"'2_Personal'!C15","v":0},{"$f":"'2_Personal'!C16","v":0},{"$f":"'2_Personal'!C17","v":0},{"$f":"'2_Personal'!C18","v":0},{"$f":"'2_Personal'!C19","v":0},{"$f":"'2_Personal'!C20","v":0},{"$f":"'2_Personal'!C21","v":0},{"$f":"'2_Personal'!C22","v":0},{"$f":"'2_Personal'!C23","v":0},{"$f":"'2_Personal'!C24","v":0},{"$f":"'2_Personal'!$D9","v":0},{"$f":"'2_Personal'!$D10","v":0},{"$f":"'2_Personal'!$D11","v":0},{"$f":"'2_Personal'!$D12","v":0},{"$f":"'2_Personal'!$D13","v":0},{"$f":"'2_Personal'!$D14","v":0},{"$f":"'2_Personal'!$D15","v":0},{"$f":"'2_Personal'!$D16","v":0},{"$f":"'2_Personal'!$D17","v":0},{"$f":"'2_Personal'!$D18","v":0},{"$f":"'2_Personal'!$D19","v":0},{"$f":"'2_Personal'!$D20","v":0},{"$f":"'2_Personal'!$D21","v":0},{"$f":"'2_Personal'!D22","v":0},{"$f":"'2_Personal'!D23","v":0},{"$f":"'2_Personal'!D24","v":0},{"$f":"'2_Personal'!$E9","v":0},{"$f":"'2_Personal'!$E10","v":0},{"$f":"'2_Personal'!$E11","v":0},{"$f":"'2_Personal'!$E12","v":0},{"$f":"'2_Personal'!$E13","v":0},{"$f":"'2_Personal'!$E14","v":0},{"$f":"'2_Personal'!$E15","v":0},{"$f":"'2_Personal'!$E16","v":0},{"$f":"'2_Personal'!$E17","v":0},{"$f":"'2_Personal'!$E18","v":0},{"$f":"'2_Personal'!$E19","v":0},{"$f":"'2_Personal'!$E20","v":0},{"$f":"'2_Personal'!$E21","v":0},{"$f":"'2_Personal'!E22","v":0},{"$f":"'2_Personal'!E23","v":0},{"$f":"'2_Personal'!E24","v":0},{"$f":"'2_Personal'!$F9","v":0},{"$f":"'2_Personal'!$F10","v":0},{"$f":"'2_Personal'!$F11","v":0},{"$f":"'2_Personal'!$F12","v":0},{"$f":"'2_Personal'!$F13","v":0},{"$f":"'2_Personal'!$F14","v":0},{"$f":"'2_Personal'!$F15","v":0},{"$f":"'2_Personal'!$F16","v":0},{"$f":"'2_Personal'!$F17","v":0},{"$f":"'2_Personal'!$F18","v":0},{"$f":"'2_Personal'!$F19","v":0},{"$f":"'2_Personal'!$F20","v":0},{"$f":"'2_Personal'!$F21","v":0},{"$f":"'2_Personal'!F22","v":0},{"$f":"'2_Personal'!F23","v":0},{"$f":"'2_Personal'!F24","v":0},{"$f":"'2_Personal'!$G9","v":0},{"$f":"'2_Personal'!$G10","v":0},{"$f":"'2_Personal'!$G11","v":0},{"$f":"'2_Personal'!$G12","v":0},{"$f":"'2_Personal'!G13","v":0},{"$f":"'2_Personal'!$G14","v":0},{"$f":"'2_Personal'!$G15","v":0},{"$f":"'2_Personal'!$G16","v":0},{"$f":"'2_Personal'!$G17","v":0},{"$f":"'2_Personal'!$G18","v":0},{"$f":"'2_Personal'!$G19","v":0},{"$f":"'2_Personal'!$G20","v":0},{"$f":"'2_Personal'!$G21","v":0},{"$f":"'2_Personal'!$G22","v":0},{"$f":"'2_Personal'!$G23","v":0},{"$f":"'2_Personal'!$G24","v":0},{"$f":"'2_Personal'!$H9","v":0},{"$f":"'2_Personal'!$H10","v":0},{"$f":"'2_Personal'!$H11","v":0},{"$f":"'2_Personal'!$H12","v":0},{"$f":"'2_Personal'!$H13","v":0},{"$f":"'2_Personal'!$H14","v":0},{"$f":"'2_Personal'!$H15","v":0},{"$f":"'2_Personal'!$H16","v":0},{"$f":"'2_Personal'!$H17","v":0},{"$f":"'2_Personal'!$H18","v":0},{"$f":"'2_Personal'!$H19","v":0},{"$f":"'2_Personal'!$H20","v":0},{"$f":"'2_Personal'!$H21","v":0},{"$f":"'2_Personal'!$H22","v":0},{"$f":"'2_Personal'!$H23","v":0},{"$f":"'2_Personal'!$H24","v":0},{"$f":"'2_Personal'!C26","v":0},{"$f":"'2_Personal'!C27","v":0},{"$f":"'2_Personal'!$C28","v":0},{"$f":"'2_Personal'!$C29","v":0},{"$f":"'2_Personal'!$C30","v":0},{"$f":"'2_Personal'!D26","v":0},{"$f":"'2_Personal'!D27","v":0},{"$f":"'2_Personal'!D28","v":0},{"$f":"'2_Personal'!D29","v":0},{"$f":"'2_Personal'!D30","v":0},{"$f":"'2_Personal'!E26","v":0},{"$f":"'2_Personal'!E27","v":0},{"$f":"'2_Personal'!E28","v":0},{"$f":"'2_Personal'!E29","v":0},{"$f":"'2_Personal'!E30","v":0},{"$f":"'2_Personal'!F26","v":0},{"$f":"'2_Personal'!F27","v":0},{"$f":"'2_Personal'!F28","v":0},{"$f":"'2_Personal'!F29","v":0},{"$f":"'2_Personal'!F30","v":0},{"$f":"'2_Personal'!G26","v":0},{"$f":"'2_Personal'!G27","v":0},{"$f":"'2_Personal'!G28","v":0},{"$f":"'2_Personal'!G29","v":0},{"$f":"'2_Personal'!G30","v":0},{"$f":"'2_Personal'!H26","v":0},{"$f":"'2_Personal'!H27","v":0},{"$f":"'2_Personal'!H28","v":0},{"$f":"'2_Personal'!H29","v":0},{"$f":"'2_Personal'!H30","v":0},{"$f":"'2_Personal'!C32","v":0},{"$f":"'2_Personal'!C33","v":0},{"$f":"'2_Personal'!C34","v":0},{"$f":"'2_Personal'!C35","v":0},{"$f":"'2_Personal'!C36","v":0},{"$f":"'2_Personal'!C37","v":0},{"$f":"'2_Personal'!$C38","v":0},{"$f":"'2_Personal'!$C39","v":0},{"$f":"'2_Personal'!$C40","v":0},{"$f":"'2_Personal'!D32","v":0},{"$f":"'2_Personal'!D33","v":0},{"$f":"'2_Personal'!D34","v":0},{"$f":"'2_Personal'!D35","v":0},{"$f":"'2_Personal'!D36","v":0},{"$f":"'2_Personal'!D37","v":0},{"$f":"'2_Personal'!$D38","v":0},{"$f":"'2_Personal'!$D39","v":0},{"$f":"'2_Personal'!$D40","v":0},{"$f":"'2_Personal'!E32","v":0},{"$f":"'2_Personal'!E33","v":0},{"$f":"'2_Personal'!E34","v":0},{"$f":"'2_Personal'!E35","v":0},{"$f":"'2_Personal'!E36","v":0},{"$f":"'2_Personal'!E37","v":0},{"$f":"'2_Personal'!$E38","v":0},{"$f":"'2_Personal'!$E39","v":0},{"$f":"'2_Personal'!$E40","v":0},{"$f":"'2_Personal'!F32","v":0},{"$f":"'2_Personal'!F33","v":0},{"$f":"'2_Personal'!F34","v":0},{"$f":"'2_Personal'!F35","v":0},{"$f":"'2_Personal'!F36","v":0},{"$f":"'2_Personal'!F37","v":0},{"$f":"'2_Personal'!$F38","v":0},{"$f":"'2_Personal'!$F39","v":0},{"$f":"'2_Personal'!$F40","v":0},{"$f":"'2_Personal'!$G32","v":0},{"$f":"'2_Personal'!$G33","v":0},{"$f":"'2_Personal'!$G34","v":0},{"$f":"'2_Personal'!$G35","v":0},{"$f":"'2_Personal'!$G36","v":0},{"$f":"'2_Personal'!$G37","v":0},{"$f":"'2_Personal'!$G38","v":0},{"$f":"'2_Personal'!$G39","v":0},{"$f":"'2_Personal'!$G40","v":0},{"$f":"'2_Personal'!$H32","v":0},{"$f":"'2_Personal'!$H33","v":0},{"$f":"'2_Personal'!$H34","v":0},{"$f":"'2_Personal'!$H35","v":0},{"$f":"'2_Personal'!$H36","v":0},{"$f":"'2_Personal'!$H37","v":0},{"$f":"'2_Personal'!$H38","v":0},{"$f":"'2_Personal'!$H39","v":0},{"$f":"'2_Personal'!$H40","v":0},{"$f":"'2_Personal'!C47","v":0},{"$f":"'2_Personal'!D47","v":0},{"$f":"GI18+GJ18","v":0},{"$f":"'2_Personal'!E47","v":0},{"$f":"'2_Personal'!F47","v":0},{"$f":"GL18+GM18","v":0},{"$f":"GI18+GL18","v":0},{"$f":"GJ18+GM18","v":0},{"$f":"GO18+GP18","v":0},{"$f":"'2_Personal'!B91","v":0},{"$f":"'2_Personal'!B92","v":0},{"$f":"'2_Personal'!B93","v":0},{"$f":"'2_Personal'!B94","v":0},{"$f":"'2_Personal'!B95","v":0},{"$f":"'2_Personal'!C99","v":0},{"$f":"'2_Personal'!C100","v":0},null,{"$f":"'4_Pflegepersonalbedarf 2025'!$N261","v":0},{"$f":"'4_Pflegepersonalbedarf 2025'!$N262","v":0},{"$f":"'4_Pflegepersonalbedarf 2025'!$N263","v":0},{"$f":"'4_Pflegepersonalbedarf 2025'!$N264","v":0},{"$f":"'4_Pflegepersonalbedarf 2025'!$N265","v":0},{"$f":"'4_Pflegepersonalbedarf 2025'!$N266","v":0},{"$f":"'4_Pflegepersonalbedarf 2025'!$N267","v":0},{"$f":"'4_Pflegepersonalbedarf 2025'!$N268","v":0},{"$f":"'4_Pflegepersonalbedarf 2025'!$N269","v":0},{"$f":"'4_Pflegepersonalbedarf 2025'!$N270","v":0},{"$f":"'4_Pflegepersonalbedarf 2025'!$N271","v":0},{"$f":"'4_Pflegepersonalbedarf 2025'!$N272","v":0},{"$f":"'4_Pflegepersonalbedarf 2025'!$N273","v":0},{"$f":"'4_Pflegepersonalbedarf 2025'!$N274","v":0},{"$f":"'4_Pflegepersonalbedarf 2025'!$O261","v":0},{"$f":"'4_Pflegepersonalbedarf 2025'!$O262","v":0},{"$f":"'4_Pflegepersonalbedarf 2025'!$O263","v":0},{"$f":"'4_Pflegepersonalbedarf 2025'!$O264","v":0},{"$f":"'4_Pflegepersonalbedarf 2025'!$O265","v":0},{"$f":"'4_Pflegepersonalbedarf 2025'!$O266","v":0},{"$f":"'4_Pflegepersonalbedarf 2025'!$O267","v":0},{"$f":"'4_Pflegepersonalbedarf 2025'!$O268","v":0},{"$f":"'4_Pflegepersonalbedarf 2025'!$O269","v":0},{"$f":"'4_Pflegepersonalbedarf 2025'!$O270","v":0},{"$f":"'4_Pflegepersonalbedarf 2025'!$O271","v":0},{"$f":"'4_Pflegepersonalbedarf 2025'!$O272","v":0},{"$f":"'4_Pflegepersonalbedarf 2025'!$O273","v":0},{"$f":"'4_Pflegepersonalbedarf 2025'!$O274","v":0},{"$f":"'4_Pflegepersonalbedarf 2025'!$O275","v":0},{"$f":"'4_Pflegepersonalbedarf 2025'!O261+'4_Pflegepersonalbedarf 2025'!O262+'4_Pflegepersonalbedarf 2025'!O263-'4_Pflegepersonalbedarf 2025'!O276","v":0},{"$f":"'4_Pflegepersonalbedarf 2025'!O264-'4_Pflegepersonalbedarf 2025'!O277","v":0},{"$f":"'4_Pflegepersonalbedarf 2025'!O270+'4_Pflegepersonalbedarf 2025'!O271+'4_Pflegepersonalbedarf 2025'!O272-'4_Pflegepersonalbedarf 2025'!O278","v":0},{"$f":"'4_Pflegepersonalbedarf 2025'!O273-'4_Pflegepersonalbedarf 2025'!O279","v":0},{"$f":"SUM(IC18:IF18)","v":0},{"$f":"SUM('4_Pflegepersonalbedarf 2025'!Q261:Q263)-SUM('4_Pflegepersonalbedarf 2025'!O261:O263)","v":0},{"$f":"SUM('4_Pflegepersonalbedarf 2025'!Q264:Q269)-SUM('4_Pflegepersonalbedarf 2025'!O264:O269)","v":0},{"$f":"SUM('4_Pflegepersonalbedarf 2025'!Q270:Q272)-SUM('4_Pflegepersonalbedarf 2025'!O270:O272)","v":0},{"$f":"'4_Pflegepersonalbedarf 2025'!Q273-'4_Pflegepersonalbedarf 2025'!O273","v":0},{"$f":"SUM(IH18:IK18)","v":0}]
[]
["Hauptdaten4 (Personal-Fluktuation)"]
["Code","Träger","Bezirk","Region","Planungsraum","Größengruppe","PDL-Statistik","Gemeinde\nKennzahl","Gemeinde","Kurzbezeichnung","Anzahl der ins Jahr 2026 übertragenen Über- bzw. Mehrstunden","Anzahl der im Jahr 2025 ausbezahlten Über- bzw. Mehrstunden","Summe","Anzahl der Krankenstände (in Tagen)","durchschn. Krankenstandstage je MA der Pflege (MPPB-wirksam)","Anzahl der Resturlaubstage","von Heim des selben Trägers","von Heim eines anderen Trägers","von Mobilen Diensten","von anderer Einrichtung d Ges.bereiches","von Einrichtung für Menschen mit Beeinträchtigungen","von Sonstigem","direkt nach Ausbildung","Wiedereinsteiger:innen","Eintritte DGKP inkl. LBPD\nohne Karenz","von Karenz zurück","in ein Heim des selben Trägers","in ein Heim eines anderen Trägers","zu Mobilen Diensten","in andere Einrichtung d Ges.bereiches","in Einrichtung für Menschen mit Beeinträchtigungen","zu Sonstigem","wegen Ausbildung","wegen Ende Befristung DV","weiterer Berufsweg unbekannt bzw. sonstige Gründe","Austritte DGKP inkl. LBPD","Pensionierung","ganzjährig in Karenz","in Karenz gegangen","von Heim des selben Trägers","von Heim eines anderen Trägers","von Mobilen Diensten","von anderer Einrichtung d Ges.bereiches","von Einrichtung für Menschen mit Beeinträchtigungen","von Sonstigem","direkt nach Ausbildung","Wiedereinsteiger:innen","Eintritte PFA ohne Karenz","von Karenz zurück","in ein Heim des selben Trägers","in ein Heim eines anderen Trägers","zu Mobilen Diensten","in andere Einrichtung d Ges.bereiches","in Einrichtung für Menschen mit Beeinträchtigungen","zu Sonstigem","wegen Ausbildung","wegen Ende Befristung DV","weiterer Berufsweg unbekannt bzw. sonstige Gründe","Austritte PFA","Pensionierung","ganzjährig in Karenz","in Karenz gegangen","von Heim des selben Trägers","von Heim eines anderen Trägers","von Mobilen Diensten","von anderer Einrichtung d Ges.bereiches","von Einrichtung für Menschen mit Beeinträchtigungen","von Sonstigem","direkt nach Ausbildung","Wiedereinsteiger:innen","Eintritte FSB & DSB ohne Karenz","von Karenz zurück","in ein Heim des selben Trägers","in ein Heim eines anderen Trägers","zu Mobilen Diensten","in andere Einrichtung d Ges.bereiches","in Einrichtung für Menschen mit Beeinträchtigungen","zu Sonstigem","wegen Ausbildung","wegen Ende Befristung DV","weiterer Berufsweg unbekannt bzw. sonstige Gründe","Austritte FSB & DSB","Pensionierung","ganzjährig in Karenz","in Karenz gegangen","von Heim des selben Trägers","von Heim eines anderen Trägers","von Mobilen Diensten","von anderer Einrichtung d Ges.bereiches","von Einrichtung für Menschen mit Beeinträchtigungen","von Sonstigem","direkt nach Ausbildung","Wiedereinsteiger:innen","Eintritte PA ohne Karenz","von Karenz zurück","in ein Heim des selben Trägers","in ein Heim eines anderen Trägers","zu Mobilen Diensten","in andere Einrichtung d Ges.bereiches","in Einrichtung für Menschen mit Beeinträchtigungen","zu Sonstigem","wegen Ausbildung","wegen Ende Befristung DV","weiterer Berufsweg unbekannt bzw. sonstige Gründe","Austritte PA","Pensionierung","ganzjährig in Karenz","in Karenz gegangen","von Heim des selben Trägers","von Heim eines anderen Trägers","von Mobilen Diensten","von anderer Einrichtung d Ges.bereiches","von Einrichtung für Menschen mit Beeinträchtigungen","von Sonstigem","direkt nach Ausbildung","Wiedereinsteiger:innen","Eintritte HH ohne Karenz","von Karenz zurück","in ein Heim des selben Trägers","in ein Heim eines anderen Trägers","zu Mobilen Diensten","in andere Einrichtung d Ges.bereiches","in Einrichtung für Menschen mit Beeinträchtigungen","zu Sonstigem","wegen Ausbildung","wegen Ende Befristung DV","weiterer Berufsweg unbekannt bzw. sonstige Gründe","Austritte HH","Pensionierung","ganzjährig in Karenz","in Karenz gegangen","von Heim des selben Trägers","von Heim eines anderen Trägers","von Mobilen Diensten","von anderer Einrichtung d Ges.bereiches","von Einrichtung für Menschen mit Beeinträchtigungen","von Sonstigem","direkt nach Ausbildung","Wiedereinsteiger:innen","Eintritte Stützpersonal  ohne Karenz","von Karenz zurück","in ein Heim des selben Trägers","in ein Heim eines anderen Trägers","zu Mobilen Diensten","in andere Einrichtung d Ges.bereiches","in Einrichtung für Menschen mit Beeinträchtigungen","zu Sonstigem","wegen Ausbildung","wegen Ende Befristung DV","weiterer Berufsweg unbekannt bzw. sonstige Gründe","Austritte Stützpersonal","Pensionierung","ganzjährig in Karenz","in Karenz gegangen"]
[null,null,null,null,null,null,null,null,null,null,null,null,null,null,null,null,"Eintritte",null,null,null,null,null,null,null,null,null,"Austritte",null,null,null,null,null,null,null,null,null,null,null,null,"Eintritte",null,null,null,null,null,null,null,null,null,"Austritte",null,null,null,null,null,null,null,null,null,null,null,null,"Eintritte",null,null,null,null,null,null,null,null,null,"Austritte",null,null,null,null,null,null,null,null,null,null,null,null,"Eintritte",null,null,null,null,null,null,null,null,null,"Austritte",null,null,null,null,null,null,null,null,null,null,null,null,"Eintritte",null,null,null,null,null,null,null,null,null,"Austritte",null,null,null,null,null,null,null,null,null,null,null,null,"Eintritte",null,null,null,null,null,null,null,null,null,"Austritte"]
[null,null,null,null,null,null,null,"Standortgemeinde",null,"Kurzbezeichnung","Überstunden, Krankenstand, Urlaub (Pflegepersonal)",null,null,null,null,null,"Personalfluktuation DGKP inkl. LBPD",null,null,null,null,null,null,null,null,null,null,null,null,null,null,null,null,null,null,null,null,null,null,"Personalfluktuation PFA",null,null,null,null,null,null,null,null,null,null,null,null,null,null,null,null,null,null,null,null,null,null,"Personalfluktuation FSB & DSB",null,null,null,null,null,null,null,null,null,null,null,null,null,null,null,null,null,null,null,null,null,null,"Personalfluktuation PA",null,null,null,null,null,null,null,null,null,null,null,null,null,null,null,null,null,null,null,null,null,null,"Personalfluktuation HH",null,null,null,null,null,null,null,null,null,null,null,null,null,null,null,null,null,null,null,null,null,null,"Personalfluktuation Stützpersonal"]
[{"$f":"VLOOKUP($J$6,'1_allg. Strukturdaten'!$B$74:$N$207,2,FALSE)","v":{"$error":"#N/A"}},{"$f":"VLOOKUP($J$6,'1_allg. Strukturdaten'!$B$74:$N$207,3,FALSE)","v":{"$error":"#N/A"}},{"$f":"VLOOKUP($J$6,'1_allg. Strukturdaten'!$B$74:$N$207,4,FALSE)","v":{"$error":"#N/A"}},{"$f":"VLOOKUP($J$6,'1_allg. Strukturdaten'!$B$74:$N$207,5,FALSE)","v":{"$error":"#N/A"}},{"$f":"VLOOKUP($J$6,'1_allg. Strukturdaten'!$B$74:$N$207,6,FALSE)","v":{"$error":"#N/A"}},{"$f":"VLOOKUP($J$6,'1_allg. Strukturdaten'!$B$74:$N$207,7,FALSE)","v":{"$error":"#N/A"}},{"$f":"VLOOKUP($J$6,'1_allg. Strukturdaten'!$B$74:$N$207,8,FALSE)","v":{"$error":"#N/A"}},{"$f":"VLOOKUP($J$6,'1_allg. Strukturdaten'!$B$74:$N$207,9,FALSE)","v":{"$error":"#N/A"}},{"$f":"VLOOKUP($J$6,'1_allg. Strukturdaten'!$B$74:$N$207,10,FALSE)","v":{"$error":"#N/A"}},{"$f":"'1_allg. Strukturdaten'!D7","v":"Bitte auswählen…"},{"$f":"'2_Personal'!C52","v":0},{"$f":"'2_Personal'!C53","v":0},{"$f":"'2_Personal'!E53","v":0},{"$f":"'2_Personal'!C54","v":0},{"$f":"'2_Personal'!G54","v":""},{"$f":"'2_Personal'!C55","v":0},{"$f":"'2_Personal'!$C62","v":0},{"$f":"'2_Personal'!$C63","v":0},{"$f":"'2_Personal'!$C64","v":0},{"$f":"'2_Personal'!$C65","v":0},{"$f":"'2_Personal'!$C66","v":0},{"$f":"'2_Personal'!$C67","v":0},{"$f":"'2_Personal'!$C68","v":0},{"$f":"'2_Personal'!$C69","v":0},{"$f":"SUM(Q24:X24)","v":0},{"$f":"'2_Personal'!$C70","v":0},{"$f":"'2_Personal'!$C73","v":0},{"$f":"'2_Personal'!$C74","v":0},{"$f":"'2_Personal'!$C75","v":0},{"$f":"'2_Personal'!$C76","v":0},{"$f":"'2_Personal'!$C77","v":0},{"$f":"'2_Personal'!$C78","v":0},{"$f":"'2_Personal'!$C79","v":0},{"$f":"'2_Personal'!$C80","v":0},{"$f":"'2_Personal'!$C81","v":0},{"$f":"SUM(AA24:AI24)","v":0},{"$f":"'2_Personal'!$C82","v":0},{"$f":"'2_Personal'!$C83","v":0},{"$f":"'2_Personal'!$C84","v":0},{"$f":"'2_Personal'!D62","v":0},{"$f":"'2_Personal'!D63","v":0},{"$f":"'2_Personal'!D64","v":0},{"$f":"'2_Personal'!D65","v":0},{"$f":"'2_Personal'!D66","v":0},{"$f":"'2_Personal'!D67","v":0},{"$f":"'2_Personal'!D68","v":0},{"$f":"'2_Personal'!D69","v":0},{"$f":"SUM(AN24:AU24)","v":0},{"$f":"'2_Personal'!D70","v":0},{"$f":"'2_Personal'!D73","v":0},{"$f":"'2_Personal'!D74","v":0},{"$f":"'2_Personal'!D75","v":0},{"$f":"'2_Personal'!D76","v":0},{"$f":"'2_Personal'!D77","v":0},{"$f":"'2_Personal'!D78","v":0},{"$f":"'2_Personal'!D79","v":0},{"$f":"'2_Personal'!D80","v":0},{"$f":"'2_Personal'!D81","v":0},{"$f":"SUM(AX24:BF24)","v":0},{"$f":"'2_Personal'!D82","v":0},{"$f":"'2_Personal'!D83","v":0},{"$f":"'2_Personal'!D84","v":0},{"$f":"'2_Personal'!$E62","v":0},{"$f":"'2_Personal'!$E63","v":0},{"$f":"'2_Personal'!$E64","v":0},{"$f":"'2_Personal'!$E65","v":0},{"$f":"'2_Personal'!$E66","v":0},{"$f":"'2_Personal'!$E67","v":0},{"$f":"'2_Personal'!$E68","v":0},{"$f":"'2_Personal'!$E69","v":0},{"$f":"SUM(BK24:BR24)","v":0},{"$f":"'2_Personal'!$E70","v":0},{"$f":"'2_Personal'!$E73","v":0},{"$f":"'2_Personal'!$E74","v":0},{"$f":"'2_Personal'!$E75","v":0},{"$f":"'2_Personal'!$E76","v":0},{"$f":"'2_Personal'!$E77","v":0},{"$f":"'2_Personal'!$E78","v":0},{"$f":"'2_Personal'!$E79","v":0},{"$f":"'2_Personal'!$E80","v":0},{"$f":"'2_Personal'!$E81","v":0},{"$f":"SUM(BU24:CC24)","v":0},{"$f":"'2_Personal'!$E82","v":0},{"$f":"'2_Personal'!$E83","v":0},{"$f":"'2_Personal'!$E84","v":0},{"$f":"'2_Personal'!$F62","v":0},{"$f":"'2_Personal'!$F63","v":0},{"$f":"'2_Personal'!$F64","v":0},{"$f":"'2_Personal'!$F65","v":0},{"$f":"'2_Personal'!$F66","v":0},{"$f":"'2_Personal'!$F67","v":0},{"$f":"'2_Personal'!$F68","v":0},{"$f":"'2_Personal'!$F69","v":0},{"$f":"SUM(CH24:CO24)","v":0},{"$f":"'2_Personal'!$F70","v":0},{"$f":"'2_Personal'!$F73","v":0},{"$f":"'2_Personal'!$F74","v":0},{"$f":"'2_Personal'!$F75","v":0},{"$f":"'2_Personal'!$F76","v":0},{"$f":"'2_Personal'!$F77","v":0},{"$f":"'2_Personal'!$F78","v":0},{"$f":"'2_Personal'!$F79","v":0},{"$f":"'2_Personal'!$F80","v":0},{"$f":"'2_Personal'!$F81","v":0},{"$f":"SUM(CR24:CZ24)","v":0},{"$f":"'2_Personal'!$F82","v":0},{"$f":"'2_Personal'!$F83","v":0},{"$f":"'2_Personal'!$F84","v":0},{"$f":"'2_Personal'!$G62","v":0},{"$f":"'2_Personal'!$G63","v":0},{"$f":"'2_Personal'!$G64","v":0},{"$f":"'2_Personal'!$G65","v":0},{"$f":"'2_Personal'!$G66","v":0},{"$f":"'2_Personal'!$G67","v":0},{"$f":"'2_Personal'!$G68","v":0},{"$f":"'2_Personal'!$G69","v":0},{"$f":"SUM(DE24:DL24)","v":0},{"$f":"'2_Personal'!$G70","v":0},{"$f":"'2_Personal'!$G73","v":0},{"$f":"'2_Personal'!$G74","v":0},{"$f":"'2_Personal'!$G75","v":0},{"$f":"'2_Personal'!$G76","v":0},{"$f":"'2_Personal'!$G77","v":0},{"$f":"'2_Personal'!$G78","v":0},{"$f":"'2_Personal'!$G79","v":0},{"$f":"'2_Personal'!$G80","v":0},{"$f":"'2_Personal'!$G81","v":0},{"$f":"SUM(DO24:DW24)","v":0},{"$f":"'2_Personal'!$G82","v":0},{"$f":"'2_Personal'!$G83","v":0},{"$f":"'2_Personal'!$G84","v":0},{"$f":"'2_Personal'!$H62","v":0},{"$f":"'2_Personal'!$H63","v":0},{"$f":"'2_Personal'!$H64","v":0},{"$f":"'2_Personal'!$H65","v":0},{"$f":"'2_Personal'!$H66","v":0},{"$f":"'2_Personal'!$H67","v":0},{"$f":"'2_Personal'!$H68","v":0},{"$f":"'2_Personal'!$H69","v":0},{"$f":"SUM(EB24:EI24)","v":0},{"$f":"'2_Personal'!$H70","v":0},{"$f":"'2_Personal'!$H73","v":0},{"$f":"'2_Personal'!$H74","v":0},{"$f":"'2_Personal'!$H75","v":0},{"$f":"'2_Personal'!$H76","v":0},{"$f":"'2_Personal'!$H77","v":0},{"$f":"'2_Personal'!$H78","v":0},{"$f":"'2_Personal'!$H79","v":0},{"$f":"'2_Personal'!$H80","v":0},{"$f":"'2_Personal'!$H81","v":0},{"$f":"SUM(EL24:ET24)","v":0},{"$f":"'2_Personal'!$H82","v":0},{"$f":"'2_Personal'!$H83","v":0},{"$f":"'2_Personal'!$H84","v":0}]
[]
["Hauptdaten5 (MPPB)"]
["Code","Träger","Bezirk","Region","Planungsraum","Größengruppe","PDL-Statistik","Gemeinde\nKennzahl","Gemeinde","Name des Heimes",0,1,2,3,4,5,6,7,"insgesamt",0,1,2,3,4,5,6,7,"insgesamt",0,1,2,3,4,5,6,7,"insgesamt",0,1,2,3,4,5,6,7,"insgesamt",0,1,2,3,4,5,6,7,"insgesamt",0,1,2,3,4,5,6,7,"insgesamt",0,1,2,3,4,5,6,7,"insgesamt",0,1,2,3,4,5,6,7,"insgesamt",0,1,2,3,4,5,6,7,"insgesamt",0,1,2,3,4,5,6,7,"insgesamt","Wochenstunden generell","Wochenstunden FSB A","Berücksichtigung 40tel","Berücksichtigung Bonuswoche FSB A","Bewohneranzahl","davon KZP","Anzahl der offenen PG-Verfahren","MPPB","Pflegepersonal IST tatsächlich (ohne LZKr.) in PE","Pflegepersonal IST anrechenbar in PE","Differenz","Pflegeintensität SOLL 1 : ...","Pflegeintensität IST 1 : ...","Erfüllung MPPB","Mindestbedarf DGKP/PFA","Mindestbedarf FSB+DSB (ohne BB)","Maximalbedarf HH+AB+FSB\"BB\"/DSB\"BB\"","Maximalbedarf Stützpersonal","DGKP/PFA IST anrechenbar","FSB \"A\" anrechenbar","FSB BA, DSB A, DSB BA, DSB F und PA ohne Lzkr.","HH, AB, FSB \"BB\", DSB \"BB\" anrechenbar","Stützpersonal anrechenbar","Anteil DGKP inkl. PFA","Anteil FSB \"A\" und \"BA\", DSB \"A\" und \"BA\", DSB \"F\" und PA","Anteil HH, AB, FSB \"BB\"und DSB \"BB\"","Anteil Stützpersonal","es fehlen insgesamt","es fehlen ... DGKP + PFA","es fehlen FSB+DSB (ohne BB) und PA","Bewohneranzahl","davon KZP","Anzahl der offenen PG-Verfahren","MPPB","Pflegepersonal IST tatsächlich (ohne LZKr.) in PE","Pflegepersonal IST anrechenbar in PE","Differenz","Pflegeintensität SOLL 1 : ...","Pflegeintensität IST 1 : ...","Erfüllung MPPB","Mindestbedarf DGKP/PFA","Mindestbedarf FSB+DSB (ohne BB)","Maximalbedarf HH+AB+FSB\"BB\"/DSB\"BB\"","Maximalbedarf Stützpersonal","DGKP/PFA IST anrechenbar","FSB \"A\" anrechenbar","FSB BA, DSB A, DSB BA, DSB F und PA ohne Lzkr.","HH, AB, FSB \"BB\", DSB \"BB\" anrechenbar","Stützpersonal anrechenbar","Anteil DGKP inkl. PFA","Anteil FSB \"A\" und \"BA\", DSB \"A\" und \"BA\", DSB \"F\" und PA","Anteil HH, AB, FSB \"BB\"und DSB \"BB\"","Anteil Stützpersonal","es fehlen insgesamt","es fehlen ... DGKP + PFA","es fehlen FSB+DSB (ohne BB) und PA","Bewohneranzahl","davon KZP","Anzahl der offenen PG-Verfahren","MPPB","Pflegepersonal IST tatsächlich (ohne LZKr.) in PE","Pflegepersonal IST anrechenbar in PE","Differenz","Pflegeintensität SOLL 1 : ...","Pflegeintensität IST 1 : ...","Erfüllung MPPB","Mindestbedarf DGKP/PFA","Mindestbedarf FSB+DSB (ohne BB)","Maximalbedarf HH+AB+FSB\"BB\"/DSB\"BB\"","Maximalbedarf Stützpersonal","DGKP/PFA IST anrechenbar","FSB \"A\" anrechenbar","FSB BA, DSB A, DSB BA, DSB F und PA ohne Lzkr.","HH, AB, FSB \"BB\", DSB \"BB\" anrechenbar","Stützpersonal anrechenbar","Anteil DGKP inkl. PFA","Anteil FSB \"A\" und \"BA\", DSB \"A\" und \"BA\", DSB \"F\" und PA","Anteil HH, AB, FSB \"BB\"und DSB \"BB\"","Anteil Stützpersonal","es fehlen insgesamt","es fehlen ... DGKP + PFA","es fehlen FSB+DSB (ohne BB) und PA","Bewohneranzahl","davon KZP","Anzahl der offenen PG-Verfahren","MPPB","Pflegepersonal IST tatsächlich (ohne LZKr.) in PE","Pflegepersonal IST anrechenbar in PE","Differenz","Pflegeintensität SOLL 1 : ...","Pflegeintensität IST 1 : ...","Erfüllung MPPB","Mindestbedarf DGKP/PFA","Mindestbedarf FSB+DSB (ohne BB)","Maximalbedarf HH+AB+FSB\"BB\"/DSB\"BB\"","Maximalbedarf Stützpersonal","DGKP/PFA IST anrechenbar","FSB \"A\" anrechenbar","FSB BA, DSB A, DSB BA, DSB F und PA ohne Lzkr.","HH, AB, FSB \"BB\", DSB \"BB\" anrechenbar","Stützpersonal anrechenbar","Anteil DGKP inkl. PFA","Anteil FSB \"A\" und \"BA\", DSB \"A\" und \"BA\", DSB \"F\" und PA","Anteil HH, AB, FSB \"BB\"und DSB \"BB\"","Anteil Stützpersonal","es fehlen insgesamt","es fehlen ... DGKP + PFA","es fehlen FSB+DSB (ohne BB) und PA","Bewohneranzahl","davon KZP","Anzahl der offenen PG-Verfahren","MPPB","Pflegepersonal IST tatsächlich (ohne LZKr.) in PE","Pflegepersonal IST anrechenbar in PE","Differenz","Pflegeintensität SOLL 1 : ...","Pflegeintensität IST 1 : ...","Erfüllung MPPB","Mindestbedarf DGKP/PFA","Mindestbedarf FSB+DSB (ohne BB)","Maximalbedarf HH+AB+FSB\"BB\"/DSB\"BB\"","Maximalbedarf Stützpersonal","DGKP/PFA IST anrechenbar","FSB \"A\" anrechenbar","FSB BA, DSB A, DSB BA, DSB F und PA ohne Lzkr.","HH, AB, FSB \"BB\", DSB \"BB\" anrechenbar","Stützpersonal anrechenbar","Anteil DGKP inkl. PFA","Anteil FSB \"A\" und \"BA\", DSB \"A\" und \"BA\", DSB \"F\" und PA","Anteil HH, AB, FSB \"BB\"und DSB \"BB\"","Anteil Stützpersonal","es fehlen insgesamt","es fehlen ... DGKP + PFA","es fehlen FSB+DSB (ohne BB) und PA","Bewohneranzahl","davon KZP","Anzahl der offenen PG-Verfahren","MPPB","Pflegepersonal IST tatsächlich (ohne LZKr.) in PE","Pflegepersonal IST anrechenbar in PE","Differenz","Pflegeintensität SOLL 1 : ...","Pflegeintensität IST 1 : ...","Erfüllung MPPB","Mindestbedarf DGKP/PFA","Mindestbedarf FSB+DSB (ohne BB)","Maximalbedarf HH+AB+FSB\"BB\"/DSB\"BB\"","Maximalbedarf Stützpersonal","DGKP/PFA IST anrechenbar","FSB \"A\" anrechenbar","FSB BA, DSB A, DSB BA, DSB F und PA ohne Lzkr.","HH, AB, FSB \"BB\", DSB \"BB\" anrechenbar","Stützpersonal anrechenbar","Anteil DGKP inkl. PFA","Anteil FSB \"A\" und \"BA\", DSB \"A\" und \"BA\", DSB \"F\" und PA","Anteil HH, AB, FSB \"BB\"und DSB \"BB\"","Anteil Stützpersonal","es fehlen insgesamt","es fehlen ... DGKP + PFA","es fehlen FSB+DSB (ohne BB) und PA","Bewohneranzahl","davon KZP","Anzahl der offenen PG-Verfahren","MPPB","Pflegepersonal IST tatsächlich (ohne LZKr.) in PE","Pflegepersonal IST anrechenbar in PE","Differenz","Pflegeintensität SOLL 1 : ...","Pflegeintensität IST 1 : ...","Erfüllung MPPB","Mindestbedarf DGKP/PFA","Mindestbedarf FSB+DSB (ohne BB)","Maximalbedarf HH+AB+FSB\"BB\"/DSB\"BB\"","Maximalbedarf Stützpersonal","DGKP/PFA IST anrechenbar","FSB \"A\" anrechenbar","FSB BA, DSB A, DSB BA, DSB F und PA ohne Lzkr.","HH, AB, FSB \"BB\", DSB \"BB\" anrechenbar","Stützpersonal anrechenbar","Anteil DGKP inkl. PFA","Anteil FSB \"A\" und \"BA\", DSB \"A\" und \"BA\", DSB \"F\" und PA","Anteil HH, AB, FSB \"BB\"und DSB \"BB\"","Anteil Stützpersonal","es fehlen insgesamt","es fehlen ... DGKP + PFA","es fehlen FSB+DSB (ohne BB) und PA","Bewohneranzahl","davon KZP","Anzahl der offenen PG-Verfahren","MPPB","Pflegepersonal IST tatsächlich (ohne LZKr.) in PE","Pflegepersonal IST anrechenbar in PE","Differenz","Pflegeintensität SOLL 1 : ...","Pflegeintensität IST 1 : ...","Erfüllung MPPB","Mindestbedarf DGKP/PFA","Mindestbedarf FSB+DSB (ohne BB)","Maximalbedarf HH+AB+FSB\"BB\"/DSB\"BB\"","Maximalbedarf Stützpersonal","DGKP/PFA IST anrechenbar","FSB \"A\" anrechenbar","FSB BA, DSB A, DSB BA, DSB F und PA ohne Lzkr.","HH, AB, FSB \"BB\", DSB \"BB\" anrechenbar","Stützpersonal anrechenbar","Anteil DGKP inkl. PFA","Anteil FSB \"A\" und \"BA\", DSB \"A\" und \"BA\", DSB \"F\" und PA","Anteil HH, AB, FSB \"BB\"und DSB \"BB\"","Anteil Stützpersonal","es fehlen insgesamt","es fehlen ... DGKP + PFA","es fehlen FSB+DSB (ohne BB) und PA","Bewohneranzahl","davon KZP","Anzahl der offenen PG-Verfahren","MPPB","Pflegepersonal IST tatsächlich (ohne LZKr.) in PE","Pflegepersonal IST anrechenbar in PE","Differenz","Pflegeintensität SOLL 1 : ...","Pflegeintensität IST 1 : ...","Erfüllung MPPB","Mindestbedarf DGKP/PFA","Mindestbedarf FSB+DSB (ohne BB)","Maximalbedarf HH+AB+FSB\"BB\"/DSB\"BB\"","Maximalbedarf Stützpersonal","DGKP/PFA IST anrechenbar","FSB \"A\" anrechenbar","FSB BA, DSB A, DSB BA, DSB F und PA ohne Lzkr.","HH, AB, FSB \"BB\", DSB \"BB\" anrechenbar","Stützpersonal anrechenbar","Anteil DGKP inkl. PFA","Anteil FSB \"A\" und \"BA\", DSB \"A\" und \"BA\", DSB \"F\" und PA","Anteil HH, AB, FSB \"BB\"und DSB \"BB\"","Anteil Stützpersonal","es fehlen insgesamt","es fehlen ... DGKP + PFA","es fehlen FSB+DSB (ohne BB) und PA","Bewohneranzahl","davon KZP","Anzahl der offenen PG-Verfahren","MPPB","Pflegepersonal IST tatsächlich (ohne LZKr.) in PE","Pflegepersonal IST anrechenbar in PE","Differenz","Pflegeintensität SOLL 1 : ...","Pflegeintensität IST 1 : ...","Erfüllung MPPB","Mindestbedarf DGKP/PFA","Mindestbedarf FSB+DSB (ohne BB)","Maximalbedarf HH+AB+FSB\"BB\"/DSB\"BB\"","Maximalbedarf Stützpersonal","DGKP/PFA IST anrechenbar","FSB \"A\" anrechenbar","FSB BA, DSB A, DSB BA, DSB F und PA ohne Lzkr.","HH, AB, FSB \"BB\", DSB \"BB\" anrechenbar","Stützpersonal anrechenbar","Anteil DGKP inkl. PFA","Anteil FSB \"A\" und \"BA\", DSB \"A\" und \"BA\", DSB \"F\" und PA","Anteil HH, AB, FSB \"BB\"und DSB \"BB\"","Anteil Stützpersonal","es fehlen insgesamt","es fehlen ... DGKP + PFA","es fehlen FSB+DSB (ohne BB) und PA","Bewohneranzahl","davon KZP","Anzahl der offenen PG-Verfahren","MPPB","Pflegepersonal IST tatsächlich (ohne LZKr.) in PE","Pflegepersonal IST anrechenbar in PE","Differenz","Pflegeintensität SOLL 1 : ...","Pflegeintensität IST 1 : ...","Erfüllung MPPB","Mindestbedarf DGKP/PFA","Mindestbedarf FSB+DSB (ohne BB)","Maximalbedarf HH+AB+FSB\"BB\"/DSB\"BB\"","Maximalbedarf Stützpersonal","DGKP/PFA IST anrechenbar","FSB \"A\" anrechenbar","FSB BA, DSB A, DSB BA, DSB F und PA ohne Lzkr.","HH, AB, FSB \"BB\", DSB \"BB\" anrechenbar","Stützpersonal anrechenbar","Anteil DGKP inkl. PFA","Anteil FSB \"A\" und \"BA\", DSB \"A\" und \"BA\", DSB \"F\" und PA","Anteil HH, AB, FSB \"BB\"und DSB \"BB\"","Anteil Stützpersonal","es fehlen insgesamt","es fehlen ... DGKP + PFA","es fehlen FSB+DSB (ohne BB) und PA","Bewohneranzahl","davon KZP","Anzahl der offenen PG-Verfahren","MPPB","Pflegepersonal IST tatsächlich (ohne LZKr.) in PE","Pflegepersonal IST anrechenbar in PE","Differenz","Pflegeintensität SOLL 1 : ...","Pflegeintensität IST 1 : ...","Erfüllung MPPB","Mindestbedarf DGKP/PFA","Mindestbedarf FSB+DSB (ohne BB)","Maximalbedarf HH+AB+FSB\"BB\"/DSB\"BB\"","Maximalbedarf Stützpersonal","DGKP/PFA IST anrechenbar","FSB \"A\" anrechenbar","FSB BA, DSB A, DSB BA, DSB F und PA ohne Lzkr.","HH, AB, FSB \"BB\", DSB \"BB\" anrechenbar","Stützpersonal anrechenbar","Anteil DGKP inkl. PFA","Anteil FSB \"A\" und \"BA\", DSB \"A\" und \"BA\", DSB \"F\" und PA","Anteil HH, AB, FSB \"BB\"und DSB \"BB\"","Anteil Stützpersonal","es fehlen insgesamt","es fehlen ... DGKP + PFA","es fehlen FSB+DSB (ohne BB) und PA","HB LZP+KZP - monatlicher Durchschnitt 2025","KZP-Gäste - monatlicher Durchschnitt 2025","Anzahl der offenen PG-Verfahren - monatlicher Durchschnitt 2025","MPPB 2025 - monatlicher Durchschnitt","Pflegepersonal IST tatsächlich (ohne LZKr.) in PE - monatlicher Durchschnitt","Pflegepersonal IST anrechenbar in PE - monatlicher Durchschnitt","Differenz","Pflegeintensität SOLL 1 : ...\n- monatlicher Durchschnitt","Pflegeintensität IST 1 : ...\n- monatlicher Durchschnitt","Erfüllung MPPB - monatlicher Durchschnitt 1.Halbjahr","Erfüllung MPPB - monatlicher Durchschnitt 2.Halbjahr","Erfüllung MPPB - monatlicher Durchschnitt 2025","Mindestbedarf DGKP/PFA - monatlicher Durchschnitt","DGKP/PFA IST anrechenbar - monatlicher Durchschnitt","FSB \"A\" anrechenbar - monatlicher Durchschnitt","FSB BA, DSB A, DSB BA, DSB F und PA ohne Lzkr. - monatlicher Durchschnitt","HH, AB, FSB \"BB\", DSB \"BB\" anrechenbar - monatlicher Durchschnitt","Stützpersonal anrechenbar - monatlicher Durchschnitt","Anteil DGKP inkl. PFA - monatlicher Durchschnitt 1. HJ","Anteil DGKP inkl. PFA - monatlicher Durchschnitt 2. HJ","Anteil DGKP inkl. PFA monatlicher Durchschnitt 2025","es fehlen insgesamt - monatlicher Durchschnitt 2025","es fehlen ... DGKP + PFA - monatlicher Durchschnitt 2025","es fehlen FSB+DSB (ohne BB) und PA - monatlicher Durchschnitt 2025"]
[null,null,null,null,null,null,null,null,null,null,null,null,null,null,null,null,null,null,null,null,null,null,null,null,null,null,null,null,null,null,null,null,null,null,null,null,null,null,null,null,null,null,null,null,null,null,null,null,null,null,null,null,null,null,null,null,null,null,null,null,null,null,null,null,null,null,null,null,null,null,null,null,null,null,null,null,null,null,null,null,null,null,null,null,null,null,null,null,null,null,null,null,null,null,null,null,null,null,null,null,null,null,null,null,"2025-01-31",null,null,null,null,null,null,null,null,null,null,null,null,null,null,null,null,null,null,null,null,null,null,null,null,null,"2025-02-28",null,null,null,null,null,null,null,null,null,null,null,null,null,null,null,null,null,null,null,null,null,null,null,null,null,"2025-03-31",null,null,null,null,null,null,null,null,null,null,null,null,null,null,null,null,null,null,null,null,null,null,null,null,null,"2025-04-30",null,null,null,null,null,null,null,null,null,null,null,null,null,null,null,null,null,null,null,null,null,null,null,null,null,"2025-05-31",null,null,null,null,null,null,null,null,null,null,null,null,null,null,null,null,null,null,null,null,null,null,null,null,null,"2025-06-30",null,null,null,null,null,null,null,null,null,null,null,null,null,null,null,null,null,null,null,null,null,null,null,null,null,"2025-07-31",null,null,null,null,null,null,null,null,null,null,null,null,null,null,null,null,null,null,null,null,null,null,null,null,null,"2025-08-31",null,null,null,null,null,null,null,null,null,null,null,null,null,null,null,null,null,null,null,null,null,null,null,null,null,"2025-09-30",null,null,null,null,null,null,null,null,null,null,null,null,null,null,null,null,null,null,null,null,null,null,null,null,null,"2025-10-31",null,null,null,null,null,null,null,null,null,null,null,null,null,null,null,null,null,null,null,null,null,null,null,null,null,"2025-11-30",null,null,null,null,null,null,null,null,null,null,null,null,null,null,null,null,null,null,null,null,null,null,null,null,null,"2025-12-31",null,null,null,null,null,null,null,null,null,null,null,null,null,null,null,null,null,null,null,null,null,null,null,null,null,"Jahres- bzw. Halbjahresdurchschnitt"]
[null,null,null,null,null,null,null,"Standortgemeinde",null,"Name des Heimes","Bewohner nach tatsächl. Pflegegeldstufenverteilung\nLangzeitpflege - mit SH-Bezug",null,null,null,null,null,null,null,null,"Bewohner nach tatsächl. Pflegegeldstufenverteilung\nLangzeitpflege - Selbstzahler",null,null,null,null,null,null,null,null,"Bewohner nach tatsächl. Pflegegeldstufenverteilung\nLangzeitpflege - GESAMT",null,null,null,null,null,null,null,null,"Bewohner nach tatsächl. Pflegegeldstufenverteilung\nKurzzeitpflege - mit SH-Bezug",null,null,null,null,null,null,null,null,"Bewohner nach tatsächl. Pflegegeldstufenverteilung\nKurzzeitpflege - Selbstzahler",null,null,null,null,null,null,null,null,"Bewohner nach tatsächl. Pflegegeldstufenverteilung\nKurzzeitpflege - GESAMT",null,null,null,null,null,null,null,null,"Bewohner nach tatsächlicher PG-Stufenverteilung\nSUMME (SH + SZ) (Langzeit- + Kurzzeitpflege)",null,null,null,null,null,null,null,null,"Bewohner nach erwarteter Pflegegeldstufenverteilung\nLangzeitpflege",null,null,null,null,null,null,null,null,"Bewohner nach erwarteter Pflegegeldstufenverteilung\nKurzzeitpflege",null,null,null,null,null,null,null,null,"Bewohner nach erwarteter PG-Stufenverteilung\nSUMME (SH+SZ) (Langzeit- + Kurzzeitpflege)",null,null,null,null,null,null,null,null," Pflegebedarf im Jahr 2025"]
[{"$f":"VLOOKUP($J$6,'1_allg. Strukturdaten'!$B$74:$N$207,2,FALSE)","v":{"$error":"#N/A"}},{"$f":"VLOOKUP($J$6,'1_allg. Strukturdaten'!$B$74:$N$207,3,FALSE)","v":{"$error":"#N/A"}},{"$f":"VLOOKUP($J$6,'1_allg. Strukturdaten'!$B$74:$N$207,4,FALSE)","v":{"$error":"#N/A"}},{"$f":"VLOOKUP($J$6,'1_allg. Strukturdaten'!$B$74:$N$207,5,FALSE)","v":{"$error":"#N/A"}},{"$f":"VLOOKUP($J$6,'1_allg. Strukturdaten'!$B$74:$N$207,6,FALSE)","v":{"$error":"#N/A"}},{"$f":"VLOOKUP($J$6,'1_allg. Strukturdaten'!$B$74:$N$207,7,FALSE)","v":{"$error":"#N/A"}},{"$f":"VLOOKUP($J$6,'1_allg. Strukturdaten'!$B$74:$N$207,8,FALSE)","v":{"$error":"#N/A"}},{"$f":"VLOOKUP($J$6,'1_allg. Strukturdaten'!$B$74:$N$207,9,FALSE)","v":{"$error":"#N/A"}},{"$f":"VLOOKUP($J$6,'1_allg. Strukturdaten'!$B$74:$N$207,10,FALSE)","v":{"$error":"#N/A"}},{"$f":"'1_allg. Strukturdaten'!D7","v":"Bitte auswählen…"},{"$f":"'1a_Langzeitpflege'!C33","v":0},{"$f":"'1a_Langzeitpflege'!D33","v":0},{"$f":"'1a_Langzeitpflege'!E33","v":0},{"$f":"'1a_Langzeitpflege'!F33","v":0},{"$f":"'1a_Langzeitpflege'!G33","v":0},{"$f":"'1a_Langzeitpflege'!H33","v":0},{"$f":"'1a_Langzeitpflege'!I33","v":0},{"$f":"'1a_Langzeitpflege'!J33","v":0},{"$f":"'1a_Langzeitpflege'!K33","v":0},{"$f":"'1a_Langzeitpflege'!C34","v":0},{"$f":"'1a_Langzeitpflege'!D34","v":0},{"$f":"'1a_Langzeitpflege'!E34","v":0},{"$f":"'1a_Langzeitpflege'!F34","v":0},{"$f":"'1a_Langzeitpflege'!G34","v":0},{"$f":"'1a_Langzeitpflege'!H34","v":0},{"$f":"'1a_Langzeitpflege'!I34","v":0},{"$f":"'1a_Langzeitpflege'!J34","v":0},{"$f":"'1a_Langzeitpflege'!K34","v":0},{"$f":"'1a_Langzeitpflege'!C35","v":0},{"$f":"'1a_Langzeitpflege'!D35","v":0},{"$f":"'1a_Langzeitpflege'!E35","v":0},{"$f":"'1a_Langzeitpflege'!F35","v":0},{"$f":"'1a_Langzeitpflege'!G35","v":0},{"$f":"'1a_Langzeitpflege'!H35","v":0},{"$f":"'1a_Langzeitpflege'!I35","v":0},{"$f":"'1a_Langzeitpflege'!J35","v":0},{"$f":"'1a_Langzeitpflege'!K35","v":0},{"$f":"'1b_Kurzzeitpflege'!C57","v":0},{"$f":"'1b_Kurzzeitpflege'!D57","v":0},{"$f":"'1b_Kurzzeitpflege'!E57","v":0},{"$f":"'1b_Kurzzeitpflege'!F57","v":0},{"$f":"'1b_Kurzzeitpflege'!G57","v":0},{"$f":"'1b_Kurzzeitpflege'!H57","v":0},{"$f":"'1b_Kurzzeitpflege'!I57","v":0},{"$f":"'1b_Kurzzeitpflege'!J57","v":0},{"$f":"'1b_Kurzzeitpflege'!K57","v":0},{"$f":"'1b_Kurzzeitpflege'!C58","v":0},{"$f":"'1b_Kurzzeitpflege'!D58","v":0},{"$f":"'1b_Kurzzeitpflege'!E58","v":0},{"$f":"'1b_Kurzzeitpflege'!F58","v":0},{"$f":"'1b_Kurzzeitpflege'!G58","v":0},{"$f":"'1b_Kurzzeitpflege'!H58","v":0},{"$f":"'1b_Kurzzeitpflege'!I58","v":0},{"$f":"'1b_Kurzzeitpflege'!J58","v":0},{"$f":"'1b_Kurzzeitpflege'!K58","v":0},{"$f":"'1b_Kurzzeitpflege'!C59","v":0},{"$f":"'1b_Kurzzeitpflege'!D59","v":0},{"$f":"'1b_Kurzzeitpflege'!E59","v":0},{"$f":"'1b_Kurzzeitpflege'!F59","v":0},{"$f":"'1b_Kurzzeitpflege'!G59","v":0},{"$f":"'1b_Kurzzeitpflege'!H59","v":0},{"$f":"'1b_Kurzzeitpflege'!I59","v":0},{"$f":"'1b_Kurzzeitpflege'!J59","v":0},{"$f":"'1b_Kurzzeitpflege'!K59","v":0},{"$f":"AC30+BD30","v":0},0,0,0,0,0,0,0,0,{"$f":"'1a_Langzeitpflege'!C36","v":0},{"$f":"'1a_Langzeitpflege'!D36","v":0},{"$f":"'1a_Langzeitpflege'!E36","v":0},{"$f":"'1a_Langzeitpflege'!F36","v":0},{"$f":"'1a_Langzeitpflege'!G36","v":0},{"$f":"'1a_Langzeitpflege'!H36","v":0},{"$f":"'1a_Langzeitpflege'!I36","v":0},{"$f":"'1a_Langzeitpflege'!J36","v":0},{"$f":"'1a_Langzeitpflege'!K36","v":0},{"$f":"'1b_Kurzzeitpflege'!C60","v":0},{"$f":"'1b_Kurzzeitpflege'!D60","v":0},{"$f":"'1b_Kurzzeitpflege'!E60","v":0},{"$f":"'1b_Kurzzeitpflege'!F60","v":0},{"$f":"'1b_Kurzzeitpflege'!G60","v":0},{"$f":"'1b_Kurzzeitpflege'!H60","v":0},{"$f":"'1b_Kurzzeitpflege'!I60","v":0},{"$f":"'1b_Kurzzeitpflege'!J60","v":0},{"$f":"'1b_Kurzzeitpflege'!K60","v":0},{"$f":"BV30+CE30","v":0},{"$f":"BW30+CF30","v":0},{"$f":"BX30+CG30","v":0},{"$f":"BY30+CH30","v":0},0,0,0,0,0,{"$f":"'4_Pflegepersonalbedarf 2025'!D10","v":40},{"$f":"'4_Pflegepersonalbedarf 2025'!D11","v":40},{"$f":"'4_Pflegepersonalbedarf 2025'!H10","v":"Nein"},{"$f":"'4_Pflegepersonalbedarf 2025'!H11","v":"Nein"},{"$f":"'4_Pflegepersonalbedarf 2025'!E138","v":0},{"$f":"'4_Pflegepersonalbedarf 2025'!E139","v":0},{"$f":"'4_Pflegepersonalbedarf 2025'!E25","v":0},{"$f":"'4_Pflegepersonalbedarf 2025'!E23","v":0},{"$f":"'4_Pflegepersonalbedarf 2025'!E128","v":0},{"$f":"'4_Pflegepersonalbedarf 2025'!E129","v":0},{"$f":"DE30-DF30","v":0},{"$f":"DA30/DD30","v":{"$error":"#DIV/0!"}},{"$f":"DA30/DF30","v":{"$error":"#DIV/0!"}},{"$f":"'4_Pflegepersonalbedarf 2025'!E24","v":{"$error":"#DIV/0!"}},{"$f":"'4_Pflegepersonalbedarf 2025'!$E142","v":0},{"$f":"'4_Pflegepersonalbedarf 2025'!$E143","v":0},{"$f":"'4_Pflegepersonalbedarf 2025'!$E144","v":0},{"$f":"'4_Pflegepersonalbedarf 2025'!$E145","v":0},{"$f":"'4_Pflegepersonalbedarf 2025'!E130","v":0},{"$f":"'4_Pflegepersonalbedarf 2025'!$E131","v":0},{"$f":"SUM('4_Pflegepersonalbedarf 2025'!E119:E123)","v":0},{"$f":"'4_Pflegepersonalbedarf 2025'!$E132","v":0},{"$f":"'4_Pflegepersonalbedarf 2025'!$E133","v":0},{"$f":"'4_Pflegepersonalbedarf 2025'!E147/100","v":0},{"$f":"'4_Pflegepersonalbedarf 2025'!$E148/100","v":0},{"$f":"'4_Pflegepersonalbedarf 2025'!$E149/100","v":0},{"$f":"'4_Pflegepersonalbedarf 2025'!$E150/100","v":0},{"$f":"'4_Pflegepersonalbedarf 2025'!E151","v":0},{"$f":"'4_Pflegepersonalbedarf 2025'!E153","v":0},{"$f":"'4_Pflegepersonalbedarf 2025'!E154","v":0},{"$f":"'4_Pflegepersonalbedarf 2025'!G138","v":0},{"$f":"'4_Pflegepersonalbedarf 2025'!G139","v":0},{"$f":"'4_Pflegepersonalbedarf 2025'!G25","v":0},{"$f":"'4_Pflegepersonalbedarf 2025'!G23","v":0},{"$f":"'4_Pflegepersonalbedarf 2025'!G128","v":0},{"$f":"'4_Pflegepersonalbedarf 2025'!G129","v":0},{"$f":"EE30-EF30","v":0},{"$f":"EA30/ED30","v":{"$error":"#DIV/0!"}},{"$f":"EA30/EF30","v":{"$error":"#DIV/0!"}},{"$f":"'4_Pflegepersonalbedarf 2025'!G24","v":{"$error":"#DIV/0!"}},{"$f":"'4_Pflegepersonalbedarf 2025'!$G142","v":0},{"$f":"'4_Pflegepersonalbedarf 2025'!$G143","v":0},{"$f":"'4_Pflegepersonalbedarf 2025'!$G144","v":0},{"$f":"'4_Pflegepersonalbedarf 2025'!$G145","v":0},{"$f":"'4_Pflegepersonalbedarf 2025'!$G130","v":0},{"$f":"'4_Pflegepersonalbedarf 2025'!$G131","v":0},{"$f":"SUM('4_Pflegepersonalbedarf 2025'!G119:G123)","v":0},{"$f":"'4_Pflegepersonalbedarf 2025'!$G132","v":0},{"$f":"'4_Pflegepersonalbedarf 2025'!$G133","v":0},{"$f":"'4_Pflegepersonalbedarf 2025'!$G147/100","v":0},{"$f":"'4_Pflegepersonalbedarf 2025'!$G148/100","v":0},{"$f":"'4_Pflegepersonalbedarf 2025'!$G149/100","v":0},{"$f":"'4_Pflegepersonalbedarf 2025'!$G150/100","v":0},{"$f":"'4_Pflegepersonalbedarf 2025'!G151","v":0},{"$f":"'4_Pflegepersonalbedarf 2025'!G153","v":0},{"$f":"'4_Pflegepersonalbedarf 2025'!G154","v":0},{"$f":"'4_Pflegepersonalbedarf 2025'!I138","v":0},{"$f":"'4_Pflegepersonalbedarf 2025'!I139","v":0},{"$f":"'4_Pflegepersonalbedarf 2025'!I25","v":0},{"$f":"'4_Pflegepersonalbedarf 2025'!I23","v":0},{"$f":"'4_Pflegepersonalbedarf 2025'!I128","v":0},{"$f":"'4_Pflegepersonalbedarf 2025'!I129","v":0},{"$f":"FE30-FF30","v":0},{"$f":"FA30/FD30","v":{"$error":"#DIV/0!"}},{"$f":"FA30/FF30","v":{"$error":"#DIV/0!"}},{"$f":"'4_Pflegepersonalbedarf 2025'!I24","v":{"$error":"#DIV/0!"}},{"$f":"'4_Pflegepersonalbedarf 2025'!$I142","v":0},{"$f":"'4_Pflegepersonalbedarf 2025'!$I143","v":0},{"$f":"'4_Pflegepersonalbedarf 2025'!$I144","v":0},{"$f":"'4_Pflegepersonalbedarf 2025'!$I145","v":0},{"$f":"'4_Pflegepersonalbedarf 2025'!$I130","v":0},{"$f":"'4_Pflegepersonalbedarf 2025'!I131","v":0},{"$f":"SUM('4_Pflegepersonalbedarf 2025'!I119:I123)","v":0},{"$f":"'4_Pflegepersonalbedarf 2025'!I132","v":0},{"$f":"'4_Pflegepersonalbedarf 2025'!I133","v":0},{"$f":"'4_Pflegepersonalbedarf 2025'!$I147/100","v":0},{"$f":"'4_Pflegepersonalbedarf 2025'!$I148/100","v":0},{"$f":"'4_Pflegepersonalbedarf 2025'!$I149/100","v":0},{"$f":"'4_Pflegepersonalbedarf 2025'!$I150/100","v":0},{"$f":"'4_Pflegepersonalbedarf 2025'!$I151","v":0},{"$f":"'4_Pflegepersonalbedarf 2025'!$I153","v":0},{"$f":"'4_Pflegepersonalbedarf 2025'!$I154","v":0},{"$f":"'4_Pflegepersonalbedarf 2025'!K138","v":0},{"$f":"'4_Pflegepersonalbedarf 2025'!K139","v":0},{"$f":"'4_Pflegepersonalbedarf 2025'!K25","v":0},{"$f":"'4_Pflegepersonalbedarf 2025'!K23","v":0},{"$f":"'4_Pflegepersonalbedarf 2025'!K128","v":0},{"$f":"'4_Pflegepersonalbedarf 2025'!K129","v":0},{"$f":"GE30-GF30","v":0},{"$f":"GA30/GD30","v":{"$error":"#DIV/0!"}},{"$f":"GA30/GF30","v":{"$error":"#DIV/0!"}},{"$f":"'4_Pflegepersonalbedarf 2025'!K24","v":{"$error":"#DIV/0!"}},{"$f":"'4_Pflegepersonalbedarf 2025'!$K142","v":0},{"$f":"'4_Pflegepersonalbedarf 2025'!$K143","v":0},{"$f":"'4_Pflegepersonalbedarf 2025'!$K144","v":0},{"$f":"'4_Pflegepersonalbedarf 2025'!$K145","v":0},{"$f":"'4_Pflegepersonalbedarf 2025'!$K130","v":0},{"$f":"'4_Pflegepersonalbedarf 2025'!$K131","v":0},{"$f":"SUM('4_Pflegepersonalbedarf 2025'!K119:K123)","v":0},{"$f":"'4_Pflegepersonalbedarf 2025'!$K132","v":0},{"$f":"'4_Pflegepersonalbedarf 2025'!$K133","v":0},{"$f":"'4_Pflegepersonalbedarf 2025'!$K147/100","v":0},{"$f":"'4_Pflegepersonalbedarf 2025'!$K148/100","v":0},{"$f":"'4_Pflegepersonalbedarf 2025'!$K149/100","v":0},{"$f":"'4_Pflegepersonalbedarf 2025'!$K150/100","v":0},{"$f":"'4_Pflegepersonalbedarf 2025'!$K151","v":0},{"$f":"'4_Pflegepersonalbedarf 2025'!$K153","v":0},{"$f":"'4_Pflegepersonalbedarf 2025'!$K154","v":0},{"$f":"'4_Pflegepersonalbedarf 2025'!M138","v":0},{"$f":"'4_Pflegepersonalbedarf 2025'!M139","v":0},{"$f":"'4_Pflegepersonalbedarf 2025'!M25","v":0},{"$f":"'4_Pflegepersonalbedarf 2025'!M23","v":0},{"$f":"'4_Pflegepersonalbedarf 2025'!M128","v":0},{"$f":"'4_Pflegepersonalbedarf 2025'!M129","v":0},{"$f":"HE30-HF30","v":0},{"$f":"HA30/HD30","v":{"$error":"#DIV/0!"}},{"$f":"HA30/HF30","v":{"$error":"#DIV/0!"}},{"$f":"'4_Pflegepersonalbedarf 2025'!M24","v":{"$error":"#DIV/0!"}},{"$f":"'4_Pflegepersonalbedarf 2025'!$M142","v":0},{"$f":"'4_Pflegepersonalbedarf 2025'!$M143","v":0},{"$f":"'4_Pflegepersonalbedarf 2025'!$M144","v":0},{"$f":"'4_Pflegepersonalbedarf 2025'!$M145","v":0},{"$f":"'4_Pflegepersonalbedarf 2025'!M130","v":0},{"$f":"'4_Pflegepersonalbedarf 2025'!$M131","v":0},{"$f":"SUM('4_Pflegepersonalbedarf 2025'!M119:M123)","v":0},{"$f":"'4_Pflegepersonalbedarf 2025'!$M132","v":0},{"$f":"'4_Pflegepersonalbedarf 2025'!$M133","v":0},{"$f":"'4_Pflegepersonalbedarf 2025'!$M147/100","v":0},{"$f":"'4_Pflegepersonalbedarf 2025'!$M148/100","v":0},{"$f":"'4_Pflegepersonalbedarf 2025'!$M149/100","v":0},{"$f":"'4_Pflegepersonalbedarf 2025'!$M150/100","v":0},{"$f":"'4_Pflegepersonalbedarf 2025'!$M151","v":0},{"$f":"'4_Pflegepersonalbedarf 2025'!$M153","v":0},{"$f":"'4_Pflegepersonalbedarf 2025'!$M154","v":0},{"$f":"'4_Pflegepersonalbedarf 2025'!O138","v":0},{"$f":"'4_Pflegepersonalbedarf 2025'!O139","v":0},{"$f":"'4_Pflegepersonalbedarf 2025'!O25","v":0},{"$f":"'4_Pflegepersonalbedarf 2025'!O23","v":0},{"$f":"'4_Pflegepersonalbedarf 2025'!O128","v":0},{"$f":"'4_Pflegepersonalbedarf 2025'!O129","v":0},{"$f":"IE30-IF30","v":0},{"$f":"IA30/ID30","v":{"$error":"#DIV/0!"}},{"$f":"IA30/IF30","v":{"$error":"#DIV/0!"}},{"$f":"'4_Pflegepersonalbedarf 2025'!O24","v":{"$error":"#DIV/0!"}},{"$f":"'4_Pflegepersonalbedarf 2025'!$O142","v":0},{"$f":"'4_Pflegepersonalbedarf 2025'!$O143","v":0},{"$f":"'4_Pflegepersonalbedarf 2025'!$O144","v":0},{"$f":"'4_Pflegepersonalbedarf 2025'!$O145","v":0},{"$f":"'4_Pflegepersonalbedarf 2025'!$O130","v":0},{"$f":"'4_Pflegepersonalbedarf 2025'!$O131","v":0},{"$f":"SUM('4_Pflegepersonalbedarf 2025'!O119:O123)","v":0},{"$f":"'4_Pflegepersonalbedarf 2025'!$O132","v":0},{"$f":"'4_Pflegepersonalbedarf 2025'!$O133","v":0},{"$f":"'4_Pflegepersonalbedarf 2025'!O147/100","v":0},{"$f":"'4_Pflegepersonalbedarf 2025'!$O148/100","v":0},{"$f":"'4_Pflegepersonalbedarf 2025'!$O149/100","v":0},{"$f":"'4_Pflegepersonalbedarf 2025'!$O150/100","v":0},{"$f":"'4_Pflegepersonalbedarf 2025'!$O151","v":0},{"$f":"'4_Pflegepersonalbedarf 2025'!$O153","v":0},{"$f":"'4_Pflegepersonalbedarf 2025'!$O154","v":0},{"$f":"'4_Pflegepersonalbedarf 2025'!E284","v":0},{"$f":"'4_Pflegepersonalbedarf 2025'!E285","v":0},{"$f":"'4_Pflegepersonalbedarf 2025'!E171","v":0},{"$f":"'4_Pflegepersonalbedarf 2025'!E169","v":0},{"$f":"'4_Pflegepersonalbedarf 2025'!E274","v":0},{"$f":"'4_Pflegepersonalbedarf 2025'!E275","v":0},{"$f":"JE30-JF30","v":0},{"$f":"JA30/JD30","v":{"$error":"#DIV/0!"}},{"$f":"JA30/JF30","v":{"$error":"#DIV/0!"}},{"$f":"'4_Pflegepersonalbedarf 2025'!E170","v":{"$error":"#DIV/0!"}},{"$f":"'4_Pflegepersonalbedarf 2025'!$E288","v":0},{"$f":"'4_Pflegepersonalbedarf 2025'!$E289","v":0},{"$f":"'4_Pflegepersonalbedarf 2025'!$E290","v":0},{"$f":"'4_Pflegepersonalbedarf 2025'!$E291","v":0},{"$f":"'4_Pflegepersonalbedarf 2025'!$E276","v":0},{"$f":"'4_Pflegepersonalbedarf 2025'!$E277","v":0},{"$f":"SUM('4_Pflegepersonalbedarf 2025'!D265:E269)","v":0},{"$f":"'4_Pflegepersonalbedarf 2025'!$E278","v":0},{"$f":"'4_Pflegepersonalbedarf 2025'!$E279","v":0},{"$f":"'4_Pflegepersonalbedarf 2025'!E293/100","v":0},{"$f":"'4_Pflegepersonalbedarf 2025'!$E294/100","v":0},{"$f":"'4_Pflegepersonalbedarf 2025'!$E295/100","v":0},{"$f":"'4_Pflegepersonalbedarf 2025'!$E296/100","v":0},{"$f":"'4_Pflegepersonalbedarf 2025'!$E297","v":0},{"$f":"'4_Pflegepersonalbedarf 2025'!$E299","v":0},{"$f":"'4_Pflegepersonalbedarf 2025'!$E300","v":0},{"$f":"'4_Pflegepersonalbedarf 2025'!G284","v":0},{"$f":"'4_Pflegepersonalbedarf 2025'!G285","v":0},{"$f":"'4_Pflegepersonalbedarf 2025'!G171","v":0},{"$f":"'4_Pflegepersonalbedarf 2025'!G169","v":0},{"$f":"'4_Pflegepersonalbedarf 2025'!G274","v":0},{"$f":"'4_Pflegepersonalbedarf 2025'!G275","v":0},{"$f":"KE30-KF30","v":0},{"$f":"KA30/KD30","v":{"$error":"#DIV/0!"}},{"$f":"KA30/KF30","v":{"$error":"#DIV/0!"}},{"$f":"'4_Pflegepersonalbedarf 2025'!G170","v":{"$error":"#DIV/0!"}},{"$f":"'4_Pflegepersonalbedarf 2025'!$G288","v":0},{"$f":"'4_Pflegepersonalbedarf 2025'!$G289","v":0},{"$f":"'4_Pflegepersonalbedarf 2025'!$G290","v":0},{"$f":"'4_Pflegepersonalbedarf 2025'!$G291","v":0},{"$f":"'4_Pflegepersonalbedarf 2025'!$G276","v":0},{"$f":"'4_Pflegepersonalbedarf 2025'!$G277","v":0},{"$f":"SUM('4_Pflegepersonalbedarf 2025'!G265:G269)","v":0},{"$f":"'4_Pflegepersonalbedarf 2025'!$G278","v":0},{"$f":"'4_Pflegepersonalbedarf 2025'!$G279","v":0},{"$f":"'4_Pflegepersonalbedarf 2025'!G293/100","v":0},{"$f":"'4_Pflegepersonalbedarf 2025'!$G294/100","v":0},{"$f":"'4_Pflegepersonalbedarf 2025'!$G295/100","v":0},{"$f":"'4_Pflegepersonalbedarf 2025'!$G296/100","v":0},{"$f":"'4_Pflegepersonalbedarf 2025'!$G299","v":0},{"$f":"'4_Pflegepersonalbedarf 2025'!$G300","v":0},{"$f":"'4_Pflegepersonalbedarf 2025'!$G297","v":0},{"$f":"'4_Pflegepersonalbedarf 2025'!I284","v":0},{"$f":"'4_Pflegepersonalbedarf 2025'!I285","v":0},{"$f":"'4_Pflegepersonalbedarf 2025'!I171","v":0},{"$f":"'4_Pflegepersonalbedarf 2025'!I169","v":0},{"$f":"'4_Pflegepersonalbedarf 2025'!I274","v":0},{"$f":"'4_Pflegepersonalbedarf 2025'!I275","v":0},{"$f":"LE30-LF30","v":0},{"$f":"LA30/LD30","v":{"$error":"#DIV/0!"}},{"$f":"LA30/LF30","v":{"$error":"#DIV/0!"}},{"$f":"'4_Pflegepersonalbedarf 2025'!I170","v":{"$error":"#DIV/0!"}},{"$f":"'4_Pflegepersonalbedarf 2025'!$I288","v":0},{"$f":"'4_Pflegepersonalbedarf 2025'!$I289","v":0},{"$f":"'4_Pflegepersonalbedarf 2025'!$I290","v":0},{"$f":"'4_Pflegepersonalbedarf 2025'!$I291","v":0},{"$f":"'4_Pflegepersonalbedarf 2025'!$I276","v":0},{"$f":"'4_Pflegepersonalbedarf 2025'!$I277","v":0},{"$f":"SUM('4_Pflegepersonalbedarf 2025'!I265:I269)","v":0},{"$f":"'4_Pflegepersonalbedarf 2025'!$I278","v":0},{"$f":"'4_Pflegepersonalbedarf 2025'!$I279","v":0},{"$f":"'4_Pflegepersonalbedarf 2025'!I293/100","v":0},{"$f":"'4_Pflegepersonalbedarf 2025'!$I294/100","v":0},{"$f":"'4_Pflegepersonalbedarf 2025'!$I295/100","v":0},{"$f":"'4_Pflegepersonalbedarf 2025'!$I296/100","v":0},{"$f":"'4_Pflegepersonalbedarf 2025'!$I297","v":0},{"$f":"'4_Pflegepersonalbedarf 2025'!$I299","v":0},{"$f":"'4_Pflegepersonalbedarf 2025'!$I300","v":0},{"$f":"'4_Pflegepersonalbedarf 2025'!K284","v":0},{"$f":"'4_Pflegepersonalbedarf 2025'!K285","v":0},{"$f":"'4_Pflegepersonalbedarf 2025'!K171","v":0},{"$f":"'4_Pflegepersonalbedarf 2025'!K169","v":0},{"$f":"'4_Pflegepersonalbedarf 2025'!K274","v":0},{"$f":"'4_Pflegepersonalbedarf 2025'!K275","v":0},{"$f":"ME30-MF30","v":0},{"$f":"MA30/MD30","v":{"$error":"#DIV/0!"}},{"$f":"MA30/MF30","v":{"$error":"#DIV/0!"}},{"$f":"'4_Pflegepersonalbedarf 2025'!K170","v":{"$error":"#DIV/0!"}},{"$f":"'4_Pflegepersonalbedarf 2025'!$K288","v":0},{"$f":"'4_Pflegepersonalbedarf 2025'!$K289","v":0},{"$f":"'4_Pflegepersonalbedarf 2025'!$K290","v":0},{"$f":"'4_Pflegepersonalbedarf 2025'!$K291","v":0},{"$f":"'4_Pflegepersonalbedarf 2025'!$K276","v":0},{"$f":"'4_Pflegepersonalbedarf 2025'!$K277","v":0},{"$f":"SUM('4_Pflegepersonalbedarf 2025'!K265:K269)","v":0},{"$f":"'4_Pflegepersonalbedarf 2025'!$K278","v":0},{"$f":"'4_Pflegepersonalbedarf 2025'!$K279","v":0},{"$f":"'4_Pflegepersonalbedarf 2025'!K293/100","v":0},{"$f":"'4_Pflegepersonalbedarf 2025'!$K294/100","v":0},{"$f":"'4_Pflegepersonalbedarf 2025'!$K295/100","v":0},{"$f":"'4_Pflegepersonalbedarf 2025'!$K296/100","v":0},{"$f":"'4_Pflegepersonalbedarf 2025'!$K297","v":0},{"$f":"'4_Pflegepersonalbedarf 2025'!$K299","v":0},{"$f":"'4_Pflegepersonalbedarf 2025'!$K300","v":0},{"$f":"'4_Pflegepersonalbedarf 2025'!M284","v":0},{"$f":"'4_Pflegepersonalbedarf 2025'!M285","v":0},{"$f":"'4_Pflegepersonalbedarf 2025'!M171","v":0},{"$f":"'4_Pflegepersonalbedarf 2025'!M169","v":0},{"$f":"'4_Pflegepersonalbedarf 2025'!M274","v":0},{"$f":"'4_Pflegepersonalbedarf 2025'!M275","v":0},{"$f":"NE30-NF30","v":0},{"$f":"NA30/ND30","v":{"$error":"#DIV/0!"}},{"$f":"NA30/NF30","v":{"$error":"#DIV/0!"}},{"$f":"'4_Pflegepersonalbedarf 2025'!M170","v":{"$error":"#DIV/0!"}},{"$f":"'4_Pflegepersonalbedarf 2025'!$M288","v":0},{"$f":"'4_Pflegepersonalbedarf 2025'!$M289","v":0},{"$f":"'4_Pflegepersonalbedarf 2025'!$M290","v":0},{"$f":"'4_Pflegepersonalbedarf 2025'!$M291","v":0},{"$f":"'4_Pflegepersonalbedarf 2025'!$M276","v":0},{"$f":"'4_Pflegepersonalbedarf 2025'!$M277","v":0},{"$f":"SUM('4_Pflegepersonalbedarf 2025'!M265:M269)","v":0},{"$f":"'4_Pflegepersonalbedarf 2025'!$M278","v":0},{"$f":"'4_Pflegepersonalbedarf 2025'!$M279","v":0},{"$f":"'4_Pflegepersonalbedarf 2025'!M293/100","v":0},{"$f":"'4_Pflegepersonalbedarf 2025'!$M294/100","v":0},{"$f":"'4_Pflegepersonalbedarf 2025'!$M295/100","v":0},{"$f":"'4_Pflegepersonalbedarf 2025'!$M296/100","v":0},{"$f":"'4_Pflegepersonalbedarf 2025'!$M297","v":0},{"$f":"'4_Pflegepersonalbedarf 2025'!$M299","v":0},{"$f":"'4_Pflegepersonalbedarf 2025'!$M300","v":0},{"$f":"'4_Pflegepersonalbedarf 2025'!O284","v":0},{"$f":"'4_Pflegepersonalbedarf 2025'!O285","v":0},{"$f":"'4_Pflegepersonalbedarf 2025'!O171","v":0},{"$f":"'4_Pflegepersonalbedarf 2025'!O169","v":0},{"$f":"'4_Pflegepersonalbedarf 2025'!O274","v":0},{"$f":"'4_Pflegepersonalbedarf 2025'!O275","v":0},{"$f":"OE30-OF30","v":0},{"$f":"OA30/OD30","v":{"$error":"#DIV/0!"}},{"$f":"OA30/OF30","v":{"$error":"#DIV/0!"}},{"$f":"'4_Pflegepersonalbedarf 2025'!O170","v":{"$error":"#DIV/0!"}},{"$f":"'4_Pflegepersonalbedarf 2025'!$O288","v":0},{"$f":"'4_Pflegepersonalbedarf 2025'!$O289","v":0},{"$f":"'4_Pflegepersonalbedarf 2025'!$O290","v":0},{"$f":"'4_Pflegepersonalbedarf 2025'!$O291","v":0},{"$f":"'4_Pflegepersonalbedarf 2025'!$O276","v":0},{"$f":"'4_Pflegepersonalbedarf 2025'!$O277","v":0},{"$f":"SUM('4_Pflegepersonalbedarf 2025'!O265:O269)","v":0},{"$f":"'4_Pflegepersonalbedarf 2025'!$O278","v":0},{"$f":"'4_Pflegepersonalbedarf 2025'!$O279","v":0},{"$f":"'4_Pflegepersonalbedarf 2025'!O293/100","v":0},{"$f":"'4_Pflegepersonalbedarf 2025'!$O294/100","v":0},{"$f":"'4_Pflegepersonalbedarf 2025'!$O295/100","v":0},{"$f":"'4_Pflegepersonalbedarf 2025'!$O296/100","v":0},{"$f":"'4_Pflegepersonalbedarf 2025'!$O297","v":0},{"$f":"'4_Pflegepersonalbedarf 2025'!$O299","v":0},{"$f":"'4_Pflegepersonalbedarf 2025'!$O300","v":0},{"$f":"(DA30+EA30+FA30+GA30+HA30+IA30+JA30+KA30+LA30+MA30+NA30+OA30)/12","v":0},0,0,0,0,0,{"$f":"PE30-PF30","v":0},{"$f":"PA30/PD30","v":{"$error":"#DIV/0!"}},{"$f":"PA30/PF30","v":{"$error":"#DIV/0!"}},{"$f":"(DF30+EF30+FF30+GF30+HF30+IF30)/(DD30+ED30+FD30+GD30+HD30+ID30)","v":{"$error":"#DIV/0!"}},{"$f":"(JF30+KF30+LF30+MF30+NF30+OF30)/(JD30+KD30+LD30+MD30+ND30+OD30)","v":{"$error":"#DIV/0!"}},{"$f":"(DF30+EF30+FF30+GF30+HF30+IF30+JF30+KF30+LF30+MF30+NF30+OF30)/(DD30+ED30+FD30+GD30+HD30+ID30+JD30+KD30+LD30+MD30+ND30+OD30)","v":{"$error":"#DIV/0!"}},{"$f":"(DK30+EK30+FK30+GK30+HK30+IK30+JK30+KK30+LK30+MK30+NK30+OK30)/12","v":0},{"$f":"(DO30+EO30+FO30+GO30+HO30+IO30+JO30+KO30+LO30+MO30+NO30+OO30)/12","v":0},{"$f":"(DP30+EP30+FP30+GP30+HP30+IP30+JP30+KP30+LP30+MP30+NP30+OP30)/12","v":0},{"$f":"(DQ30+EQ30+FQ30+GQ30+HQ30+IQ30+JQ30+KQ30+LQ30+MQ30+NQ30+OQ30)/12","v":0},{"$f":"(DR30+ER30+FR30+GR30+HR30+IR30+JR30+KR30+LR30+MR30+NR30+OR30)/12","v":0},{"$f":"(DS30+ES30+FS30+GS30+HS30+IS30+JS30+KS30+LS30+MS30+NS30+OS30)/12","v":0},{"$f":"(DT30+ET30+FT30+GT30+HT30+IT30)/6","v":0},{"$f":"(JT30+KT30+LT30+MT30+NT30+OT30)/6","v":0},{"$f":"(DT30+ET30+FT30+GT30+HT30+IT30+JT30+KT30+LT30+MT30+NT30+OT30)/12","v":0},{"$f":"(DX30+EX30+FX30+GX30+HX30+IX30+JX30+KX30+LX30+MX30+NX30+OX30)/12","v":0},{"$f":"(DY30+EY30+FY30+GY30+HY30+IY30+JY30+KY30+LY30+MY30+NY30+OY30)/12","v":0},{"$f":"(DZ30+EZ30+FZ30+GZ30+HZ30+IZ30+JZ30+KZ30+LZ30+MZ30+NZ30+OZ30)/12","v":0}]
[]
["Hauptdaten6 (Kennzahlen)"]
["Code","Träger","Bezirk","Region","Planungsraum","Größengruppe","PDL-Statistik","Gemeinde\nKennzahl","Gemeinde","Name des Heimes","NP in 1-P-WE / Gesamt-NP","Durchschnittsalter","Neueintritte aus KZP in % der Gesamt-Neueintritte","PG 0-2","PG 3","PG 4+5","PG 6+7","jünger als 75","aus Standortgemeinde","Selbstzahler:innen","Neueintritte 2025 / NP 31.12.2025","Verweildauer < 4 Monate","im Heim Verstorbene / Gesamt-Verstorbene","Leitung des Betreuungs- und Pflegedienstes","DGKP","Pflegefachassistent:innen","FSB\"A\" und FSB \"BA\"","DSB \"A\" und DSB \"BA\"","DSB \"F\"","Pflegeassistent:innen","HH und AB","FSB \"BB\" und DSB \"BB\"","Stützpersonal","Leasingpersonal","Personen Nachtdienst in % an Gesamt-Plätzen","LBPD+DGKP+PFA","FSB \"A\"/\"BA\", DSB \"A\"/\"BA\", DSB \"F\" und PA","HH, AB, FSB \"BB\"und DSB \"BB\"","Stützpersonal","nur DGKP","Erfüllung 31.12.2025","es fehlen ..... PE","es fehlen .... PE DGKP/PFA auf 20 %","es fehlen .... PE DGKP/PFA auf 25 %","es fehlen .... PE FSB/DSB/PA","Pflegeintensität IST\nVerhältnis Pflegepersonal IST zu HB","Pflegeintensität SOLL\nVerhältnis Pflegepersonal SOLL zu HB","Hilfskräfte","Heimleitung","Verwaltung","Küche","Reinigung","Wäscherei","Haustechnik","Heimleitung","Verwaltung","Küche","Reinigung","Wäscherei","Haustechnik","männlich","weiblich","vom Vorj. übertrag. Über-/Mehrstd.","im Vorj. ausbezahlte Über-/Mehrstd.","in ein Heim des selben Trägers","in ein Heim eines anderen Trägers","zu den Mobilen Diensten","in eine andere Einrichtung des Gesundheitsbereiches","in eine Einrichtung für Menschen mit Beeinträchtigungen","zu Sonstigem","weiterer Berufsweg unbekannt bzw. sonstige Gründe","Dekubitus Grad III","Dekubitus Grad IV","Summe Dekubitus III und IV","davon im Heim entstanden","im KH entstanden","woanders entstanden","gestürzte Bewohner:innen","durchschn. Sturzanzahl pro gestürztem HB","davon Stürze mit ambulanter oder stat. Behandlung in einem KH","in der Freiheit beschränkt","in der Freiheit eingeschränkt","Qualitätsstandard (SOP) Ernährung inkl. Exsikkose","Risikoeinschätzung Ernährung","HB mit Dauerkatheter zum Stichtag","Qualitätsstandard (SOP) Schmerzen","Schmerzeinschätzung wird durchgeführt","HB mit Suchtmittel-Dauermedikation","davon: HB, die Suchtmittel subcutan vom Nachtdienst erhalten","HB mit med. diagn. Demenz","Wird der überwiegende Teil der Medikamente verblistert?"]
[null,null,null,null,null,null,null,null,null,null,null,null,null,null,null,null,null,null,null,null,null,null,null,"Anteile an Gesamt-PE",null,null,null,null,null,null,null,null,null,null,null,"Anteile am MPPB",null,null,null,null,null,null,null,null,null,"1 : ","1 : ",null,"in % an Gesamt-Funktionspersonal (PE)",null,null,null,null,null,"in % an Normplätzen",null,null,null,null,null,null,null,null,null,null,null,null,null,null,null,null,"Dekubitus",null,null,null,null,null,"Stürze",null,null,"Freiheitsbeschr.",null,"Ernährung",null,"Ausscheidung","Schmerzen",null,null,null,"Verh.auff.","Medikamente"]
[null,null,null,null,null,null,null,"Standortgemeinde",null,"Name des Heimes","NP","Bewohner:innen",null,null,null,null,null,null,null,null,null,null,null,"Pflegepersonal",null,null,null,null,null,null,null,null,null,null,null,null,null,null,null,null,"MPPB nach Blatt 4_",null,null,null,null,null,null," ","Funktionspersonal",null,null,null,null,null,null,null,null,null,null,null,"Beschäftigte",null,"Überstunden, Mehrstunden",null,"Fluktuation Pflegepersonal (Austritte)",null,null,null,null,null,null,"Betreuung und Pflege"]
[{"$f":"VLOOKUP($J$6,'1_allg. Strukturdaten'!$B$74:$N$207,2,FALSE)","v":{"$error":"#N/A"}},{"$f":"VLOOKUP($J$6,'1_allg. Strukturdaten'!$B$74:$N$207,3,FALSE)","v":{"$error":"#N/A"}},{"$f":"VLOOKUP($J$6,'1_allg. Strukturdaten'!$B$74:$N$207,4,FALSE)","v":{"$error":"#N/A"}},{"$f":"VLOOKUP($J$6,'1_allg. Strukturdaten'!$B$74:$N$207,5,FALSE)","v":{"$error":"#N/A"}},{"$f":"VLOOKUP($J$6,'1_allg. Strukturdaten'!$B$74:$N$207,6,FALSE)","v":{"$error":"#N/A"}},{"$f":"VLOOKUP($J$6,'1_allg. Strukturdaten'!$B$74:$N$207,7,FALSE)","v":{"$error":"#N/A"}},{"$f":"VLOOKUP($J$6,'1_allg. Strukturdaten'!$B$74:$N$207,8,FALSE)","v":{"$error":"#N/A"}},{"$f":"VLOOKUP($J$6,'1_allg. Strukturdaten'!$B$74:$N$207,9,FALSE)","v":{"$error":"#N/A"}},{"$f":"VLOOKUP($J$6,'1_allg. Strukturdaten'!$B$74:$N$207,10,FALSE)","v":{"$error":"#N/A"}},{"$f":"'1_allg. Strukturdaten'!D7","v":"Bitte auswählen…"},{"$f":"'6_Kennzahlen'!D13","v":{"$error":"#DIV/0!"}},{"$f":"'6_Kennzahlen'!C17","v":0},{"$f":"'6_Kennzahlen'!D19","v":"0,00%"},{"$f":"'6_Kennzahlen'!C22","v":{"$error":"#DIV/0!"}},{"$f":"'6_Kennzahlen'!C23","v":{"$error":"#DIV/0!"}},{"$f":"'6_Kennzahlen'!C24","v":{"$error":"#DIV/0!"}},{"$f":"'6_Kennzahlen'!C25","v":{"$error":"#DIV/0!"}},{"$f":"'6_Kennzahlen'!D27","v":{"$error":"#DIV/0!"}},{"$f":"'6_Kennzahlen'!D28","v":{"$error":"#DIV/0!"}},{"$f":"'6_Kennzahlen'!C29","v":{"$error":"#DIV/0!"}},{"$f":"'6_Kennzahlen'!E31","v":{"$error":"#DIV/0!"}},{"$f":"'6_Kennzahlen'!E32","v":{"$error":"#DIV/0!"}},{"$f":"'6_Kennzahlen'!E33","v":{"$error":"#DIV/0!"}},{"$f":"'6_Kennzahlen'!D45","v":{"$error":"#DIV/0!"}},{"$f":"'6_Kennzahlen'!D46","v":{"$error":"#DIV/0!"}},{"$f":"'6_Kennzahlen'!D47","v":{"$error":"#DIV/0!"}},{"$f":"'6_Kennzahlen'!D48","v":{"$error":"#DIV/0!"}},{"$f":"'6_Kennzahlen'!D49","v":{"$error":"#DIV/0!"}},{"$f":"'6_Kennzahlen'!D50","v":{"$error":"#DIV/0!"}},{"$f":"'6_Kennzahlen'!D51","v":{"$error":"#DIV/0!"}},{"$f":"'6_Kennzahlen'!D54","v":{"$error":"#DIV/0!"}},{"$f":"'6_Kennzahlen'!D55","v":{"$error":"#DIV/0!"}},{"$f":"'6_Kennzahlen'!D56","v":{"$error":"#DIV/0!"}},{"$f":"'6_Kennzahlen'!D60","v":{"$error":"#DIV/0!"}},{"$f":"'6_Kennzahlen'!D64","v":{"$error":"#DIV/0!"}},{"$f":"'6_Kennzahlen'!$D68","v":0},{"$f":"'6_Kennzahlen'!$D69","v":0},{"$f":"'6_Kennzahlen'!$D70","v":0},{"$f":"'6_Kennzahlen'!$D71","v":0},{"$f":"'6_Kennzahlen'!$C73","v":{"$error":"#DIV/0!"}},{"$f":"'6_Kennzahlen'!C81","v":0},{"$f":"'6_Kennzahlen'!C82","v":0},{"$f":"'6_Kennzahlen'!C83","v":0},{"$f":"'6_Kennzahlen'!C84","v":0},{"$f":"'6_Kennzahlen'!C85","v":0},{"$f":"'6_Kennzahlen'!C86","v":{"$error":"#DIV/0!"}},{"$f":"'6_Kennzahlen'!C87","v":{"$error":"#DIV/0!"}},{"$f":"'6_Kennzahlen'!C92","v":{"$error":"#DIV/0!"}},{"$f":"'6_Kennzahlen'!C97","v":{"$error":"#DIV/0!"}},{"$f":"'6_Kennzahlen'!C98","v":{"$error":"#DIV/0!"}},{"$f":"'6_Kennzahlen'!C99","v":{"$error":"#DIV/0!"}},{"$f":"'6_Kennzahlen'!C100","v":{"$error":"#DIV/0!"}},{"$f":"'6_Kennzahlen'!C101","v":{"$error":"#DIV/0!"}},{"$f":"'6_Kennzahlen'!C104","v":{"$error":"#DIV/0!"}},{"$f":"'6_Kennzahlen'!C107","v":{"$error":"#DIV/0!"}},{"$f":"'6_Kennzahlen'!C108","v":{"$error":"#DIV/0!"}},{"$f":"'6_Kennzahlen'!C109","v":{"$error":"#DIV/0!"}},{"$f":"'6_Kennzahlen'!C110","v":{"$error":"#DIV/0!"}},{"$f":"'6_Kennzahlen'!C111","v":{"$error":"#DIV/0!"}},{"$f":"'6_Kennzahlen'!C114","v":{"$error":"#DIV/0!"}},{"$f":"'6_Kennzahlen'!C118","v":{"$error":"#DIV/0!"}},{"$f":"'6_Kennzahlen'!C119","v":{"$error":"#DIV/0!"}},{"$f":"'6_Kennzahlen'!D124","v":{"$error":"#DIV/0!"}},{"$f":"'6_Kennzahlen'!D125","v":{"$error":"#DIV/0!"}},{"$f":"'6_Kennzahlen'!$D130","v":{"$error":"#DIV/0!"}},{"$f":"'6_Kennzahlen'!$D131","v":{"$error":"#DIV/0!"}},{"$f":"'6_Kennzahlen'!$D132","v":{"$error":"#DIV/0!"}},{"$f":"'6_Kennzahlen'!$D133","v":{"$error":"#DIV/0!"}},{"$f":"'6_Kennzahlen'!$D134","v":{"$error":"#DIV/0!"}},{"$f":"'6_Kennzahlen'!$D135","v":{"$error":"#DIV/0!"}},{"$f":"'6_Kennzahlen'!$D136","v":{"$error":"#DIV/0!"}},{"$f":"'6_Kennzahlen'!D155","v":"0,00%"},{"$f":"'6_Kennzahlen'!D156","v":"0,00%"},{"$f":"'6_Kennzahlen'!D157","v":"0,00%"},{"$f":"'6_Kennzahlen'!D158","v":"0,00%"},{"$f":"'6_Kennzahlen'!D159","v":"0,00%"},{"$f":"'6_Kennzahlen'!E160","v":"0,00%"},{"$f":"'6_Kennzahlen'!D166","v":"0,00%"},{"$f":"'6_Kennzahlen'!D167","v":"0"},{"$f":"'6_Kennzahlen'!D169","v":"0,00%"},{"$f":"'6_Kennzahlen'!D172","v":"0,00%"},{"$f":"'6_Kennzahlen'!D173","v":"0,00%"},{"$f":"'6_Kennzahlen'!E180","v":0},{"$f":"'6_Kennzahlen'!E181","v":0},{"$f":"'6_Kennzahlen'!D188","v":"0,00%"},{"$f":"'6_Kennzahlen'!C191","v":0},{"$f":"'6_Kennzahlen'!C192","v":0},{"$f":"'6_Kennzahlen'!D194","v":"0,00%"},{"$f":"'6_Kennzahlen'!D195","v":"0,00%"},{"$f":"'6_Kennzahlen'!D205","v":"0,00%"},{"$f":"'6_Kennzahlen'!D210","v":0}]
[]
["Hauptdaten7 (Betreuung und Pflege; Strukturdaten)"]
["Code","Träger","Bezirk","Region","Planungsraum","Größengruppe","PDL-Statistik","Gemeinde\nKennzahl","Gemeinde","Name des Heimes","interne/r Wundmanager/in","externe/r Wundmanager/in","Dekubitus Grad III","Dekubitus Grad IV","Summe Dekubitus III und IV","Anteil Dekubitus III und IV an allen HB zum Stichtag","im Heim entstanden","im Krankenhaus entstanden","wo anders entstanden","gestürzte Bewohner:innen","Anteil gestürzter HB an allen HB 2025","alle Stürze","durchschnittl. Sturzanzahl pro gestürztem HB","Stürze mit ambulanter oder stationärer Behandlung in einem Krankenhaus","Anteil an der Summe aller Stürze 2025","in der Freiheit beschränkt","Anteil FBM an HB","in der Freiheit eingeschränkt","Anteil FEM an HB","Summe HB FBEM","Anteil FBEM an allen HB zum Stichtag","Qualitätsstandard (SOP) Ernährung inkl. Exsikkose","Risikoeinschätzung Ernährung","HB mit Dauerkatheter zum Stichtag","Anteil HB mit Dauerkatheter zum Stichtag","davon transurethrale Dauerkatheter","Anteil transurethral an allen HB mit Dauerkatheter","davon Wechsel transurethral im Krankenhaus","Anteil Wechsel transurethral im KH an HB mit transurethralem Dauerkatheter","davon suprapubische Katheter","Anteil suprapubisch an allen HB mit Dauerkatheter","davon Wechsel suprapubisch im Krankenhaus","Anteil Wechsel suprapubisch im KH an HB mit suprapubischem Dauerkatheter","Qualitätsstandard (SOP) Schmerzen","Schmerzeinschätzung erfolgt","Wenn ja: Instrument zur Risikoeinschätzung chron. Schmerzen","HB mit Suchtmittel-Dauermedikation","Anteil HB mit Suchtmittel-Dauermed. an allen HB zum Stichtag","davon: HB, wo die Suchtmittel der Nachtdienst verabreicht","Anteil HB mit Suchtmittel durch ND an HB mit Suchtmittel-Dauermed.","HB mit med. diagn. Demenz","Antei HB mit med. diagn. Demenz","Wird der überwiegende Teil der Medikamente verblistert?","E-Qalin","QAP-C","EFQM","anderes QM-System","Welches andere QM-System?","Datum der letzten Selbstbewertung","Anzahl der im Heim maximal zur Verfügung stehenden Plätze","davon maximale Plätze in 2-Personen-WE","Oase","davon maximale Plätze in 1-Personen-WE","Anzahl der Wohnbereiche","geschoßübergreifende Wohnbereiche","Anzahl der Wohngruppen","Anzahl Wohngruppen ausschl. für Menschen mit Demenz","HB (LZP und KZP) zum Stichtag","freie Plätze zum Stichtag","davon bereits verplant","noch nie vergeben (Neueröffnung)","freie LZP aufgrund Personalmangel","restliche freie Plätze","Grund","heiminterner Aufnahmestopp","Personen gleichzeitig im ND","Nächte ohne DGKP/PFA aber Rufbereitschaft mit DGKP/PFA (im Bezirk)?","Spätdienst (Tagdienst bis mind. 20 Uhr)","wenn ja, Spätdienst bis ...","wenn ja, Qualifikation Spätdienst"]
[null,null,null,null,null,null,null,null,null,null,null,null,"Dekubitus",null,null,null,null,null,null,"Stürze",null,null,null,null,null,"Freiheitsbe-/-einschränkung",null,null,null,null,null,"Ernährung",null,"Ausscheidung",null,null,null,null,null,null,null,null,null,"Schmerzen",null,null,null,null,null,null,"Demenz",null,"Medikamente"]
[null,null,null,null,null,null,null,"Standortgemeinde",null,"Name des Heimes","Wundmanager",null,"Betreuung und Pflege",null,null,null,null,null,null,null,null,null,null,null,null,null,null,null,null,null,null,null,null,null,null,null,null,null,null,null,null,null,null,null,null,null,null,null,null,null,null,null,null,"QM",null,null,null,null,null,"Wohnstruktur",null,null,null,null,null,null,null,"freie Plätze, Aufnahmestopp",null,null,null,null,null,null,null,"Nachtdienst"]
[{"$f":"VLOOKUP($J$6,'1_allg. Strukturdaten'!$B$74:$N$207,2,FALSE)","v":{"$error":"#N/A"}},{"$f":"VLOOKUP($J$6,'1_allg. Strukturdaten'!$B$74:$N$207,3,FALSE)","v":{"$error":"#N/A"}},{"$f":"VLOOKUP($J$6,'1_allg. Strukturdaten'!$B$74:$N$207,4,FALSE)","v":{"$error":"#N/A"}},{"$f":"VLOOKUP($J$6,'1_allg. Strukturdaten'!$B$74:$N$207,5,FALSE)","v":{"$error":"#N/A"}},{"$f":"VLOOKUP($J$6,'1_allg. Strukturdaten'!$B$74:$N$207,6,FALSE)","v":{"$error":"#N/A"}},{"$f":"VLOOKUP($J$6,'1_allg. Strukturdaten'!$B$74:$N$207,7,FALSE)","v":{"$error":"#N/A"}},{"$f":"VLOOKUP($J$6,'1_allg. Strukturdaten'!$B$74:$N$207,8,FALSE)","v":{"$error":"#N/A"}},{"$f":"VLOOKUP($J$6,'1_allg. Strukturdaten'!$B$74:$N$207,9,FALSE)","v":{"$error":"#N/A"}},{"$f":"VLOOKUP($J$6,'1_allg. Strukturdaten'!$B$74:$N$207,10,FALSE)","v":{"$error":"#N/A"}},{"$f":"'1_allg. Strukturdaten'!D7","v":"Bitte auswählen…"},{"$f":"'5_Betreuung und Pflege'!F22","v":0},{"$f":"'5_Betreuung und Pflege'!F23","v":0},{"$f":"'5_Betreuung und Pflege'!F13","v":0},{"$f":"'5_Betreuung und Pflege'!F14","v":0},{"$f":"'5_Betreuung und Pflege'!F15","v":0},{"$f":"'5_Betreuung und Pflege'!G15","v":"0,00%"},{"$f":"'5_Betreuung und Pflege'!F18","v":0},{"$f":"'5_Betreuung und Pflege'!F19","v":0},{"$f":"'5_Betreuung und Pflege'!F20","v":0},{"$f":"'5_Betreuung und Pflege'!F29","v":0},{"$f":"'5_Betreuung und Pflege'!G29","v":"0,00%"},{"$f":"'5_Betreuung und Pflege'!F31","v":0},{"$f":"'5_Betreuung und Pflege'!G31","v":"0"},{"$f":"'5_Betreuung und Pflege'!F34","v":0},{"$f":"'5_Betreuung und Pflege'!G34","v":"0,00%"},{"$f":"'5_Betreuung und Pflege'!F41","v":0},{"$f":"'5_Betreuung und Pflege'!G41","v":"0,00%"},{"$f":"'5_Betreuung und Pflege'!F45","v":0},{"$f":"'5_Betreuung und Pflege'!G45","v":"0,00%"},{"$f":"'5_Betreuung und Pflege'!F47","v":0},{"$f":"'5_Betreuung und Pflege'!G47","v":"0,00%"},{"$f":"'5_Betreuung und Pflege'!G53","v":0},{"$f":"'5_Betreuung und Pflege'!G55","v":0},{"$f":"'5_Betreuung und Pflege'!F59","v":0},{"$f":"'5_Betreuung und Pflege'!G59","v":"0,00%"},{"$f":"'5_Betreuung und Pflege'!F60","v":0},{"$f":"AJ42/AH42","v":{"$error":"#DIV/0!"}},{"$f":"'5_Betreuung und Pflege'!G61","v":0},{"$f":"AL42/AJ42","v":{"$error":"#DIV/0!"}},{"$f":"'5_Betreuung und Pflege'!F62","v":0},{"$f":"AN42/AH42","v":{"$error":"#DIV/0!"}},{"$f":"'5_Betreuung und Pflege'!G63","v":0},{"$f":"AP42/AN42","v":{"$error":"#DIV/0!"}},{"$f":"'5_Betreuung und Pflege'!G67","v":0},{"$f":"'5_Betreuung und Pflege'!G69","v":0},{"$f":"'5_Betreuung und Pflege'!E72","v":0},{"$f":"'5_Betreuung und Pflege'!F74","v":0},{"$f":"'5_Betreuung und Pflege'!G74","v":"0,00%"},{"$f":"'5_Betreuung und Pflege'!F77","v":0},{"$f":"'5_Betreuung und Pflege'!G77","v":"0,00%"},{"$f":"'5_Betreuung und Pflege'!F85","v":0},{"$f":"'5_Betreuung und Pflege'!G85","v":"0,00%"},{"$f":"'5_Betreuung und Pflege'!F91","v":0},{"$f":"'1_allg. Strukturdaten'!F25","v":0},{"$f":"'1_allg. Strukturdaten'!G25","v":0},{"$f":"'1_allg. Strukturdaten'!H25","v":0},{"$f":"'1_allg. Strukturdaten'!I25","v":0},{"$f":"'1_allg. Strukturdaten'!I26","v":0},{"$f":"IF('1_allg. Strukturdaten'!C26=\"\",\"\",'1_allg. Strukturdaten'!C26)","v":""},{"$f":"'1_allg. Strukturdaten'!E31","v":{"$error":"#N/A"}},{"$f":"'1_allg. Strukturdaten'!E32","v":0},{"$f":"'1_allg. Strukturdaten'!E33","v":0},{"$f":"'1_allg. Strukturdaten'!E34","v":0},{"$f":"'1_allg. Strukturdaten'!D36","v":0},{"$f":"'1_allg. Strukturdaten'!I36","v":0},{"$f":"'1_allg. Strukturdaten'!D38","v":0},{"$f":"'1_allg. Strukturdaten'!E40","v":0},{"$f":"'1_allg. Strukturdaten'!C45","v":0},{"$f":"'1_allg. Strukturdaten'!C47","v":{"$error":"#N/A"}},{"$f":"'1_allg. Strukturdaten'!F47","v":0},{"$f":"'1_allg. Strukturdaten'!F49","v":0},{"$f":"'1_allg. Strukturdaten'!F50","v":0},{"$f":"'1_allg. Strukturdaten'!B51","v":{"$error":"#N/A"}},{"$f":"'1_allg. Strukturdaten'!D51","v":0},{"$f":"'1_allg. Strukturdaten'!E53","v":0},{"$f":"'1_allg. Strukturdaten'!G58","v":0},{"$f":"'1_allg. Strukturdaten'!I59","v":0},{"$f":"'1_allg. Strukturdaten'!G60","v":0},{"$f":"'1_allg. Strukturdaten'!G61","v":"00:00:00"},{"$f":"'1_allg. Strukturdaten'!I61","v":0}]